Workbook

Sheet Version Control (hidden)
A1: Version | B1: Date | C1: Name | D1: Notes
A2: v0.1 | B2: 2018-04-03 | C2: PB | D2: Initial configuration of model, including: - Set up of worksheets - Intensity Selection set up and configuration - Demand - Internal Transfers diagram set up and configuration - Data Validation design draft - Service design draft - Capacity design draft - SPC placeholder
A3: v0.2 | B3: 2018-04-13 | C3: PB | D3: Milestone configuration: - Flow Rate (Hide) set up and configuration - Parameters sheet draft - Demand Predictions (hide), Demand Modelling - Control and Demand Modelling - Results sheets set up. Parameters likely to take over from Demand Modelling - Control sheet - VBA code from test sheet copied over - Real test data added
A4: v0.3 | B4: 2018-04-20 | C4: PB | D4: Milestone configuration: - Flow Rate and Discharge rate now reflect historical weighting. - SPC chart and SPC chart backing created. -SPC chart seasonality functionality implemented (requires full testing). - VBA code for demand modelling works through weekly, monthly, seasonal or annual modelling. - 'Results' sheet created as placeholder for summary tab.
A5: v0.4 | B5: 2018-04-27 | C5: PB | D5: Milestone configuration -SPC Chart can now switch between Patients or Units (units configured on Service tab). Legends only display if applicable. SPC now runs "Total", "Baseline" and "Seasonal". Seasonal highlighting applies for all data points across the entered data. -Estimated Demand graph created for Results tab. Average caseload/demand table added to Results tab. - External additions overwrite was not working as expected - bugfixed. -Week 53/Week 1 issue - bugfixed. -Data Cleanup on change of Patient Groups implemented with Warning message.
A6: v0.5 | B6: 2018-05-04 | C6: PB | D6: Milestone configuration: -SPC Chart updated as axis was not dynamically updating with less than 3 years of data. -Iteration Engine improved to work with less than 3 years of data -Conditional Formatting for table borders set up in Demand tabs -Results graph revised and now made dynamic via user selection. -Percentiles and seasons added to Results graph.
A7: v0.6 | B7: 2018-05-08 | C7: PB | D7: -Bugfix - Data validation not feeding through to SPC chart correctly. -Version split - changes to be made to Service tab to accommodate Capacity changes (Group Session Minutes Required per patient per level of intensity + Individual Session Minutes Required per patient per level of intensity)
A8: v0.6ii | B8: 2018-05-11 | C8: PB | D8: Milestone Configuration: -Service tab split between Non-Group and Group sessions to aid in capacity work -Percentiles removed from external additions -Capacity, Critical Resources, Capacity Setup and Capacity Summary added and tested. -Results sheet updated with capacity information.
A9: v0.7 | B9: 2018-05-18 | C9: PB | D9: Milestone Configuration -New parameters sheet configured.
A10: v0.8 | B10: 2018-05-22 | C10: PB | D10: Milestone Configuration -Bootstrapped data added as "Random Historic Sampling" to Parameters. Tested and working. -Demand Modelling - Control updated to accept new Parameters page. -Results page updated, split between demand information and capacity information to reflect core model.
A11: v0.9 | B11: 2018-05-23 | C11: PB | D11: Milestone Configuration -Bug fix -Flow Rates and Discharge Rates edited to ensure that rates cannot go below 0 -Information points added throughout model.
A12: v1 | B12: 2018-05-25 | C12: PB | D12: Milestone Configuration -Notes tab added -Sheet protection added and tested. -First live version
A13: v1.0a ii | B13: 2018-06-01 | C13: PB | D13: Bugfix -Cells were being unprotected by selecting seasonality in the 'Results' tab - resolved - Validated data was not being used in flow rate caluclations correctly - resolved - Change MAPE to show '1' if data is not entered to suggest to user to use validated data - Rates for Monthly, Annual and Seasonal iterations updated - VBA coding fully commented and streamlined - Summary table added to results sheet. - Lower percentile selection added to results sheet.
A14: v1.01 | B14: 2018-06-18 | C14: PB | D14: -Import function created
A15: v1.02 | B15: 2018-07-11 | C15: PB | D15: Bugfix - VBA coding was failing on Excel 2016. Coding changed to work with new version. - External additions on Parameters was displaying incorrectly. Corrected. - Formatting corrected in Demand sheets to better show longer group names - External additions SPC formatting corrected. - Capacity formatting corrected. - Added "None" to capacity summary sheet for clinics, so that individual clinics can be reviewed without ad-hoc or core capacity showing on top of the selected clinic. - Average required capacity in summary table in results sheet was displaying incorrectly. Corrected. - Patient groups in the Caseload and External Additions SPC charts are now synced. - NASLR rate calculated but not displayed correctly. Formula fixed. - Seasonality selection was producing a blank selection at the end. Corrected. - Import Function now brings in "Notes" Section.
A16: v1.03 | B16: 2018-08-13 | C16: PB | D16: Bugfix - Capacity in the Results sheet was not filtering out correctly. Corrected. - External additions per level of intensity was not being shown in the summary parameters table correctly. Corrected. - Showing summary table in results tab was unprotecting all sheets. Corrected. Formatting - Reduced decimal places on summary parameters table.
A17: v1.04 | B17: 2018-10-31 | C17: PB | D17: Version not released externally Bugfix - SPC Chart selected weeks was displaying incorrectly. Baseline selection was still using seasonal settings. Both issues fixed. - MAPE calculation was showing erroneous values with small datasets with lots of zero patient caseloads - fixed. - Duplicated data validation lists removed. - Critical Resource date selection - end date now starts from week selected, to end of the 52 week period, so that only future dates can be selected. - Protection macros changed to help improve speed - will now only cycle through affected sheets. - Duplicated demand and required capacity calculations removed. - Results sheet updated to better display lines (added markers, changed colours) as it could be difficult to distinguish. - Unused service data entry lines were still being calculated in required capacity. Fixed. - Show seasonality now only available if Seasonal selected in Caseload SPC Chart. - Minutes multiplier on Caseload SPC chart was referencing an incorrect cell and displaying falsely high minutes on the chart. Fixed. - External additions for monthly iterations changed to reflect static average
A18: v1.05 | B18: 2019-01-09 | C18: PB | D18: Version not released externally Bugfix - improved backing for aggregation module to always convert to contact activity rather than minutes - improved accuracy of group session requirements - part-group sessions are now rounded up, to ensure capacity is available for all patients. - improved backend for capacity to remove reliance on selection in results sheet - improved backend for capacity to assign capacity based on required capacity, and image of change built in to display when change has been made. - improved weighting calculation for part years. The weighting for years without data are now distributed back to the years that do have datapoints.
A19: v1.06 | B19: 2019-04-24 | C19: PB | D19: Milestone Configuration - Core capacity can now be selected for specific weeks, similar to Ad-Hoc selections in previous versions. - Data validation added to Setup tab - VBA coding did not work if just a number was added to the name field - Iteration process optimised

Sheet GeneralBacking (hidden)
A1: Setup - Patient Groups | C1: Setup - Intensity Levels | G1: Service - Modes of Treatment | I1: Service - Units | K1: Yes/No Selection | M1: Service - Contact Frequency | P1: Intensity Levels Inc. Totals | R1: SPC Chart - Units | T1: SPC Chart - Remaining Wks Use Season | V1: SPC Chart - Seasonal Selection | X1: SPC Chart - Display Unit | Z1: Results Charts - Graph Type | AB1: Results Charts - Period | AD1: Capacity - Selection | AF1: Capacity - Core Clinic Lookup for Graph | AH1: Capacity - AdHoc Clinic Lookup | AJ1: Parameters - Set Parameters by | AL1: Parameters - Enter Parameters by | AN1: Parameters - Units | AP1: Required/Available capacity | AR1: Required/Available Capacity - Type | AT1: Results - lower percentile | AW1: List for Flow Rate week table | AY1: List for Flow Rate monthly | BA1: List for Flow Rate seasonal | BC1: Capacity Setup - Core/Ad-Hoc | BE1: Capacity Summary | BG1: Results - Dates for graphs
A2: 2 | C2: 1 | D2: =IF(Setup!D11="","LI1",Setup!D11) -> Grp1 | E2: =IF(Setup!E11="","Level of Intensity 1",Setup!E11) -> Low | G2: 1 | I2: Minutes | K2: Yes | M2: Twice a week | N2: 2 | P2: Total | R2: =Service!G18 -> Minutes | T2: 1 | V2: Total | X2: Patients | Z2: Patient Caseload | AB2: All Data | AF2: Total | AH2: Total | AJ2: Total Service | AL2: % | AN2: Contacts | AP2: Overall | AR2: Req Capacity - Non Group Sessions | AT2: 65th | AU2: 0.65 | AW2: 1 | AY2: 1 | BA2: 1 | BC2: Core | BE2: Core Sessions | BG2: =IF('Demand - External Transfers'!$G$7="",ROW(A1),"") ->  | BH2: =IF('Demand - External Transfers'!$G$7="","",'Demand - External Transfers'!G7) -> 2017-04-01
A3: 3 | C3: 2 | D3: =IF(Setup!D12="","LI2",Setup!D12) -> Grp2 | E3: =IF(Setup!E12="","Level of Intensity 2",Setup!E12) -> Mid-Low | G3: 2 | I3: Contacts | K3: No | M3: Once a week | N3: 1 | P3: =D2 -> Grp1 | R3: Patients | T3: 2 | V3: Baseline | X3: =Service!G18 -> Minutes | Z3: Estimated Demand - Non Group Session | AB3: Predicted Data | AD3: X | AF3: None | AH3: None | AJ3: Level of Intensity | AL3: Volume | AN3: Minutes | AP3: By Time | AR3: Req Capacity - Group Sessions | AT3: 70th | AU3: 0.7 | AW3: 2 | AY3: 2 | BA3: 2 | BC3: Ad-Hoc | BE3: Ad Hoc Sessions | BG3: =IF('Demand - External Transfers'!$G$7="",ROW(A2),"") ->  | BH3: =BH2+7 -> 2017-04-08
A4: 4 | C4: 3 | D4: =IF(Setup!D13="","LI3",Setup!D13) -> Grp3 | E4: =IF(Setup!E13="","Level of Intensity 3",Setup!E13) -> Mid | G4: 3 | I4: Other | M4: Once a fortnight | N4: 0.5 | P4: =D3 -> Grp2 | T4: 3 | V4: Seasonal | Z4: Estimated Demand - Group Session | AF4: =IF(Capacity!B18="","",ROW(A1)&". "&Capacity!B18) -> 1. Weekly RN | AH4: =IF(Capacity!R18="","",ROW(A1)&". "&Capacity!R18) ->  | AR4: Req Capacity - Total | AT4: 75th | AU4: 0.75 | AW4: 3 | AY4: 3 | BA4: 3 | BG4: =IF('Demand - External Transfers'!$G$7="",ROW(A3),"") ->  | BH4: =BH3+7 -> 2017-04-15
A5: 5 | C5: 4 | D5: =IF(Setup!D14="","LI4",Setup!D14) -> Grp4 | E5: =IF(Setup!E14="","Level of Intensity 4",Setup!E14) -> Mid-High | G5: 4 | M5: Once a month | N5: 0.23 | P5: =D4 -> Grp3 | T5: 4 | AF5: =IF(Capacity!B19="","",ROW(A2)&". "&Capacity!B19) -> 2. Weekly SRN | AH5: =IF(Capacity!R19="","",ROW(A2)&". "&Capacity!R19) ->  | AT5: 80th | AU5: 0.8 | AW5: 4 | AY5: 4 | BA5: 4 | BG5: =IF('Demand - External Transfers'!$G$7="",ROW(A4),"") ->  | BH5: 2017-04-22
C6: 5 | D6: =IF(Setup!D15="","LI5",Setup!D15) -> Grp5 | E6: =IF(Setup!E15="","Level of Intensity 5",Setup!E15) -> High | G6: 5 | M6: Every two months | N6: 0.12 | P6: =D5 -> Grp4 | AF6: =IF(Capacity!B20="","",ROW(A3)&". "&Capacity!B20) -> 3. 1/2 RN | AH6: =IF(Capacity!R20="","",ROW(A3)&". "&Capacity!R20) ->  | AW6: 5 | AY6: 5 | BG6: =IF('Demand - External Transfers'!$G$7="",ROW(A5),"") ->  | BH6: 2017-04-29
M7: Every three months | N7: 0.08 | P7: =D6 -> Grp5 | AF7: =IF(Capacity!B21="","",ROW(A4)&". "&Capacity!B21) -> 4. Wed RN | AH7: =IF(Capacity!R21="","",ROW(A4)&". "&Capacity!R21) ->  | AW7: 6 | AY7: 6 | BG7: =IF('Demand - External Transfers'!$G$7="",ROW(A6),"") ->  | BH7: 2017-05-06
M8: Every four months | N8: 0.06 | AF8: =IF(Capacity!B22="","",ROW(A5)&". "&Capacity!B22) -> 5. Wed SRN | AH8: =IF(Capacity!R22="","",ROW(A5)&". "&Capacity!R22) ->  | AW8: 7 | AY8: 7 | BG8: =IF('Demand - External Transfers'!$G$7="",ROW(A7),"") ->  | BH8: 2017-05-13
M9: Twice a year | N9: 0.04 | AF9: =IF(Capacity!B23="","",ROW(A6)&". "&Capacity!B23) -> 6. Thu RN | AH9: =IF(Capacity!R23="","",ROW(A6)&". "&Capacity!R23) ->  | AW9: 8 | AY9: 8 | BG9: =IF('Demand - External Transfers'!$G$7="",ROW(A8),"") ->  | BH9: 2017-05-20
M10: Once a year | N10: 0.02 | AF10: =IF(Capacity!B24="","",ROW(A7)&". "&Capacity!B24) -> 7. Thu SRN | AH10: =IF(Capacity!R24="","",ROW(A7)&". "&Capacity!R24) ->  | AW10: 9 | AY10: 9 | BG10: =IF('Demand - External Transfers'!$G$7="",ROW(A9),"") ->  | BH10: 2017-05-27
AF11: =IF(Capacity!B25="","",ROW(A8)&". "&Capacity!B25) -> 8. Fri SRN | AH11: =IF(Capacity!R25="","",ROW(A8)&". "&Capacity!R25) ->  | AW11: 10 | AY11: 10 | BG11: =IF('Demand - External Transfers'!$G$7="",ROW(A10),"") ->  | BH11: 2017-06-03
AF12: =IF(Capacity!B26="","",ROW(A9)&". "&Capacity!B26) -> 9. GS Team 1 | AH12: =IF(Capacity!R26="","",ROW(A9)&". "&Capacity!R26) ->  | AW12: 11 | AY12: 11 | BG12: =IF('Demand - External Transfers'!$G$7="",ROW(A11),"") ->  | BH12: 2017-06-10
AF13: =IF(Capacity!B27="","",ROW(A10)&". "&Capacity!B27) -> 10. GS Team 2 | AH13: =IF(Capacity!R27="","",ROW(A10)&". "&Capacity!R27) ->  | AW13: 12 | AY13: 12 | BG13: =IF('Demand - External Transfers'!$G$7="",ROW(A12),"") ->  | BH13: 2017-06-17
AF14: =IF(Capacity!B28="","",ROW(A11)&". "&Capacity!B28) -> 11. GS Team 3 | AH14: =IF(Capacity!R28="","",ROW(A11)&". "&Capacity!R28) ->  | AW14: 13 | BG14: =IF('Demand - External Transfers'!$G$7="",ROW(A13),"") ->  | BH14: 2017-06-24
AF15: =IF(Capacity!B29="","",ROW(A12)&". "&Capacity!B29) -> 12. GS Team 4 | AH15: =IF(Capacity!R29="","",ROW(A12)&". "&Capacity!R29) ->  | AW15: 14 | BG15: =IF('Demand - External Transfers'!$G$7="",ROW(A14),"") ->  | BH15: 2017-07-01
AF16: =IF(Capacity!B30="","",ROW(A13)&". "&Capacity!B30) -> 13. GS Team 5 | AH16: =IF(Capacity!R30="","",ROW(A13)&". "&Capacity!R30) ->  | AW16: 15 | BG16: =IF('Demand - External Transfers'!$G$7="",ROW(A15),"") ->  | BH16: 2017-07-08
AF17: =IF(Capacity!B31="","",ROW(A14)&". "&Capacity!B31) -> 14. GS Multi | AH17: =IF(Capacity!R31="","",ROW(A14)&". "&Capacity!R31) ->  | AW17: 16 | BG17: =IF('Demand - External Transfers'!$G$7="",ROW(A16),"") ->  | BH17: 2017-07-15
AF18: =IF(Capacity!B32="","",ROW(A15)&". "&Capacity!B32) -> 15. SRN | AH18: =IF(Capacity!R32="","",ROW(A15)&". "&Capacity!R32) ->  | AW18: 17 | BG18: =IF('Demand - External Transfers'!$G$7="",ROW(A17),"") ->  | BH18: 2017-07-22
AF19: =IF(Capacity!B33="","",ROW(A16)&". "&Capacity!B33) -> 16. Add | AH19: =IF(Capacity!R33="","",ROW(A16)&". "&Capacity!R33) ->  | AW19: 18 | BG19: =IF('Demand - External Transfers'!$G$7="",ROW(A18),"") ->  | BH19: 2017-07-29
AF20: =IF(Capacity!B34="","",ROW(A17)&". "&Capacity!B34) -> 17. AH-Add2 | AH20: =IF(Capacity!R34="","",ROW(A17)&". "&Capacity!R34) ->  | AW20: 19 | BG20: =IF('Demand - External Transfers'!$G$7="",ROW(A19),"") ->  | BH20: 2017-08-05
AF21: =IF(Capacity!B35="","",ROW(A18)&". "&Capacity!B35) -> 18. AH-Add3 | AH21: =IF(Capacity!R35="","",ROW(A18)&". "&Capacity!R35) ->  | AW21: 20 | BG21: =IF('Demand - External Transfers'!$G$7="",ROW(A20),"") ->  | BH21: 2017-08-12
AF22: =IF(Capacity!B36="","",ROW(A19)&". "&Capacity!B36) ->  | AH22: =IF(Capacity!R36="","",ROW(A19)&". "&Capacity!R36) ->  | AW22: 21 | BG22: =IF('Demand - External Transfers'!$G$7="",ROW(A21),"") ->  | BH22: 2017-08-19
AF23: =IF(Capacity!B37="","",ROW(A20)&". "&Capacity!B37) ->  | AH23: =IF(Capacity!R37="","",ROW(A20)&". "&Capacity!R37) ->  | AW23: 22 | BG23: =IF('Demand - External Transfers'!$G$7="",ROW(A22),"") ->  | BH23: 2017-08-26
AF24: =IF(Capacity!B38="","",ROW(A21)&". "&Capacity!B38) ->  | AH24: =IF(Capacity!R38="","",ROW(A21)&". "&Capacity!R38) ->  | AW24: 23 | BG24: =IF('Demand - External Transfers'!$G$7="",ROW(A23),"") ->  | BH24: 2017-09-02
AF25: =IF(Capacity!B39="","",ROW(A22)&". "&Capacity!B39) ->  | AH25: =IF(Capacity!R39="","",ROW(A22)&". "&Capacity!R39) ->  | AW25: 24 | BG25: =IF('Demand - External Transfers'!$G$7="",ROW(A24),"") ->  | BH25: 2017-09-09
AF26: =IF(Capacity!B40="","",ROW(A23)&". "&Capacity!B40) ->  | AH26: =IF(Capacity!R40="","",ROW(A23)&". "&Capacity!R40) ->  | AW26: 25 | BG26: =IF('Demand - External Transfers'!$G$7="",ROW(A25),"") ->  | BH26: 2017-09-16
AF27: =IF(Capacity!B41="","",ROW(A24)&". "&Capacity!B41) ->  | AH27: =IF(Capacity!R41="","",ROW(A24)&". "&Capacity!R41) ->  | AW27: 26 | BG27: =IF('Demand - External Transfers'!$G$7="",ROW(A26),"") ->  | BH27: 2017-09-23
AF28: =IF(Capacity!B42="","",ROW(A25)&". "&Capacity!B42) ->  | AH28: =IF(Capacity!R42="","",ROW(A25)&". "&Capacity!R42) ->  | AW28: 27 | BG28: =IF('Demand - External Transfers'!$G$7="",ROW(A27),"") ->  | BH28: 2017-09-30
AF29: =IF(Capacity!B43="","",ROW(A26)&". "&Capacity!B43) ->  | AH29: =IF(Capacity!R43="","",ROW(A26)&". "&Capacity!R43) ->  | AW29: 28 | BG29: =IF('Demand - External Transfers'!$G$7="",ROW(A28),"") ->  | BH29: 2017-10-07
AF30: =IF(Capacity!B44="","",ROW(A27)&". "&Capacity!B44) ->  | AH30: =IF(Capacity!R44="","",ROW(A27)&". "&Capacity!R44) ->  | AW30: 29 | BG30: =IF('Demand - External Transfers'!$G$7="",ROW(A29),"") ->  | BH30: 2017-10-14
AF31: =IF(Capacity!B45="","",ROW(A28)&". "&Capacity!B45) ->  | AH31: =IF(Capacity!R45="","",ROW(A28)&". "&Capacity!R45) ->  | AW31: 30 | BG31: =IF('Demand - External Transfers'!$G$7="",ROW(A30),"") ->  | BH31: 2017-10-21
AF32: =IF(Capacity!B46="","",ROW(A29)&". "&Capacity!B46) ->  | AH32: =IF(Capacity!R46="","",ROW(A29)&". "&Capacity!R46) ->  | AW32: 31 | BG32: =IF('Demand - External Transfers'!$G$7="",ROW(A31),"") ->  | BH32: 2017-10-28
AF33: =IF(Capacity!B47="","",ROW(A30)&". "&Capacity!B47) ->  | AH33: =IF(Capacity!R47="","",ROW(A30)&". "&Capacity!R47) ->  | AW33: 32 | BG33: =IF('Demand - External Transfers'!$G$7="",ROW(A32),"") ->  | BH33: 2017-11-04
AF34: =IF(Capacity!B48="","",ROW(A31)&". "&Capacity!B48) ->  | AH34: =IF(Capacity!R48="","",ROW(A31)&". "&Capacity!R48) ->  | AW34: 33 | BG34: =IF('Demand - External Transfers'!$G$7="",ROW(A33),"") ->  | BH34: 2017-11-11
AF35: =IF(Capacity!B49="","",ROW(A32)&". "&Capacity!B49) ->  | AH35: =IF(Capacity!R49="","",ROW(A32)&". "&Capacity!R49) ->  | AW35: 34 | BG35: =IF('Demand - External Transfers'!$G$7="",ROW(A34),"") ->  | BH35: 2017-11-18
AF36: =IF(Capacity!B50="","",ROW(A33)&". "&Capacity!B50) ->  | AH36: =IF(Capacity!R50="","",ROW(A33)&". "&Capacity!R50) ->  | AW36: 35 | BG36: =IF('Demand - External Transfers'!$G$7="",ROW(A35),"") ->  | BH36: 2017-11-25
AF37: =IF(Capacity!B51="","",ROW(A34)&". "&Capacity!B51) ->  | AH37: =IF(Capacity!R51="","",ROW(A34)&". "&Capacity!R51) ->  | AW37: 36 | BG37: =IF('Demand - External Transfers'!$G$7="",ROW(A36),"") ->  | BH37: 2017-12-02
AF38: =IF(Capacity!B52="","",ROW(A35)&". "&Capacity!B52) ->  | AH38: =IF(Capacity!R52="","",ROW(A35)&". "&Capacity!R52) ->  | AW38: 37 | BG38: =IF('Demand - External Transfers'!$G$7="",ROW(A37),"") ->  | BH38: 2017-12-09
AF39: =IF(Capacity!B53="","",ROW(A36)&". "&Capacity!B53) ->  | AH39: =IF(Capacity!R53="","",ROW(A36)&". "&Capacity!R53) ->  | AW39: 38 | BG39: =IF('Demand - External Transfers'!$G$7="",ROW(A38),"") ->  | BH39: 2017-12-16
AF40: =IF(Capacity!B54="","",ROW(A37)&". "&Capacity!B54) ->  | AH40: =IF(Capacity!R54="","",ROW(A37)&". "&Capacity!R54) ->  | AW40: 39 | BG40: =IF('Demand - External Transfers'!$G$7="",ROW(A39),"") ->  | BH40: 2017-12-23
AF41: =IF(Capacity!B55="","",ROW(A38)&". "&Capacity!B55) ->  | AH41: =IF(Capacity!R55="","",ROW(A38)&". "&Capacity!R55) ->  | AW41: 40 | BG41: =IF('Demand - External Transfers'!$G$7="",ROW(A40),"") ->  | BH41: 2017-12-30
AF42: =IF(Capacity!B56="","",ROW(A39)&". "&Capacity!B56) ->  | AH42: =IF(Capacity!R56="","",ROW(A39)&". "&Capacity!R56) ->  | AW42: 41 | BG42: =IF('Demand - External Transfers'!$G$7="",ROW(A41),"") ->  | BH42: 2018-01-06
AF43: =IF(Capacity!B57="","",ROW(A40)&". "&Capacity!B57) ->  | AH43: =IF(Capacity!R57="","",ROW(A40)&". "&Capacity!R57) ->  | AW43: 42 | BG43: =IF('Demand - External Transfers'!$G$7="",ROW(A42),"") ->  | BH43: 2018-01-13
AF44: =IF(Capacity!B58="","",ROW(A41)&". "&Capacity!B58) ->  | AH44: =IF(Capacity!R58="","",ROW(A41)&". "&Capacity!R58) ->  | AW44: 43 | BG44: =IF('Demand - External Transfers'!$G$7="",ROW(A43),"") ->  | BH44: 2018-01-20
AF45: =IF(Capacity!B59="","",ROW(A42)&". "&Capacity!B59) ->  | AH45: =IF(Capacity!R59="","",ROW(A42)&". "&Capacity!R59) ->  | AW45: 44 | BG45: =IF('Demand - External Transfers'!$G$7="",ROW(A44),"") ->  | BH45: 2018-01-27
AF46: =IF(Capacity!B60="","",ROW(A43)&". "&Capacity!B60) ->  | AH46: =IF(Capacity!R60="","",ROW(A43)&". "&Capacity!R60) ->  | AW46: 45 | BG46: =IF('Demand - External Transfers'!$G$7="",ROW(A45),"") ->  | BH46: 2018-02-03
AF47: =IF(Capacity!B61="","",ROW(A44)&". "&Capacity!B61) ->  | AH47: =IF(Capacity!R61="","",ROW(A44)&". "&Capacity!R61) ->  | AW47: 46 | BG47: =IF('Demand - External Transfers'!$G$7="",ROW(A46),"") ->  | BH47: 2018-02-10
AF48: =IF(Capacity!B62="","",ROW(A45)&". "&Capacity!B62) ->  | AH48: =IF(Capacity!R62="","",ROW(A45)&". "&Capacity!R62) ->  | AW48: 47 | BG48: =IF('Demand - External Transfers'!$G$7="",ROW(A47),"") ->  | BH48: 2018-02-17
AF49: =IF(Capacity!B63="","",ROW(A46)&". "&Capacity!B63) ->  | AH49: =IF(Capacity!R63="","",ROW(A46)&". "&Capacity!R63) ->  | AW49: 48 | BG49: =IF('Demand - External Transfers'!$G$7="",ROW(A48),"") ->  | BH49: 2018-02-24
AF50: =IF(Capacity!B64="","",ROW(A47)&". "&Capacity!B64) ->  | AH50: =IF(Capacity!R64="","",ROW(A47)&". "&Capacity!R64) ->  | AW50: 49 | BG50: =IF('Demand - External Transfers'!$G$7="",ROW(A49),"") ->  | BH50: 2018-03-03
AF51: =IF(Capacity!B65="","",ROW(A48)&". "&Capacity!B65) ->  | AH51: =IF(Capacity!R65="","",ROW(A48)&". "&Capacity!R65) ->  | AW51: 50 | BG51: =IF('Demand - External Transfers'!$G$7="",ROW(A50),"") ->  | BH51: 2018-03-10
AF52: =IF(Capacity!B66="","",ROW(A49)&". "&Capacity!B66) ->  | AH52: =IF(Capacity!R66="","",ROW(A49)&". "&Capacity!R66) ->  | AW52: 51 | BG52: =IF('Demand - External Transfers'!$G$7="",ROW(A51),"") ->  | BH52: 2018-03-17
AF53: =IF(Capacity!B67="","",ROW(A50)&". "&Capacity!B67) ->  | AH53: =IF(Capacity!R67="","",ROW(A50)&". "&Capacity!R67) ->  | AW53: 52 | BG53: =IF('Demand - External Transfers'!$G$7="",ROW(A52),"") ->  | BH53: 2018-03-24
AF54: =IF(Capacity!B68="","",ROW(A51)&". "&Capacity!B68) ->  | AH54: =IF(Capacity!R68="","",ROW(A51)&". "&Capacity!R68) ->  | BG54: =IF('Demand - External Transfers'!$G$7="",ROW(A53),"") ->  | BH54: 2018-03-31
AF55: =IF(Capacity!B69="","",ROW(A52)&". "&Capacity!B69) ->  | AH55: =IF(Capacity!R69="","",ROW(A52)&". "&Capacity!R69) ->  | BG55: =IF('Demand - External Transfers'!$G$7="",ROW(A54),"") ->  | BH55: 2018-04-07
AF56: =IF(Capacity!B70="","",ROW(A53)&". "&Capacity!B70) ->  | AH56: =IF(Capacity!R70="","",ROW(A53)&". "&Capacity!R70) ->  | BG56: =IF('Demand - External Transfers'!$G$7="",ROW(A55),"") ->  | BH56: 2018-04-14
AF57: =IF(Capacity!B71="","",ROW(A54)&". "&Capacity!B71) ->  | AH57: =IF(Capacity!R71="","",ROW(A54)&". "&Capacity!R71) ->  | BG57: =IF('Demand - External Transfers'!$G$7="",ROW(A56),"") ->  | BH57: 2018-04-21
AF58: =IF(Capacity!B72="","",ROW(A55)&". "&Capacity!B72) ->  | AH58: =IF(Capacity!R72="","",ROW(A55)&". "&Capacity!R72) ->  | BG58: =IF('Demand - External Transfers'!$G$7="",ROW(A57),"") ->  | BH58: 2018-04-28
AF59: =IF(Capacity!B73="","",ROW(A56)&". "&Capacity!B73) ->  | AH59: =IF(Capacity!R73="","",ROW(A56)&". "&Capacity!R73) ->  | BG59: =IF('Demand - External Transfers'!$G$7="",ROW(A58),"") ->  | BH59: 2018-05-05
AF60: =IF(Capacity!B74="","",ROW(A57)&". "&Capacity!B74) ->  | AH60: =IF(Capacity!R74="","",ROW(A57)&". "&Capacity!R74) ->  | BG60: =IF('Demand - External Transfers'!$G$7="",ROW(A59),"") ->  | BH60: 2018-05-12
AF61: =IF(Capacity!B75="","",ROW(A58)&". "&Capacity!B75) ->  | AH61: =IF(Capacity!R75="","",ROW(A58)&". "&Capacity!R75) ->  | BG61: =IF('Demand - External Transfers'!$G$7="",ROW(A60),"") ->  | BH61: 2018-05-19
AF62: =IF(Capacity!B76="","",ROW(A59)&". "&Capacity!B76) ->  | AH62: =IF(Capacity!R76="","",ROW(A59)&". "&Capacity!R76) ->  | BG62: =IF('Demand - External Transfers'!$G$7="",ROW(A61),"") ->  | BH62: 2018-05-26
... 77 more rows

Sheet Notes
B2: Notes
A3: =IF(B3<>"",1,0) -> 1 | B3: This is a dummy dataset designed to show some of the features of the High Complexity Model.
A4: =IF(B4<>"",1,0) -> 1 | B4: When completing the High Complexity Model for your service, it is recommended that you download the High Complexity Model - Blank file to ensure all settings are cleared.
A5: 0
A6: 0
A7: 0
A8: 0
A9: 0
A10: 0
A11: 0
A12: 0
A13: 0
A14: 0
A15: 0
A16: 0
A17: 0
A18: 0
A19: 0
A20: 0
A21: 0
A22: 0
A23: 0
A24: 0
A25: 0
A26: 0
A27: 0
A28: 0
A29: 0
A30: 0
A31: 0
A32: 0
A33: 0
A34: 0
A35: 0
A36: 0
A37: 0
A38: 0
A39: 0
A40: 0
A41: 0
A42: 0
A43: 0
A44: 0
A45: 0
A46: 0
A47: 0
A48: 0
A49: 0
A50: 0
A51: 0
A52: 0
A53: 0
A54: 0
A55: 0
A56: 0
A57: 0
A58: 0
A59: 0
A60: 0
A61: 0
A62: 0
... 77 more rows

Sheet Setup
B4: Using the selection below, set the number of intensity levels / patient groups for the service. Once set, use the table below to name and give a short description of the different treatment Intensity Levels for the service.
B6: Provider Name | D6: A.N. Other Trust | I6: Service Name | J6: Adult mental illness | U6: Version 1.06
B8: Number of intensity levels / patient groups: | G8: 5
D10: Name | E10: Description
B11: Level of Intensity 1 | D11: Grp1 | E11: Low
B12: Level of Intensity 2 | D12: Grp2 | E12: Mid-Low
B13: Level of Intensity 3 | D13: Grp3 | E13: Mid
B14: Level of Intensity 4 | D14: Grp4 | E14: Mid-High
B15: Level of Intensity 5 | D15: Grp5 | E15: High
B23: Import Status
B24: Import OK

Sheet List (hidden)
B1: This sheet contains the list used for provider and service names.
B3: Enter the full list of names you would like to use under the appropriate headings. The model will automatically adjust the drop down menus to fit.
B4: When you are done customising your list, press the button below to hide this sheet.
A9: =COUNTA(B10:B1048576) -> 236 | B9: Providers | D9: Services
A10: =COUNTA(D10:D1048576) -> 79 | B10: 2Gether NHS Foundation Trust | D10: Acute internal medicine
B11: Aintree University Hospital NHS Foundation Trust | D11: Adult mental illness
B12: Airedale NHS Foundation Trust | D12: Anaesthetics
B13: Alder Hey Children's NHS Foundation Trust | D13: Audiological medicine
B14: Ashford And St Peter's Hospitals NHS Foundation Trust | D14: Blood transfusion
B15: Avon And Wiltshire Mental Health Partnership NHS Trust | D15: Cardiology
B16: Barking, Havering And Redbridge University Hospitals NHS Trust | D16: Cardiothoracic surgery
B17: Barnet, Enfield And Haringey Mental Health NHS Trust | D17: Chemical pathology
B18: Barnsley Hospital NHS Foundation Trust | D18: Child and adolescent psychiatry
B19: Barts Health NHS Trust | D19: Clinical genetics
B20: Basildon And Thurrock University Hospitals NHS Foundation Trust | D20: Clinical haematology
B21: Bedford Hospital NHS Trust | D21: Clinical immunology and allergy
B22: Berkshire Healthcare NHS Foundation Trust | D22: Clinical neuro-physiology
B23: Birmingham And Solihull Mental Health NHS Foundation Trust | D23: Clinical oncology (previously radiotherapy)
B24: Birmingham Community Healthcare NHS Foundation Trust | D24: Clinical pharmacology
B25: Birmingham Women's And Children's NHS Foundation Trust | D25: Clinical physiology
B26: Black Country Partnership NHS Foundation Trust | D26: Community health services dental
B27: Blackpool Teaching Hospitals NHS Foundation Trust | D27: Community medicine
B28: Bolton NHS Foundation Trust | D28: Community sexual and reproductive health
B29: Bradford District Care NHS Foundation Trust | D29: Critical care medicine
B30: Bradford Teaching Hospitals NHS Foundation Trust | D30: Dental medicine specialties
B31: Bridgewater Community Healthcare NHS Foundation Trust | D31: Dermatology
B32: Brighton And Sussex University Hospitals NHS Trust | D32: Endocrinology
B33: Buckinghamshire Healthcare NHS Trust | D33: Endodontics
B34: Burton Hospitals NHS Foundation Trust | D34: ENT
B35: Calderdale And Huddersfield NHS Foundation Trust | D35: Forensic psychiatry
B36: Cambridge University Hospitals NHS Foundation Trust | D36: Gastroenterology
B37: Cambridgeshire And Peterborough NHS Foundation Trust | D37: General dental practice
B38: Cambridgeshire Community Services NHS Trust | D38: General medical practice
B39: Camden And Islington NHS Foundation Trust | D39: General medicine
B40: Central And North West London NHS Foundation Trust | D40: General pathology
B41: Central London Community Healthcare NHS Trust | D41: General surgery
B42: Chelsea And Westminster Hospital NHS Foundation Trust | D42: Genitourinary medicine
B43: Cheshire And Wirral Partnership NHS Foundation Trust | D43: Geriatric medicine
B44: Chesterfield Royal Hospital NHS Foundation Trust | D44: Gynaecology
B45: City Hospitals Sunderland NHS Foundation Trust | D45: Haematology
B46: Colchester Hospital University NHS Foundation Trust | D46: Histopathology
B47: Cornwall Partnership NHS Foundation Trust | D47: Immunopathology
B48: Countess Of Chester Hospital NHS Foundation Trust | D48: Infectious diseases
B49: County Durham And Darlington NHS Foundation Trust | D49: Learning disability
B50: Coventry And Warwickshire Partnership NHS Trust | D50: Medical microbiology (also known as microbiology and bacteriology)
B51: Croydon Health Services NHS Trust | D51: Medical microbiology and virology
B52: Cumbria Partnership NHS Foundation Trust | D52: Medical oncology
B53: Dartford And Gravesham NHS Trust | D53: Medical ophthalmology
B54: Derby Teaching Hospitals NHS Foundation Trust | D54: Medical virology
B55: Derbyshire Community Health Services NHS Foundation Trust | D55: Midwife episode
B56: Derbyshire Healthcare NHS Foundation Trust | D56: Nephrology
B57: Devon Partnership NHS Trust | D57: Neurology
B58: Doncaster And Bassetlaw Teaching Hospitals NHS Foundation Trust | D58: Neurosurgery
B59: Dorset County Hospital NHS Foundation Trust | D59: Nuclear medicine
B60: Dorset Healthcare University NHS Foundation Trust | D60: Obstetrics
B61: Dudley And Walsall Mental Health Partnership NHS Trust | D61: Obstetrics and gynaecology
B62: East And North Hertfordshire NHS Trust | D62: Occupational medicine
... 77 more rows

Sheet Demand - External Transfers
A5: HIDE
A7: Max Rows: | C7: Week Starting: | G7: 2017-04-01
A8: =MAX(A11:A1000) -> 110
H9: HIDE | I9: Patients on caseload | N9: External Additions | S9: External Discharges
A10: Index | B10: 52 Index | C10: Season | D10: Year | E10: Month | F10: Week | G10: Date | H10: Min 52 Weeks | I10: =GeneralBacking!D2 -> Grp1 | J10: =GeneralBacking!D3 -> Grp2 | K10: =GeneralBacking!D4 -> Grp3 | L10: =GeneralBacking!D5 -> Grp4 | M10: =GeneralBacking!D6 -> Grp5 | N10: =GeneralBacking!D2 -> Grp1 | O10: =GeneralBacking!D3 -> Grp2 | P10: =GeneralBacking!D4 -> Grp3 | Q10: =GeneralBacking!D5 -> Grp4 | R10: =GeneralBacking!D6 -> Grp5 | S10: =GeneralBacking!D2 -> Grp1 | T10: =GeneralBacking!D3 -> Grp2 | U10: =GeneralBacking!D4 -> Grp3 | V10: =GeneralBacking!D5 -> Grp4 | W10: =GeneralBacking!D6 -> Grp5
A11: =IF(COUNTA(H11:W11)>=1,ROW(A1),"") -> 1 | B11: =1 -> 1 | C11: =VLOOKUP(B11,'Caseload SPC Chart Backing'!$AZ$4:$BA$55,2,FALSE) -> 5 | D11: =IF(A11="","",IF(G7<>"",YEAR(G11),1)) -> 2017 | E11: =IF(A11="","",IF(G11<>"",TEXT(G11,"mmm"),ROUNDUP(F11/(52/12),0))) -> Apr | F11: =IF(A11="","",IF($G$7<>"",WEEKNUM(G11,21),1)) -> 13 | G11: =IF(A11="","",IF($G$7<>"",$G$7,"")) -> 2017-04-01 | H11: 1 | I11: 834 | J11: 572 | K11: 260 | L11: 294 | M11: 802 | N11: 2 | O11: 0 | P11: 0 | Q11: 0 | R11: 16 | S11: 2 | T11: 0 | U11: 2 | V11: 0 | W11: 4
A12: =IF(COUNTA(H12:W12)>=1,ROW(A2),"") -> 2 | B12: =IF(A12<>"",IF(B11+1>52,1,B11+1),"") -> 2 | C12: =VLOOKUP(B12,'Caseload SPC Chart Backing'!$AZ$4:$BA$55,2,FALSE) -> 5 | D12: =IF(A12="","",IF(A12<=DEM_Max_Rows,IF($G$7<>"",IF(YEAR(G12)<>YEAR(G11),YEAR(G12),""),IF(F12<>1,"",OFFSET(D12,-52,0,1,1)+1)),"")) ->  | E12: =IF(A12="","",IF($G$7="",IF(ROUNDUP(F12/(52/12),0)=ROUNDUP(F11/(52/12),0),"",ROUNDUP(F12/(52/12),0)),IF(TEXT(G12,"mmm")=TEXT(G11,"mmm"),"",TEXT(G12,"mmm")))) ->  | F12: =IF(A12="","",IF(ROW(A2)<=DEM_Max_Rows,IF($G$7<>"",WEEKNUM(G12,21),IF(MOD((F11+1),52)>0,MOD((F11+1),52),52)),"")) -> 14 | G12: =IF(A12="","",IF(ROW(A2)<=DEM_Max_Rows,IF($G$7<>"",G11+7,""),"")) -> 2017-04-08 | H12: 1 | I12: 848 | J12: 582 | K12: 312 | L12: 306 | M12: 718 | N12: 2 | O12: 0 | P12: 0 | Q12: 0 | R12: 6 | S12: 0 | T12: 0 | U12: 2 | V12: 2 | W12: 0
A13: 3 | B13: =IF(A13<>"",IF(B12+1>52,1,B12+1),"") -> 3 | C13: =VLOOKUP(B13,'Caseload SPC Chart Backing'!$AZ$4:$BA$55,2,FALSE) -> 5 | E13: =IF(A13="","",IF($G$7="",IF(ROUNDUP(F13/(52/12),0)=ROUNDUP(F12/(52/12),0),"",ROUNDUP(F13/(52/12),0)),IF(TEXT(G13,"mmm")=TEXT(G12,"mmm"),"",TEXT(G13,"mmm")))) ->  | F13: 15 | G13: 2017-04-15 | H13: 1 | I13: 854 | J13: 604 | K13: 250 | L13: 242 | M13: 832 | N13: 6 | O13: 2 | P13: 0 | Q13: 0 | R13: 18 | S13: 4 | T13: 2 | U13: 0 | V13: 0 | W13: 4
A14: 4 | B14: 4 | C14: =VLOOKUP(B14,'Caseload SPC Chart Backing'!$AZ$4:$BA$55,2,FALSE) -> 5 | F14: 16 | G14: 2017-04-22 | H14: 1 | I14: 866 | J14: 594 | K14: 220 | L14: 232 | M14: 872 | N14: 0 | O14: 2 | P14: 0 | Q14: 0 | R14: 18 | S14: 2 | T14: 8 | U14: 2 | V14: 2 | W14: 4
A15: 5 | B15: 5 | C15: =VLOOKUP(B15,'Caseload SPC Chart Backing'!$AZ$4:$BA$55,2,FALSE) -> 5 | F15: 17 | G15: 2017-04-29 | H15: 1 | I15: 844 | J15: 580 | K15: 158 | L15: 272 | M15: 948 | N15: 0 | O15: 2 | P15: 0 | Q15: 0 | R15: 22 | S15: 2 | T15: 2 | U15: 0 | V15: 2 | W15: 0
A16: 6 | B16: 6 | C16: =VLOOKUP(B16,'Caseload SPC Chart Backing'!$AZ$4:$BA$55,2,FALSE) -> 5 | E16: May | F16: 18 | G16: 2017-05-06 | H16: 1 | I16: 822 | J16: 574 | K16: 152 | L16: 298 | M16: 942 | N16: 0 | O16: 0 | P16: 0 | Q16: 0 | R16: 18 | S16: 8 | T16: 0 | U16: 2 | V16: 2 | W16: 20
A17: 7 | B17: 7 | C17: =VLOOKUP(B17,'Caseload SPC Chart Backing'!$AZ$4:$BA$55,2,FALSE) -> 5 | F17: 19 | G17: 2017-05-13 | H17: 1 | I17: 800 | J17: 522 | K17: 204 | L17: 324 | M17: 936 | N17: 0 | O17: 0 | P17: 0 | Q17: 0 | R17: 26 | S17: 8 | T17: 10 | U17: 2 | V17: 0 | W17: 8
A18: 8 | B18: 8 | C18: =VLOOKUP(B18,'Caseload SPC Chart Backing'!$AZ$4:$BA$55,2,FALSE) -> 5 | F18: 20 | G18: 2017-05-20 | H18: 1 | I18: 806 | J18: 516 | K18: 228 | L18: 256 | M18: 998 | N18: 4 | O18: 4 | P18: 0 | Q18: 0 | R18: 26 | S18: 8 | T18: 4 | U18: 0 | V18: 0 | W18: 4
A19: 9 | B19: 9 | C19: =VLOOKUP(B19,'Caseload SPC Chart Backing'!$AZ$4:$BA$55,2,FALSE) -> 5 | F19: 21 | G19: 2017-05-27 | H19: 1 | I19: 830 | J19: 550 | K19: 252 | L19: 298 | M19: 868 | N19: 4 | O19: 2 | P19: 0 | Q19: 0 | R19: 12 | S19: 6 | T19: 10 | U19: 2 | V19: 2 | W19: 4
A20: 10 | B20: 10 | C20: =VLOOKUP(B20,'Caseload SPC Chart Backing'!$AZ$4:$BA$55,2,FALSE) -> 5 | E20: Jun | F20: 22 | G20: 2017-06-03 | H20: 1 | I20: 816 | J20: 572 | K20: 246 | L20: 296 | M20: 872 | N20: 2 | O20: 2 | P20: 0 | Q20: 0 | R20: 14 | S20: 2 | T20: 6 | U20: 2 | V20: 0 | W20: 4
A21: 11 | B21: 11 | C21: =VLOOKUP(B21,'Caseload SPC Chart Backing'!$AZ$4:$BA$55,2,FALSE) -> 5 | F21: 23 | G21: 2017-06-10 | H21: 1 | I21: 816 | J21: 534 | K21: 256 | L21: 188 | M21: 984 | N21: 2 | O21: 2 | P21: 0 | Q21: 0 | R21: 12 | S21: 12 | T21: 16 | U21: 4 | V21: 0 | W21: 8
A22: 12 | B22: 12 | C22: =VLOOKUP(B22,'Caseload SPC Chart Backing'!$AZ$4:$BA$55,2,FALSE) -> 5 | F22: 24 | G22: 2017-06-17 | H22: 1 | I22: 808 | J22: 536 | K22: 184 | L22: 272 | M22: 980 | N22: 4 | O22: 0 | P22: 0 | Q22: 2 | R22: 18 | S22: 6 | T22: 6 | U22: 0 | V22: 2 | W22: 8
A23: 13 | B23: 13 | C23: =VLOOKUP(B23,'Caseload SPC Chart Backing'!$AZ$4:$BA$55,2,FALSE) -> 5 | F23: 25 | G23: 2017-06-24 | H23: 1 | I23: 786 | J23: 542 | K23: 190 | L23: 312 | M23: 944 | N23: 0 | O23: 2 | P23: 0 | Q23: 0 | R23: 14 | S23: 12 | T23: 8 | U23: 0 | V23: 0 | W23: 2
A24: 14 | B24: 14 | C24: =VLOOKUP(B24,'Caseload SPC Chart Backing'!$AZ$4:$BA$55,2,FALSE) -> 5 | E24: Jul | F24: 26 | G24: 2017-07-01 | H24: 1 | I24: 762 | J24: 510 | K24: 232 | L24: 288 | M24: 984 | N24: 0 | O24: 4 | P24: 0 | Q24: 0 | R24: 26 | S24: 10 | T24: 2 | U24: 4 | V24: 0 | W24: 12
A25: 15 | B25: 15 | C25: =VLOOKUP(B25,'Caseload SPC Chart Backing'!$AZ$4:$BA$55,2,FALSE) -> 5 | F25: 27 | G25: 2017-07-08 | H25: 1 | I25: 760 | J25: 520 | K25: 232 | L25: 276 | M25: 1006 | N25: 0 | O25: 2 | P25: 0 | Q25: 0 | R25: 22 | S25: 2 | T25: 2 | U25: 0 | V25: 0 | W25: 2
A26: 16 | B26: 16 | C26: =VLOOKUP(B26,'Caseload SPC Chart Backing'!$AZ$4:$BA$55,2,FALSE) -> 5 | F26: 28 | G26: 2017-07-15 | H26: 1 | I26: 762 | J26: 508 | K26: 222 | L26: 268 | M26: 1036 | N26: 10 | O26: 2 | P26: 0 | Q26: 4 | R26: 16 | S26: 8 | T26: 6 | U26: 2 | V26: 4 | W26: 10
A27: 17 | B27: 17 | C27: =VLOOKUP(B27,'Caseload SPC Chart Backing'!$AZ$4:$BA$55,2,FALSE) -> 5 | F27: 29 | G27: 2017-07-22 | H27: 1 | I27: 780 | J27: 500 | K27: 230 | L27: 260 | M27: 1014 | N27: 4 | O27: 2 | P27: 0 | Q27: 0 | R27: 14 | S27: 10 | T27: 6 | U27: 2 | V27: 4 | W27: 10
A28: 18 | B28: 18 | C28: =VLOOKUP(B28,'Caseload SPC Chart Backing'!$AZ$4:$BA$55,2,FALSE) -> 5 | F28: 30 | G28: 2017-07-29 | H28: 1 | I28: 782 | J28: 536 | K28: 242 | L28: 340 | M28: 898 | N28: 2 | O28: 4 | P28: 0 | Q28: 0 | R28: 16 | S28: 0 | T28: 4 | U28: 0 | V28: 4 | W28: 0
A29: 19 | B29: 19 | C29: =VLOOKUP(B29,'Caseload SPC Chart Backing'!$AZ$4:$BA$55,2,FALSE) -> 5 | E29: Aug | F29: 31 | G29: 2017-08-05 | H29: 1 | I29: 790 | J29: 566 | K29: 320 | L29: 330 | M29: 804 | N29: 8 | O29: 0 | P29: 2 | Q29: 2 | R29: 12 | S29: 2 | T29: 2 | U29: 0 | V29: 6 | W29: 2
A30: 20 | B30: 20 | C30: =VLOOKUP(B30,'Caseload SPC Chart Backing'!$AZ$4:$BA$55,2,FALSE) -> 5 | F30: 32 | G30: 2017-08-12 | H30: 1 | I30: 782 | J30: 584 | K30: 338 | L30: 272 | M30: 820 | N30: 0 | O30: 0 | P30: 0 | Q30: 0 | R30: 10 | S30: 10 | T30: 4 | U30: 4 | V30: 0 | W30: 6
A31: 21 | B31: 21 | C31: =VLOOKUP(B31,'Caseload SPC Chart Backing'!$AZ$4:$BA$55,2,FALSE) -> 5 | F31: 33 | G31: 2017-08-19 | H31: 1 | I31: 800 | J31: 640 | K31: 270 | L31: 282 | M31: 816 | N31: 4 | O31: 0 | P31: 0 | Q31: 0 | R31: 12 | S31: 0 | T31: 2 | U31: 0 | V31: 0 | W31: 2
A32: 22 | B32: 22 | C32: =VLOOKUP(B32,'Caseload SPC Chart Backing'!$AZ$4:$BA$55,2,FALSE) -> 5 | F32: 34 | G32: 2017-08-26 | H32: 1 | I32: 790 | J32: 694 | K32: 216 | L32: 264 | M32: 842 | N32: 4 | O32: 2 | P32: 0 | Q32: 0 | R32: 22 | S32: 10 | T32: 8 | U32: 0 | V32: 0 | W32: 12
A33: 23 | B33: 23 | C33: =VLOOKUP(B33,'Caseload SPC Chart Backing'!$AZ$4:$BA$55,2,FALSE) -> 5 | E33: Sep | F33: 35 | G33: 2017-09-02 | H33: 1 | I33: 808 | J33: 724 | K33: 220 | L33: 294 | M33: 766 | N33: 12 | O33: 2 | P33: 0 | Q33: 0 | R33: 10 | S33: 2 | T33: 4 | U33: 2 | V33: 2 | W33: 8
A34: 24 | B34: 24 | C34: =VLOOKUP(B34,'Caseload SPC Chart Backing'!$AZ$4:$BA$55,2,FALSE) -> 5 | F34: 36 | G34: 2017-09-09 | H34: 1 | I34: 804 | J34: 712 | K34: 216 | L34: 290 | M34: 790 | N34: 2 | O34: 4 | P34: 0 | Q34: 0 | R34: 14 | S34: 8 | T34: 6 | U34: 0 | V34: 0 | W34: 6
A35: 25 | B35: 25 | C35: =VLOOKUP(B35,'Caseload SPC Chart Backing'!$AZ$4:$BA$55,2,FALSE) -> 5 | F35: 37 | G35: 2017-09-16 | H35: 1 | I35: 812 | J35: 684 | K35: 208 | L35: 158 | M35: 948 | N35: 6 | O35: 2 | P35: 0 | Q35: 0 | R35: 10 | S35: 0 | T35: 10 | U35: 2 | V35: 2 | W35: 6
A36: 26 | B36: 26 | C36: =VLOOKUP(B36,'Caseload SPC Chart Backing'!$AZ$4:$BA$55,2,FALSE) -> 5 | F36: 38 | G36: 2017-09-23 | H36: 1 | I36: 818 | J36: 656 | K36: 140 | L36: 210 | M36: 970 | N36: 2 | O36: 0 | P36: 0 | Q36: 0 | R36: 14 | S36: 4 | T36: 8 | U36: 4 | V36: 0 | W36: 16
A37: 27 | B37: 27 | C37: =VLOOKUP(B37,'Caseload SPC Chart Backing'!$AZ$4:$BA$55,2,FALSE) -> 5 | F37: 39 | G37: 2017-09-30 | H37: 1 | I37: 826 | J37: 634 | K37: 178 | L37: 224 | M37: 922 | N37: 2 | O37: 0 | P37: 0 | Q37: 0 | R37: 12 | S37: 0 | T37: 6 | U37: 0 | V37: 4 | W37: 14
A38: 28 | B38: 28 | C38: =VLOOKUP(B38,'Caseload SPC Chart Backing'!$AZ$4:$BA$55,2,FALSE) -> 5 | E38: Oct | F38: 40 | G38: 2017-10-07 | H38: 1 | I38: 830 | J38: 590 | K38: 260 | L38: 224 | M38: 866 | N38: 0 | O38: 2 | P38: 0 | Q38: 0 | R38: 6 | S38: 2 | T38: 10 | U38: 2 | V38: 2 | W38: 6
A39: 29 | B39: 29 | C39: =VLOOKUP(B39,'Caseload SPC Chart Backing'!$AZ$4:$BA$55,2,FALSE) -> 5 | F39: 41 | G39: 2017-10-14 | H39: 1 | I39: 828 | J39: 588 | K39: 258 | L39: 208 | M39: 902 | N39: 4 | O39: 0 | P39: 2 | Q39: 0 | R39: 18 | S39: 4 | T39: 2 | U39: 2 | V39: 2 | W39: 0
A40: 30 | B40: 30 | C40: =VLOOKUP(B40,'Caseload SPC Chart Backing'!$AZ$4:$BA$55,2,FALSE) -> 5 | F40: 42 | G40: 2017-10-21 | H40: 1 | I40: 818 | J40: 590 | K40: 192 | L40: 250 | M40: 924 | N40: 0 | O40: 0 | P40: 0 | Q40: 0 | R40: 10 | S40: 6 | T40: 6 | U40: 0 | V40: 0 | W40: 8
A41: 31 | B41: 31 | C41: =VLOOKUP(B41,'Caseload SPC Chart Backing'!$AZ$4:$BA$55,2,FALSE) -> 5 | F41: 43 | G41: 2017-10-28 | H41: 1 | I41: 848 | J41: 624 | K41: 188 | L41: 320 | M41: 804 | N41: 12 | O41: 4 | P41: 0 | Q41: 0 | R41: 6 | S41: 4 | T41: 2 | U41: 0 | V41: 0 | W41: 6
A42: 32 | B42: 32 | C42: =VLOOKUP(B42,'Caseload SPC Chart Backing'!$AZ$4:$BA$55,2,FALSE) -> 5 | E42: Nov | F42: 44 | G42: 2017-11-04 | H42: 1 | I42: 848 | J42: 594 | K42: 244 | L42: 316 | M42: 788 | N42: 6 | O42: 0 | P42: 0 | Q42: 0 | R42: 18 | S42: 8 | T42: 4 | U42: 2 | V42: 2 | W42: 2
A43: 33 | B43: 33 | C43: =VLOOKUP(B43,'Caseload SPC Chart Backing'!$AZ$4:$BA$55,2,FALSE) -> 5 | F43: 45 | G43: 2017-11-11 | H43: 1 | I43: 848 | J43: 580 | K43: 254 | L43: 206 | M43: 894 | N43: 0 | O43: 0 | P43: 0 | Q43: 0 | R43: 14 | S43: 8 | T43: 4 | U43: 0 | V43: 0 | W43: 10
A44: 34 | B44: 34 | C44: =VLOOKUP(B44,'Caseload SPC Chart Backing'!$AZ$4:$BA$55,2,FALSE) -> 5 | D44: =IF(A44="","",IF(A44<=DEM_Max_Rows,IF($G$7<>"",IF(YEAR(G44)<>YEAR(G43),YEAR(G44),""),IF(F44<>1,"",OFFSET(D44,-52,0,1,1)+1)),"")) ->  | F44: =IF(A44="","",IF(ROW(A34)<=DEM_Max_Rows,IF($G$7<>"",WEEKNUM(G44,21),IF(MOD((F43+1),52)>0,MOD((F43+1),52),52)),"")) -> 46 | G44: =IF(A44="","",IF(ROW(A34)<=DEM_Max_Rows,IF($G$7<>"",G43+7,""),"")) -> 2017-11-18 | H44: 1 | I44: 844 | J44: 568 | K44: 158 | L44: 264 | M44: 948 | N44: 4 | O44: 4 | P44: 0 | Q44: 0 | R44: 26 | S44: 10 | T44: 10 | U44: 2 | V44: 0 | W44: 12
A45: 35 | B45: 35 | C45: =VLOOKUP(B45,'Caseload SPC Chart Backing'!$AZ$4:$BA$55,2,FALSE) -> 5 | F45: 47 | G45: 2017-11-25 | H45: 1 | I45: 826 | J45: 554 | K45: 152 | L45: 262 | M45: 1006 | N45: 8 | O45: 2 | P45: 0 | Q45: 2 | R45: 22 | S45: 8 | T45: 8 | U45: 0 | V45: 0 | W45: 0
A46: 36 | B46: 36 | C46: =VLOOKUP(B46,'Caseload SPC Chart Backing'!$AZ$4:$BA$55,2,FALSE) -> 5 | E46: Dec | F46: 48 | G46: 2017-12-02 | H46: 1 | I46: 820 | J46: 546 | K46: 196 | L46: 276 | M46: 954 | N46: 4 | O46: 4 | P46: 2 | Q46: 0 | R46: 6 | S46: 10 | T46: 8 | U46: 0 | V46: 0 | W46: 6
A47: 37 | B47: 37 | C47: =VLOOKUP(B47,'Caseload SPC Chart Backing'!$AZ$4:$BA$55,2,FALSE) -> 5 | F47: 49 | G47: 2017-12-09 | H47: 1 | I47: 806 | J47: 524 | K47: 244 | L47: 252 | M47: 978 | N47: 6 | O47: 2 | P47: 2 | Q47: 0 | R47: 12 | S47: 0 | T47: 4 | U47: 2 | V47: 2 | W47: 2
A48: 38 | B48: 38 | C48: =VLOOKUP(B48,'Caseload SPC Chart Backing'!$AZ$4:$BA$55,2,FALSE) -> 5 | F48: 50 | G48: 2017-12-16 | H48: 1 | I48: 784 | J48: 528 | K48: 258 | L48: 242 | M48: 972 | N48: 0 | O48: 0 | P48: 0 | Q48: 0 | R48: 4 | S48: 8 | T48: 10 | U48: 2 | V48: 0 | W48: 4
A49: 39 | B49: 39 | C49: =VLOOKUP(B49,'Caseload SPC Chart Backing'!$AZ$4:$BA$55,2,FALSE) -> 5 | F49: 51 | G49: 2017-12-23 | H49: 1 | I49: 804 | J49: 572 | K49: 262 | L49: 344 | M49: 804 | N49: 4 | O49: 0 | P49: 0 | Q49: 0 | R49: 4 | S49: 0 | T49: 0 | U49: 2 | V49: 0 | W49: 4
A50: 40 | B50: 40 | C50: =VLOOKUP(B50,'Caseload SPC Chart Backing'!$AZ$4:$BA$55,2,FALSE) -> 5 | F50: 52 | G50: 2017-12-30 | H50: 1 | I50: 820 | J50: 654 | K50: 380 | L50: 442 | M50: 492 | N50: 0 | O50: 0 | P50: 0 | Q50: 0 | R50: 2 | S50: 0 | T50: 0 | U50: 0 | V50: 0 | W50: 0
A51: 41 | B51: 41 | C51: =VLOOKUP(B51,'Caseload SPC Chart Backing'!$AZ$4:$BA$55,2,FALSE) -> 5 | D51: 2018 | E51: Jan | F51: 1 | G51: 2018-01-06 | H51: 1 | I51: 834 | J51: 666 | K51: 394 | L51: 178 | M51: 710 | N51: 0 | O51: 0 | P51: 0 | Q51: 0 | R51: 12 | S51: 6 | T51: 6 | U51: 2 | V51: 2 | W51: 2
A52: 42 | B52: 42 | C52: =VLOOKUP(B52,'Caseload SPC Chart Backing'!$AZ$4:$BA$55,2,FALSE) -> 5 | F52: 2 | G52: 2018-01-13 | H52: 1 | I52: 844 | J52: 694 | K52: 170 | L52: 112 | M52: 990 | N52: 6 | O52: 4 | P52: 0 | Q52: 0 | R52: 32 | S52: 0 | T52: 12 | U52: 0 | V52: 0 | W52: 2
A53: 43 | B53: 43 | C53: =VLOOKUP(B53,'Caseload SPC Chart Backing'!$AZ$4:$BA$55,2,FALSE) -> 5 | F53: 3 | G53: 2018-01-20 | H53: 1 | I53: 868 | J53: 684 | K53: 30 | L53: 224 | M53: 1008 | N53: 4 | O53: 8 | P53: 0 | Q53: 0 | R53: 16 | S53: 2 | T53: 12 | U53: 0 | V53: 2 | W53: 8
A54: 44 | B54: 44 | C54: =VLOOKUP(B54,'Caseload SPC Chart Backing'!$AZ$4:$BA$55,2,FALSE) -> 5 | F54: 4 | G54: 2018-01-27 | H54: 1 | I54: 870 | J54: 598 | K54: 100 | L54: 270 | M54: 986 | N54: 2 | O54: 2 | P54: 0 | Q54: 0 | R54: 18 | S54: 2 | T54: 8 | U54: 0 | V54: 0 | W54: 2
A55: 45 | B55: 45 | C55: =VLOOKUP(B55,'Caseload SPC Chart Backing'!$AZ$4:$BA$55,2,FALSE) -> 5 | E55: Feb | F55: 5 | G55: 2018-02-03 | H55: 1 | I55: 844 | J55: 536 | K55: 246 | L55: 198 | M55: 980 | N55: 0 | O55: 0 | P55: 0 | Q55: 0 | R55: 16 | S55: 12 | T55: 4 | U55: 6 | V55: 4 | W55: 10
A56: 46 | B56: 46 | C56: =VLOOKUP(B56,'Caseload SPC Chart Backing'!$AZ$4:$BA$55,2,FALSE) -> 5 | F56: 6 | G56: 2018-02-10 | H56: 1 | I56: 846 | J56: 538 | K56: 254 | L56: 200 | M56: 970 | N56: 2 | O56: 0 | P56: 0 | Q56: 0 | R56: 24 | S56: 12 | T56: 0 | U56: 0 | V56: 2 | W56: 8
A57: 47 | B57: 47 | C57: =VLOOKUP(B57,'Caseload SPC Chart Backing'!$AZ$4:$BA$55,2,FALSE) -> 5 | F57: 7 | G57: 2018-02-17 | H57: 1 | I57: 858 | J57: 590 | K57: 256 | L57: 230 | M57: 874 | N57: 0 | O57: 0 | P57: 0 | Q57: 0 | R57: 6 | S57: 0 | T57: 2 | U57: 2 | V57: 0 | W57: 2
A58: 48 | B58: 48 | C58: =VLOOKUP(B58,'Caseload SPC Chart Backing'!$AZ$4:$BA$55,2,FALSE) -> 5 | F58: 8 | G58: 2018-02-24 | H58: 1 | I58: 872 | J58: 588 | K58: 266 | L58: 260 | M58: 816 | N58: 4 | O58: 0 | P58: 0 | Q58: 0 | R58: 14 | S58: 4 | T58: 10 | U58: 4 | V58: 2 | W58: 4
A59: 49 | B59: 49 | C59: =VLOOKUP(B59,'Caseload SPC Chart Backing'!$AZ$4:$BA$55,2,FALSE) -> 5 | E59: Mar | F59: 9 | G59: 2018-03-03 | H59: 1 | I59: 856 | J59: 598 | K59: 248 | L59: 232 | M59: 872 | N59: 4 | O59: 2 | P59: 0 | Q59: 0 | R59: 18 | S59: 4 | T59: 4 | U59: 2 | V59: 2 | W59: 8
A60: 50 | B60: 50 | C60: =VLOOKUP(B60,'Caseload SPC Chart Backing'!$AZ$4:$BA$55,2,FALSE) -> 5 | F60: 10 | G60: 2018-03-10 | H60: 1 | I60: 856 | J60: 590 | K60: 198 | L60: 266 | M60: 886 | N60: 6 | O60: 0 | P60: 0 | Q60: 0 | R60: 6 | S60: 0 | T60: 6 | U60: 0 | V60: 8 | W60: 8
A61: 51 | B61: 51 | C61: =VLOOKUP(B61,'Caseload SPC Chart Backing'!$AZ$4:$BA$55,2,FALSE) -> 5 | F61: 11 | G61: 2018-03-17 | H61: 1 | I61: 834 | J61: 570 | K61: 182 | L61: 272 | M61: 908 | N61: 4 | O61: 0 | P61: 0 | Q61: 0 | R61: 6 | S61: 14 | T61: 16 | U61: 4 | V61: 2 | W61: 4
A62: 52 | B62: 52 | C62: =VLOOKUP(B62,'Caseload SPC Chart Backing'!$AZ$4:$BA$55,2,FALSE) -> 5 | F62: 12 | G62: 2018-03-24 | H62: 1 | I62: 856 | J62: 574 | K62: 246 | L62: 294 | M62: 802 | N62: 8 | O62: 4 | P62: 0 | Q62: 0 | R62: 4 | S62: 0 | T62: 2 | U62: 0 | V62: 2 | W62: 6
... 50 more rows

Sheet Demand - Internal Transfers
F9: =GeneralBacking!$D$2&" to " -> Grp1 to | J9: =GeneralBacking!$D$3&" to " -> Grp2 to | N9: =GeneralBacking!$D$4&" to" -> Grp3 to | R9: =GeneralBacking!$D$5&" to" -> Grp4 to | V9: =GeneralBacking!$D$6&" to" -> Grp5 to
F10: =GeneralBacking!$D$2 -> Grp1 | G10: =GeneralBacking!$D$2 -> Grp1 | H10: =GeneralBacking!$D$2 -> Grp1 | I10: =GeneralBacking!$D$2 -> Grp1 | J10: =GeneralBacking!$D$3 -> Grp2 | K10: =GeneralBacking!$D$3 -> Grp2 | L10: =GeneralBacking!$D$3 -> Grp2 | M10: =GeneralBacking!$D$3 -> Grp2 | N10: =GeneralBacking!$D$4 -> Grp3 | O10: =GeneralBacking!$D$4 -> Grp3 | P10: =GeneralBacking!$D$4 -> Grp3 | Q10: =GeneralBacking!$D$4 -> Grp3 | R10: =GeneralBacking!$D$5 -> Grp4 | S10: =GeneralBacking!$D$5 -> Grp4 | T10: =GeneralBacking!$D$5 -> Grp4 | U10: =GeneralBacking!$D$5 -> Grp4 | V10: =GeneralBacking!$D$6 -> Grp5 | W10: =GeneralBacking!$D$6 -> Grp5 | X10: =GeneralBacking!$D$6 -> Grp5 | Y10: =GeneralBacking!$D$6 -> Grp5
A11: HIDE Week index | C11: Year | D11: Week | E11: Date | F11: =IFERROR(HYPERLINK(MyMouseOverEvent(COLUMN(F1)),GeneralBacking!D3),GeneralBacking!D3) -> Grp2 | G11: =IFERROR(HYPERLINK(MyMouseOverEvent(COLUMN(G1)),GeneralBacking!D4),GeneralBacking!D4) -> Grp3 | H11: =IFERROR(HYPERLINK(MyMouseOverEvent(COLUMN(H1)),GeneralBacking!D5),GeneralBacking!D5) -> Grp4 | I11: =IFERROR(HYPERLINK(MyMouseOverEvent(COLUMN(I1)),GeneralBacking!D6),GeneralBacking!D6) -> Grp5 | J11: =IFERROR(HYPERLINK(MyMouseOverEvent(COLUMN(J1)),GeneralBacking!D2),GeneralBacking!D2) -> Grp1 | K11: =IFERROR(HYPERLINK(MyMouseOverEvent(COLUMN(K1)),GeneralBacking!D4),GeneralBacking!D4) -> Grp3 | L11: =IFERROR(HYPERLINK(MyMouseOverEvent(COLUMN(L1)),GeneralBacking!D5),GeneralBacking!D5) -> Grp4 | M11: =IFERROR(HYPERLINK(MyMouseOverEvent(COLUMN(M1)),GeneralBacking!D6),GeneralBacking!D6) -> Grp5 | N11: =IFERROR(HYPERLINK(MyMouseOverEvent(COLUMN(N1)),GeneralBacking!D2),GeneralBacking!D2) -> Grp1 | O11: =IFERROR(HYPERLINK(MyMouseOverEvent(COLUMN(O1)),GeneralBacking!D3),GeneralBacking!D3) -> Grp2 | P11: =IFERROR(HYPERLINK(MyMouseOverEvent(COLUMN(P1)),GeneralBacking!D5),GeneralBacking!D5) -> Grp4 | Q11: =IFERROR(HYPERLINK(MyMouseOverEvent(COLUMN(Q1)),GeneralBacking!D6),GeneralBacking!D6) -> Grp5 | R11: =IFERROR(HYPERLINK(MyMouseOverEvent(COLUMN(R1)),GeneralBacking!D2),GeneralBacking!D2) -> Grp1 | S11: =IFERROR(HYPERLINK(MyMouseOverEvent(COLUMN(S1)),GeneralBacking!D3),GeneralBacking!D3) -> Grp2 | T11: =IFERROR(HYPERLINK(MyMouseOverEvent(COLUMN(T1)),GeneralBacking!D4),GeneralBacking!D4) -> Grp3 | U11: =IFERROR(HYPERLINK(MyMouseOverEvent(COLUMN(U1)),GeneralBacking!D6),GeneralBacking!D6) -> Grp5 | V11: =IFERROR(HYPERLINK(MyMouseOverEvent(COLUMN(V1)),GeneralBacking!D2),GeneralBacking!D2) -> Grp1 | W11: =IFERROR(HYPERLINK(MyMouseOverEvent(COLUMN(W1)),GeneralBacking!D3),GeneralBacking!D3) -> Grp2 | X11: =IFERROR(HYPERLINK(MyMouseOverEvent(COLUMN(X1)),GeneralBacking!D4),GeneralBacking!D4) -> Grp3 | Y11: =IFERROR(HYPERLINK(MyMouseOverEvent(COLUMN(Y1)),GeneralBacking!D5),GeneralBacking!D5) -> Grp4
A12: ='Demand - External Transfers'!A11 -> 1 | C12: =IF('Demand - External Transfers'!D11="","",'Demand - External Transfers'!D11) -> 2017 | D12: =IF('Demand - External Transfers'!F11="","",'Demand - External Transfers'!F11) -> 13 | E12: =IF('Demand - External Transfers'!G11="","",'Demand - External Transfers'!G11) -> 2017-04-01 | F12: 0 | G12: 0 | H12: 0 | I12: 20 | J12: 2 | K12: 0 | L12: 0 | M12: 22 | N12: 4 | O12: 50 | P12: 30 | Q12: 26 | R12: 0 | S12: 0 | T12: 172 | U12: 48 | V12: 18 | W12: 0 | X12: 0 | Y12: 202
A13: ='Demand - External Transfers'!A12 -> 2 | C13: =IF('Demand - External Transfers'!D12="","",'Demand - External Transfers'!D12) ->  | D13: =IF('Demand - External Transfers'!F12="","",'Demand - External Transfers'!F12) -> 14 | E13: =IF('Demand - External Transfers'!G12="","",'Demand - External Transfers'!G12) -> 2017-04-08 | F13: 0 | G13: 0 | H13: 0 | I13: 12 | J13: 4 | K13: 0 | L13: 0 | M13: 36 | N13: 2 | O13: 50 | P13: 26 | Q13: 32 | R13: 0 | S13: 0 | T13: 164 | U13: 66 | V13: 18 | W13: 0 | X13: 0 | Y13: 218
A14: ='Demand - External Transfers'!A13 -> 3 | C14: =IF('Demand - External Transfers'!D13="","",'Demand - External Transfers'!D13) ->  | D14: =IF('Demand - External Transfers'!F13="","",'Demand - External Transfers'!F13) -> 15 | E14: =IF('Demand - External Transfers'!G13="","",'Demand - External Transfers'!G13) -> 2017-04-15 | F14: 0 | G14: 0 | H14: 0 | I14: 14 | J14: 4 | K14: 0 | L14: 0 | M14: 54 | N14: 2 | O14: 80 | P14: 36 | Q14: 74 | R14: 0 | S14: 0 | T14: 130 | U14: 108 | V14: 12 | W14: 0 | X14: 0 | Y14: 138
A15: ='Demand - External Transfers'!A14 -> 4 | C15: =IF('Demand - External Transfers'!D14="","",'Demand - External Transfers'!D14) ->  | D15: =IF('Demand - External Transfers'!F14="","",'Demand - External Transfers'!F14) -> 16 | E15: =IF('Demand - External Transfers'!G14="","",'Demand - External Transfers'!G14) -> 2017-04-22 | F15: 0 | G15: 0 | H15: 0 | I15: 14 | J15: 2 | K15: 0 | L15: 0 | M15: 50 | N15: 6 | O15: 48 | P15: 38 | Q15: 42 | R15: 0 | S15: 0 | T15: 106 | U15: 46 | V15: 20 | W15: 0 | X15: 0 | Y15: 106
A16: ='Demand - External Transfers'!A15 -> 5 | C16: =IF('Demand - External Transfers'!D15="","",'Demand - External Transfers'!D15) ->  | D16: =IF('Demand - External Transfers'!F15="","",'Demand - External Transfers'!F15) -> 17 | E16: =IF('Demand - External Transfers'!G15="","",'Demand - External Transfers'!G15) -> 2017-04-29 | F16: 0 | G16: 0 | H16: 0 | I16: 32 | J16: 8 | K16: 0 | L16: 0 | M16: 54 | N16: 4 | O16: 48 | P16: 36 | Q16: 56 | R16: 0 | S16: 0 | T16: 82 | U16: 52 | V16: 0 | W16: 0 | X16: 0 | Y16: 140
A17: ='Demand - External Transfers'!A16 -> 6 | C17: =IF('Demand - External Transfers'!D16="","",'Demand - External Transfers'!D16) ->  | D17: =IF('Demand - External Transfers'!F16="","",'Demand - External Transfers'!F16) -> 18 | E17: =IF('Demand - External Transfers'!G16="","",'Demand - External Transfers'!G16) -> 2017-05-06 | F17: 0 | G17: 0 | H17: 0 | I17: 22 | J17: 4 | K17: 0 | L17: 0 | M17: 26 | N17: 4 | O17: 24 | P17: 38 | Q17: 40 | R17: 0 | S17: 0 | T17: 102 | U17: 62 | V17: 0 | W17: 0 | X17: 0 | Y17: 154
A18: ='Demand - External Transfers'!A17 -> 7 | C18: =IF('Demand - External Transfers'!D17="","",'Demand - External Transfers'!D17) ->  | D18: =IF('Demand - External Transfers'!F17="","",'Demand - External Transfers'!F17) -> 19 | E18: =IF('Demand - External Transfers'!G17="","",'Demand - External Transfers'!G17) -> 2017-05-13 | F18: 0 | G18: 0 | H18: 0 | I18: 26 | J18: 2 | K18: 0 | L18: 0 | M18: 64 | N18: 0 | O18: 24 | P18: 20 | Q18: 22 | R18: 0 | S18: 0 | T18: 120 | U18: 68 | V18: 10 | W18: 0 | X18: 0 | Y18: 194
A19: ='Demand - External Transfers'!A18 -> 8 | C19: =IF('Demand - External Transfers'!D18="","",'Demand - External Transfers'!D18) ->  | D19: =IF('Demand - External Transfers'!F18="","",'Demand - External Transfers'!F18) -> 20 | E19: =IF('Demand - External Transfers'!G18="","",'Demand - External Transfers'!G18) -> 2017-05-20 | F19: 0 | G19: 0 | H19: 0 | I19: 24 | J19: 8 | K19: 0 | L19: 0 | M19: 40 | N19: 6 | O19: 42 | P19: 24 | Q19: 42 | R19: 0 | S19: 0 | T19: 138 | U19: 102 | V19: 20 | W19: 0 | X19: 0 | Y19: 148
A20: ='Demand - External Transfers'!A19 -> 9 | C20: =IF('Demand - External Transfers'!D19="","",'Demand - External Transfers'!D19) ->  | D20: =IF('Demand - External Transfers'!F19="","",'Demand - External Transfers'!F19) -> 21 | E20: =IF('Demand - External Transfers'!G19="","",'Demand - External Transfers'!G19) -> 2017-05-27 | F20: 0 | G20: 0 | H20: 0 | I20: 20 | J20: 4 | K20: 0 | L20: 0 | M20: 14 | N20: 12 | O20: 60 | P20: 16 | Q20: 10 | R20: 0 | S20: 0 | T20: 124 | U20: 58 | V20: 30 | W20: 0 | X20: 0 | Y20: 210
A21: ='Demand - External Transfers'!A20 -> 10 | C21: =IF('Demand - External Transfers'!D20="","",'Demand - External Transfers'!D20) ->  | D21: =IF('Demand - External Transfers'!F20="","",'Demand - External Transfers'!F20) -> 22 | E21: =IF('Demand - External Transfers'!G20="","",'Demand - External Transfers'!G20) -> 2017-06-03 | F21: 0 | G21: 0 | H21: 0 | I21: 30 | J21: 0 | K21: 0 | L21: 0 | M21: 48 | N21: 4 | O21: 74 | P21: 34 | Q21: 40 | R21: 0 | S21: 0 | T21: 148 | U21: 98 | V21: 12 | W21: 0 | X21: 0 | Y21: 210
A22: ='Demand - External Transfers'!A21 -> 11 | C22: =IF('Demand - External Transfers'!D21="","",'Demand - External Transfers'!D21) ->  | D22: =IF('Demand - External Transfers'!F21="","",'Demand - External Transfers'!F21) -> 23 | E22: =IF('Demand - External Transfers'!G21="","",'Demand - External Transfers'!G21) -> 2017-06-10 | F22: 0 | G22: 0 | H22: 0 | I22: 22 | J22: 4 | K22: 0 | L22: 0 | M22: 68 | N22: 4 | O22: 48 | P22: 30 | Q22: 46 | R22: 0 | S22: 0 | T22: 142 | U22: 86 | V22: 24 | W22: 0 | X22: 0 | Y22: 90
A23: ='Demand - External Transfers'!A22 -> 12 | C23: =IF('Demand - External Transfers'!D22="","",'Demand - External Transfers'!D22) ->  | D23: =IF('Demand - External Transfers'!F22="","",'Demand - External Transfers'!F22) -> 24 | E23: =IF('Demand - External Transfers'!G22="","",'Demand - External Transfers'!G22) -> 2017-06-17 | F23: 0 | G23: 0 | H23: 0 | I23: 24 | J23: 4 | K23: 0 | L23: 0 | M23: 40 | N23: 4 | O23: 52 | P23: 36 | Q23: 56 | R23: 0 | S23: 0 | T23: 76 | U23: 36 | V23: 10 | W23: 0 | X23: 0 | Y23: 160
A24: ='Demand - External Transfers'!A23 -> 13 | C24: =IF('Demand - External Transfers'!D23="","",'Demand - External Transfers'!D23) ->  | D24: =IF('Demand - External Transfers'!F23="","",'Demand - External Transfers'!F23) -> 25 | E24: =IF('Demand - External Transfers'!G23="","",'Demand - External Transfers'!G23) -> 2017-06-24 | F24: 0 | G24: 0 | H24: 0 | I24: 24 | J24: 6 | K24: 0 | L24: 0 | M24: 36 | N24: 4 | O24: 54 | P24: 34 | Q24: 30 | R24: 0 | S24: 0 | T24: 128 | U24: 48 | V24: 4 | W24: 0 | X24: 0 | Y24: 182
A25: ='Demand - External Transfers'!A24 -> 14 | C25: =IF('Demand - External Transfers'!D24="","",'Demand - External Transfers'!D24) ->  | D25: =IF('Demand - External Transfers'!F24="","",'Demand - External Transfers'!F24) -> 26 | E25: =IF('Demand - External Transfers'!G24="","",'Demand - External Transfers'!G24) -> 2017-07-01 | F25: 0 | G25: 0 | H25: 0 | I25: 36 | J25: 6 | K25: 0 | L25: 0 | M25: 56 | N25: 2 | O25: 28 | P25: 16 | Q25: 48 | R25: 0 | S25: 0 | T25: 140 | U25: 78 | V25: 14 | W25: 0 | X25: 0 | Y25: 178
A26: ='Demand - External Transfers'!A25 -> 15 | C26: =IF('Demand - External Transfers'!D25="","",'Demand - External Transfers'!D25) ->  | D26: =IF('Demand - External Transfers'!F25="","",'Demand - External Transfers'!F25) -> 27 | E26: =IF('Demand - External Transfers'!G25="","",'Demand - External Transfers'!G25) -> 2017-07-08 | F26: 0 | G26: 0 | H26: 0 | I26: 28 | J26: 10 | K26: 0 | L26: 0 | M26: 38 | N26: 0 | O26: 58 | P26: 32 | Q26: 34 | R26: 0 | S26: 0 | T26: 124 | U26: 86 | V26: 18 | W26: 0 | X26: 0 | Y26: 166
A27: ='Demand - External Transfers'!A26 -> 16 | C27: =IF('Demand - External Transfers'!D26="","",'Demand - External Transfers'!D26) ->  | D27: =IF('Demand - External Transfers'!F26="","",'Demand - External Transfers'!F26) -> 28 | E27: =IF('Demand - External Transfers'!G26="","",'Demand - External Transfers'!G26) -> 2017-07-15 | F27: 0 | G27: 0 | H27: 0 | I27: 38 | J27: 10 | K27: 0 | L27: 0 | M27: 56 | N27: 2 | O27: 60 | P27: 28 | Q27: 46 | R27: 0 | S27: 0 | T27: 128 | U27: 76 | V27: 26 | W27: 0 | X27: 0 | Y27: 168
A28: ='Demand - External Transfers'!A27 -> 17 | C28: =IF('Demand - External Transfers'!D27="","",'Demand - External Transfers'!D27) ->  | D28: =IF('Demand - External Transfers'!F27="","",'Demand - External Transfers'!F27) -> 29 | E28: =IF('Demand - External Transfers'!G27="","",'Demand - External Transfers'!G27) -> 2017-07-22 | F28: 0 | G28: 0 | H28: 0 | I28: 12 | J28: 0 | K28: 0 | L28: 0 | M28: 48 | N28: 4 | O28: 44 | P28: 32 | Q28: 40 | R28: 0 | S28: 0 | T28: 130 | U28: 72 | V28: 32 | W28: 0 | X28: 0 | Y28: 166
A29: ='Demand - External Transfers'!A28 -> 18 | C29: =IF('Demand - External Transfers'!D28="","",'Demand - External Transfers'!D28) ->  | D29: =IF('Demand - External Transfers'!F28="","",'Demand - External Transfers'!F28) -> 30 | E29: =IF('Demand - External Transfers'!G28="","",'Demand - External Transfers'!G28) -> 2017-07-29 | F29: 0 | G29: 0 | H29: 0 | I29: 26 | J29: 2 | K29: 0 | L29: 0 | M29: 16 | N29: 6 | O29: 54 | P29: 34 | Q29: 22 | R29: 0 | S29: 0 | T29: 128 | U29: 48 | V29: 18 | W29: 0 | X29: 0 | Y29: 226
A30: ='Demand - External Transfers'!A29 -> 19 | C30: =IF('Demand - External Transfers'!D29="","",'Demand - External Transfers'!D29) ->  | D30: =IF('Demand - External Transfers'!F29="","",'Demand - External Transfers'!F29) -> 31 | E30: =IF('Demand - External Transfers'!G29="","",'Demand - External Transfers'!G29) -> 2017-08-05 | F30: 0 | G30: 0 | H30: 0 | I30: 24 | J30: 0 | K30: 0 | L30: 0 | M30: 32 | N30: 12 | O30: 64 | P30: 30 | Q30: 16 | R30: 0 | S30: 0 | T30: 198 | U30: 54 | V30: 14 | W30: 0 | X30: 0 | Y30: 216
A31: ='Demand - External Transfers'!A30 -> 20 | C31: =IF('Demand - External Transfers'!D30="","",'Demand - External Transfers'!D30) ->  | D31: =IF('Demand - External Transfers'!F30="","",'Demand - External Transfers'!F30) -> 32 | E31: =IF('Demand - External Transfers'!G30="","",'Demand - External Transfers'!G30) -> 2017-08-12 | F31: 0 | G31: 0 | H31: 0 | I31: 8 | J31: 0 | K31: 0 | L31: 0 | M31: 46 | N31: 6 | O31: 68 | P31: 38 | Q31: 40 | R31: 0 | S31: 0 | T31: 174 | U31: 68 | V31: 4 | W31: 0 | X31: 0 | Y31: 146
A32: ='Demand - External Transfers'!A31 -> 21 | C32: =IF('Demand - External Transfers'!D31="","",'Demand - External Transfers'!D31) ->  | D32: =IF('Demand - External Transfers'!F31="","",'Demand - External Transfers'!F31) -> 33 | E32: =IF('Demand - External Transfers'!G31="","",'Demand - External Transfers'!G31) -> 2017-08-19 | F32: 0 | G32: 0 | H32: 0 | I32: 10 | J32: 6 | K32: 0 | L32: 0 | M32: 36 | N32: 2 | O32: 100 | P32: 44 | Q32: 40 | R32: 2 | S32: 0 | T32: 118 | U32: 58 | V32: 14 | W32: 0 | X32: 0 | Y32: 144
A33: ='Demand - External Transfers'!A32 -> 22 | C33: =IF('Demand - External Transfers'!D32="","",'Demand - External Transfers'!D32) ->  | D33: =IF('Demand - External Transfers'!F32="","",'Demand - External Transfers'!F32) -> 34 | E33: =IF('Demand - External Transfers'!G32="","",'Demand - External Transfers'!G32) -> 2017-08-26 | F33: 0 | G33: 0 | H33: 0 | I33: 18 | J33: 4 | K33: 0 | L33: 0 | M33: 40 | N33: 0 | O33: 104 | P33: 26 | Q33: 40 | R33: 0 | S33: 0 | T33: 116 | U33: 58 | V33: 10 | W33: 0 | X33: 0 | Y33: 130
A34: ='Demand - External Transfers'!A33 -> 23 | C34: =IF('Demand - External Transfers'!D33="","",'Demand - External Transfers'!D33) ->  | D34: =IF('Demand - External Transfers'!F33="","",'Demand - External Transfers'!F33) -> 35 | E34: =IF('Demand - External Transfers'!G33="","",'Demand - External Transfers'!G33) -> 2017-09-02 | F34: 0 | G34: 0 | H34: 0 | I34: 16 | J34: 0 | K34: 0 | L34: 0 | M34: 22 | N34: 4 | O34: 54 | P34: 34 | Q34: 16 | R34: 0 | S34: 0 | T34: 112 | U34: 48 | V34: 20 | W34: 0 | X34: 2 | Y34: 158
A35: ='Demand - External Transfers'!A34 -> 24 | C35: =IF('Demand - External Transfers'!D34="","",'Demand - External Transfers'!D34) ->  | D35: =IF('Demand - External Transfers'!F34="","",'Demand - External Transfers'!F34) -> 36 | E35: =IF('Demand - External Transfers'!G34="","",'Demand - External Transfers'!G34) -> 2017-09-09 | F35: 0 | G35: 0 | H35: 0 | I35: 30 | J35: 2 | K35: 0 | L35: 0 | M35: 64 | N35: 12 | O35: 56 | P35: 24 | Q35: 40 | R35: 0 | S35: 0 | T35: 128 | U35: 72 | V35: 18 | W35: 0 | X35: 0 | Y35: 172
A36: ='Demand - External Transfers'!A35 -> 25 | C36: =IF('Demand - External Transfers'!D35="","",'Demand - External Transfers'!D35) ->  | D36: =IF('Demand - External Transfers'!F35="","",'Demand - External Transfers'!F35) -> 37 | E36: =IF('Demand - External Transfers'!G35="","",'Demand - External Transfers'!G35) -> 2017-09-16 | F36: 0 | G36: 0 | H36: 0 | I36: 42 | J36: 8 | K36: 0 | L36: 0 | M36: 84 | N36: 6 | O36: 72 | P36: 4 | Q36: 42 | R36: 0 | S36: 0 | T36: 118 | U36: 98 | V36: 30 | W36: 0 | X36: 0 | Y36: 82
A37: ='Demand - External Transfers'!A36 -> 26 | C37: =IF('Demand - External Transfers'!D36="","",'Demand - External Transfers'!D36) ->  | D37: =IF('Demand - External Transfers'!F36="","",'Demand - External Transfers'!F36) -> 38 | E37: =IF('Demand - External Transfers'!G36="","",'Demand - External Transfers'!G36) -> 2017-09-23 | F37: 0 | G37: 0 | H37: 0 | I37: 24 | J37: 2 | K37: 0 | L37: 0 | M37: 78 | N37: 6 | O37: 62 | P37: 8 | Q37: 50 | R37: 0 | S37: 0 | T37: 62 | U37: 42 | V37: 24 | W37: 0 | X37: 0 | Y37: 148
A38: ='Demand - External Transfers'!A37 -> 27 | C38: =IF('Demand - External Transfers'!D37="","",'Demand - External Transfers'!D37) ->  | D38: =IF('Demand - External Transfers'!F37="","",'Demand - External Transfers'!F37) -> 39 | E38: =IF('Demand - External Transfers'!G37="","",'Demand - External Transfers'!G37) -> 2017-09-30 | F38: 0 | G38: 0 | H38: 0 | I38: 22 | J38: 2 | K38: 0 | L38: 0 | M38: 56 | N38: 12 | O38: 42 | P38: 18 | Q38: 14 | R38: 2 | S38: 0 | T38: 124 | U38: 52 | V38: 12 | W38: 0 | X38: 0 | Y38: 178
A39: ='Demand - External Transfers'!A38 -> 28 | C39: =IF('Demand - External Transfers'!D38="","",'Demand - External Transfers'!D38) ->  | D39: =IF('Demand - External Transfers'!F38="","",'Demand - External Transfers'!F38) -> 40 | E39: =IF('Demand - External Transfers'!G38="","",'Demand - External Transfers'!G38) -> 2017-10-07 | F39: 0 | G39: 0 | H39: 0 | I39: 28 | J39: 10 | K39: 0 | L39: 0 | M39: 56 | N39: 0 | O39: 30 | P39: 18 | Q39: 22 | R39: 0 | S39: 0 | T39: 154 | U39: 38 | V39: 24 | W39: 0 | X39: 0 | Y39: 176
A40: ='Demand - External Transfers'!A39 -> 29 | C40: =IF('Demand - External Transfers'!D39="","",'Demand - External Transfers'!D39) ->  | D40: =IF('Demand - External Transfers'!F39="","",'Demand - External Transfers'!F39) -> 41 | E40: =IF('Demand - External Transfers'!G39="","",'Demand - External Transfers'!G39) -> 2017-10-14 | F40: 0 | G40: 0 | H40: 0 | I40: 26 | J40: 4 | K40: 0 | L40: 0 | M40: 46 | N40: 0 | O40: 50 | P40: 44 | Q40: 42 | R40: 2 | S40: 0 | T40: 134 | U40: 44 | V40: 18 | W40: 0 | X40: 0 | Y40: 122
A41: ='Demand - External Transfers'!A40 -> 30 | C41: =IF('Demand - External Transfers'!D40="","",'Demand - External Transfers'!D40) ->  | D41: =IF('Demand - External Transfers'!F40="","",'Demand - External Transfers'!F40) -> 42 | E41: =IF('Demand - External Transfers'!G40="","",'Demand - External Transfers'!G40) -> 2017-10-21 | F41: 0 | G41: 0 | H41: 0 | I41: 36 | J41: 4 | K41: 0 | L41: 0 | M41: 46 | N41: 8 | O41: 58 | P41: 44 | Q41: 42 | R41: 0 | S41: 0 | T41: 86 | U41: 44 | V41: 20 | W41: 0 | X41: 0 | Y41: 128
A42: ='Demand - External Transfers'!A41 -> 31 | C42: =IF('Demand - External Transfers'!D41="","",'Demand - External Transfers'!D41) ->  | D42: =IF('Demand - External Transfers'!F41="","",'Demand - External Transfers'!F41) -> 43 | E42: =IF('Demand - External Transfers'!G41="","",'Demand - External Transfers'!G41) -> 2017-10-28 | F42: 0 | G42: 0 | H42: 0 | I42: 8 | J42: 12 | K42: 0 | L42: 0 | M42: 20 | N42: 4 | O42: 64 | P42: 30 | Q42: 20 | R42: 0 | S42: 0 | T42: 114 | U42: 32 | V42: 14 | W42: 0 | X42: 0 | Y42: 186
A43: ='Demand - External Transfers'!A42 -> 32 | C43: =IF('Demand - External Transfers'!D42="","",'Demand - External Transfers'!D42) ->  | D43: =IF('Demand - External Transfers'!F42="","",'Demand - External Transfers'!F42) -> 44 | E43: =IF('Demand - External Transfers'!G42="","",'Demand - External Transfers'!G42) -> 2017-11-04 | F43: 0 | G43: 0 | H43: 0 | I43: 20 | J43: 4 | K43: 0 | L43: 0 | M43: 62 | N43: 2 | O43: 40 | P43: 18 | Q43: 24 | R43: 0 | S43: 0 | T43: 142 | U43: 64 | V43: 16 | W43: 0 | X43: 0 | Y43: 186
A44: ='Demand - External Transfers'!A43 -> 33 | C44: =IF('Demand - External Transfers'!D43="","",'Demand - External Transfers'!D43) ->  | D44: =IF('Demand - External Transfers'!F43="","",'Demand - External Transfers'!F43) -> 45 | E44: =IF('Demand - External Transfers'!G43="","",'Demand - External Transfers'!G43) -> 2017-11-11 | F44: 0 | G44: 0 | H44: 0 | I44: 26 | J44: 12 | K44: 0 | L44: 0 | M44: 44 | N44: 4 | O44: 46 | P44: 32 | Q44: 52 | R44: 0 | S44: 0 | T44: 144 | U44: 82 | V44: 18 | W44: 0 | X44: 0 | Y44: 84
A45: ='Demand - External Transfers'!A44 -> 34 | C45: =IF('Demand - External Transfers'!D44="","",'Demand - External Transfers'!D44) ->  | D45: =IF('Demand - External Transfers'!F44="","",'Demand - External Transfers'!F44) -> 46 | E45: =IF('Demand - External Transfers'!G44="","",'Demand - External Transfers'!G44) -> 2017-11-18 | F45: 0 | G45: 0 | H45: 0 | I45: 30 | J45: 2 | K45: 0 | L45: 0 | M45: 60 | N45: 2 | O45: 56 | P45: 30 | Q45: 56 | R45: 0 | S45: 0 | T45: 50 | U45: 80 | V45: 28 | W45: 0 | X45: 0 | Y45: 158
A46: ='Demand - External Transfers'!A45 -> 35 | C46: =IF('Demand - External Transfers'!D45="","",'Demand - External Transfers'!D45) ->  | D46: =IF('Demand - External Transfers'!F45="","",'Demand - External Transfers'!F45) -> 47 | E46: =IF('Demand - External Transfers'!G45="","",'Demand - External Transfers'!G45) -> 2017-11-25 | F46: 0 | G46: 0 | H46: 0 | I46: 32 | J46: 2 | K46: 0 | L46: 0 | M46: 66 | N46: 4 | O46: 60 | P46: 34 | Q46: 18 | R46: 0 | S46: 0 | T46: 110 | U46: 82 | V46: 8 | W46: 0 | X46: 0 | Y46: 154
A47: ='Demand - External Transfers'!A46 -> 36 | C47: =IF('Demand - External Transfers'!D46="","",'Demand - External Transfers'!D46) ->  | D47: =IF('Demand - External Transfers'!F46="","",'Demand - External Transfers'!F46) -> 48 | E47: =IF('Demand - External Transfers'!G46="","",'Demand - External Transfers'!G46) -> 2017-12-02 | F47: 0 | G47: 0 | H47: 0 | I47: 16 | J47: 0 | K47: 0 | L47: 2 | M47: 28 | N47: 2 | O47: 26 | P47: 10 | Q47: 32 | R47: 0 | S47: 0 | T47: 112 | U47: 60 | V47: 14 | W47: 0 | X47: 0 | Y47: 174
A48: ='Demand - External Transfers'!A47 -> 37 | C48: =IF('Demand - External Transfers'!D47="","",'Demand - External Transfers'!D47) ->  | D48: =IF('Demand - External Transfers'!F47="","",'Demand - External Transfers'!F47) -> 49 | E48: =IF('Demand - External Transfers'!G47="","",'Demand - External Transfers'!G47) -> 2017-12-09 | F48: 0 | G48: 2 | H48: 0 | I48: 34 | J48: 4 | K48: 0 | L48: 0 | M48: 62 | N48: 0 | O48: 46 | P48: 26 | Q48: 24 | R48: 0 | S48: 0 | T48: 142 | U48: 70 | V48: 12 | W48: 0 | X48: 0 | Y48: 164
A49: ='Demand - External Transfers'!A48 -> 38 | C49: =IF('Demand - External Transfers'!D48="","",'Demand - External Transfers'!D48) ->  | D49: =IF('Demand - External Transfers'!F48="","",'Demand - External Transfers'!F48) -> 50 | E49: =IF('Demand - External Transfers'!G48="","",'Demand - External Transfers'!G48) -> 2017-12-16 | F49: 0 | G49: 0 | H49: 0 | I49: 24 | J49: 0 | K49: 0 | L49: 0 | M49: 46 | N49: 6 | O49: 60 | P49: 28 | Q49: 32 | R49: 0 | S49: 0 | T49: 142 | U49: 44 | V49: 4 | W49: 0 | X49: 0 | Y49: 148
A50: ='Demand - External Transfers'!A49 -> 39 | C50: =IF('Demand - External Transfers'!D49="","",'Demand - External Transfers'!D49) ->  | D50: =IF('Demand - External Transfers'!F49="","",'Demand - External Transfers'!F49) -> 51 | E50: =IF('Demand - External Transfers'!G49="","",'Demand - External Transfers'!G49) -> 2017-12-23 | F50: 0 | G50: 0 | H50: 0 | I50: 2 | J50: 8 | K50: 0 | L50: 0 | M50: 12 | N50: 4 | O50: 64 | P50: 32 | Q50: 26 | R50: 0 | S50: 0 | T50: 132 | U50: 50 | V50: 6 | W50: 0 | X50: 0 | Y50: 252
A51: ='Demand - External Transfers'!A50 -> 40 | C51: =IF('Demand - External Transfers'!D50="","",'Demand - External Transfers'!D50) ->  | D51: =IF('Demand - External Transfers'!F50="","",'Demand - External Transfers'!F50) -> 52 | E51: =IF('Demand - External Transfers'!G50="","",'Demand - External Transfers'!G50) -> 2017-12-30 | F51: 0 | G51: 0 | H51: 0 | I51: 2 | J51: 2 | K51: 0 | L51: 0 | M51: 2 | N51: 4 | O51: 86 | P51: 38 | Q51: 2 | R51: 0 | S51: 0 | T51: 248 | U51: 14 | V51: 12 | W51: 0 | X51: 0 | Y51: 322
A52: ='Demand - External Transfers'!A51 -> 41 | C52: =IF('Demand - External Transfers'!D51="","",'Demand - External Transfers'!D51) -> 2018 | D52: =IF('Demand - External Transfers'!F51="","",'Demand - External Transfers'!F51) -> 1 | E52: =IF('Demand - External Transfers'!G51="","",'Demand - External Transfers'!G51) -> 2018-01-06 | F52: 0 | G52: 0 | H52: 0 | I52: 10 | J52: 4 | K52: 0 | L52: 0 | M52: 60 | N52: 8 | O52: 82 | P52: 20 | Q52: 66 | R52: 0 | S52: 0 | T52: 192 | U52: 158 | V52: 18 | W52: 0 | X52: 0 | Y52: 68
A53: ='Demand - External Transfers'!A52 -> 42 | C53: =IF('Demand - External Transfers'!D52="","",'Demand - External Transfers'!D52) ->  | D53: =IF('Demand - External Transfers'!F52="","",'Demand - External Transfers'!F52) -> 2 | E53: =IF('Demand - External Transfers'!G52="","",'Demand - External Transfers'!G52) -> 2018-01-13 | F53: 0 | G53: 0 | H53: 0 | I53: 38 | J53: 8 | K53: 0 | L53: 0 | M53: 80 | N53: 4 | O53: 124 | P53: 22 | Q53: 106 | R53: 0 | S53: 0 | T53: 32 | U53: 62 | V53: 30 | W53: 0 | X53: 0 | Y53: 6
A54: ='Demand - External Transfers'!A53 -> 43 | C54: =IF('Demand - External Transfers'!D53="","",'Demand - External Transfers'!D53) ->  | D54: =IF('Demand - External Transfers'!F53="","",'Demand - External Transfers'!F53) -> 3 | E54: =IF('Demand - External Transfers'!G53="","",'Demand - External Transfers'!G53) -> 2018-01-20 | F54: 0 | G54: 0 | H54: 0 | I54: 24 | J54: 4 | K54: 0 | L54: 0 | M54: 94 | N54: 6 | O54: 90 | P54: 26 | Q54: 22 | R54: 0 | S54: 0 | T54: 2 | U54: 36 | V54: 36 | W54: 2 | X54: 2 | Y54: 126
A55: ='Demand - External Transfers'!A54 -> 44 | C55: =IF('Demand - External Transfers'!D54="","",'Demand - External Transfers'!D54) ->  | D55: =IF('Demand - External Transfers'!F54="","",'Demand - External Transfers'!F54) -> 4 | E55: =IF('Demand - External Transfers'!G54="","",'Demand - External Transfers'!G54) -> 2018-01-27 | F55: 0 | G55: 0 | H55: 0 | I55: 20 | J55: 4 | K55: 0 | L55: 0 | M55: 94 | N55: 0 | O55: 18 | P55: 0 | Q55: 10 | R55: 0 | S55: 0 | T55: 98 | U55: 66 | V55: 18 | W55: 0 | X55: 0 | Y55: 210
A56: ='Demand - External Transfers'!A55 -> 45 | C56: =IF('Demand - External Transfers'!D55="","",'Demand - External Transfers'!D55) ->  | D56: =IF('Demand - External Transfers'!F55="","",'Demand - External Transfers'!F55) -> 5 | E56: =IF('Demand - External Transfers'!G55="","",'Demand - External Transfers'!G55) -> 2018-02-03 | F56: 2 | G56: 0 | H56: 0 | I56: 28 | J56: 6 | K56: 0 | L56: 0 | M56: 54 | N56: 0 | O56: 0 | P56: 0 | Q56: 12 | R56: 0 | S56: 0 | T56: 164 | U56: 64 | V56: 10 | W56: 0 | X56: 0 | Y56: 160
A57: ='Demand - External Transfers'!A56 -> 46 | C57: =IF('Demand - External Transfers'!D56="","",'Demand - External Transfers'!D56) ->  | D57: =IF('Demand - External Transfers'!F56="","",'Demand - External Transfers'!F56) -> 6 | E57: =IF('Demand - External Transfers'!G56="","",'Demand - External Transfers'!G56) -> 2018-02-10 | F57: 0 | G57: 0 | H57: 0 | I57: 16 | J57: 6 | K57: 0 | L57: 0 | M57: 38 | N57: 4 | O57: 46 | P57: 16 | Q57: 50 | R57: 0 | S57: 0 | T57: 124 | U57: 56 | V57: 18 | W57: 0 | X57: 0 | Y57: 168
A58: ='Demand - External Transfers'!A57 -> 47 | C58: =IF('Demand - External Transfers'!D57="","",'Demand - External Transfers'!D57) ->  | D58: =IF('Demand - External Transfers'!F57="","",'Demand - External Transfers'!F57) -> 7 | E58: =IF('Demand - External Transfers'!G57="","",'Demand - External Transfers'!G57) -> 2018-02-17 | F58: 0 | G58: 0 | H58: 0 | I58: 14 | J58: 8 | K58: 0 | L58: 0 | M58: 18 | N58: 2 | O58: 80 | P58: 40 | Q58: 20 | R58: 0 | S58: 0 | T58: 146 | U58: 38 | V58: 16 | W58: 0 | X58: 0 | Y58: 174
A59: ='Demand - External Transfers'!A58 -> 48 | C59: =IF('Demand - External Transfers'!D58="","",'Demand - External Transfers'!D58) ->  | D59: =IF('Demand - External Transfers'!F58="","",'Demand - External Transfers'!F58) -> 8 | E59: =IF('Demand - External Transfers'!G58="","",'Demand - External Transfers'!G58) -> 2018-02-24 | F59: 0 | G59: 0 | H59: 0 | I59: 18 | J59: 0 | K59: 0 | L59: 0 | M59: 54 | N59: 6 | O59: 62 | P59: 26 | Q59: 40 | R59: 0 | S59: 0 | T59: 148 | U59: 28 | V59: 26 | W59: 0 | X59: 0 | Y59: 182
A60: ='Demand - External Transfers'!A59 -> 49 | C60: =IF('Demand - External Transfers'!D59="","",'Demand - External Transfers'!D59) ->  | D60: =IF('Demand - External Transfers'!F59="","",'Demand - External Transfers'!F59) -> 9 | E60: =IF('Demand - External Transfers'!G59="","",'Demand - External Transfers'!G59) -> 2018-03-03 | F60: 0 | G60: 0 | H60: 0 | I60: 30 | J60: 2 | K60: 0 | L60: 0 | M60: 54 | N60: 8 | O60: 68 | P60: 30 | Q60: 44 | R60: 0 | S60: 0 | T60: 134 | U60: 48 | V60: 4 | W60: 0 | X60: 0 | Y60: 126
A61: ='Demand - External Transfers'!A60 -> 50 | C61: =IF('Demand - External Transfers'!D60="","",'Demand - External Transfers'!D60) ->  | D61: =IF('Demand - External Transfers'!F60="","",'Demand - External Transfers'!F60) -> 10 | E61: =IF('Demand - External Transfers'!G60="","",'Demand - External Transfers'!G60) -> 2018-03-10 | F61: 0 | G61: 0 | H61: 0 | I61: 30 | J61: 6 | K61: 0 | L61: 0 | M61: 50 | N61: 6 | O61: 54 | P61: 36 | Q61: 38 | R61: 0 | S61: 0 | T61: 84 | U61: 60 | V61: 12 | W61: 0 | X61: 0 | Y61: 150
A62: ='Demand - External Transfers'!A61 -> 51 | C62: =IF('Demand - External Transfers'!D61="","",'Demand - External Transfers'!D61) ->  | D62: =IF('Demand - External Transfers'!F61="","",'Demand - External Transfers'!F61) -> 11 | E62: =IF('Demand - External Transfers'!G61="","",'Demand - External Transfers'!G61) -> 2018-03-17 | F62: 0 | G62: 0 | H62: 0 | I62: 40 | J62: 0 | K62: 0 | L62: 0 | M62: 60 | N62: 10 | O62: 56 | P62: 28 | Q62: 38 | R62: 0 | S62: 0 | T62: 120 | U62: 64 | V62: 18 | W62: 0 | X62: 0 | Y62: 164
... 77 more rows

Sheet Data Validation Backing (Hide) (hidden)
A1: Data Validation
B3: Standard Name | C3: Intensity 1 | L3: Standard Name | M3: Intensity 2 | V3: Standard Name | W3: Intensity 3 | AF3: Standard Name | AG3: Intensity 4 | AP3: Standard Name | AQ3: Intensity 5
B4: User-input Name | C4: =GeneralBacking!D2 -> Grp1 | L4: User-input Name | M4: =GeneralBacking!D3 -> Grp2 | V4: User-input Name | W4: =GeneralBacking!D4 -> Grp3 | AF4: User-input Name | AG4: =GeneralBacking!D5 -> Grp4 | AP4: User-input Name | AQ4: =GeneralBacking!D6 -> Grp5
C5: In | E5: Out | G5: MAPE | M5: In | O5: Out | Q5: MAPE | W5: In | Y5: Out | AA5: MAPE | AG5: In | AI5: Out | AK5: MAPE | AQ5: In | AS5: Out | AU5: MAPE | AY5: Combined Table for Forecasted Results
G6: =C4 -> Grp1 | Q6: =M4 -> Grp2 | AA6: =W4 -> Grp3 | AK6: =AG4 -> Grp4 | AU6: =AQ4 -> Grp5
A7: Week Ref | B7: Patients on Caseload - User Entry | C7: External Additions | D7: All Transfers in | E7: External Discharges | F7: All Transfers out | G7: Forecasted Patients on Caseload | H7: (Abs(E - F))/E | I7: MAPE (Average ABS(E - F))/E) | K7: Week Ref | L7: Patients on Caseload - User Entry | M7: External Additions | N7: All Transfers in | O7: External Discharges | P7: All Transfers out | Q7: Forecasted Patients on Caseload | R7: (Abs(E - F))/E | S7: MAPE (Average ABS(E - F))/E) | U7: Week Ref | V7: Patients on Caseload - User Entry | W7: External Additions | X7: All Transfers in | Y7: External Discharges | Z7: All Transfers out | AA7: Forecasted Patients on Caseload | AB7: (Abs(E - F))/E | AC7: MAPE (Average ABS(E - F))/E) | AE7: Week Ref | AF7: Patients on Caseload - User Entry | AG7: External Additions | AH7: All Transfers in | AI7: External Discharges | AJ7: All Transfers out | AK7: Forecasted Patients on Caseload | AL7: (Abs(E - F))/E | AM7: MAPE (Average ABS(E - F))/E) | AO7: Week Ref | AP7: Patients on Caseload - User Entry | AQ7: External Additions | AR7: All Transfers in | AS7: External Discharges | AT7: All Transfers out | AU7: Forecasted Patients on Caseload | AV7: (Abs(E - F))/E | AW7: MAPE (Average ABS(E - F))/E) | AY7: =GeneralBacking!D2 -> Grp1 | AZ7: =GeneralBacking!D3 -> Grp2 | BA7: =GeneralBacking!D4 -> Grp3 | BB7: =GeneralBacking!D5 -> Grp4 | BC7: =GeneralBacking!D6 -> Grp5
A8: ='Demand - External Transfers'!$A11 -> 1 | B8: =INDEX(DEM_Pts_Caseload_User,MATCH(A8,DEM_Week_Reference,0),MATCH(C$4,DEM_Intensity_Name_Caseload,0)) -> 834 | C8: =INDEX(DEM_External_Additions_User,MATCH(A8,DEM_Week_Reference,0),MATCH(C$4,DEM_Intensity_Name_Ext_Additions,0)) -> 2 | D8: =SUMIF(DEM_Internal_Transfers_To_Intensity,"="&C$4,'Demand - Internal Transfers'!$F12:$Y12) -> 24 | E8: =INDEX(DEM_Discharges_User_Entered,MATCH(A8,DEM_Week_Reference,0),MATCH(C$4,DEM_intensity_Name_Discharges,0)) -> 2 | F8: =SUMIF(DEM_Internal_Transfers_From_Intensity_Name,"="&C$4,'Demand - Internal Transfers'!$F12:$Y12) -> 20 | G8: =B8 -> 834 | H8: =IFERROR(ABS(IFERROR((B8-G8)/B8,0)),1) -> 0 | I8: =SUM(OFFSET(H8,0,0,DEM_Max_Rows,1))/COUNT(OFFSET(H8,0,0,DEM_Max_Rows,1)) -> 0.002920410243 | K8: ='Demand - External Transfers'!$A11 -> 1 | L8: =INDEX(DEM_Pts_Caseload_User,MATCH(K8,DEM_Week_Reference,0),MATCH(M$4,DEM_Intensity_Name_Caseload,0)) -> 572 | M8: =INDEX(DEM_External_Additions_User,MATCH(K8,DEM_Week_Reference,0),MATCH(M$4,DEM_Intensity_Name_Ext_Additions,0)) -> 0 | N8: =SUMIF(DEM_Internal_Transfers_To_Intensity,"="&M$4,'Demand - Internal Transfers'!$F12:$Y12) -> 50 | O8: =INDEX(DEM_Discharges_User_Entered,MATCH(K8,DEM_Week_Reference,0),MATCH(M$4,DEM_intensity_Name_Discharges,0)) -> 0 | P8: =SUMIF(DEM_Internal_Transfers_From_Intensity_Name,"="&M$4,'Demand - Internal Transfers'!$F12:$Y12) -> 24 | Q8: =L8 -> 572 | R8: =IFERROR(ABS(IFERROR((L8-Q8)/L8,0)),1) -> 0 | S8: =SUM(OFFSET(R8,0,0,DEM_Max_Rows,1))/COUNT(OFFSET(R8,0,0,DEM_Max_Rows,1)) -> 0.01478328406 | U8: ='Demand - External Transfers'!$A11 -> 1 | V8: =INDEX(DEM_Pts_Caseload_User,MATCH(U8,DEM_Week_Reference,0),MATCH(W$4,DEM_Intensity_Name_Caseload,0)) -> 260 | W8: =INDEX(DEM_External_Additions_User,MATCH(U8,DEM_Week_Reference,0),MATCH(W$4,DEM_Intensity_Name_Ext_Additions,0)) -> 0 | X8: =SUMIF(DEM_Internal_Transfers_To_Intensity,"="&W$4,'Demand - Internal Transfers'!$F12:$Y12) -> 172 | Y8: =INDEX(DEM_Discharges_User_Entered,MATCH(U8,DEM_Week_Reference,0),MATCH(W$4,DEM_intensity_Name_Discharges,0)) -> 2 | Z8: =SUMIF(DEM_Internal_Transfers_From_Intensity_Name,"="&W$4,'Demand - Internal Transfers'!$F12:$Y12) -> 110 | AA8: =V8 -> 260 | AB8: =IFERROR(ABS(IFERROR((V8-AA8)/V8,0)),1) -> 0 | AC8: =SUM(OFFSET(AB8,0,0,DEM_Max_Rows,1))/COUNT(OFFSET(AB8,0,0,DEM_Max_Rows,1)) -> 0.05573562528 | AE8: ='Demand - External Transfers'!$A11 -> 1 | AF8: =INDEX(DEM_Pts_Caseload_User,MATCH(AE8,DEM_Week_Reference,0),MATCH(AG$4,DEM_Intensity_Name_Caseload,0)) -> 294 | AG8: =INDEX(DEM_External_Additions_User,MATCH(AE8,DEM_Week_Reference,0),MATCH(AG$4,DEM_Intensity_Name_Ext_Additions,0)) -> 0 | AH8: =SUMIF(DEM_Internal_Transfers_To_Intensity,"="&AG$4,'Demand - Internal Transfers'!$F12:$Y12) -> 232 | AI8: =INDEX(DEM_Discharges_User_Entered,MATCH(AE8,DEM_Week_Reference,0),MATCH(AG$4,DEM_intensity_Name_Discharges,0)) -> 0 | AJ8: =SUMIF(DEM_Internal_Transfers_From_Intensity_Name,"="&AG$4,'Demand - Internal Transfers'!$F12:$Y12) -> 220 | AK8: =AF8 -> 294 | AL8: =IFERROR(ABS(IFERROR((AF8-AK8)/AF8,0)),1) -> 0 | AM8: =SUM(OFFSET(AL8,0,0,DEM_Max_Rows,1))/COUNT(OFFSET(AL8,0,0,DEM_Max_Rows,1)) -> 0.01974831885 | AO8: ='Demand - External Transfers'!$A11 -> 1 | AP8: =INDEX(DEM_Pts_Caseload_User,MATCH(AO8,DEM_Week_Reference,0),MATCH(AQ$4,DEM_Intensity_Name_Caseload,0)) -> 802 | AQ8: =INDEX(DEM_External_Additions_User,MATCH(AO8,DEM_Week_Reference,0),MATCH(AQ$4,DEM_Intensity_Name_Ext_Additions,0)) -> 16 | AR8: =SUMIF(DEM_Internal_Transfers_To_Intensity,"="&AQ$4,'Demand - Internal Transfers'!$F12:$Y12) -> 116 | AS8: =INDEX(DEM_Discharges_User_Entered,MATCH(AO8,DEM_Week_Reference,0),MATCH(AQ$4,DEM_intensity_Name_Discharges,0)) -> 4 | AT8: =SUMIF(DEM_Internal_Transfers_From_Intensity_Name,"="&AQ$4,'Demand - Internal Transfers'!$F12:$Y12) -> 220 | AU8: =AP8 -> 802 | AV8: =IFERROR(ABS(IFERROR((AP8-AU8)/AP8,0)),1) -> 0 | AW8: =SUM(OFFSET(AV8,0,0,DEM_Max_Rows,1))/COUNT(OFFSET(AV8,0,0,DEM_Max_Rows,1)) -> 0.01407753271 | AY8: =MAX(0,G8) -> 834 | AZ8: =MAX(0,Q8) -> 572 | BA8: =MAX(0,AA8) -> 260 | BB8: =MAX(0,AK8) -> 294 | BC8: =MAX(0,AU8) -> 802
A9: ='Demand - External Transfers'!$A12 -> 2 | B9: 848 | C9: 2 | D9: =SUMIF(DEM_Internal_Transfers_To_Intensity,"="&C$4,'Demand - Internal Transfers'!$F13:$Y13) -> 24 | E9: 0 | F9: =SUMIF(DEM_Internal_Transfers_From_Intensity_Name,"="&C$4,'Demand - Internal Transfers'!$F13:$Y13) -> 12 | G9: =IFERROR(MAX(0,IF(A9="","",(G8+C9+D9)-(E9+F9))),"") -> 848 | H9: =IFERROR(ABS(IFERROR((B9-G9)/B9,0)),1) -> 0 | K9: ='Demand - External Transfers'!$A12 -> 2 | L9: 582 | M9: 0 | N9: =SUMIF(DEM_Internal_Transfers_To_Intensity,"="&M$4,'Demand - Internal Transfers'!$F13:$Y13) -> 50 | O9: 0 | P9: =SUMIF(DEM_Internal_Transfers_From_Intensity_Name,"="&M$4,'Demand - Internal Transfers'!$F13:$Y13) -> 40 | Q9: =IFERROR(MAX(0,IF(K9="","",(Q8+M9+N9)-(O9+P9))),"") -> 582 | R9: =IFERROR(ABS(IFERROR((L9-Q9)/L9,0)),1) -> 0 | U9: ='Demand - External Transfers'!$A12 -> 2 | V9: 312 | W9: 0 | X9: =SUMIF(DEM_Internal_Transfers_To_Intensity,"="&W$4,'Demand - Internal Transfers'!$F13:$Y13) -> 164 | Y9: 2 | Z9: =SUMIF(DEM_Internal_Transfers_From_Intensity_Name,"="&W$4,'Demand - Internal Transfers'!$F13:$Y13) -> 110 | AA9: =IFERROR(MAX(0,IF(U9="","",(AA8+W9+X9)-(Y9+Z9))),"") -> 312 | AB9: =IFERROR(ABS(IFERROR((V9-AA9)/V9,0)),1) -> 0 | AE9: ='Demand - External Transfers'!$A12 -> 2 | AF9: 306 | AG9: 0 | AH9: =SUMIF(DEM_Internal_Transfers_To_Intensity,"="&AG$4,'Demand - Internal Transfers'!$F13:$Y13) -> 244 | AI9: 2 | AJ9: =SUMIF(DEM_Internal_Transfers_From_Intensity_Name,"="&AG$4,'Demand - Internal Transfers'!$F13:$Y13) -> 230 | AK9: =IFERROR(MAX(0,IF(AE9="","",(AK8+AG9+AH9)-(AI9+AJ9))),"") -> 306 | AL9: =IFERROR(ABS(IFERROR((AF9-AK9)/AF9,0)),1) -> 0 | AO9: ='Demand - External Transfers'!$A12 -> 2 | AP9: 718 | AQ9: 6 | AR9: =SUMIF(DEM_Internal_Transfers_To_Intensity,"="&AQ$4,'Demand - Internal Transfers'!$F13:$Y13) -> 146 | AS9: 0 | AT9: =SUMIF(DEM_Internal_Transfers_From_Intensity_Name,"="&AQ$4,'Demand - Internal Transfers'!$F13:$Y13) -> 236 | AU9: =IFERROR(MAX(0,IF(AO9="","",(AU8+AQ9+AR9)-(AS9+AT9))),"") -> 718 | AV9: =IFERROR(ABS(IFERROR((AP9-AU9)/AP9,0)),1) -> 0 | AY9: =MAX(0,G9) -> 848 | AZ9: =MAX(0,Q9) -> 582 | BA9: =MAX(0,AA9) -> 312 | BB9: =MAX(0,AK9) -> 306 | BC9: =MAX(0,AU9) -> 718
A10: ='Demand - External Transfers'!$A13 -> 3 | B10: 854 | C10: 6 | D10: =SUMIF(DEM_Internal_Transfers_To_Intensity,"="&C$4,'Demand - Internal Transfers'!$F14:$Y14) -> 18 | E10: 4 | F10: =SUMIF(DEM_Internal_Transfers_From_Intensity_Name,"="&C$4,'Demand - Internal Transfers'!$F14:$Y14) -> 14 | G10: =IFERROR(MAX(0,IF(A10="","",(G9+C10+D10)-(E10+F10))),"") -> 854 | H10: 0 | K10: ='Demand - External Transfers'!$A13 -> 3 | L10: 604 | M10: 2 | N10: =SUMIF(DEM_Internal_Transfers_To_Intensity,"="&M$4,'Demand - Internal Transfers'!$F14:$Y14) -> 80 | O10: 2 | P10: =SUMIF(DEM_Internal_Transfers_From_Intensity_Name,"="&M$4,'Demand - Internal Transfers'!$F14:$Y14) -> 58 | Q10: =IFERROR(MAX(0,IF(K10="","",(Q9+M10+N10)-(O10+P10))),"") -> 604 | R10: 0 | U10: ='Demand - External Transfers'!$A13 -> 3 | V10: 250 | W10: 0 | X10: =SUMIF(DEM_Internal_Transfers_To_Intensity,"="&W$4,'Demand - Internal Transfers'!$F14:$Y14) -> 130 | Y10: 0 | Z10: =SUMIF(DEM_Internal_Transfers_From_Intensity_Name,"="&W$4,'Demand - Internal Transfers'!$F14:$Y14) -> 192 | AA10: =IFERROR(MAX(0,IF(U10="","",(AA9+W10+X10)-(Y10+Z10))),"") -> 250 | AB10: 0 | AE10: ='Demand - External Transfers'!$A13 -> 3 | AF10: 242 | AG10: 0 | AH10: =SUMIF(DEM_Internal_Transfers_To_Intensity,"="&AG$4,'Demand - Internal Transfers'!$F14:$Y14) -> 174 | AI10: 0 | AJ10: =SUMIF(DEM_Internal_Transfers_From_Intensity_Name,"="&AG$4,'Demand - Internal Transfers'!$F14:$Y14) -> 238 | AK10: =IFERROR(MAX(0,IF(AE10="","",(AK9+AG10+AH10)-(AI10+AJ10))),"") -> 242 | AL10: 0 | AO10: ='Demand - External Transfers'!$A13 -> 3 | AP10: 832 | AQ10: 18 | AR10: =SUMIF(DEM_Internal_Transfers_To_Intensity,"="&AQ$4,'Demand - Internal Transfers'!$F14:$Y14) -> 250 | AS10: 4 | AT10: =SUMIF(DEM_Internal_Transfers_From_Intensity_Name,"="&AQ$4,'Demand - Internal Transfers'!$F14:$Y14) -> 150 | AU10: =IFERROR(MAX(0,IF(AO10="","",(AU9+AQ10+AR10)-(AS10+AT10))),"") -> 832 | AV10: 0 | AY10: 854 | AZ10: 604 | BA10: 250 | BB10: 242 | BC10: 832
A11: ='Demand - External Transfers'!$A14 -> 4 | B11: 866 | C11: 0 | D11: =SUMIF(DEM_Internal_Transfers_To_Intensity,"="&C$4,'Demand - Internal Transfers'!$F15:$Y15) -> 28 | E11: 2 | F11: =SUMIF(DEM_Internal_Transfers_From_Intensity_Name,"="&C$4,'Demand - Internal Transfers'!$F15:$Y15) -> 14 | G11: 866 | H11: 0 | K11: ='Demand - External Transfers'!$A14 -> 4 | L11: 594 | M11: 2 | N11: =SUMIF(DEM_Internal_Transfers_To_Intensity,"="&M$4,'Demand - Internal Transfers'!$F15:$Y15) -> 48 | O11: 8 | P11: =SUMIF(DEM_Internal_Transfers_From_Intensity_Name,"="&M$4,'Demand - Internal Transfers'!$F15:$Y15) -> 52 | Q11: 594 | R11: 0 | U11: ='Demand - External Transfers'!$A14 -> 4 | V11: 220 | W11: 0 | X11: =SUMIF(DEM_Internal_Transfers_To_Intensity,"="&W$4,'Demand - Internal Transfers'!$F15:$Y15) -> 106 | Y11: 2 | Z11: =SUMIF(DEM_Internal_Transfers_From_Intensity_Name,"="&W$4,'Demand - Internal Transfers'!$F15:$Y15) -> 134 | AA11: 220 | AB11: 0 | AE11: ='Demand - External Transfers'!$A14 -> 4 | AF11: 232 | AG11: 0 | AH11: =SUMIF(DEM_Internal_Transfers_To_Intensity,"="&AG$4,'Demand - Internal Transfers'!$F15:$Y15) -> 144 | AI11: 2 | AJ11: =SUMIF(DEM_Internal_Transfers_From_Intensity_Name,"="&AG$4,'Demand - Internal Transfers'!$F15:$Y15) -> 152 | AK11: 232 | AL11: 0 | AO11: ='Demand - External Transfers'!$A14 -> 4 | AP11: 872 | AQ11: 18 | AR11: =SUMIF(DEM_Internal_Transfers_To_Intensity,"="&AQ$4,'Demand - Internal Transfers'!$F15:$Y15) -> 152 | AS11: 4 | AT11: =SUMIF(DEM_Internal_Transfers_From_Intensity_Name,"="&AQ$4,'Demand - Internal Transfers'!$F15:$Y15) -> 126 | AU11: 872 | AV11: 0 | AY11: 866 | AZ11: 594 | BA11: 220 | BB11: 232 | BC11: 872
A12: ='Demand - External Transfers'!$A15 -> 5 | B12: 844 | C12: 0 | D12: =SUMIF(DEM_Internal_Transfers_To_Intensity,"="&C$4,'Demand - Internal Transfers'!$F16:$Y16) -> 12 | E12: 2 | F12: =SUMIF(DEM_Internal_Transfers_From_Intensity_Name,"="&C$4,'Demand - Internal Transfers'!$F16:$Y16) -> 32 | G12: 844 | H12: 0 | K12: ='Demand - External Transfers'!$A15 -> 5 | L12: 580 | M12: 2 | N12: =SUMIF(DEM_Internal_Transfers_To_Intensity,"="&M$4,'Demand - Internal Transfers'!$F16:$Y16) -> 48 | O12: 2 | P12: =SUMIF(DEM_Internal_Transfers_From_Intensity_Name,"="&M$4,'Demand - Internal Transfers'!$F16:$Y16) -> 62 | Q12: 580 | R12: 0 | U12: ='Demand - External Transfers'!$A15 -> 5 | V12: 158 | W12: 0 | X12: =SUMIF(DEM_Internal_Transfers_To_Intensity,"="&W$4,'Demand - Internal Transfers'!$F16:$Y16) -> 82 | Y12: 0 | Z12: =SUMIF(DEM_Internal_Transfers_From_Intensity_Name,"="&W$4,'Demand - Internal Transfers'!$F16:$Y16) -> 144 | AA12: 158 | AB12: 0 | AE12: ='Demand - External Transfers'!$A15 -> 5 | AF12: 272 | AG12: 0 | AH12: =SUMIF(DEM_Internal_Transfers_To_Intensity,"="&AG$4,'Demand - Internal Transfers'!$F16:$Y16) -> 176 | AI12: 2 | AJ12: =SUMIF(DEM_Internal_Transfers_From_Intensity_Name,"="&AG$4,'Demand - Internal Transfers'!$F16:$Y16) -> 134 | AK12: 272 | AL12: 0 | AO12: ='Demand - External Transfers'!$A15 -> 5 | AP12: 948 | AQ12: 22 | AR12: =SUMIF(DEM_Internal_Transfers_To_Intensity,"="&AQ$4,'Demand - Internal Transfers'!$F16:$Y16) -> 194 | AS12: 0 | AT12: =SUMIF(DEM_Internal_Transfers_From_Intensity_Name,"="&AQ$4,'Demand - Internal Transfers'!$F16:$Y16) -> 140 | AU12: 948 | AV12: 0 | AY12: 844 | AZ12: 580 | BA12: 158 | BB12: 272 | BC12: 948
A13: ='Demand - External Transfers'!$A16 -> 6 | B13: 822 | C13: 0 | D13: =SUMIF(DEM_Internal_Transfers_To_Intensity,"="&C$4,'Demand - Internal Transfers'!$F17:$Y17) -> 8 | E13: 8 | F13: =SUMIF(DEM_Internal_Transfers_From_Intensity_Name,"="&C$4,'Demand - Internal Transfers'!$F17:$Y17) -> 22 | G13: 822 | H13: 0 | K13: ='Demand - External Transfers'!$A16 -> 6 | L13: 574 | M13: 0 | N13: =SUMIF(DEM_Internal_Transfers_To_Intensity,"="&M$4,'Demand - Internal Transfers'!$F17:$Y17) -> 24 | O13: 0 | P13: =SUMIF(DEM_Internal_Transfers_From_Intensity_Name,"="&M$4,'Demand - Internal Transfers'!$F17:$Y17) -> 30 | Q13: 574 | R13: 0 | U13: ='Demand - External Transfers'!$A16 -> 6 | V13: 152 | W13: 0 | X13: =SUMIF(DEM_Internal_Transfers_To_Intensity,"="&W$4,'Demand - Internal Transfers'!$F17:$Y17) -> 102 | Y13: 2 | Z13: =SUMIF(DEM_Internal_Transfers_From_Intensity_Name,"="&W$4,'Demand - Internal Transfers'!$F17:$Y17) -> 106 | AA13: 152 | AB13: 0 | AE13: ='Demand - External Transfers'!$A16 -> 6 | AF13: 298 | AG13: 0 | AH13: =SUMIF(DEM_Internal_Transfers_To_Intensity,"="&AG$4,'Demand - Internal Transfers'!$F17:$Y17) -> 192 | AI13: 2 | AJ13: =SUMIF(DEM_Internal_Transfers_From_Intensity_Name,"="&AG$4,'Demand - Internal Transfers'!$F17:$Y17) -> 164 | AK13: 298 | AL13: 0 | AO13: ='Demand - External Transfers'!$A16 -> 6 | AP13: 942 | AQ13: 18 | AR13: =SUMIF(DEM_Internal_Transfers_To_Intensity,"="&AQ$4,'Demand - Internal Transfers'!$F17:$Y17) -> 150 | AS13: 20 | AT13: =SUMIF(DEM_Internal_Transfers_From_Intensity_Name,"="&AQ$4,'Demand - Internal Transfers'!$F17:$Y17) -> 154 | AU13: 942 | AV13: 0 | AY13: 822 | AZ13: 574 | BA13: 152 | BB13: 298 | BC13: 942
A14: ='Demand - External Transfers'!$A17 -> 7 | B14: 800 | C14: 0 | D14: =SUMIF(DEM_Internal_Transfers_To_Intensity,"="&C$4,'Demand - Internal Transfers'!$F18:$Y18) -> 12 | E14: 8 | F14: =SUMIF(DEM_Internal_Transfers_From_Intensity_Name,"="&C$4,'Demand - Internal Transfers'!$F18:$Y18) -> 26 | G14: 800 | H14: 0 | K14: ='Demand - External Transfers'!$A17 -> 7 | L14: 522 | M14: 0 | N14: =SUMIF(DEM_Internal_Transfers_To_Intensity,"="&M$4,'Demand - Internal Transfers'!$F18:$Y18) -> 24 | O14: 10 | P14: =SUMIF(DEM_Internal_Transfers_From_Intensity_Name,"="&M$4,'Demand - Internal Transfers'!$F18:$Y18) -> 66 | Q14: 522 | R14: 0 | U14: ='Demand - External Transfers'!$A17 -> 7 | V14: 204 | W14: 0 | X14: =SUMIF(DEM_Internal_Transfers_To_Intensity,"="&W$4,'Demand - Internal Transfers'!$F18:$Y18) -> 120 | Y14: 2 | Z14: =SUMIF(DEM_Internal_Transfers_From_Intensity_Name,"="&W$4,'Demand - Internal Transfers'!$F18:$Y18) -> 66 | AA14: 204 | AB14: 0 | AE14: ='Demand - External Transfers'!$A17 -> 7 | AF14: 324 | AG14: 0 | AH14: =SUMIF(DEM_Internal_Transfers_To_Intensity,"="&AG$4,'Demand - Internal Transfers'!$F18:$Y18) -> 214 | AI14: 0 | AJ14: =SUMIF(DEM_Internal_Transfers_From_Intensity_Name,"="&AG$4,'Demand - Internal Transfers'!$F18:$Y18) -> 188 | AK14: 324 | AL14: 0 | AO14: ='Demand - External Transfers'!$A17 -> 7 | AP14: 936 | AQ14: 26 | AR14: =SUMIF(DEM_Internal_Transfers_To_Intensity,"="&AQ$4,'Demand - Internal Transfers'!$F18:$Y18) -> 180 | AS14: 8 | AT14: =SUMIF(DEM_Internal_Transfers_From_Intensity_Name,"="&AQ$4,'Demand - Internal Transfers'!$F18:$Y18) -> 204 | AU14: 936 | AV14: 0 | AY14: 800 | AZ14: 522 | BA14: 204 | BB14: 324 | BC14: 936
A15: ='Demand - External Transfers'!$A18 -> 8 | B15: 806 | C15: 4 | D15: =SUMIF(DEM_Internal_Transfers_To_Intensity,"="&C$4,'Demand - Internal Transfers'!$F19:$Y19) -> 34 | E15: 8 | F15: =SUMIF(DEM_Internal_Transfers_From_Intensity_Name,"="&C$4,'Demand - Internal Transfers'!$F19:$Y19) -> 24 | G15: 806 | H15: 0 | K15: ='Demand - External Transfers'!$A18 -> 8 | L15: 516 | M15: 4 | N15: =SUMIF(DEM_Internal_Transfers_To_Intensity,"="&M$4,'Demand - Internal Transfers'!$F19:$Y19) -> 42 | O15: 4 | P15: =SUMIF(DEM_Internal_Transfers_From_Intensity_Name,"="&M$4,'Demand - Internal Transfers'!$F19:$Y19) -> 48 | Q15: 516 | R15: 0 | U15: ='Demand - External Transfers'!$A18 -> 8 | V15: 228 | W15: 0 | X15: =SUMIF(DEM_Internal_Transfers_To_Intensity,"="&W$4,'Demand - Internal Transfers'!$F19:$Y19) -> 138 | Y15: 0 | Z15: =SUMIF(DEM_Internal_Transfers_From_Intensity_Name,"="&W$4,'Demand - Internal Transfers'!$F19:$Y19) -> 114 | AA15: 228 | AB15: 0 | AE15: ='Demand - External Transfers'!$A18 -> 8 | AF15: 256 | AG15: 0 | AH15: =SUMIF(DEM_Internal_Transfers_To_Intensity,"="&AG$4,'Demand - Internal Transfers'!$F19:$Y19) -> 172 | AI15: 0 | AJ15: =SUMIF(DEM_Internal_Transfers_From_Intensity_Name,"="&AG$4,'Demand - Internal Transfers'!$F19:$Y19) -> 240 | AK15: 256 | AL15: 0 | AO15: ='Demand - External Transfers'!$A18 -> 8 | AP15: 998 | AQ15: 26 | AR15: =SUMIF(DEM_Internal_Transfers_To_Intensity,"="&AQ$4,'Demand - Internal Transfers'!$F19:$Y19) -> 208 | AS15: 4 | AT15: =SUMIF(DEM_Internal_Transfers_From_Intensity_Name,"="&AQ$4,'Demand - Internal Transfers'!$F19:$Y19) -> 168 | AU15: 998 | AV15: 0 | AY15: 806 | AZ15: 516 | BA15: 228 | BB15: 256 | BC15: 998
A16: ='Demand - External Transfers'!$A19 -> 9 | B16: 830 | C16: 4 | D16: =SUMIF(DEM_Internal_Transfers_To_Intensity,"="&C$4,'Demand - Internal Transfers'!$F20:$Y20) -> 46 | E16: 6 | F16: =SUMIF(DEM_Internal_Transfers_From_Intensity_Name,"="&C$4,'Demand - Internal Transfers'!$F20:$Y20) -> 20 | G16: 830 | H16: 0 | K16: ='Demand - External Transfers'!$A19 -> 9 | L16: 550 | M16: 2 | N16: =SUMIF(DEM_Internal_Transfers_To_Intensity,"="&M$4,'Demand - Internal Transfers'!$F20:$Y20) -> 60 | O16: 10 | P16: =SUMIF(DEM_Internal_Transfers_From_Intensity_Name,"="&M$4,'Demand - Internal Transfers'!$F20:$Y20) -> 18 | Q16: 550 | R16: 0 | U16: ='Demand - External Transfers'!$A19 -> 9 | V16: 252 | W16: 0 | X16: =SUMIF(DEM_Internal_Transfers_To_Intensity,"="&W$4,'Demand - Internal Transfers'!$F20:$Y20) -> 124 | Y16: 2 | Z16: =SUMIF(DEM_Internal_Transfers_From_Intensity_Name,"="&W$4,'Demand - Internal Transfers'!$F20:$Y20) -> 98 | AA16: 252 | AB16: 0 | AE16: ='Demand - External Transfers'!$A19 -> 9 | AF16: 298 | AG16: 0 | AH16: =SUMIF(DEM_Internal_Transfers_To_Intensity,"="&AG$4,'Demand - Internal Transfers'!$F20:$Y20) -> 226 | AI16: 2 | AJ16: =SUMIF(DEM_Internal_Transfers_From_Intensity_Name,"="&AG$4,'Demand - Internal Transfers'!$F20:$Y20) -> 182 | AK16: 298 | AL16: 0 | AO16: ='Demand - External Transfers'!$A19 -> 9 | AP16: 868 | AQ16: 12 | AR16: =SUMIF(DEM_Internal_Transfers_To_Intensity,"="&AQ$4,'Demand - Internal Transfers'!$F20:$Y20) -> 102 | AS16: 4 | AT16: =SUMIF(DEM_Internal_Transfers_From_Intensity_Name,"="&AQ$4,'Demand - Internal Transfers'!$F20:$Y20) -> 240 | AU16: 868 | AV16: 0 | AY16: 830 | AZ16: 550 | BA16: 252 | BB16: 298 | BC16: 868
A17: ='Demand - External Transfers'!$A20 -> 10 | B17: 816 | C17: 2 | D17: =SUMIF(DEM_Internal_Transfers_To_Intensity,"="&C$4,'Demand - Internal Transfers'!$F21:$Y21) -> 16 | E17: 2 | F17: =SUMIF(DEM_Internal_Transfers_From_Intensity_Name,"="&C$4,'Demand - Internal Transfers'!$F21:$Y21) -> 30 | G17: 816 | H17: 0 | K17: ='Demand - External Transfers'!$A20 -> 10 | L17: 572 | M17: 2 | N17: =SUMIF(DEM_Internal_Transfers_To_Intensity,"="&M$4,'Demand - Internal Transfers'!$F21:$Y21) -> 74 | O17: 6 | P17: =SUMIF(DEM_Internal_Transfers_From_Intensity_Name,"="&M$4,'Demand - Internal Transfers'!$F21:$Y21) -> 48 | Q17: 572 | R17: 0 | U17: ='Demand - External Transfers'!$A20 -> 10 | V17: 246 | W17: 0 | X17: =SUMIF(DEM_Internal_Transfers_To_Intensity,"="&W$4,'Demand - Internal Transfers'!$F21:$Y21) -> 148 | Y17: 2 | Z17: =SUMIF(DEM_Internal_Transfers_From_Intensity_Name,"="&W$4,'Demand - Internal Transfers'!$F21:$Y21) -> 152 | AA17: 246 | AB17: 0 | AE17: ='Demand - External Transfers'!$A20 -> 10 | AF17: 296 | AG17: 0 | AH17: =SUMIF(DEM_Internal_Transfers_To_Intensity,"="&AG$4,'Demand - Internal Transfers'!$F21:$Y21) -> 244 | AI17: 0 | AJ17: =SUMIF(DEM_Internal_Transfers_From_Intensity_Name,"="&AG$4,'Demand - Internal Transfers'!$F21:$Y21) -> 246 | AK17: 296 | AL17: 0 | AO17: ='Demand - External Transfers'!$A20 -> 10 | AP17: 872 | AQ17: 14 | AR17: =SUMIF(DEM_Internal_Transfers_To_Intensity,"="&AQ$4,'Demand - Internal Transfers'!$F21:$Y21) -> 216 | AS17: 4 | AT17: =SUMIF(DEM_Internal_Transfers_From_Intensity_Name,"="&AQ$4,'Demand - Internal Transfers'!$F21:$Y21) -> 222 | AU17: 872 | AV17: 0 | AY17: 816 | AZ17: 572 | BA17: 246 | BB17: 296 | BC17: 872
A18: ='Demand - External Transfers'!$A21 -> 11 | B18: 816 | C18: 2 | D18: =SUMIF(DEM_Internal_Transfers_To_Intensity,"="&C$4,'Demand - Internal Transfers'!$F22:$Y22) -> 32 | E18: 12 | F18: =SUMIF(DEM_Internal_Transfers_From_Intensity_Name,"="&C$4,'Demand - Internal Transfers'!$F22:$Y22) -> 22 | G18: 816 | H18: 0 | K18: ='Demand - External Transfers'!$A21 -> 11 | L18: 534 | M18: 2 | N18: =SUMIF(DEM_Internal_Transfers_To_Intensity,"="&M$4,'Demand - Internal Transfers'!$F22:$Y22) -> 48 | O18: 16 | P18: =SUMIF(DEM_Internal_Transfers_From_Intensity_Name,"="&M$4,'Demand - Internal Transfers'!$F22:$Y22) -> 72 | Q18: 534 | R18: 0 | U18: ='Demand - External Transfers'!$A21 -> 11 | V18: 256 | W18: 0 | X18: =SUMIF(DEM_Internal_Transfers_To_Intensity,"="&W$4,'Demand - Internal Transfers'!$F22:$Y22) -> 142 | Y18: 4 | Z18: =SUMIF(DEM_Internal_Transfers_From_Intensity_Name,"="&W$4,'Demand - Internal Transfers'!$F22:$Y22) -> 128 | AA18: 256 | AB18: 0 | AE18: ='Demand - External Transfers'!$A21 -> 11 | AF18: 188 | AG18: 0 | AH18: =SUMIF(DEM_Internal_Transfers_To_Intensity,"="&AG$4,'Demand - Internal Transfers'!$F22:$Y22) -> 120 | AI18: 0 | AJ18: =SUMIF(DEM_Internal_Transfers_From_Intensity_Name,"="&AG$4,'Demand - Internal Transfers'!$F22:$Y22) -> 228 | AK18: 188 | AL18: 0 | AO18: ='Demand - External Transfers'!$A21 -> 11 | AP18: 984 | AQ18: 12 | AR18: =SUMIF(DEM_Internal_Transfers_To_Intensity,"="&AQ$4,'Demand - Internal Transfers'!$F22:$Y22) -> 222 | AS18: 8 | AT18: =SUMIF(DEM_Internal_Transfers_From_Intensity_Name,"="&AQ$4,'Demand - Internal Transfers'!$F22:$Y22) -> 114 | AU18: 984 | AV18: 0 | AY18: 816 | AZ18: 534 | BA18: 256 | BB18: 188 | BC18: 984
A19: ='Demand - External Transfers'!$A22 -> 12 | B19: 808 | C19: 4 | D19: =SUMIF(DEM_Internal_Transfers_To_Intensity,"="&C$4,'Demand - Internal Transfers'!$F23:$Y23) -> 18 | E19: 6 | F19: =SUMIF(DEM_Internal_Transfers_From_Intensity_Name,"="&C$4,'Demand - Internal Transfers'!$F23:$Y23) -> 24 | G19: 808 | H19: 0 | K19: ='Demand - External Transfers'!$A22 -> 12 | L19: 536 | M19: 0 | N19: =SUMIF(DEM_Internal_Transfers_To_Intensity,"="&M$4,'Demand - Internal Transfers'!$F23:$Y23) -> 52 | O19: 6 | P19: =SUMIF(DEM_Internal_Transfers_From_Intensity_Name,"="&M$4,'Demand - Internal Transfers'!$F23:$Y23) -> 44 | Q19: 536 | R19: 0 | U19: ='Demand - External Transfers'!$A22 -> 12 | V19: 184 | W19: 0 | X19: =SUMIF(DEM_Internal_Transfers_To_Intensity,"="&W$4,'Demand - Internal Transfers'!$F23:$Y23) -> 76 | Y19: 0 | Z19: =SUMIF(DEM_Internal_Transfers_From_Intensity_Name,"="&W$4,'Demand - Internal Transfers'!$F23:$Y23) -> 148 | AA19: 184 | AB19: 0 | AE19: ='Demand - External Transfers'!$A22 -> 12 | AF19: 272 | AG19: 2 | AH19: =SUMIF(DEM_Internal_Transfers_To_Intensity,"="&AG$4,'Demand - Internal Transfers'!$F23:$Y23) -> 196 | AI19: 2 | AJ19: =SUMIF(DEM_Internal_Transfers_From_Intensity_Name,"="&AG$4,'Demand - Internal Transfers'!$F23:$Y23) -> 112 | AK19: 272 | AL19: 0 | AO19: ='Demand - External Transfers'!$A22 -> 12 | AP19: 980 | AQ19: 18 | AR19: =SUMIF(DEM_Internal_Transfers_To_Intensity,"="&AQ$4,'Demand - Internal Transfers'!$F23:$Y23) -> 156 | AS19: 8 | AT19: =SUMIF(DEM_Internal_Transfers_From_Intensity_Name,"="&AQ$4,'Demand - Internal Transfers'!$F23:$Y23) -> 170 | AU19: 980 | AV19: 0 | AY19: 808 | AZ19: 536 | BA19: 184 | BB19: 272 | BC19: 980
A20: ='Demand - External Transfers'!$A23 -> 13 | B20: 786 | C20: 0 | D20: =SUMIF(DEM_Internal_Transfers_To_Intensity,"="&C$4,'Demand - Internal Transfers'!$F24:$Y24) -> 14 | E20: 12 | F20: =SUMIF(DEM_Internal_Transfers_From_Intensity_Name,"="&C$4,'Demand - Internal Transfers'!$F24:$Y24) -> 24 | G20: 786 | H20: 0 | K20: ='Demand - External Transfers'!$A23 -> 13 | L20: 542 | M20: 2 | N20: =SUMIF(DEM_Internal_Transfers_To_Intensity,"="&M$4,'Demand - Internal Transfers'!$F24:$Y24) -> 54 | O20: 8 | P20: =SUMIF(DEM_Internal_Transfers_From_Intensity_Name,"="&M$4,'Demand - Internal Transfers'!$F24:$Y24) -> 42 | Q20: 542 | R20: 0 | U20: ='Demand - External Transfers'!$A23 -> 13 | V20: 190 | W20: 0 | X20: =SUMIF(DEM_Internal_Transfers_To_Intensity,"="&W$4,'Demand - Internal Transfers'!$F24:$Y24) -> 128 | Y20: 0 | Z20: =SUMIF(DEM_Internal_Transfers_From_Intensity_Name,"="&W$4,'Demand - Internal Transfers'!$F24:$Y24) -> 122 | AA20: 190 | AB20: 0 | AE20: ='Demand - External Transfers'!$A23 -> 13 | AF20: 312 | AG20: 0 | AH20: =SUMIF(DEM_Internal_Transfers_To_Intensity,"="&AG$4,'Demand - Internal Transfers'!$F24:$Y24) -> 216 | AI20: 0 | AJ20: =SUMIF(DEM_Internal_Transfers_From_Intensity_Name,"="&AG$4,'Demand - Internal Transfers'!$F24:$Y24) -> 176 | AK20: 312 | AL20: 0 | AO20: ='Demand - External Transfers'!$A23 -> 13 | AP20: 944 | AQ20: 14 | AR20: =SUMIF(DEM_Internal_Transfers_To_Intensity,"="&AQ$4,'Demand - Internal Transfers'!$F24:$Y24) -> 138 | AS20: 2 | AT20: =SUMIF(DEM_Internal_Transfers_From_Intensity_Name,"="&AQ$4,'Demand - Internal Transfers'!$F24:$Y24) -> 186 | AU20: 944 | AV20: 0 | AY20: 786 | AZ20: 542 | BA20: 190 | BB20: 312 | BC20: 944
A21: ='Demand - External Transfers'!$A24 -> 14 | B21: 762 | C21: 0 | D21: =SUMIF(DEM_Internal_Transfers_To_Intensity,"="&C$4,'Demand - Internal Transfers'!$F25:$Y25) -> 22 | E21: 10 | F21: =SUMIF(DEM_Internal_Transfers_From_Intensity_Name,"="&C$4,'Demand - Internal Transfers'!$F25:$Y25) -> 36 | G21: 762 | H21: 0 | K21: ='Demand - External Transfers'!$A24 -> 14 | L21: 510 | M21: 4 | N21: =SUMIF(DEM_Internal_Transfers_To_Intensity,"="&M$4,'Demand - Internal Transfers'!$F25:$Y25) -> 28 | O21: 2 | P21: =SUMIF(DEM_Internal_Transfers_From_Intensity_Name,"="&M$4,'Demand - Internal Transfers'!$F25:$Y25) -> 62 | Q21: 510 | R21: 0 | U21: ='Demand - External Transfers'!$A24 -> 14 | V21: 232 | W21: 0 | X21: =SUMIF(DEM_Internal_Transfers_To_Intensity,"="&W$4,'Demand - Internal Transfers'!$F25:$Y25) -> 140 | Y21: 4 | Z21: =SUMIF(DEM_Internal_Transfers_From_Intensity_Name,"="&W$4,'Demand - Internal Transfers'!$F25:$Y25) -> 94 | AA21: 232 | AB21: 0 | AE21: ='Demand - External Transfers'!$A24 -> 14 | AF21: 288 | AG21: 0 | AH21: =SUMIF(DEM_Internal_Transfers_To_Intensity,"="&AG$4,'Demand - Internal Transfers'!$F25:$Y25) -> 194 | AI21: 0 | AJ21: =SUMIF(DEM_Internal_Transfers_From_Intensity_Name,"="&AG$4,'Demand - Internal Transfers'!$F25:$Y25) -> 218 | AK21: 288 | AL21: 0 | AO21: ='Demand - External Transfers'!$A24 -> 14 | AP21: 984 | AQ21: 26 | AR21: =SUMIF(DEM_Internal_Transfers_To_Intensity,"="&AQ$4,'Demand - Internal Transfers'!$F25:$Y25) -> 218 | AS21: 12 | AT21: =SUMIF(DEM_Internal_Transfers_From_Intensity_Name,"="&AQ$4,'Demand - Internal Transfers'!$F25:$Y25) -> 192 | AU21: 984 | AV21: 0 | AY21: 762 | AZ21: 510 | BA21: 232 | BB21: 288 | BC21: 984
A22: ='Demand - External Transfers'!$A25 -> 15 | B22: 760 | C22: 0 | D22: =SUMIF(DEM_Internal_Transfers_To_Intensity,"="&C$4,'Demand - Internal Transfers'!$F26:$Y26) -> 28 | E22: 2 | F22: =SUMIF(DEM_Internal_Transfers_From_Intensity_Name,"="&C$4,'Demand - Internal Transfers'!$F26:$Y26) -> 28 | G22: 760 | H22: 0 | K22: ='Demand - External Transfers'!$A25 -> 15 | L22: 520 | M22: 2 | N22: =SUMIF(DEM_Internal_Transfers_To_Intensity,"="&M$4,'Demand - Internal Transfers'!$F26:$Y26) -> 58 | O22: 2 | P22: =SUMIF(DEM_Internal_Transfers_From_Intensity_Name,"="&M$4,'Demand - Internal Transfers'!$F26:$Y26) -> 48 | Q22: 520 | R22: 0 | U22: ='Demand - External Transfers'!$A25 -> 15 | V22: 232 | W22: 0 | X22: =SUMIF(DEM_Internal_Transfers_To_Intensity,"="&W$4,'Demand - Internal Transfers'!$F26:$Y26) -> 124 | Y22: 0 | Z22: =SUMIF(DEM_Internal_Transfers_From_Intensity_Name,"="&W$4,'Demand - Internal Transfers'!$F26:$Y26) -> 124 | AA22: 232 | AB22: 0 | AE22: ='Demand - External Transfers'!$A25 -> 15 | AF22: 276 | AG22: 0 | AH22: =SUMIF(DEM_Internal_Transfers_To_Intensity,"="&AG$4,'Demand - Internal Transfers'!$F26:$Y26) -> 198 | AI22: 0 | AJ22: =SUMIF(DEM_Internal_Transfers_From_Intensity_Name,"="&AG$4,'Demand - Internal Transfers'!$F26:$Y26) -> 210 | AK22: 276 | AL22: 0 | AO22: ='Demand - External Transfers'!$A25 -> 15 | AP22: 1006 | AQ22: 22 | AR22: =SUMIF(DEM_Internal_Transfers_To_Intensity,"="&AQ$4,'Demand - Internal Transfers'!$F26:$Y26) -> 186 | AS22: 2 | AT22: =SUMIF(DEM_Internal_Transfers_From_Intensity_Name,"="&AQ$4,'Demand - Internal Transfers'!$F26:$Y26) -> 184 | AU22: 1006 | AV22: 0 | AY22: 760 | AZ22: 520 | BA22: 232 | BB22: 276 | BC22: 1006
A23: ='Demand - External Transfers'!$A26 -> 16 | B23: 762 | C23: 10 | D23: =SUMIF(DEM_Internal_Transfers_To_Intensity,"="&C$4,'Demand - Internal Transfers'!$F27:$Y27) -> 38 | E23: 8 | F23: =SUMIF(DEM_Internal_Transfers_From_Intensity_Name,"="&C$4,'Demand - Internal Transfers'!$F27:$Y27) -> 38 | G23: 762 | H23: 0 | K23: ='Demand - External Transfers'!$A26 -> 16 | L23: 508 | M23: 2 | N23: =SUMIF(DEM_Internal_Transfers_To_Intensity,"="&M$4,'Demand - Internal Transfers'!$F27:$Y27) -> 60 | O23: 6 | P23: =SUMIF(DEM_Internal_Transfers_From_Intensity_Name,"="&M$4,'Demand - Internal Transfers'!$F27:$Y27) -> 66 | Q23: 510 | R23: 0.003937007874 | U23: ='Demand - External Transfers'!$A26 -> 16 | V23: 222 | W23: 0 | X23: =SUMIF(DEM_Internal_Transfers_To_Intensity,"="&W$4,'Demand - Internal Transfers'!$F27:$Y27) -> 128 | Y23: 2 | Z23: =SUMIF(DEM_Internal_Transfers_From_Intensity_Name,"="&W$4,'Demand - Internal Transfers'!$F27:$Y27) -> 136 | AA23: 222 | AB23: 0 | AE23: ='Demand - External Transfers'!$A26 -> 16 | AF23: 268 | AG23: 4 | AH23: =SUMIF(DEM_Internal_Transfers_To_Intensity,"="&AG$4,'Demand - Internal Transfers'!$F27:$Y27) -> 196 | AI23: 4 | AJ23: =SUMIF(DEM_Internal_Transfers_From_Intensity_Name,"="&AG$4,'Demand - Internal Transfers'!$F27:$Y27) -> 204 | AK23: 268 | AL23: 0 | AO23: ='Demand - External Transfers'!$A26 -> 16 | AP23: 1036 | AQ23: 16 | AR23: =SUMIF(DEM_Internal_Transfers_To_Intensity,"="&AQ$4,'Demand - Internal Transfers'!$F27:$Y27) -> 216 | AS23: 10 | AT23: =SUMIF(DEM_Internal_Transfers_From_Intensity_Name,"="&AQ$4,'Demand - Internal Transfers'!$F27:$Y27) -> 194 | AU23: 1034 | AV23: 0.001930501931 | AY23: 762 | AZ23: 510 | BA23: 222 | BB23: 268 | BC23: 1034
A24: ='Demand - External Transfers'!$A27 -> 17 | B24: 780 | C24: 4 | D24: =SUMIF(DEM_Internal_Transfers_To_Intensity,"="&C$4,'Demand - Internal Transfers'!$F28:$Y28) -> 36 | E24: 10 | F24: =SUMIF(DEM_Internal_Transfers_From_Intensity_Name,"="&C$4,'Demand - Internal Transfers'!$F28:$Y28) -> 12 | G24: 780 | H24: 0 | K24: ='Demand - External Transfers'!$A27 -> 17 | L24: 500 | M24: 2 | N24: =SUMIF(DEM_Internal_Transfers_To_Intensity,"="&M$4,'Demand - Internal Transfers'!$F28:$Y28) -> 44 | O24: 6 | P24: =SUMIF(DEM_Internal_Transfers_From_Intensity_Name,"="&M$4,'Demand - Internal Transfers'!$F28:$Y28) -> 48 | Q24: 502 | R24: 0.004 | U24: ='Demand - External Transfers'!$A27 -> 17 | V24: 230 | W24: 0 | X24: =SUMIF(DEM_Internal_Transfers_To_Intensity,"="&W$4,'Demand - Internal Transfers'!$F28:$Y28) -> 130 | Y24: 2 | Z24: =SUMIF(DEM_Internal_Transfers_From_Intensity_Name,"="&W$4,'Demand - Internal Transfers'!$F28:$Y28) -> 120 | AA24: 230 | AB24: 0 | AE24: ='Demand - External Transfers'!$A27 -> 17 | AF24: 260 | AG24: 0 | AH24: =SUMIF(DEM_Internal_Transfers_To_Intensity,"="&AG$4,'Demand - Internal Transfers'!$F28:$Y28) -> 198 | AI24: 4 | AJ24: =SUMIF(DEM_Internal_Transfers_From_Intensity_Name,"="&AG$4,'Demand - Internal Transfers'!$F28:$Y28) -> 202 | AK24: 260 | AL24: 0 | AO24: ='Demand - External Transfers'!$A27 -> 17 | AP24: 1014 | AQ24: 14 | AR24: =SUMIF(DEM_Internal_Transfers_To_Intensity,"="&AQ$4,'Demand - Internal Transfers'!$F28:$Y28) -> 172 | AS24: 10 | AT24: =SUMIF(DEM_Internal_Transfers_From_Intensity_Name,"="&AQ$4,'Demand - Internal Transfers'!$F28:$Y28) -> 198 | AU24: 1012 | AV24: 0.001972386588 | AY24: 780 | AZ24: 502 | BA24: 230 | BB24: 260 | BC24: 1012
A25: ='Demand - External Transfers'!$A28 -> 18 | B25: 782 | C25: 2 | D25: =SUMIF(DEM_Internal_Transfers_To_Intensity,"="&C$4,'Demand - Internal Transfers'!$F29:$Y29) -> 26 | E25: 0 | F25: =SUMIF(DEM_Internal_Transfers_From_Intensity_Name,"="&C$4,'Demand - Internal Transfers'!$F29:$Y29) -> 26 | G25: 782 | H25: 0 | K25: ='Demand - External Transfers'!$A28 -> 18 | L25: 536 | M25: 4 | N25: =SUMIF(DEM_Internal_Transfers_To_Intensity,"="&M$4,'Demand - Internal Transfers'!$F29:$Y29) -> 54 | O25: 4 | P25: =SUMIF(DEM_Internal_Transfers_From_Intensity_Name,"="&M$4,'Demand - Internal Transfers'!$F29:$Y29) -> 18 | Q25: 538 | R25: 0.003731343284 | U25: ='Demand - External Transfers'!$A28 -> 18 | V25: 242 | W25: 0 | X25: =SUMIF(DEM_Internal_Transfers_To_Intensity,"="&W$4,'Demand - Internal Transfers'!$F29:$Y29) -> 128 | Y25: 0 | Z25: =SUMIF(DEM_Internal_Transfers_From_Intensity_Name,"="&W$4,'Demand - Internal Transfers'!$F29:$Y29) -> 116 | AA25: 242 | AB25: 0 | AE25: ='Demand - External Transfers'!$A28 -> 18 | AF25: 340 | AG25: 0 | AH25: =SUMIF(DEM_Internal_Transfers_To_Intensity,"="&AG$4,'Demand - Internal Transfers'!$F29:$Y29) -> 260 | AI25: 4 | AJ25: =SUMIF(DEM_Internal_Transfers_From_Intensity_Name,"="&AG$4,'Demand - Internal Transfers'!$F29:$Y29) -> 176 | AK25: 340 | AL25: 0 | AO25: ='Demand - External Transfers'!$A28 -> 18 | AP25: 898 | AQ25: 16 | AR25: =SUMIF(DEM_Internal_Transfers_To_Intensity,"="&AQ$4,'Demand - Internal Transfers'!$F29:$Y29) -> 112 | AS25: 0 | AT25: =SUMIF(DEM_Internal_Transfers_From_Intensity_Name,"="&AQ$4,'Demand - Internal Transfers'!$F29:$Y29) -> 244 | AU25: 896 | AV25: 0.002227171492 | AY25: 782 | AZ25: 538 | BA25: 242 | BB25: 340 | BC25: 896
A26: ='Demand - External Transfers'!$A29 -> 19 | B26: 790 | C26: 8 | D26: =SUMIF(DEM_Internal_Transfers_To_Intensity,"="&C$4,'Demand - Internal Transfers'!$F30:$Y30) -> 26 | E26: 2 | F26: =SUMIF(DEM_Internal_Transfers_From_Intensity_Name,"="&C$4,'Demand - Internal Transfers'!$F30:$Y30) -> 24 | G26: 790 | H26: 0 | K26: ='Demand - External Transfers'!$A29 -> 19 | L26: 566 | M26: 0 | N26: =SUMIF(DEM_Internal_Transfers_To_Intensity,"="&M$4,'Demand - Internal Transfers'!$F30:$Y30) -> 64 | O26: 2 | P26: =SUMIF(DEM_Internal_Transfers_From_Intensity_Name,"="&M$4,'Demand - Internal Transfers'!$F30:$Y30) -> 32 | Q26: 568 | R26: 0.003533568905 | U26: ='Demand - External Transfers'!$A29 -> 19 | V26: 320 | W26: 2 | X26: =SUMIF(DEM_Internal_Transfers_To_Intensity,"="&W$4,'Demand - Internal Transfers'!$F30:$Y30) -> 198 | Y26: 0 | Z26: =SUMIF(DEM_Internal_Transfers_From_Intensity_Name,"="&W$4,'Demand - Internal Transfers'!$F30:$Y30) -> 122 | AA26: 320 | AB26: 0 | AE26: ='Demand - External Transfers'!$A29 -> 19 | AF26: 330 | AG26: 2 | AH26: =SUMIF(DEM_Internal_Transfers_To_Intensity,"="&AG$4,'Demand - Internal Transfers'!$F30:$Y30) -> 246 | AI26: 6 | AJ26: =SUMIF(DEM_Internal_Transfers_From_Intensity_Name,"="&AG$4,'Demand - Internal Transfers'!$F30:$Y30) -> 252 | AK26: 330 | AL26: 0 | AO26: ='Demand - External Transfers'!$A29 -> 19 | AP26: 804 | AQ26: 12 | AR26: =SUMIF(DEM_Internal_Transfers_To_Intensity,"="&AQ$4,'Demand - Internal Transfers'!$F30:$Y30) -> 126 | AS26: 2 | AT26: =SUMIF(DEM_Internal_Transfers_From_Intensity_Name,"="&AQ$4,'Demand - Internal Transfers'!$F30:$Y30) -> 230 | AU26: 802 | AV26: 0.002487562189 | AY26: 790 | AZ26: 568 | BA26: 320 | BB26: 330 | BC26: 802
A27: ='Demand - External Transfers'!$A30 -> 20 | B27: 782 | C27: 0 | D27: =SUMIF(DEM_Internal_Transfers_To_Intensity,"="&C$4,'Demand - Internal Transfers'!$F31:$Y31) -> 10 | E27: 10 | F27: =SUMIF(DEM_Internal_Transfers_From_Intensity_Name,"="&C$4,'Demand - Internal Transfers'!$F31:$Y31) -> 8 | G27: 782 | H27: 0 | K27: ='Demand - External Transfers'!$A30 -> 20 | L27: 584 | M27: 0 | N27: =SUMIF(DEM_Internal_Transfers_To_Intensity,"="&M$4,'Demand - Internal Transfers'!$F31:$Y31) -> 68 | O27: 4 | P27: =SUMIF(DEM_Internal_Transfers_From_Intensity_Name,"="&M$4,'Demand - Internal Transfers'!$F31:$Y31) -> 46 | Q27: 586 | R27: 0.003424657534 | U27: ='Demand - External Transfers'!$A30 -> 20 | V27: 338 | W27: 0 | X27: =SUMIF(DEM_Internal_Transfers_To_Intensity,"="&W$4,'Demand - Internal Transfers'!$F31:$Y31) -> 174 | Y27: 4 | Z27: =SUMIF(DEM_Internal_Transfers_From_Intensity_Name,"="&W$4,'Demand - Internal Transfers'!$F31:$Y31) -> 152 | AA27: 338 | AB27: 0 | AE27: ='Demand - External Transfers'!$A30 -> 20 | AF27: 272 | AG27: 0 | AH27: =SUMIF(DEM_Internal_Transfers_To_Intensity,"="&AG$4,'Demand - Internal Transfers'!$F31:$Y31) -> 184 | AI27: 0 | AJ27: =SUMIF(DEM_Internal_Transfers_From_Intensity_Name,"="&AG$4,'Demand - Internal Transfers'!$F31:$Y31) -> 242 | AK27: 272 | AL27: 0 | AO27: ='Demand - External Transfers'!$A30 -> 20 | AP27: 820 | AQ27: 10 | AR27: =SUMIF(DEM_Internal_Transfers_To_Intensity,"="&AQ$4,'Demand - Internal Transfers'!$F31:$Y31) -> 162 | AS27: 6 | AT27: =SUMIF(DEM_Internal_Transfers_From_Intensity_Name,"="&AQ$4,'Demand - Internal Transfers'!$F31:$Y31) -> 150 | AU27: 818 | AV27: 0.00243902439 | AY27: 782 | AZ27: 586 | BA27: 338 | BB27: 272 | BC27: 818
A28: ='Demand - External Transfers'!$A31 -> 21 | B28: 800 | C28: 4 | D28: =SUMIF(DEM_Internal_Transfers_To_Intensity,"="&C$4,'Demand - Internal Transfers'!$F32:$Y32) -> 24 | E28: 0 | F28: =SUMIF(DEM_Internal_Transfers_From_Intensity_Name,"="&C$4,'Demand - Internal Transfers'!$F32:$Y32) -> 10 | G28: 800 | H28: 0 | K28: ='Demand - External Transfers'!$A31 -> 21 | L28: 640 | M28: 0 | N28: =SUMIF(DEM_Internal_Transfers_To_Intensity,"="&M$4,'Demand - Internal Transfers'!$F32:$Y32) -> 100 | O28: 2 | P28: =SUMIF(DEM_Internal_Transfers_From_Intensity_Name,"="&M$4,'Demand - Internal Transfers'!$F32:$Y32) -> 42 | Q28: 642 | R28: 0.003125 | U28: ='Demand - External Transfers'!$A31 -> 21 | V28: 270 | W28: 0 | X28: =SUMIF(DEM_Internal_Transfers_To_Intensity,"="&W$4,'Demand - Internal Transfers'!$F32:$Y32) -> 118 | Y28: 0 | Z28: =SUMIF(DEM_Internal_Transfers_From_Intensity_Name,"="&W$4,'Demand - Internal Transfers'!$F32:$Y32) -> 186 | AA28: 270 | AB28: 0 | AE28: ='Demand - External Transfers'!$A31 -> 21 | AF28: 282 | AG28: 0 | AH28: =SUMIF(DEM_Internal_Transfers_To_Intensity,"="&AG$4,'Demand - Internal Transfers'!$F32:$Y32) -> 188 | AI28: 0 | AJ28: =SUMIF(DEM_Internal_Transfers_From_Intensity_Name,"="&AG$4,'Demand - Internal Transfers'!$F32:$Y32) -> 178 | AK28: 282 | AL28: 0 | AO28: ='Demand - External Transfers'!$A31 -> 21 | AP28: 816 | AQ28: 12 | AR28: =SUMIF(DEM_Internal_Transfers_To_Intensity,"="&AQ$4,'Demand - Internal Transfers'!$F32:$Y32) -> 144 | AS28: 2 | AT28: =SUMIF(DEM_Internal_Transfers_From_Intensity_Name,"="&AQ$4,'Demand - Internal Transfers'!$F32:$Y32) -> 158 | AU28: 814 | AV28: 0.002450980392 | AY28: 800 | AZ28: 642 | BA28: 270 | BB28: 282 | BC28: 814
A29: ='Demand - External Transfers'!$A32 -> 22 | B29: 790 | C29: 4 | D29: =SUMIF(DEM_Internal_Transfers_To_Intensity,"="&C$4,'Demand - Internal Transfers'!$F33:$Y33) -> 14 | E29: 10 | F29: =SUMIF(DEM_Internal_Transfers_From_Intensity_Name,"="&C$4,'Demand - Internal Transfers'!$F33:$Y33) -> 18 | G29: 790 | H29: 0 | K29: ='Demand - External Transfers'!$A32 -> 22 | L29: 694 | M29: 2 | N29: =SUMIF(DEM_Internal_Transfers_To_Intensity,"="&M$4,'Demand - Internal Transfers'!$F33:$Y33) -> 104 | O29: 8 | P29: =SUMIF(DEM_Internal_Transfers_From_Intensity_Name,"="&M$4,'Demand - Internal Transfers'!$F33:$Y33) -> 44 | Q29: 696 | R29: 0.00288184438 | U29: ='Demand - External Transfers'!$A32 -> 22 | V29: 216 | W29: 0 | X29: =SUMIF(DEM_Internal_Transfers_To_Intensity,"="&W$4,'Demand - Internal Transfers'!$F33:$Y33) -> 116 | Y29: 0 | Z29: =SUMIF(DEM_Internal_Transfers_From_Intensity_Name,"="&W$4,'Demand - Internal Transfers'!$F33:$Y33) -> 170 | AA29: 216 | AB29: 0 | AE29: ='Demand - External Transfers'!$A32 -> 22 | AF29: 264 | AG29: 0 | AH29: =SUMIF(DEM_Internal_Transfers_To_Intensity,"="&AG$4,'Demand - Internal Transfers'!$F33:$Y33) -> 156 | AI29: 0 | AJ29: =SUMIF(DEM_Internal_Transfers_From_Intensity_Name,"="&AG$4,'Demand - Internal Transfers'!$F33:$Y33) -> 174 | AK29: 264 | AL29: 0 | AO29: ='Demand - External Transfers'!$A32 -> 22 | AP29: 842 | AQ29: 22 | AR29: =SUMIF(DEM_Internal_Transfers_To_Intensity,"="&AQ$4,'Demand - Internal Transfers'!$F33:$Y33) -> 156 | AS29: 12 | AT29: =SUMIF(DEM_Internal_Transfers_From_Intensity_Name,"="&AQ$4,'Demand - Internal Transfers'!$F33:$Y33) -> 140 | AU29: 840 | AV29: 0.002375296912 | AY29: 790 | AZ29: 696 | BA29: 216 | BB29: 264 | BC29: 840
A30: ='Demand - External Transfers'!$A33 -> 23 | B30: 808 | C30: 12 | D30: =SUMIF(DEM_Internal_Transfers_To_Intensity,"="&C$4,'Demand - Internal Transfers'!$F34:$Y34) -> 24 | E30: 2 | F30: =SUMIF(DEM_Internal_Transfers_From_Intensity_Name,"="&C$4,'Demand - Internal Transfers'!$F34:$Y34) -> 16 | G30: 808 | H30: 0 | K30: ='Demand - External Transfers'!$A33 -> 23 | L30: 724 | M30: 2 | N30: =SUMIF(DEM_Internal_Transfers_To_Intensity,"="&M$4,'Demand - Internal Transfers'!$F34:$Y34) -> 54 | O30: 4 | P30: =SUMIF(DEM_Internal_Transfers_From_Intensity_Name,"="&M$4,'Demand - Internal Transfers'!$F34:$Y34) -> 22 | Q30: 726 | R30: 0.002762430939 | U30: ='Demand - External Transfers'!$A33 -> 23 | V30: 220 | W30: 0 | X30: =SUMIF(DEM_Internal_Transfers_To_Intensity,"="&W$4,'Demand - Internal Transfers'!$F34:$Y34) -> 114 | Y30: 2 | Z30: =SUMIF(DEM_Internal_Transfers_From_Intensity_Name,"="&W$4,'Demand - Internal Transfers'!$F34:$Y34) -> 108 | AA30: 220 | AB30: 0 | AE30: ='Demand - External Transfers'!$A33 -> 23 | AF30: 294 | AG30: 0 | AH30: =SUMIF(DEM_Internal_Transfers_To_Intensity,"="&AG$4,'Demand - Internal Transfers'!$F34:$Y34) -> 192 | AI30: 2 | AJ30: =SUMIF(DEM_Internal_Transfers_From_Intensity_Name,"="&AG$4,'Demand - Internal Transfers'!$F34:$Y34) -> 160 | AK30: 294 | AL30: 0 | AO30: ='Demand - External Transfers'!$A33 -> 23 | AP30: 766 | AQ30: 10 | AR30: =SUMIF(DEM_Internal_Transfers_To_Intensity,"="&AQ$4,'Demand - Internal Transfers'!$F34:$Y34) -> 102 | AS30: 8 | AT30: =SUMIF(DEM_Internal_Transfers_From_Intensity_Name,"="&AQ$4,'Demand - Internal Transfers'!$F34:$Y34) -> 180 | AU30: 764 | AV30: 0.002610966057 | AY30: 808 | AZ30: 726 | BA30: 220 | BB30: 294 | BC30: 764
A31: ='Demand - External Transfers'!$A34 -> 24 | B31: 804 | C31: 2 | D31: =SUMIF(DEM_Internal_Transfers_To_Intensity,"="&C$4,'Demand - Internal Transfers'!$F35:$Y35) -> 32 | E31: 8 | F31: =SUMIF(DEM_Internal_Transfers_From_Intensity_Name,"="&C$4,'Demand - Internal Transfers'!$F35:$Y35) -> 30 | G31: 804 | H31: 0 | K31: ='Demand - External Transfers'!$A34 -> 24 | L31: 712 | M31: 4 | N31: =SUMIF(DEM_Internal_Transfers_To_Intensity,"="&M$4,'Demand - Internal Transfers'!$F35:$Y35) -> 56 | O31: 6 | P31: =SUMIF(DEM_Internal_Transfers_From_Intensity_Name,"="&M$4,'Demand - Internal Transfers'!$F35:$Y35) -> 66 | Q31: 714 | R31: 0.002808988764 | U31: ='Demand - External Transfers'!$A34 -> 24 | V31: 216 | W31: 0 | X31: =SUMIF(DEM_Internal_Transfers_To_Intensity,"="&W$4,'Demand - Internal Transfers'!$F35:$Y35) -> 128 | Y31: 0 | Z31: =SUMIF(DEM_Internal_Transfers_From_Intensity_Name,"="&W$4,'Demand - Internal Transfers'!$F35:$Y35) -> 132 | AA31: 216 | AB31: 0 | AE31: ='Demand - External Transfers'!$A34 -> 24 | AF31: 290 | AG31: 0 | AH31: =SUMIF(DEM_Internal_Transfers_To_Intensity,"="&AG$4,'Demand - Internal Transfers'!$F35:$Y35) -> 196 | AI31: 0 | AJ31: =SUMIF(DEM_Internal_Transfers_From_Intensity_Name,"="&AG$4,'Demand - Internal Transfers'!$F35:$Y35) -> 200 | AK31: 290 | AL31: 0 | AO31: ='Demand - External Transfers'!$A34 -> 24 | AP31: 790 | AQ31: 14 | AR31: =SUMIF(DEM_Internal_Transfers_To_Intensity,"="&AQ$4,'Demand - Internal Transfers'!$F35:$Y35) -> 206 | AS31: 6 | AT31: =SUMIF(DEM_Internal_Transfers_From_Intensity_Name,"="&AQ$4,'Demand - Internal Transfers'!$F35:$Y35) -> 190 | AU31: 788 | AV31: 0.00253164557 | AY31: 804 | AZ31: 714 | BA31: 216 | BB31: 290 | BC31: 788
A32: ='Demand - External Transfers'!$A35 -> 25 | B32: 812 | C32: 6 | D32: =SUMIF(DEM_Internal_Transfers_To_Intensity,"="&C$4,'Demand - Internal Transfers'!$F36:$Y36) -> 44 | E32: 0 | F32: =SUMIF(DEM_Internal_Transfers_From_Intensity_Name,"="&C$4,'Demand - Internal Transfers'!$F36:$Y36) -> 42 | G32: 812 | H32: 0 | K32: ='Demand - External Transfers'!$A35 -> 25 | L32: 684 | M32: 2 | N32: =SUMIF(DEM_Internal_Transfers_To_Intensity,"="&M$4,'Demand - Internal Transfers'!$F36:$Y36) -> 72 | O32: 10 | P32: =SUMIF(DEM_Internal_Transfers_From_Intensity_Name,"="&M$4,'Demand - Internal Transfers'!$F36:$Y36) -> 92 | Q32: 686 | R32: 0.002923976608 | U32: ='Demand - External Transfers'!$A35 -> 25 | V32: 208 | W32: 0 | X32: =SUMIF(DEM_Internal_Transfers_To_Intensity,"="&W$4,'Demand - Internal Transfers'!$F36:$Y36) -> 118 | Y32: 2 | Z32: =SUMIF(DEM_Internal_Transfers_From_Intensity_Name,"="&W$4,'Demand - Internal Transfers'!$F36:$Y36) -> 124 | AA32: 208 | AB32: 0 | AE32: ='Demand - External Transfers'!$A35 -> 25 | AF32: 158 | AG32: 0 | AH32: =SUMIF(DEM_Internal_Transfers_To_Intensity,"="&AG$4,'Demand - Internal Transfers'!$F36:$Y36) -> 86 | AI32: 2 | AJ32: =SUMIF(DEM_Internal_Transfers_From_Intensity_Name,"="&AG$4,'Demand - Internal Transfers'!$F36:$Y36) -> 216 | AK32: 158 | AL32: 0 | AO32: ='Demand - External Transfers'!$A35 -> 25 | AP32: 948 | AQ32: 10 | AR32: =SUMIF(DEM_Internal_Transfers_To_Intensity,"="&AQ$4,'Demand - Internal Transfers'!$F36:$Y36) -> 266 | AS32: 6 | AT32: =SUMIF(DEM_Internal_Transfers_From_Intensity_Name,"="&AQ$4,'Demand - Internal Transfers'!$F36:$Y36) -> 112 | AU32: 946 | AV32: 0.002109704641 | AY32: 812 | AZ32: 686 | BA32: 208 | BB32: 158 | BC32: 946
A33: ='Demand - External Transfers'!$A36 -> 26 | B33: 818 | C33: 2 | D33: =SUMIF(DEM_Internal_Transfers_To_Intensity,"="&C$4,'Demand - Internal Transfers'!$F37:$Y37) -> 32 | E33: 4 | F33: =SUMIF(DEM_Internal_Transfers_From_Intensity_Name,"="&C$4,'Demand - Internal Transfers'!$F37:$Y37) -> 24 | G33: 818 | H33: 0 | K33: ='Demand - External Transfers'!$A36 -> 26 | L33: 656 | M33: 0 | N33: =SUMIF(DEM_Internal_Transfers_To_Intensity,"="&M$4,'Demand - Internal Transfers'!$F37:$Y37) -> 62 | O33: 8 | P33: =SUMIF(DEM_Internal_Transfers_From_Intensity_Name,"="&M$4,'Demand - Internal Transfers'!$F37:$Y37) -> 80 | Q33: 660 | R33: 0.006097560976 | U33: ='Demand - External Transfers'!$A36 -> 26 | V33: 140 | W33: 0 | X33: =SUMIF(DEM_Internal_Transfers_To_Intensity,"="&W$4,'Demand - Internal Transfers'!$F37:$Y37) -> 62 | Y33: 4 | Z33: =SUMIF(DEM_Internal_Transfers_From_Intensity_Name,"="&W$4,'Demand - Internal Transfers'!$F37:$Y37) -> 126 | AA33: 140 | AB33: 0 | AE33: ='Demand - External Transfers'!$A36 -> 26 | AF33: 210 | AG33: 0 | AH33: =SUMIF(DEM_Internal_Transfers_To_Intensity,"="&AG$4,'Demand - Internal Transfers'!$F37:$Y37) -> 156 | AI33: 0 | AJ33: =SUMIF(DEM_Internal_Transfers_From_Intensity_Name,"="&AG$4,'Demand - Internal Transfers'!$F37:$Y37) -> 104 | AK33: 210 | AL33: 0 | AO33: ='Demand - External Transfers'!$A36 -> 26 | AP33: 970 | AQ33: 14 | AR33: =SUMIF(DEM_Internal_Transfers_To_Intensity,"="&AQ$4,'Demand - Internal Transfers'!$F37:$Y37) -> 194 | AS33: 16 | AT33: =SUMIF(DEM_Internal_Transfers_From_Intensity_Name,"="&AQ$4,'Demand - Internal Transfers'!$F37:$Y37) -> 172 | AU33: 966 | AV33: 0.00412371134 | AY33: 818 | AZ33: 660 | BA33: 140 | BB33: 210 | BC33: 966
A34: ='Demand - External Transfers'!$A37 -> 27 | B34: 826 | C34: 2 | D34: =SUMIF(DEM_Internal_Transfers_To_Intensity,"="&C$4,'Demand - Internal Transfers'!$F38:$Y38) -> 28 | E34: 0 | F34: =SUMIF(DEM_Internal_Transfers_From_Intensity_Name,"="&C$4,'Demand - Internal Transfers'!$F38:$Y38) -> 22 | G34: 826 | H34: 0 | K34: ='Demand - External Transfers'!$A37 -> 27 | L34: 634 | M34: 0 | N34: =SUMIF(DEM_Internal_Transfers_To_Intensity,"="&M$4,'Demand - Internal Transfers'!$F38:$Y38) -> 42 | O34: 6 | P34: =SUMIF(DEM_Internal_Transfers_From_Intensity_Name,"="&M$4,'Demand - Internal Transfers'!$F38:$Y38) -> 58 | Q34: 638 | R34: 0.006309148265 | U34: ='Demand - External Transfers'!$A37 -> 27 | V34: 178 | W34: 0 | X34: =SUMIF(DEM_Internal_Transfers_To_Intensity,"="&W$4,'Demand - Internal Transfers'!$F38:$Y38) -> 124 | Y34: 0 | Z34: =SUMIF(DEM_Internal_Transfers_From_Intensity_Name,"="&W$4,'Demand - Internal Transfers'!$F38:$Y38) -> 86 | AA34: 178 | AB34: 0 | AE34: ='Demand - External Transfers'!$A37 -> 27 | AF34: 224 | AG34: 0 | AH34: =SUMIF(DEM_Internal_Transfers_To_Intensity,"="&AG$4,'Demand - Internal Transfers'!$F38:$Y38) -> 196 | AI34: 4 | AJ34: =SUMIF(DEM_Internal_Transfers_From_Intensity_Name,"="&AG$4,'Demand - Internal Transfers'!$F38:$Y38) -> 178 | AK34: 224 | AL34: 0 | AO34: ='Demand - External Transfers'!$A37 -> 27 | AP34: 922 | AQ34: 12 | AR34: =SUMIF(DEM_Internal_Transfers_To_Intensity,"="&AQ$4,'Demand - Internal Transfers'!$F38:$Y38) -> 144 | AS34: 14 | AT34: =SUMIF(DEM_Internal_Transfers_From_Intensity_Name,"="&AQ$4,'Demand - Internal Transfers'!$F38:$Y38) -> 190 | AU34: 918 | AV34: 0.004338394794 | AY34: 826 | AZ34: 638 | BA34: 178 | BB34: 224 | BC34: 918
A35: ='Demand - External Transfers'!$A38 -> 28 | B35: 830 | C35: 0 | D35: =SUMIF(DEM_Internal_Transfers_To_Intensity,"="&C$4,'Demand - Internal Transfers'!$F39:$Y39) -> 34 | E35: 2 | F35: =SUMIF(DEM_Internal_Transfers_From_Intensity_Name,"="&C$4,'Demand - Internal Transfers'!$F39:$Y39) -> 28 | G35: 830 | H35: 0 | K35: ='Demand - External Transfers'!$A38 -> 28 | L35: 590 | M35: 2 | N35: =SUMIF(DEM_Internal_Transfers_To_Intensity,"="&M$4,'Demand - Internal Transfers'!$F39:$Y39) -> 30 | O35: 10 | P35: =SUMIF(DEM_Internal_Transfers_From_Intensity_Name,"="&M$4,'Demand - Internal Transfers'!$F39:$Y39) -> 66 | Q35: 594 | R35: 0.006779661017 | U35: ='Demand - External Transfers'!$A38 -> 28 | V35: 260 | W35: 0 | X35: =SUMIF(DEM_Internal_Transfers_To_Intensity,"="&W$4,'Demand - Internal Transfers'!$F39:$Y39) -> 154 | Y35: 2 | Z35: =SUMIF(DEM_Internal_Transfers_From_Intensity_Name,"="&W$4,'Demand - Internal Transfers'!$F39:$Y39) -> 70 | AA35: 260 | AB35: 0 | AE35: ='Demand - External Transfers'!$A38 -> 28 | AF35: 224 | AG35: 0 | AH35: =SUMIF(DEM_Internal_Transfers_To_Intensity,"="&AG$4,'Demand - Internal Transfers'!$F39:$Y39) -> 194 | AI35: 2 | AJ35: =SUMIF(DEM_Internal_Transfers_From_Intensity_Name,"="&AG$4,'Demand - Internal Transfers'!$F39:$Y39) -> 192 | AK35: 224 | AL35: 0 | AO35: ='Demand - External Transfers'!$A38 -> 28 | AP35: 866 | AQ35: 6 | AR35: =SUMIF(DEM_Internal_Transfers_To_Intensity,"="&AQ$4,'Demand - Internal Transfers'!$F39:$Y39) -> 144 | AS35: 6 | AT35: =SUMIF(DEM_Internal_Transfers_From_Intensity_Name,"="&AQ$4,'Demand - Internal Transfers'!$F39:$Y39) -> 200 | AU35: 862 | AV35: 0.004618937644 | AY35: 830 | AZ35: 594 | BA35: 260 | BB35: 224 | BC35: 862
A36: ='Demand - External Transfers'!$A39 -> 29 | B36: 828 | C36: 4 | D36: =SUMIF(DEM_Internal_Transfers_To_Intensity,"="&C$4,'Demand - Internal Transfers'!$F40:$Y40) -> 24 | E36: 4 | F36: =SUMIF(DEM_Internal_Transfers_From_Intensity_Name,"="&C$4,'Demand - Internal Transfers'!$F40:$Y40) -> 26 | G36: 828 | H36: 0 | K36: ='Demand - External Transfers'!$A39 -> 29 | L36: 588 | M36: 0 | N36: =SUMIF(DEM_Internal_Transfers_To_Intensity,"="&M$4,'Demand - Internal Transfers'!$F40:$Y40) -> 50 | O36: 2 | P36: =SUMIF(DEM_Internal_Transfers_From_Intensity_Name,"="&M$4,'Demand - Internal Transfers'!$F40:$Y40) -> 50 | Q36: 592 | R36: 0.006802721088 | U36: ='Demand - External Transfers'!$A39 -> 29 | V36: 258 | W36: 2 | X36: =SUMIF(DEM_Internal_Transfers_To_Intensity,"="&W$4,'Demand - Internal Transfers'!$F40:$Y40) -> 134 | Y36: 2 | Z36: =SUMIF(DEM_Internal_Transfers_From_Intensity_Name,"="&W$4,'Demand - Internal Transfers'!$F40:$Y40) -> 136 | AA36: 258 | AB36: 0 | AE36: ='Demand - External Transfers'!$A39 -> 29 | AF36: 208 | AG36: 0 | AH36: =SUMIF(DEM_Internal_Transfers_To_Intensity,"="&AG$4,'Demand - Internal Transfers'!$F40:$Y40) -> 166 | AI36: 2 | AJ36: =SUMIF(DEM_Internal_Transfers_From_Intensity_Name,"="&AG$4,'Demand - Internal Transfers'!$F40:$Y40) -> 180 | AK36: 208 | AL36: 0 | AO36: ='Demand - External Transfers'!$A39 -> 29 | AP36: 902 | AQ36: 18 | AR36: =SUMIF(DEM_Internal_Transfers_To_Intensity,"="&AQ$4,'Demand - Internal Transfers'!$F40:$Y40) -> 158 | AS36: 0 | AT36: =SUMIF(DEM_Internal_Transfers_From_Intensity_Name,"="&AQ$4,'Demand - Internal Transfers'!$F40:$Y40) -> 140 | AU36: 898 | AV36: 0.0044345898 | AY36: 828 | AZ36: 592 | BA36: 258 | BB36: 208 | BC36: 898
A37: ='Demand - External Transfers'!$A40 -> 30 | B37: 818 | C37: 0 | D37: =SUMIF(DEM_Internal_Transfers_To_Intensity,"="&C$4,'Demand - Internal Transfers'!$F41:$Y41) -> 32 | E37: 6 | F37: =SUMIF(DEM_Internal_Transfers_From_Intensity_Name,"="&C$4,'Demand - Internal Transfers'!$F41:$Y41) -> 36 | G37: 818 | H37: 0 | K37: ='Demand - External Transfers'!$A40 -> 30 | L37: 590 | M37: 0 | N37: =SUMIF(DEM_Internal_Transfers_To_Intensity,"="&M$4,'Demand - Internal Transfers'!$F41:$Y41) -> 58 | O37: 6 | P37: =SUMIF(DEM_Internal_Transfers_From_Intensity_Name,"="&M$4,'Demand - Internal Transfers'!$F41:$Y41) -> 50 | Q37: 594 | R37: 0.006779661017 | U37: ='Demand - External Transfers'!$A40 -> 30 | V37: 192 | W37: 0 | X37: =SUMIF(DEM_Internal_Transfers_To_Intensity,"="&W$4,'Demand - Internal Transfers'!$F41:$Y41) -> 86 | Y37: 0 | Z37: =SUMIF(DEM_Internal_Transfers_From_Intensity_Name,"="&W$4,'Demand - Internal Transfers'!$F41:$Y41) -> 152 | AA37: 192 | AB37: 0 | AE37: ='Demand - External Transfers'!$A40 -> 30 | AF37: 250 | AG37: 0 | AH37: =SUMIF(DEM_Internal_Transfers_To_Intensity,"="&AG$4,'Demand - Internal Transfers'!$F41:$Y41) -> 172 | AI37: 0 | AJ37: =SUMIF(DEM_Internal_Transfers_From_Intensity_Name,"="&AG$4,'Demand - Internal Transfers'!$F41:$Y41) -> 130 | AK37: 250 | AL37: 0 | AO37: ='Demand - External Transfers'!$A40 -> 30 | AP37: 924 | AQ37: 10 | AR37: =SUMIF(DEM_Internal_Transfers_To_Intensity,"="&AQ$4,'Demand - Internal Transfers'!$F41:$Y41) -> 168 | AS37: 8 | AT37: =SUMIF(DEM_Internal_Transfers_From_Intensity_Name,"="&AQ$4,'Demand - Internal Transfers'!$F41:$Y41) -> 148 | AU37: 920 | AV37: 0.004329004329 | AY37: 818 | AZ37: 594 | BA37: 192 | BB37: 250 | BC37: 920
A38: ='Demand - External Transfers'!$A41 -> 31 | B38: 848 | C38: 12 | D38: =SUMIF(DEM_Internal_Transfers_To_Intensity,"="&C$4,'Demand - Internal Transfers'!$F42:$Y42) -> 30 | E38: 4 | F38: =SUMIF(DEM_Internal_Transfers_From_Intensity_Name,"="&C$4,'Demand - Internal Transfers'!$F42:$Y42) -> 8 | G38: 848 | H38: 0 | K38: ='Demand - External Transfers'!$A41 -> 31 | L38: 624 | M38: 4 | N38: =SUMIF(DEM_Internal_Transfers_To_Intensity,"="&M$4,'Demand - Internal Transfers'!$F42:$Y42) -> 64 | O38: 2 | P38: =SUMIF(DEM_Internal_Transfers_From_Intensity_Name,"="&M$4,'Demand - Internal Transfers'!$F42:$Y42) -> 32 | Q38: 628 | R38: 0.00641025641 | U38: ='Demand - External Transfers'!$A41 -> 31 | V38: 188 | W38: 0 | X38: =SUMIF(DEM_Internal_Transfers_To_Intensity,"="&W$4,'Demand - Internal Transfers'!$F42:$Y42) -> 114 | Y38: 0 | Z38: =SUMIF(DEM_Internal_Transfers_From_Intensity_Name,"="&W$4,'Demand - Internal Transfers'!$F42:$Y42) -> 118 | AA38: 188 | AB38: 0 | AE38: ='Demand - External Transfers'!$A41 -> 31 | AF38: 320 | AG38: 0 | AH38: =SUMIF(DEM_Internal_Transfers_To_Intensity,"="&AG$4,'Demand - Internal Transfers'!$F42:$Y42) -> 216 | AI38: 0 | AJ38: =SUMIF(DEM_Internal_Transfers_From_Intensity_Name,"="&AG$4,'Demand - Internal Transfers'!$F42:$Y42) -> 146 | AK38: 320 | AL38: 0 | AO38: ='Demand - External Transfers'!$A41 -> 31 | AP38: 804 | AQ38: 6 | AR38: =SUMIF(DEM_Internal_Transfers_To_Intensity,"="&AQ$4,'Demand - Internal Transfers'!$F42:$Y42) -> 80 | AS38: 6 | AT38: =SUMIF(DEM_Internal_Transfers_From_Intensity_Name,"="&AQ$4,'Demand - Internal Transfers'!$F42:$Y42) -> 200 | AU38: 800 | AV38: 0.004975124378 | AY38: 848 | AZ38: 628 | BA38: 188 | BB38: 320 | BC38: 800
A39: ='Demand - External Transfers'!$A42 -> 32 | B39: 848 | C39: 6 | D39: =SUMIF(DEM_Internal_Transfers_To_Intensity,"="&C$4,'Demand - Internal Transfers'!$F43:$Y43) -> 22 | E39: 8 | F39: =SUMIF(DEM_Internal_Transfers_From_Intensity_Name,"="&C$4,'Demand - Internal Transfers'!$F43:$Y43) -> 20 | G39: 848 | H39: 0 | K39: ='Demand - External Transfers'!$A42 -> 32 | L39: 594 | M39: 0 | N39: =SUMIF(DEM_Internal_Transfers_To_Intensity,"="&M$4,'Demand - Internal Transfers'!$F43:$Y43) -> 40 | O39: 4 | P39: =SUMIF(DEM_Internal_Transfers_From_Intensity_Name,"="&M$4,'Demand - Internal Transfers'!$F43:$Y43) -> 66 | Q39: 598 | R39: 0.006734006734 | U39: ='Demand - External Transfers'!$A42 -> 32 | V39: 244 | W39: 0 | X39: =SUMIF(DEM_Internal_Transfers_To_Intensity,"="&W$4,'Demand - Internal Transfers'!$F43:$Y43) -> 142 | Y39: 2 | Z39: =SUMIF(DEM_Internal_Transfers_From_Intensity_Name,"="&W$4,'Demand - Internal Transfers'!$F43:$Y43) -> 84 | AA39: 244 | AB39: 0 | AE39: ='Demand - External Transfers'!$A42 -> 32 | AF39: 316 | AG39: 0 | AH39: =SUMIF(DEM_Internal_Transfers_To_Intensity,"="&AG$4,'Demand - Internal Transfers'!$F43:$Y43) -> 204 | AI39: 2 | AJ39: =SUMIF(DEM_Internal_Transfers_From_Intensity_Name,"="&AG$4,'Demand - Internal Transfers'!$F43:$Y43) -> 206 | AK39: 316 | AL39: 0 | AO39: ='Demand - External Transfers'!$A42 -> 32 | AP39: 788 | AQ39: 18 | AR39: =SUMIF(DEM_Internal_Transfers_To_Intensity,"="&AQ$4,'Demand - Internal Transfers'!$F43:$Y43) -> 170 | AS39: 2 | AT39: =SUMIF(DEM_Internal_Transfers_From_Intensity_Name,"="&AQ$4,'Demand - Internal Transfers'!$F43:$Y43) -> 202 | AU39: 784 | AV39: 0.005076142132 | AY39: 848 | AZ39: 598 | BA39: 244 | BB39: 316 | BC39: 784
A40: ='Demand - External Transfers'!$A43 -> 33 | B40: =INDEX(DEM_Pts_Caseload_User,MATCH(A40,DEM_Week_Reference,0),MATCH(C$4,DEM_Intensity_Name_Caseload,0)) -> 848 | C40: =INDEX(DEM_External_Additions_User,MATCH(A40,DEM_Week_Reference,0),MATCH(C$4,DEM_Intensity_Name_Ext_Additions,0)) -> 0 | D40: =SUMIF(DEM_Internal_Transfers_To_Intensity,"="&C$4,'Demand - Internal Transfers'!$F44:$Y44) -> 34 | E40: =INDEX(DEM_Discharges_User_Entered,MATCH(A40,DEM_Week_Reference,0),MATCH(C$4,DEM_intensity_Name_Discharges,0)) -> 8 | F40: =SUMIF(DEM_Internal_Transfers_From_Intensity_Name,"="&C$4,'Demand - Internal Transfers'!$F44:$Y44) -> 26 | G40: 848 | H40: 0 | K40: ='Demand - External Transfers'!$A43 -> 33 | L40: =INDEX(DEM_Pts_Caseload_User,MATCH(K40,DEM_Week_Reference,0),MATCH(M$4,DEM_Intensity_Name_Caseload,0)) -> 580 | M40: =INDEX(DEM_External_Additions_User,MATCH(K40,DEM_Week_Reference,0),MATCH(M$4,DEM_Intensity_Name_Ext_Additions,0)) -> 0 | N40: =SUMIF(DEM_Internal_Transfers_To_Intensity,"="&M$4,'Demand - Internal Transfers'!$F44:$Y44) -> 46 | O40: =INDEX(DEM_Discharges_User_Entered,MATCH(K40,DEM_Week_Reference,0),MATCH(M$4,DEM_intensity_Name_Discharges,0)) -> 4 | P40: =SUMIF(DEM_Internal_Transfers_From_Intensity_Name,"="&M$4,'Demand - Internal Transfers'!$F44:$Y44) -> 56 | Q40: 584 | R40: 0.006896551724 | U40: ='Demand - External Transfers'!$A43 -> 33 | V40: =INDEX(DEM_Pts_Caseload_User,MATCH(U40,DEM_Week_Reference,0),MATCH(W$4,DEM_Intensity_Name_Caseload,0)) -> 254 | W40: =INDEX(DEM_External_Additions_User,MATCH(U40,DEM_Week_Reference,0),MATCH(W$4,DEM_Intensity_Name_Ext_Additions,0)) -> 0 | X40: =SUMIF(DEM_Internal_Transfers_To_Intensity,"="&W$4,'Demand - Internal Transfers'!$F44:$Y44) -> 144 | Y40: =INDEX(DEM_Discharges_User_Entered,MATCH(U40,DEM_Week_Reference,0),MATCH(W$4,DEM_intensity_Name_Discharges,0)) -> 0 | Z40: =SUMIF(DEM_Internal_Transfers_From_Intensity_Name,"="&W$4,'Demand - Internal Transfers'!$F44:$Y44) -> 134 | AA40: 254 | AB40: 0 | AE40: ='Demand - External Transfers'!$A43 -> 33 | AF40: =INDEX(DEM_Pts_Caseload_User,MATCH(AE40,DEM_Week_Reference,0),MATCH(AG$4,DEM_Intensity_Name_Caseload,0)) -> 206 | AG40: =INDEX(DEM_External_Additions_User,MATCH(AE40,DEM_Week_Reference,0),MATCH(AG$4,DEM_Intensity_Name_Ext_Additions,0)) -> 0 | AH40: =SUMIF(DEM_Internal_Transfers_To_Intensity,"="&AG$4,'Demand - Internal Transfers'!$F44:$Y44) -> 116 | AI40: =INDEX(DEM_Discharges_User_Entered,MATCH(AE40,DEM_Week_Reference,0),MATCH(AG$4,DEM_intensity_Name_Discharges,0)) -> 0 | AJ40: =SUMIF(DEM_Internal_Transfers_From_Intensity_Name,"="&AG$4,'Demand - Internal Transfers'!$F44:$Y44) -> 226 | AK40: 206 | AL40: 0 | AO40: ='Demand - External Transfers'!$A43 -> 33 | AP40: =INDEX(DEM_Pts_Caseload_User,MATCH(AO40,DEM_Week_Reference,0),MATCH(AQ$4,DEM_Intensity_Name_Caseload,0)) -> 894 | AQ40: =INDEX(DEM_External_Additions_User,MATCH(AO40,DEM_Week_Reference,0),MATCH(AQ$4,DEM_Intensity_Name_Ext_Additions,0)) -> 14 | AR40: =SUMIF(DEM_Internal_Transfers_To_Intensity,"="&AQ$4,'Demand - Internal Transfers'!$F44:$Y44) -> 204 | AS40: =INDEX(DEM_Discharges_User_Entered,MATCH(AO40,DEM_Week_Reference,0),MATCH(AQ$4,DEM_intensity_Name_Discharges,0)) -> 10 | AT40: =SUMIF(DEM_Internal_Transfers_From_Intensity_Name,"="&AQ$4,'Demand - Internal Transfers'!$F44:$Y44) -> 102 | AU40: 890 | AV40: 0.004474272931 | AY40: 848 | AZ40: 584 | BA40: 254 | BB40: 206 | BC40: 890
A41: ='Demand - External Transfers'!$A44 -> 34 | B41: 844 | C41: 4 | D41: =SUMIF(DEM_Internal_Transfers_To_Intensity,"="&C$4,'Demand - Internal Transfers'!$F45:$Y45) -> 32 | E41: 10 | F41: =SUMIF(DEM_Internal_Transfers_From_Intensity_Name,"="&C$4,'Demand - Internal Transfers'!$F45:$Y45) -> 30 | G41: 844 | H41: 0 | K41: ='Demand - External Transfers'!$A44 -> 34 | L41: 568 | M41: 4 | N41: =SUMIF(DEM_Internal_Transfers_To_Intensity,"="&M$4,'Demand - Internal Transfers'!$F45:$Y45) -> 56 | O41: 10 | P41: =SUMIF(DEM_Internal_Transfers_From_Intensity_Name,"="&M$4,'Demand - Internal Transfers'!$F45:$Y45) -> 62 | Q41: 572 | R41: 0.007042253521 | U41: ='Demand - External Transfers'!$A44 -> 34 | V41: 158 | W41: 0 | X41: =SUMIF(DEM_Internal_Transfers_To_Intensity,"="&W$4,'Demand - Internal Transfers'!$F45:$Y45) -> 50 | Y41: 2 | Z41: =SUMIF(DEM_Internal_Transfers_From_Intensity_Name,"="&W$4,'Demand - Internal Transfers'!$F45:$Y45) -> 144 | AA41: 158 | AB41: 0 | AE41: ='Demand - External Transfers'!$A44 -> 34 | AF41: 264 | AG41: 0 | AH41: =SUMIF(DEM_Internal_Transfers_To_Intensity,"="&AG$4,'Demand - Internal Transfers'!$F45:$Y45) -> 188 | AI41: 0 | AJ41: =SUMIF(DEM_Internal_Transfers_From_Intensity_Name,"="&AG$4,'Demand - Internal Transfers'!$F45:$Y45) -> 130 | AK41: 264 | AL41: 0 | AO41: ='Demand - External Transfers'!$A44 -> 34 | AP41: 948 | AQ41: 26 | AR41: =SUMIF(DEM_Internal_Transfers_To_Intensity,"="&AQ$4,'Demand - Internal Transfers'!$F45:$Y45) -> 226 | AS41: 12 | AT41: =SUMIF(DEM_Internal_Transfers_From_Intensity_Name,"="&AQ$4,'Demand - Internal Transfers'!$F45:$Y45) -> 186 | AU41: 944 | AV41: 0.004219409283 | AY41: 844 | AZ41: 572 | BA41: 158 | BB41: 264 | BC41: 944
A42: ='Demand - External Transfers'!$A45 -> 35 | B42: 826 | C42: 8 | D42: =SUMIF(DEM_Internal_Transfers_To_Intensity,"="&C$4,'Demand - Internal Transfers'!$F46:$Y46) -> 14 | E42: 8 | F42: =SUMIF(DEM_Internal_Transfers_From_Intensity_Name,"="&C$4,'Demand - Internal Transfers'!$F46:$Y46) -> 32 | G42: 826 | H42: 0 | K42: ='Demand - External Transfers'!$A45 -> 35 | L42: 554 | M42: 2 | N42: =SUMIF(DEM_Internal_Transfers_To_Intensity,"="&M$4,'Demand - Internal Transfers'!$F46:$Y46) -> 60 | O42: 8 | P42: =SUMIF(DEM_Internal_Transfers_From_Intensity_Name,"="&M$4,'Demand - Internal Transfers'!$F46:$Y46) -> 68 | Q42: 558 | R42: 0.007220216606 | U42: ='Demand - External Transfers'!$A45 -> 35 | V42: 152 | W42: 0 | X42: =SUMIF(DEM_Internal_Transfers_To_Intensity,"="&W$4,'Demand - Internal Transfers'!$F46:$Y46) -> 110 | Y42: 0 | Z42: =SUMIF(DEM_Internal_Transfers_From_Intensity_Name,"="&W$4,'Demand - Internal Transfers'!$F46:$Y46) -> 116 | AA42: 152 | AB42: 0 | AE42: ='Demand - External Transfers'!$A45 -> 35 | AF42: 262 | AG42: 2 | AH42: =SUMIF(DEM_Internal_Transfers_To_Intensity,"="&AG$4,'Demand - Internal Transfers'!$F46:$Y46) -> 188 | AI42: 0 | AJ42: =SUMIF(DEM_Internal_Transfers_From_Intensity_Name,"="&AG$4,'Demand - Internal Transfers'!$F46:$Y46) -> 192 | AK42: 262 | AL42: 0 | AO42: ='Demand - External Transfers'!$A45 -> 35 | AP42: 1006 | AQ42: 22 | AR42: =SUMIF(DEM_Internal_Transfers_To_Intensity,"="&AQ$4,'Demand - Internal Transfers'!$F46:$Y46) -> 198 | AS42: 0 | AT42: =SUMIF(DEM_Internal_Transfers_From_Intensity_Name,"="&AQ$4,'Demand - Internal Transfers'!$F46:$Y46) -> 162 | AU42: 1002 | AV42: 0.003976143141 | AY42: 826 | AZ42: 558 | BA42: 152 | BB42: 262 | BC42: 1002
A43: ='Demand - External Transfers'!$A46 -> 36 | B43: 820 | C43: 4 | D43: =SUMIF(DEM_Internal_Transfers_To_Intensity,"="&C$4,'Demand - Internal Transfers'!$F47:$Y47) -> 16 | E43: 10 | F43: =SUMIF(DEM_Internal_Transfers_From_Intensity_Name,"="&C$4,'Demand - Internal Transfers'!$F47:$Y47) -> 16 | G43: 820 | H43: 0 | K43: ='Demand - External Transfers'!$A46 -> 36 | L43: 546 | M43: 4 | N43: =SUMIF(DEM_Internal_Transfers_To_Intensity,"="&M$4,'Demand - Internal Transfers'!$F47:$Y47) -> 26 | O43: 8 | P43: =SUMIF(DEM_Internal_Transfers_From_Intensity_Name,"="&M$4,'Demand - Internal Transfers'!$F47:$Y47) -> 30 | Q43: 550 | R43: 0.007326007326 | U43: ='Demand - External Transfers'!$A46 -> 36 | V43: 196 | W43: 2 | X43: =SUMIF(DEM_Internal_Transfers_To_Intensity,"="&W$4,'Demand - Internal Transfers'!$F47:$Y47) -> 112 | Y43: 0 | Z43: =SUMIF(DEM_Internal_Transfers_From_Intensity_Name,"="&W$4,'Demand - Internal Transfers'!$F47:$Y47) -> 70 | AA43: 196 | AB43: 0 | AE43: ='Demand - External Transfers'!$A46 -> 36 | AF43: 276 | AG43: 0 | AH43: =SUMIF(DEM_Internal_Transfers_To_Intensity,"="&AG$4,'Demand - Internal Transfers'!$F47:$Y47) -> 186 | AI43: 0 | AJ43: =SUMIF(DEM_Internal_Transfers_From_Intensity_Name,"="&AG$4,'Demand - Internal Transfers'!$F47:$Y47) -> 172 | AK43: 276 | AL43: 0 | AO43: ='Demand - External Transfers'!$A46 -> 36 | AP43: 954 | AQ43: 6 | AR43: =SUMIF(DEM_Internal_Transfers_To_Intensity,"="&AQ$4,'Demand - Internal Transfers'!$F47:$Y47) -> 136 | AS43: 6 | AT43: =SUMIF(DEM_Internal_Transfers_From_Intensity_Name,"="&AQ$4,'Demand - Internal Transfers'!$F47:$Y47) -> 188 | AU43: 950 | AV43: 0.004192872117 | AY43: 820 | AZ43: 550 | BA43: 196 | BB43: 276 | BC43: 950
A44: ='Demand - External Transfers'!$A47 -> 37 | B44: 806 | C44: 6 | D44: =SUMIF(DEM_Internal_Transfers_To_Intensity,"="&C$4,'Demand - Internal Transfers'!$F48:$Y48) -> 16 | E44: 0 | F44: =SUMIF(DEM_Internal_Transfers_From_Intensity_Name,"="&C$4,'Demand - Internal Transfers'!$F48:$Y48) -> 36 | G44: 806 | H44: 0 | K44: ='Demand - External Transfers'!$A47 -> 37 | L44: 524 | M44: 2 | N44: =SUMIF(DEM_Internal_Transfers_To_Intensity,"="&M$4,'Demand - Internal Transfers'!$F48:$Y48) -> 46 | O44: 4 | P44: =SUMIF(DEM_Internal_Transfers_From_Intensity_Name,"="&M$4,'Demand - Internal Transfers'!$F48:$Y48) -> 66 | Q44: 528 | R44: 0.007633587786 | U44: ='Demand - External Transfers'!$A47 -> 37 | V44: 244 | W44: 2 | X44: =SUMIF(DEM_Internal_Transfers_To_Intensity,"="&W$4,'Demand - Internal Transfers'!$F48:$Y48) -> 144 | Y44: 2 | Z44: =SUMIF(DEM_Internal_Transfers_From_Intensity_Name,"="&W$4,'Demand - Internal Transfers'!$F48:$Y48) -> 96 | AA44: 244 | AB44: 0 | AE44: ='Demand - External Transfers'!$A47 -> 37 | AF44: 252 | AG44: 0 | AH44: =SUMIF(DEM_Internal_Transfers_To_Intensity,"="&AG$4,'Demand - Internal Transfers'!$F48:$Y48) -> 190 | AI44: 2 | AJ44: =SUMIF(DEM_Internal_Transfers_From_Intensity_Name,"="&AG$4,'Demand - Internal Transfers'!$F48:$Y48) -> 212 | AK44: 252 | AL44: 0 | AO44: ='Demand - External Transfers'!$A47 -> 37 | AP44: 978 | AQ44: 12 | AR44: =SUMIF(DEM_Internal_Transfers_To_Intensity,"="&AQ$4,'Demand - Internal Transfers'!$F48:$Y48) -> 190 | AS44: 2 | AT44: =SUMIF(DEM_Internal_Transfers_From_Intensity_Name,"="&AQ$4,'Demand - Internal Transfers'!$F48:$Y48) -> 176 | AU44: 974 | AV44: 0.00408997955 | AY44: 806 | AZ44: 528 | BA44: 244 | BB44: 252 | BC44: 974
A45: ='Demand - External Transfers'!$A48 -> 38 | B45: 784 | C45: 0 | D45: =SUMIF(DEM_Internal_Transfers_To_Intensity,"="&C$4,'Demand - Internal Transfers'!$F49:$Y49) -> 10 | E45: 8 | F45: =SUMIF(DEM_Internal_Transfers_From_Intensity_Name,"="&C$4,'Demand - Internal Transfers'!$F49:$Y49) -> 24 | G45: 784 | H45: 0 | K45: ='Demand - External Transfers'!$A48 -> 38 | L45: 528 | M45: 0 | N45: =SUMIF(DEM_Internal_Transfers_To_Intensity,"="&M$4,'Demand - Internal Transfers'!$F49:$Y49) -> 60 | O45: 10 | P45: =SUMIF(DEM_Internal_Transfers_From_Intensity_Name,"="&M$4,'Demand - Internal Transfers'!$F49:$Y49) -> 46 | Q45: 532 | R45: 0.007575757576 | U45: ='Demand - External Transfers'!$A48 -> 38 | V45: 258 | W45: 0 | X45: =SUMIF(DEM_Internal_Transfers_To_Intensity,"="&W$4,'Demand - Internal Transfers'!$F49:$Y49) -> 142 | Y45: 2 | Z45: =SUMIF(DEM_Internal_Transfers_From_Intensity_Name,"="&W$4,'Demand - Internal Transfers'!$F49:$Y49) -> 126 | AA45: 258 | AB45: 0 | AE45: ='Demand - External Transfers'!$A48 -> 38 | AF45: 242 | AG45: 0 | AH45: =SUMIF(DEM_Internal_Transfers_To_Intensity,"="&AG$4,'Demand - Internal Transfers'!$F49:$Y49) -> 176 | AI45: 0 | AJ45: =SUMIF(DEM_Internal_Transfers_From_Intensity_Name,"="&AG$4,'Demand - Internal Transfers'!$F49:$Y49) -> 186 | AK45: 242 | AL45: 0 | AO45: ='Demand - External Transfers'!$A48 -> 38 | AP45: 972 | AQ45: 4 | AR45: =SUMIF(DEM_Internal_Transfers_To_Intensity,"="&AQ$4,'Demand - Internal Transfers'!$F49:$Y49) -> 146 | AS45: 4 | AT45: =SUMIF(DEM_Internal_Transfers_From_Intensity_Name,"="&AQ$4,'Demand - Internal Transfers'!$F49:$Y49) -> 152 | AU45: 968 | AV45: 0.004115226337 | AY45: 784 | AZ45: 532 | BA45: 258 | BB45: 242 | BC45: 968
A46: ='Demand - External Transfers'!$A49 -> 39 | B46: 804 | C46: 4 | D46: =SUMIF(DEM_Internal_Transfers_To_Intensity,"="&C$4,'Demand - Internal Transfers'!$F50:$Y50) -> 18 | E46: 0 | F46: =SUMIF(DEM_Internal_Transfers_From_Intensity_Name,"="&C$4,'Demand - Internal Transfers'!$F50:$Y50) -> 2 | G46: 804 | H46: 0 | K46: ='Demand - External Transfers'!$A49 -> 39 | L46: 572 | M46: 0 | N46: =SUMIF(DEM_Internal_Transfers_To_Intensity,"="&M$4,'Demand - Internal Transfers'!$F50:$Y50) -> 64 | O46: 0 | P46: =SUMIF(DEM_Internal_Transfers_From_Intensity_Name,"="&M$4,'Demand - Internal Transfers'!$F50:$Y50) -> 20 | Q46: 576 | R46: 0.006993006993 | U46: ='Demand - External Transfers'!$A49 -> 39 | V46: 262 | W46: 0 | X46: =SUMIF(DEM_Internal_Transfers_To_Intensity,"="&W$4,'Demand - Internal Transfers'!$F50:$Y50) -> 132 | Y46: 2 | Z46: =SUMIF(DEM_Internal_Transfers_From_Intensity_Name,"="&W$4,'Demand - Internal Transfers'!$F50:$Y50) -> 126 | AA46: 262 | AB46: 0 | AE46: ='Demand - External Transfers'!$A49 -> 39 | AF46: 344 | AG46: 0 | AH46: =SUMIF(DEM_Internal_Transfers_To_Intensity,"="&AG$4,'Demand - Internal Transfers'!$F50:$Y50) -> 284 | AI46: 0 | AJ46: =SUMIF(DEM_Internal_Transfers_From_Intensity_Name,"="&AG$4,'Demand - Internal Transfers'!$F50:$Y50) -> 182 | AK46: 344 | AL46: 0 | AO46: ='Demand - External Transfers'!$A49 -> 39 | AP46: 804 | AQ46: 4 | AR46: =SUMIF(DEM_Internal_Transfers_To_Intensity,"="&AQ$4,'Demand - Internal Transfers'!$F50:$Y50) -> 90 | AS46: 4 | AT46: =SUMIF(DEM_Internal_Transfers_From_Intensity_Name,"="&AQ$4,'Demand - Internal Transfers'!$F50:$Y50) -> 258 | AU46: 800 | AV46: 0.004975124378 | AY46: 804 | AZ46: 576 | BA46: 262 | BB46: 344 | BC46: 800
A47: ='Demand - External Transfers'!$A50 -> 40 | B47: 820 | C47: 0 | D47: =SUMIF(DEM_Internal_Transfers_To_Intensity,"="&C$4,'Demand - Internal Transfers'!$F51:$Y51) -> 18 | E47: 0 | F47: =SUMIF(DEM_Internal_Transfers_From_Intensity_Name,"="&C$4,'Demand - Internal Transfers'!$F51:$Y51) -> 2 | G47: 820 | H47: 0 | K47: ='Demand - External Transfers'!$A50 -> 40 | L47: 654 | M47: 0 | N47: =SUMIF(DEM_Internal_Transfers_To_Intensity,"="&M$4,'Demand - Internal Transfers'!$F51:$Y51) -> 86 | O47: 0 | P47: =SUMIF(DEM_Internal_Transfers_From_Intensity_Name,"="&M$4,'Demand - Internal Transfers'!$F51:$Y51) -> 4 | Q47: 658 | R47: 0.006116207951 | U47: ='Demand - External Transfers'!$A50 -> 40 | V47: 380 | W47: 0 | X47: =SUMIF(DEM_Internal_Transfers_To_Intensity,"="&W$4,'Demand - Internal Transfers'!$F51:$Y51) -> 248 | Y47: 0 | Z47: =SUMIF(DEM_Internal_Transfers_From_Intensity_Name,"="&W$4,'Demand - Internal Transfers'!$F51:$Y51) -> 130 | AA47: 380 | AB47: 0 | AE47: ='Demand - External Transfers'!$A50 -> 40 | AF47: 442 | AG47: 0 | AH47: =SUMIF(DEM_Internal_Transfers_To_Intensity,"="&AG$4,'Demand - Internal Transfers'!$F51:$Y51) -> 360 | AI47: 0 | AJ47: =SUMIF(DEM_Internal_Transfers_From_Intensity_Name,"="&AG$4,'Demand - Internal Transfers'!$F51:$Y51) -> 262 | AK47: 442 | AL47: 0 | AO47: ='Demand - External Transfers'!$A50 -> 40 | AP47: 492 | AQ47: 2 | AR47: =SUMIF(DEM_Internal_Transfers_To_Intensity,"="&AQ$4,'Demand - Internal Transfers'!$F51:$Y51) -> 20 | AS47: 0 | AT47: =SUMIF(DEM_Internal_Transfers_From_Intensity_Name,"="&AQ$4,'Demand - Internal Transfers'!$F51:$Y51) -> 334 | AU47: 488 | AV47: 0.008130081301 | AY47: 820 | AZ47: 658 | BA47: 380 | BB47: 442 | BC47: 488
A48: ='Demand - External Transfers'!$A51 -> 41 | B48: 834 | C48: 0 | D48: =SUMIF(DEM_Internal_Transfers_To_Intensity,"="&C$4,'Demand - Internal Transfers'!$F52:$Y52) -> 30 | E48: 6 | F48: =SUMIF(DEM_Internal_Transfers_From_Intensity_Name,"="&C$4,'Demand - Internal Transfers'!$F52:$Y52) -> 10 | G48: 834 | H48: 0 | K48: ='Demand - External Transfers'!$A51 -> 41 | L48: 666 | M48: 0 | N48: =SUMIF(DEM_Internal_Transfers_To_Intensity,"="&M$4,'Demand - Internal Transfers'!$F52:$Y52) -> 82 | O48: 6 | P48: =SUMIF(DEM_Internal_Transfers_From_Intensity_Name,"="&M$4,'Demand - Internal Transfers'!$F52:$Y52) -> 64 | Q48: 670 | R48: 0.006006006006 | U48: ='Demand - External Transfers'!$A51 -> 41 | V48: 394 | W48: 0 | X48: =SUMIF(DEM_Internal_Transfers_To_Intensity,"="&W$4,'Demand - Internal Transfers'!$F52:$Y52) -> 192 | Y48: 2 | Z48: =SUMIF(DEM_Internal_Transfers_From_Intensity_Name,"="&W$4,'Demand - Internal Transfers'!$F52:$Y52) -> 176 | AA48: 394 | AB48: 0 | AE48: ='Demand - External Transfers'!$A51 -> 41 | AF48: 178 | AG48: 0 | AH48: =SUMIF(DEM_Internal_Transfers_To_Intensity,"="&AG$4,'Demand - Internal Transfers'!$F52:$Y52) -> 88 | AI48: 2 | AJ48: =SUMIF(DEM_Internal_Transfers_From_Intensity_Name,"="&AG$4,'Demand - Internal Transfers'!$F52:$Y52) -> 350 | AK48: 178 | AL48: 0 | AO48: ='Demand - External Transfers'!$A51 -> 41 | AP48: 710 | AQ48: 12 | AR48: =SUMIF(DEM_Internal_Transfers_To_Intensity,"="&AQ$4,'Demand - Internal Transfers'!$F52:$Y52) -> 294 | AS48: 2 | AT48: =SUMIF(DEM_Internal_Transfers_From_Intensity_Name,"="&AQ$4,'Demand - Internal Transfers'!$F52:$Y52) -> 86 | AU48: 706 | AV48: 0.005633802817 | AY48: 834 | AZ48: 670 | BA48: 394 | BB48: 178 | BC48: 706
A49: ='Demand - External Transfers'!$A52 -> 42 | B49: 844 | C49: 6 | D49: =SUMIF(DEM_Internal_Transfers_To_Intensity,"="&C$4,'Demand - Internal Transfers'!$F53:$Y53) -> 42 | E49: 0 | F49: =SUMIF(DEM_Internal_Transfers_From_Intensity_Name,"="&C$4,'Demand - Internal Transfers'!$F53:$Y53) -> 38 | G49: 844 | H49: 0 | K49: ='Demand - External Transfers'!$A52 -> 42 | L49: 694 | M49: 4 | N49: =SUMIF(DEM_Internal_Transfers_To_Intensity,"="&M$4,'Demand - Internal Transfers'!$F53:$Y53) -> 124 | O49: 12 | P49: =SUMIF(DEM_Internal_Transfers_From_Intensity_Name,"="&M$4,'Demand - Internal Transfers'!$F53:$Y53) -> 88 | Q49: 698 | R49: 0.005763688761 | U49: ='Demand - External Transfers'!$A52 -> 42 | V49: 170 | W49: 0 | X49: =SUMIF(DEM_Internal_Transfers_To_Intensity,"="&W$4,'Demand - Internal Transfers'!$F53:$Y53) -> 32 | Y49: 0 | Z49: =SUMIF(DEM_Internal_Transfers_From_Intensity_Name,"="&W$4,'Demand - Internal Transfers'!$F53:$Y53) -> 256 | AA49: 170 | AB49: 0 | AE49: ='Demand - External Transfers'!$A52 -> 42 | AF49: 112 | AG49: 0 | AH49: =SUMIF(DEM_Internal_Transfers_To_Intensity,"="&AG$4,'Demand - Internal Transfers'!$F53:$Y53) -> 28 | AI49: 0 | AJ49: =SUMIF(DEM_Internal_Transfers_From_Intensity_Name,"="&AG$4,'Demand - Internal Transfers'!$F53:$Y53) -> 94 | AK49: 112 | AL49: 0 | AO49: ='Demand - External Transfers'!$A52 -> 42 | AP49: 990 | AQ49: 32 | AR49: =SUMIF(DEM_Internal_Transfers_To_Intensity,"="&AQ$4,'Demand - Internal Transfers'!$F53:$Y53) -> 286 | AS49: 2 | AT49: =SUMIF(DEM_Internal_Transfers_From_Intensity_Name,"="&AQ$4,'Demand - Internal Transfers'!$F53:$Y53) -> 36 | AU49: 986 | AV49: 0.00404040404 | AY49: 844 | AZ49: 698 | BA49: 170 | BB49: 112 | BC49: 986
A50: ='Demand - External Transfers'!$A53 -> 43 | B50: 868 | C50: 4 | D50: =SUMIF(DEM_Internal_Transfers_To_Intensity,"="&C$4,'Demand - Internal Transfers'!$F54:$Y54) -> 46 | E50: 2 | F50: =SUMIF(DEM_Internal_Transfers_From_Intensity_Name,"="&C$4,'Demand - Internal Transfers'!$F54:$Y54) -> 24 | G50: 868 | H50: 0 | K50: ='Demand - External Transfers'!$A53 -> 43 | L50: 684 | M50: 8 | N50: =SUMIF(DEM_Internal_Transfers_To_Intensity,"="&M$4,'Demand - Internal Transfers'!$F54:$Y54) -> 92 | O50: 12 | P50: =SUMIF(DEM_Internal_Transfers_From_Intensity_Name,"="&M$4,'Demand - Internal Transfers'!$F54:$Y54) -> 98 | Q50: 688 | R50: 0.005847953216 | U50: ='Demand - External Transfers'!$A53 -> 43 | V50: 30 | W50: 0 | X50: =SUMIF(DEM_Internal_Transfers_To_Intensity,"="&W$4,'Demand - Internal Transfers'!$F54:$Y54) -> 4 | Y50: 0 | Z50: =SUMIF(DEM_Internal_Transfers_From_Intensity_Name,"="&W$4,'Demand - Internal Transfers'!$F54:$Y54) -> 144 | AA50: 30 | AB50: 0 | AE50: ='Demand - External Transfers'!$A53 -> 43 | AF50: 224 | AG50: 0 | AH50: =SUMIF(DEM_Internal_Transfers_To_Intensity,"="&AG$4,'Demand - Internal Transfers'!$F54:$Y54) -> 152 | AI50: 2 | AJ50: =SUMIF(DEM_Internal_Transfers_From_Intensity_Name,"="&AG$4,'Demand - Internal Transfers'!$F54:$Y54) -> 38 | AK50: 224 | AL50: 0 | AO50: ='Demand - External Transfers'!$A53 -> 43 | AP50: 1008 | AQ50: 16 | AR50: =SUMIF(DEM_Internal_Transfers_To_Intensity,"="&AQ$4,'Demand - Internal Transfers'!$F54:$Y54) -> 176 | AS50: 8 | AT50: =SUMIF(DEM_Internal_Transfers_From_Intensity_Name,"="&AQ$4,'Demand - Internal Transfers'!$F54:$Y54) -> 166 | AU50: 1004 | AV50: 0.003968253968 | AY50: 868 | AZ50: 688 | BA50: 30 | BB50: 224 | BC50: 1004
A51: ='Demand - External Transfers'!$A54 -> 44 | B51: 870 | C51: 2 | D51: =SUMIF(DEM_Internal_Transfers_To_Intensity,"="&C$4,'Demand - Internal Transfers'!$F55:$Y55) -> 22 | E51: 2 | F51: =SUMIF(DEM_Internal_Transfers_From_Intensity_Name,"="&C$4,'Demand - Internal Transfers'!$F55:$Y55) -> 20 | G51: 870 | H51: 0 | K51: ='Demand - External Transfers'!$A54 -> 44 | L51: 598 | M51: 2 | N51: =SUMIF(DEM_Internal_Transfers_To_Intensity,"="&M$4,'Demand - Internal Transfers'!$F55:$Y55) -> 18 | O51: 8 | P51: =SUMIF(DEM_Internal_Transfers_From_Intensity_Name,"="&M$4,'Demand - Internal Transfers'!$F55:$Y55) -> 98 | Q51: 602 | R51: 0.006688963211 | U51: ='Demand - External Transfers'!$A54 -> 44 | V51: 100 | W51: 0 | X51: =SUMIF(DEM_Internal_Transfers_To_Intensity,"="&W$4,'Demand - Internal Transfers'!$F55:$Y55) -> 98 | Y51: 0 | Z51: =SUMIF(DEM_Internal_Transfers_From_Intensity_Name,"="&W$4,'Demand - Internal Transfers'!$F55:$Y55) -> 28 | AA51: 100 | AB51: 0 | AE51: ='Demand - External Transfers'!$A54 -> 44 | AF51: 270 | AG51: 0 | AH51: =SUMIF(DEM_Internal_Transfers_To_Intensity,"="&AG$4,'Demand - Internal Transfers'!$F55:$Y55) -> 210 | AI51: 0 | AJ51: =SUMIF(DEM_Internal_Transfers_From_Intensity_Name,"="&AG$4,'Demand - Internal Transfers'!$F55:$Y55) -> 164 | AK51: 270 | AL51: 0 | AO51: ='Demand - External Transfers'!$A54 -> 44 | AP51: 986 | AQ51: 18 | AR51: =SUMIF(DEM_Internal_Transfers_To_Intensity,"="&AQ$4,'Demand - Internal Transfers'!$F55:$Y55) -> 190 | AS51: 2 | AT51: =SUMIF(DEM_Internal_Transfers_From_Intensity_Name,"="&AQ$4,'Demand - Internal Transfers'!$F55:$Y55) -> 228 | AU51: 982 | AV51: 0.004056795132 | AY51: 870 | AZ51: 602 | BA51: 100 | BB51: 270 | BC51: 982
A52: ='Demand - External Transfers'!$A55 -> 45 | B52: 844 | C52: 0 | D52: =SUMIF(DEM_Internal_Transfers_To_Intensity,"="&C$4,'Demand - Internal Transfers'!$F56:$Y56) -> 16 | E52: 12 | F52: =SUMIF(DEM_Internal_Transfers_From_Intensity_Name,"="&C$4,'Demand - Internal Transfers'!$F56:$Y56) -> 30 | G52: 844 | H52: 0 | K52: ='Demand - External Transfers'!$A55 -> 45 | L52: 536 | M52: 0 | N52: =SUMIF(DEM_Internal_Transfers_To_Intensity,"="&M$4,'Demand - Internal Transfers'!$F56:$Y56) -> 2 | O52: 4 | P52: =SUMIF(DEM_Internal_Transfers_From_Intensity_Name,"="&M$4,'Demand - Internal Transfers'!$F56:$Y56) -> 60 | Q52: 540 | R52: 0.007462686567 | U52: ='Demand - External Transfers'!$A55 -> 45 | V52: 246 | W52: 0 | X52: =SUMIF(DEM_Internal_Transfers_To_Intensity,"="&W$4,'Demand - Internal Transfers'!$F56:$Y56) -> 164 | Y52: 6 | Z52: =SUMIF(DEM_Internal_Transfers_From_Intensity_Name,"="&W$4,'Demand - Internal Transfers'!$F56:$Y56) -> 12 | AA52: 246 | AB52: 0 | AE52: ='Demand - External Transfers'!$A55 -> 45 | AF52: 198 | AG52: 0 | AH52: =SUMIF(DEM_Internal_Transfers_To_Intensity,"="&AG$4,'Demand - Internal Transfers'!$F56:$Y56) -> 160 | AI52: 4 | AJ52: =SUMIF(DEM_Internal_Transfers_From_Intensity_Name,"="&AG$4,'Demand - Internal Transfers'!$F56:$Y56) -> 228 | AK52: 198 | AL52: 0 | AO52: ='Demand - External Transfers'!$A55 -> 45 | AP52: 980 | AQ52: 16 | AR52: =SUMIF(DEM_Internal_Transfers_To_Intensity,"="&AQ$4,'Demand - Internal Transfers'!$F56:$Y56) -> 158 | AS52: 10 | AT52: =SUMIF(DEM_Internal_Transfers_From_Intensity_Name,"="&AQ$4,'Demand - Internal Transfers'!$F56:$Y56) -> 170 | AU52: 976 | AV52: 0.004081632653 | AY52: 844 | AZ52: 540 | BA52: 246 | BB52: 198 | BC52: 976
A53: ='Demand - External Transfers'!$A56 -> 46 | B53: 846 | C53: 2 | D53: =SUMIF(DEM_Internal_Transfers_To_Intensity,"="&C$4,'Demand - Internal Transfers'!$F57:$Y57) -> 28 | E53: 12 | F53: =SUMIF(DEM_Internal_Transfers_From_Intensity_Name,"="&C$4,'Demand - Internal Transfers'!$F57:$Y57) -> 16 | G53: 846 | H53: 0 | K53: ='Demand - External Transfers'!$A56 -> 46 | L53: 538 | M53: 0 | N53: =SUMIF(DEM_Internal_Transfers_To_Intensity,"="&M$4,'Demand - Internal Transfers'!$F57:$Y57) -> 46 | O53: 0 | P53: =SUMIF(DEM_Internal_Transfers_From_Intensity_Name,"="&M$4,'Demand - Internal Transfers'!$F57:$Y57) -> 44 | Q53: 542 | R53: 0.007434944238 | U53: ='Demand - External Transfers'!$A56 -> 46 | V53: 254 | W53: 0 | X53: =SUMIF(DEM_Internal_Transfers_To_Intensity,"="&W$4,'Demand - Internal Transfers'!$F57:$Y57) -> 124 | Y53: 0 | Z53: =SUMIF(DEM_Internal_Transfers_From_Intensity_Name,"="&W$4,'Demand - Internal Transfers'!$F57:$Y57) -> 116 | AA53: 254 | AB53: 0 | AE53: ='Demand - External Transfers'!$A56 -> 46 | AF53: 200 | AG53: 0 | AH53: =SUMIF(DEM_Internal_Transfers_To_Intensity,"="&AG$4,'Demand - Internal Transfers'!$F57:$Y57) -> 184 | AI53: 2 | AJ53: =SUMIF(DEM_Internal_Transfers_From_Intensity_Name,"="&AG$4,'Demand - Internal Transfers'!$F57:$Y57) -> 180 | AK53: 200 | AL53: 0 | AO53: ='Demand - External Transfers'!$A56 -> 46 | AP53: 970 | AQ53: 24 | AR53: =SUMIF(DEM_Internal_Transfers_To_Intensity,"="&AQ$4,'Demand - Internal Transfers'!$F57:$Y57) -> 160 | AS53: 8 | AT53: =SUMIF(DEM_Internal_Transfers_From_Intensity_Name,"="&AQ$4,'Demand - Internal Transfers'!$F57:$Y57) -> 186 | AU53: 966 | AV53: 0.00412371134 | AY53: 846 | AZ53: 542 | BA53: 254 | BB53: 200 | BC53: 966
A54: ='Demand - External Transfers'!$A57 -> 47 | B54: 858 | C54: 0 | D54: =SUMIF(DEM_Internal_Transfers_To_Intensity,"="&C$4,'Demand - Internal Transfers'!$F58:$Y58) -> 26 | E54: 0 | F54: =SUMIF(DEM_Internal_Transfers_From_Intensity_Name,"="&C$4,'Demand - Internal Transfers'!$F58:$Y58) -> 14 | G54: 858 | H54: 0 | K54: ='Demand - External Transfers'!$A57 -> 47 | L54: 590 | M54: 0 | N54: =SUMIF(DEM_Internal_Transfers_To_Intensity,"="&M$4,'Demand - Internal Transfers'!$F58:$Y58) -> 80 | O54: 2 | P54: =SUMIF(DEM_Internal_Transfers_From_Intensity_Name,"="&M$4,'Demand - Internal Transfers'!$F58:$Y58) -> 26 | Q54: 594 | R54: 0.006779661017 | U54: ='Demand - External Transfers'!$A57 -> 47 | V54: 256 | W54: 0 | X54: =SUMIF(DEM_Internal_Transfers_To_Intensity,"="&W$4,'Demand - Internal Transfers'!$F58:$Y58) -> 146 | Y54: 2 | Z54: =SUMIF(DEM_Internal_Transfers_From_Intensity_Name,"="&W$4,'Demand - Internal Transfers'!$F58:$Y58) -> 142 | AA54: 256 | AB54: 0 | AE54: ='Demand - External Transfers'!$A57 -> 47 | AF54: 230 | AG54: 0 | AH54: =SUMIF(DEM_Internal_Transfers_To_Intensity,"="&AG$4,'Demand - Internal Transfers'!$F58:$Y58) -> 214 | AI54: 0 | AJ54: =SUMIF(DEM_Internal_Transfers_From_Intensity_Name,"="&AG$4,'Demand - Internal Transfers'!$F58:$Y58) -> 184 | AK54: 230 | AL54: 0 | AO54: ='Demand - External Transfers'!$A57 -> 47 | AP54: 874 | AQ54: 6 | AR54: =SUMIF(DEM_Internal_Transfers_To_Intensity,"="&AQ$4,'Demand - Internal Transfers'!$F58:$Y58) -> 90 | AS54: 2 | AT54: =SUMIF(DEM_Internal_Transfers_From_Intensity_Name,"="&AQ$4,'Demand - Internal Transfers'!$F58:$Y58) -> 190 | AU54: 870 | AV54: 0.004576659039 | AY54: 858 | AZ54: 594 | BA54: 256 | BB54: 230 | BC54: 870
A55: ='Demand - External Transfers'!$A58 -> 48 | B55: 872 | C55: 4 | D55: =SUMIF(DEM_Internal_Transfers_To_Intensity,"="&C$4,'Demand - Internal Transfers'!$F59:$Y59) -> 32 | E55: 4 | F55: =SUMIF(DEM_Internal_Transfers_From_Intensity_Name,"="&C$4,'Demand - Internal Transfers'!$F59:$Y59) -> 18 | G55: 872 | H55: 0 | K55: ='Demand - External Transfers'!$A58 -> 48 | L55: 588 | M55: 0 | N55: =SUMIF(DEM_Internal_Transfers_To_Intensity,"="&M$4,'Demand - Internal Transfers'!$F59:$Y59) -> 62 | O55: 10 | P55: =SUMIF(DEM_Internal_Transfers_From_Intensity_Name,"="&M$4,'Demand - Internal Transfers'!$F59:$Y59) -> 54 | Q55: 592 | R55: 0.006802721088 | U55: ='Demand - External Transfers'!$A58 -> 48 | V55: 266 | W55: 0 | X55: =SUMIF(DEM_Internal_Transfers_To_Intensity,"="&W$4,'Demand - Internal Transfers'!$F59:$Y59) -> 148 | Y55: 4 | Z55: =SUMIF(DEM_Internal_Transfers_From_Intensity_Name,"="&W$4,'Demand - Internal Transfers'!$F59:$Y59) -> 134 | AA55: 266 | AB55: 0 | AE55: ='Demand - External Transfers'!$A58 -> 48 | AF55: 260 | AG55: 0 | AH55: =SUMIF(DEM_Internal_Transfers_To_Intensity,"="&AG$4,'Demand - Internal Transfers'!$F59:$Y59) -> 208 | AI55: 2 | AJ55: =SUMIF(DEM_Internal_Transfers_From_Intensity_Name,"="&AG$4,'Demand - Internal Transfers'!$F59:$Y59) -> 176 | AK55: 260 | AL55: 0 | AO55: ='Demand - External Transfers'!$A58 -> 48 | AP55: 816 | AQ55: 14 | AR55: =SUMIF(DEM_Internal_Transfers_To_Intensity,"="&AQ$4,'Demand - Internal Transfers'!$F59:$Y59) -> 140 | AS55: 4 | AT55: =SUMIF(DEM_Internal_Transfers_From_Intensity_Name,"="&AQ$4,'Demand - Internal Transfers'!$F59:$Y59) -> 208 | AU55: 812 | AV55: 0.004901960784 | AY55: 872 | AZ55: 592 | BA55: 266 | BB55: 260 | BC55: 812
A56: ='Demand - External Transfers'!$A59 -> 49 | B56: 856 | C56: 4 | D56: =SUMIF(DEM_Internal_Transfers_To_Intensity,"="&C$4,'Demand - Internal Transfers'!$F60:$Y60) -> 14 | E56: 4 | F56: =SUMIF(DEM_Internal_Transfers_From_Intensity_Name,"="&C$4,'Demand - Internal Transfers'!$F60:$Y60) -> 30 | G56: 856 | H56: 0 | K56: ='Demand - External Transfers'!$A59 -> 49 | L56: 598 | M56: 2 | N56: =SUMIF(DEM_Internal_Transfers_To_Intensity,"="&M$4,'Demand - Internal Transfers'!$F60:$Y60) -> 68 | O56: 4 | P56: =SUMIF(DEM_Internal_Transfers_From_Intensity_Name,"="&M$4,'Demand - Internal Transfers'!$F60:$Y60) -> 56 | Q56: 602 | R56: 0.006688963211 | U56: ='Demand - External Transfers'!$A59 -> 49 | V56: 248 | W56: 0 | X56: =SUMIF(DEM_Internal_Transfers_To_Intensity,"="&W$4,'Demand - Internal Transfers'!$F60:$Y60) -> 134 | Y56: 2 | Z56: =SUMIF(DEM_Internal_Transfers_From_Intensity_Name,"="&W$4,'Demand - Internal Transfers'!$F60:$Y60) -> 150 | AA56: 248 | AB56: 0 | AE56: ='Demand - External Transfers'!$A59 -> 49 | AF56: 232 | AG56: 0 | AH56: =SUMIF(DEM_Internal_Transfers_To_Intensity,"="&AG$4,'Demand - Internal Transfers'!$F60:$Y60) -> 156 | AI56: 2 | AJ56: =SUMIF(DEM_Internal_Transfers_From_Intensity_Name,"="&AG$4,'Demand - Internal Transfers'!$F60:$Y60) -> 182 | AK56: 232 | AL56: 0 | AO56: ='Demand - External Transfers'!$A59 -> 49 | AP56: 872 | AQ56: 18 | AR56: =SUMIF(DEM_Internal_Transfers_To_Intensity,"="&AQ$4,'Demand - Internal Transfers'!$F60:$Y60) -> 176 | AS56: 8 | AT56: =SUMIF(DEM_Internal_Transfers_From_Intensity_Name,"="&AQ$4,'Demand - Internal Transfers'!$F60:$Y60) -> 130 | AU56: 868 | AV56: 0.004587155963 | AY56: 856 | AZ56: 602 | BA56: 248 | BB56: 232 | BC56: 868
A57: ='Demand - External Transfers'!$A60 -> 50 | B57: 856 | C57: 6 | D57: =SUMIF(DEM_Internal_Transfers_To_Intensity,"="&C$4,'Demand - Internal Transfers'!$F61:$Y61) -> 24 | E57: 0 | F57: =SUMIF(DEM_Internal_Transfers_From_Intensity_Name,"="&C$4,'Demand - Internal Transfers'!$F61:$Y61) -> 30 | G57: 856 | H57: 0 | K57: ='Demand - External Transfers'!$A60 -> 50 | L57: 590 | M57: 0 | N57: =SUMIF(DEM_Internal_Transfers_To_Intensity,"="&M$4,'Demand - Internal Transfers'!$F61:$Y61) -> 54 | O57: 6 | P57: =SUMIF(DEM_Internal_Transfers_From_Intensity_Name,"="&M$4,'Demand - Internal Transfers'!$F61:$Y61) -> 56 | Q57: 594 | R57: 0.006779661017 | U57: ='Demand - External Transfers'!$A60 -> 50 | V57: 198 | W57: 0 | X57: =SUMIF(DEM_Internal_Transfers_To_Intensity,"="&W$4,'Demand - Internal Transfers'!$F61:$Y61) -> 84 | Y57: 0 | Z57: =SUMIF(DEM_Internal_Transfers_From_Intensity_Name,"="&W$4,'Demand - Internal Transfers'!$F61:$Y61) -> 134 | AA57: 198 | AB57: 0 | AE57: ='Demand - External Transfers'!$A60 -> 50 | AF57: 266 | AG57: 0 | AH57: =SUMIF(DEM_Internal_Transfers_To_Intensity,"="&AG$4,'Demand - Internal Transfers'!$F61:$Y61) -> 186 | AI57: 8 | AJ57: =SUMIF(DEM_Internal_Transfers_From_Intensity_Name,"="&AG$4,'Demand - Internal Transfers'!$F61:$Y61) -> 144 | AK57: 266 | AL57: 0 | AO57: ='Demand - External Transfers'!$A60 -> 50 | AP57: 886 | AQ57: 6 | AR57: =SUMIF(DEM_Internal_Transfers_To_Intensity,"="&AQ$4,'Demand - Internal Transfers'!$F61:$Y61) -> 178 | AS57: 8 | AT57: =SUMIF(DEM_Internal_Transfers_From_Intensity_Name,"="&AQ$4,'Demand - Internal Transfers'!$F61:$Y61) -> 162 | AU57: 882 | AV57: 0.004514672686 | AY57: 856 | AZ57: 594 | BA57: 198 | BB57: 266 | BC57: 882
A58: ='Demand - External Transfers'!$A61 -> 51 | B58: 834 | C58: 4 | D58: =SUMIF(DEM_Internal_Transfers_To_Intensity,"="&C$4,'Demand - Internal Transfers'!$F62:$Y62) -> 28 | E58: 14 | F58: =SUMIF(DEM_Internal_Transfers_From_Intensity_Name,"="&C$4,'Demand - Internal Transfers'!$F62:$Y62) -> 40 | G58: 834 | H58: 0 | K58: ='Demand - External Transfers'!$A61 -> 51 | L58: 570 | M58: 0 | N58: =SUMIF(DEM_Internal_Transfers_To_Intensity,"="&M$4,'Demand - Internal Transfers'!$F62:$Y62) -> 56 | O58: 16 | P58: =SUMIF(DEM_Internal_Transfers_From_Intensity_Name,"="&M$4,'Demand - Internal Transfers'!$F62:$Y62) -> 60 | Q58: 574 | R58: 0.00701754386 | U58: ='Demand - External Transfers'!$A61 -> 51 | V58: 182 | W58: 0 | X58: =SUMIF(DEM_Internal_Transfers_To_Intensity,"="&W$4,'Demand - Internal Transfers'!$F62:$Y62) -> 120 | Y58: 4 | Z58: =SUMIF(DEM_Internal_Transfers_From_Intensity_Name,"="&W$4,'Demand - Internal Transfers'!$F62:$Y62) -> 132 | AA58: 182 | AB58: 0 | AE58: ='Demand - External Transfers'!$A61 -> 51 | AF58: 272 | AG58: 0 | AH58: =SUMIF(DEM_Internal_Transfers_To_Intensity,"="&AG$4,'Demand - Internal Transfers'!$F62:$Y62) -> 192 | AI58: 2 | AJ58: =SUMIF(DEM_Internal_Transfers_From_Intensity_Name,"="&AG$4,'Demand - Internal Transfers'!$F62:$Y62) -> 184 | AK58: 272 | AL58: 0 | AO58: ='Demand - External Transfers'!$A61 -> 51 | AP58: 908 | AQ58: 6 | AR58: =SUMIF(DEM_Internal_Transfers_To_Intensity,"="&AQ$4,'Demand - Internal Transfers'!$F62:$Y62) -> 202 | AS58: 4 | AT58: =SUMIF(DEM_Internal_Transfers_From_Intensity_Name,"="&AQ$4,'Demand - Internal Transfers'!$F62:$Y62) -> 182 | AU58: 904 | AV58: 0.004405286344 | AY58: 834 | AZ58: 574 | BA58: 182 | BB58: 272 | BC58: 904
A59: ='Demand - External Transfers'!$A62 -> 52 | B59: 856 | C59: 8 | D59: =SUMIF(DEM_Internal_Transfers_To_Intensity,"="&C$4,'Demand - Internal Transfers'!$F63:$Y63) -> 26 | E59: 0 | F59: =SUMIF(DEM_Internal_Transfers_From_Intensity_Name,"="&C$4,'Demand - Internal Transfers'!$F63:$Y63) -> 12 | G59: 856 | H59: 0 | K59: ='Demand - External Transfers'!$A62 -> 52 | L59: 574 | M59: 4 | N59: =SUMIF(DEM_Internal_Transfers_To_Intensity,"="&M$4,'Demand - Internal Transfers'!$F63:$Y63) -> 42 | O59: 2 | P59: =SUMIF(DEM_Internal_Transfers_From_Intensity_Name,"="&M$4,'Demand - Internal Transfers'!$F63:$Y63) -> 40 | Q59: 578 | R59: 0.006968641115 | U59: ='Demand - External Transfers'!$A62 -> 52 | V59: 246 | W59: 0 | X59: =SUMIF(DEM_Internal_Transfers_To_Intensity,"="&W$4,'Demand - Internal Transfers'!$F63:$Y63) -> 144 | Y59: 0 | Z59: =SUMIF(DEM_Internal_Transfers_From_Intensity_Name,"="&W$4,'Demand - Internal Transfers'!$F63:$Y63) -> 80 | AA59: 246 | AB59: 0 | AE59: ='Demand - External Transfers'!$A62 -> 52 | AF59: 294 | AG59: 0 | AH59: =SUMIF(DEM_Internal_Transfers_To_Intensity,"="&AG$4,'Demand - Internal Transfers'!$F63:$Y63) -> 210 | AI59: 2 | AJ59: =SUMIF(DEM_Internal_Transfers_From_Intensity_Name,"="&AG$4,'Demand - Internal Transfers'!$F63:$Y63) -> 186 | AK59: 294 | AL59: 0 | AO59: ='Demand - External Transfers'!$A62 -> 52 | AP59: 802 | AQ59: 4 | AR59: =SUMIF(DEM_Internal_Transfers_To_Intensity,"="&AQ$4,'Demand - Internal Transfers'!$F63:$Y63) -> 116 | AS59: 6 | AT59: =SUMIF(DEM_Internal_Transfers_From_Intensity_Name,"="&AQ$4,'Demand - Internal Transfers'!$F63:$Y63) -> 220 | AU59: 798 | AV59: 0.004987531172 | AY59: 856 | AZ59: 578 | BA59: 246 | BB59: 294 | BC59: 798
A60: ='Demand - External Transfers'!$A63 -> 53 | B60: 874 | C60: 2 | D60: =SUMIF(DEM_Internal_Transfers_To_Intensity,"="&C$4,'Demand - Internal Transfers'!$F64:$Y64) -> 34 | E60: 2 | F60: =SUMIF(DEM_Internal_Transfers_From_Intensity_Name,"="&C$4,'Demand - Internal Transfers'!$F64:$Y64) -> 16 | G60: 874 | H60: 0 | K60: ='Demand - External Transfers'!$A63 -> 53 | L60: 600 | M60: 0 | N60: =SUMIF(DEM_Internal_Transfers_To_Intensity,"="&M$4,'Demand - Internal Transfers'!$F64:$Y64) -> 60 | O60: 2 | P60: =SUMIF(DEM_Internal_Transfers_From_Intensity_Name,"="&M$4,'Demand - Internal Transfers'!$F64:$Y64) -> 32 | Q60: 604 | R60: 0.006666666667 | U60: ='Demand - External Transfers'!$A63 -> 53 | V60: 296 | W60: 0 | X60: =SUMIF(DEM_Internal_Transfers_To_Intensity,"="&W$4,'Demand - Internal Transfers'!$F64:$Y64) -> 170 | Y60: 0 | Z60: =SUMIF(DEM_Internal_Transfers_From_Intensity_Name,"="&W$4,'Demand - Internal Transfers'!$F64:$Y64) -> 120 | AA60: 296 | AB60: 0 | AE60: ='Demand - External Transfers'!$A63 -> 53 | AF60: 360 | AG60: 0 | AH60: =SUMIF(DEM_Internal_Transfers_To_Intensity,"="&AG$4,'Demand - Internal Transfers'!$F64:$Y64) -> 290 | AI60: 0 | AJ60: =SUMIF(DEM_Internal_Transfers_From_Intensity_Name,"="&AG$4,'Demand - Internal Transfers'!$F64:$Y64) -> 224 | AK60: 360 | AL60: 0 | AO60: ='Demand - External Transfers'!$A63 -> 53 | AP60: 648 | AQ60: 10 | AR60: =SUMIF(DEM_Internal_Transfers_To_Intensity,"="&AQ$4,'Demand - Internal Transfers'!$F64:$Y64) -> 132 | AS60: 2 | AT60: =SUMIF(DEM_Internal_Transfers_From_Intensity_Name,"="&AQ$4,'Demand - Internal Transfers'!$F64:$Y64) -> 294 | AU60: 644 | AV60: 0.006172839506 | AY60: 874 | AZ60: 604 | BA60: 296 | BB60: 360 | BC60: 644
A61: ='Demand - External Transfers'!$A64 -> 54 | B61: 884 | C61: 0 | D61: =SUMIF(DEM_Internal_Transfers_To_Intensity,"="&C$4,'Demand - Internal Transfers'!$F65:$Y65) -> 32 | E61: 2 | F61: =SUMIF(DEM_Internal_Transfers_From_Intensity_Name,"="&C$4,'Demand - Internal Transfers'!$F65:$Y65) -> 20 | G61: 884 | H61: 0 | K61: ='Demand - External Transfers'!$A64 -> 54 | L61: 628 | M61: 0 | N61: =SUMIF(DEM_Internal_Transfers_To_Intensity,"="&M$4,'Demand - Internal Transfers'!$F65:$Y65) -> 70 | O61: 4 | P61: =SUMIF(DEM_Internal_Transfers_From_Intensity_Name,"="&M$4,'Demand - Internal Transfers'!$F65:$Y65) -> 38 | Q61: 632 | R61: 0.006369426752 | U61: ='Demand - External Transfers'!$A64 -> 54 | V61: 346 | W61: 0 | X61: =SUMIF(DEM_Internal_Transfers_To_Intensity,"="&W$4,'Demand - Internal Transfers'!$F65:$Y65) -> 210 | Y61: 2 | Z61: =SUMIF(DEM_Internal_Transfers_From_Intensity_Name,"="&W$4,'Demand - Internal Transfers'!$F65:$Y65) -> 158 | AA61: 346 | AB61: 0 | AE61: ='Demand - External Transfers'!$A64 -> 54 | AF61: 232 | AG61: 0 | AH61: =SUMIF(DEM_Internal_Transfers_To_Intensity,"="&AG$4,'Demand - Internal Transfers'!$F65:$Y65) -> 168 | AI61: 2 | AJ61: =SUMIF(DEM_Internal_Transfers_From_Intensity_Name,"="&AG$4,'Demand - Internal Transfers'!$F65:$Y65) -> 294 | AK61: 232 | AL61: 0 | AO61: ='Demand - External Transfers'!$A64 -> 54 | AP61: 684 | AQ61: 10 | AR61: =SUMIF(DEM_Internal_Transfers_To_Intensity,"="&AQ$4,'Demand - Internal Transfers'!$F65:$Y65) -> 178 | AS61: 4 | AT61: =SUMIF(DEM_Internal_Transfers_From_Intensity_Name,"="&AQ$4,'Demand - Internal Transfers'!$F65:$Y65) -> 148 | AU61: 680 | AV61: 0.005847953216 | AY61: 884 | AZ61: 632 | BA61: 346 | BB61: 232 | BC61: 680
A62: ='Demand - External Transfers'!$A65 -> 55 | B62: 892 | C62: 8 | D62: =SUMIF(DEM_Internal_Transfers_To_Intensity,"="&C$4,'Demand - Internal Transfers'!$F66:$Y66) -> 16 | E62: 0 | F62: =SUMIF(DEM_Internal_Transfers_From_Intensity_Name,"="&C$4,'Demand - Internal Transfers'!$F66:$Y66) -> 16 | G62: 892 | H62: 0 | K62: ='Demand - External Transfers'!$A65 -> 55 | L62: 610 | M62: 0 | N62: =SUMIF(DEM_Internal_Transfers_To_Intensity,"="&M$4,'Demand - Internal Transfers'!$F66:$Y66) -> 66 | O62: 8 | P62: =SUMIF(DEM_Internal_Transfers_From_Intensity_Name,"="&M$4,'Demand - Internal Transfers'!$F66:$Y66) -> 76 | Q62: 614 | R62: 0.006557377049 | U62: ='Demand - External Transfers'!$A65 -> 55 | V62: 230 | W62: 0 | X62: =SUMIF(DEM_Internal_Transfers_To_Intensity,"="&W$4,'Demand - Internal Transfers'!$F66:$Y66) -> 92 | Y62: 0 | Z62: =SUMIF(DEM_Internal_Transfers_From_Intensity_Name,"="&W$4,'Demand - Internal Transfers'!$F66:$Y66) -> 208 | AA62: 230 | AB62: 0 | AE62: ='Demand - External Transfers'!$A65 -> 55 | AF62: 202 | AG62: 0 | AH62: =SUMIF(DEM_Internal_Transfers_To_Intensity,"="&AG$4,'Demand - Internal Transfers'!$F66:$Y66) -> 140 | AI62: 2 | AJ62: =SUMIF(DEM_Internal_Transfers_From_Intensity_Name,"="&AG$4,'Demand - Internal Transfers'!$F66:$Y66) -> 168 | AK62: 202 | AL62: 0 | AO62: ='Demand - External Transfers'!$A65 -> 55 | AP62: 844 | AQ62: 10 | AR62: =SUMIF(DEM_Internal_Transfers_To_Intensity,"="&AQ$4,'Demand - Internal Transfers'!$F66:$Y66) -> 252 | AS62: 4 | AT62: =SUMIF(DEM_Internal_Transfers_From_Intensity_Name,"="&AQ$4,'Demand - Internal Transfers'!$F66:$Y66) -> 98 | AU62: 840 | AV62: 0.004739336493 | AY62: 892 | AZ62: 614 | BA62: 230 | BB62: 202 | BC62: 840
... 77 more rows

Sheet Caseload SPC Chart
B4: Patient Group: | D4: Total | G4: ="Patient Caseload - "& D4& " - "&SPC_CL_Type&" Display - Displayed in "&D10 -> Patient Caseload - Total - Total Display - Displayed in Patients
B6: =IF(G6<>G7,"Please note - Y Axis min. has changed from "&G7&" to "&G6,"") -> Please note - Y Axis min. has changed from 0 to 2700 | G6: 2700
G7: 0
B9: Display Type | D9: Total
B10: Display Unit | D10: Patients
B12: =IF(SPC_CL_Type="Baseline","Baseline Selection:","Seasonality Selection:") -> Seasonality Selection:
B13: =IF(SPC_CL_Type="Baseline","Baseline Begins:","Season 1 Starts:") -> Season 1 Starts:
B14: =IF(SPC_CL_Type="Baseline","Baseline Ends:","Season 1 Ends:") -> Season 1 Ends: | E14: ='Caseload SPC Chart Backing'!BO14&" Weeks" -> 9 Weeks | G14: =IFERROR('Caseload SPC Chart Backing'!BO14,0) -> 9
B16: Include 2nd Season?
B17: Season 2 Ends: | E17: =IFERROR('Caseload SPC Chart Backing'!BO16&" Weeks","") ->  | G17: =IFERROR('Caseload SPC Chart Backing'!BO16,0) -> 0
B19: Include 3rd Season?
B20: Season 3 Ends: | E20: =IFERROR('Caseload SPC Chart Backing'!BO18&" Weeks","") ->  | G20: =IFERROR('Caseload SPC Chart Backing'!BO18,0) -> 0
B22: Include 4th Season?
B23: Season 4 Ends: | E23: =IFERROR('Caseload SPC Chart Backing'!BO20&" Weeks","") ->  | G23: =IFERROR('Caseload SPC Chart Backing'!BO20,0) -> 0
G24: Special Cause Variation Markers
B25: Baseline Period: | H25: 1. A data point is more than 3 sigma (Σ) from the mean
B26: =IF(SPC_CL_Type="Total",DEM_Max_Rows&" Weeks",IF(SPC_CL_Type="Baseline",G14&" Weeks",G14+G17+G20+G23&" Weeks")) -> 110 Weeks | H26: 2: 2 out of 3 points are more than 2 sigma (Σ) from the mean, with all 3 on the same side of the mean
H27: 3: 6 consecutively rising or falling points
B28: Remaining Wks Use Season: | H28: 4: a run of 9 or more points on the same side of the mean

Sheet Data Validation
C9: Validation Period | G9: =IF('Demand - External Transfers'!$G$11="","Week "&'Demand - External Transfers'!F11&" to "&'Demand - External Transfers'!A8,TEXT('Demand - External Transfers'!G11,"dd/mm/yyyy")&" to "&TEXT(INDEX('Demand - External Transfers'!G11:G166,'Demand - External Transfers'!A8,1),"dd/mm/yyyy")) -> 01/04/2017 to 04/05/2019
C10: Patient Group / Intensity Level | G10: =GeneralBacking!D2 -> Grp1 | H10: =GeneralBacking!D3 -> Grp2 | I10: =GeneralBacking!D4 -> Grp3 | J10: =GeneralBacking!D5 -> Grp4 | K10: =GeneralBacking!D6 -> Grp5
C11: MAPE - Historical Data vs. Validated Data | G11: ='Data Validation Backing (Hide)'!$I$8 -> 0.002920410243 | H11: ='Data Validation Backing (Hide)'!$S$8 -> 0.01478328406 | I11: ='Data Validation Backing (Hide)'!$AC$8 -> 0.05573562528 | J11: ='Data Validation Backing (Hide)'!$AM$8 -> 0.01974831885 | K11: ='Data Validation Backing (Hide)'!$AW$8 -> 0.01407753271
C18: Forecast Demand using the data from: | L18: 1
C26: View MAPE calculation information? | G26: Yes | L26: 0
M29: =GeneralBacking!D2 -> Grp1 | P29: =GeneralBacking!D3 -> Grp2 | S29: =GeneralBacking!D4 -> Grp3 | V29: =GeneralBacking!D5 -> Grp4 | Y29: =GeneralBacking!D6 -> Grp5
A30: Week Ref | L30: =IF('Demand - External Transfers'!G7="",'Demand - External Transfers'!F10,'Demand - External Transfers'!G10) -> Date | M30: ='Data Validation Backing (Hide)'!B7 -> Patients on Caseload - User Entry | N30: ='Data Validation Backing (Hide)'!G7 -> Forecasted Patients on Caseload | P30: =IF('Data Validation Backing (Hide)'!A7<1,"",'Data Validation Backing (Hide)'!L7) -> Patients on Caseload - User Entry | Q30: ='Data Validation Backing (Hide)'!Q7 -> Forecasted Patients on Caseload | S30: ='Data Validation Backing (Hide)'!V7 -> Patients on Caseload - User Entry | T30: ='Data Validation Backing (Hide)'!AA7 -> Forecasted Patients on Caseload | V30: ='Data Validation Backing (Hide)'!AF7 -> Patients on Caseload - User Entry | W30: ='Data Validation Backing (Hide)'!AK7 -> Forecasted Patients on Caseload | Y30: ='Data Validation Backing (Hide)'!AP7 -> Patients on Caseload - User Entry | Z30: ='Data Validation Backing (Hide)'!AU7 -> Forecasted Patients on Caseload
A31: ='Data Validation Backing (Hide)'!A8 -> 1 | L31: =IF('Demand - External Transfers'!G11="",'Demand - External Transfers'!F11,TEXT('Demand - External Transfers'!G11,"dd/mm/yyyy")) -> 01/04/2017 | M31: =IF('Data Validation Backing (Hide)'!A8="","",'Data Validation Backing (Hide)'!B8) -> 834 | N31: ='Data Validation Backing (Hide)'!G8 -> 834 | P31: =IF('Data Validation Backing (Hide)'!A8="","",'Data Validation Backing (Hide)'!L8) -> 572 | Q31: ='Data Validation Backing (Hide)'!Q8 -> 572 | S31: =IF('Data Validation Backing (Hide)'!A8="","",'Data Validation Backing (Hide)'!V8) -> 260 | T31: ='Data Validation Backing (Hide)'!AA8 -> 260 | V31: =IF('Data Validation Backing (Hide)'!A8="","",'Data Validation Backing (Hide)'!AF8) -> 294 | W31: ='Data Validation Backing (Hide)'!AK8 -> 294 | Y31: =IF('Data Validation Backing (Hide)'!A8="","",'Data Validation Backing (Hide)'!AP8) -> 802 | Z31: ='Data Validation Backing (Hide)'!AU8 -> 802
A32: ='Data Validation Backing (Hide)'!A9 -> 2 | L32: =IF('Demand - External Transfers'!G12="",'Demand - External Transfers'!F12,TEXT('Demand - External Transfers'!G12,"dd/mm/yyyy")) -> 08/04/2017 | M32: =IF('Data Validation Backing (Hide)'!A9="","",'Data Validation Backing (Hide)'!B9) -> 848 | N32: ='Data Validation Backing (Hide)'!G9 -> 848 | P32: =IF('Data Validation Backing (Hide)'!A9="","",'Data Validation Backing (Hide)'!L9) -> 582 | Q32: ='Data Validation Backing (Hide)'!Q9 -> 582 | S32: =IF('Data Validation Backing (Hide)'!A9="","",'Data Validation Backing (Hide)'!V9) -> 312 | T32: ='Data Validation Backing (Hide)'!AA9 -> 312 | V32: =IF('Data Validation Backing (Hide)'!A9="","",'Data Validation Backing (Hide)'!AF9) -> 306 | W32: ='Data Validation Backing (Hide)'!AK9 -> 306 | Y32: =IF('Data Validation Backing (Hide)'!A9="","",'Data Validation Backing (Hide)'!AP9) -> 718 | Z32: ='Data Validation Backing (Hide)'!AU9 -> 718
A33: ='Data Validation Backing (Hide)'!A10 -> 3 | L33: =IF('Demand - External Transfers'!G13="",'Demand - External Transfers'!F13,TEXT('Demand - External Transfers'!G13,"dd/mm/yyyy")) -> 15/04/2017 | M33: =IF('Data Validation Backing (Hide)'!A10="","",'Data Validation Backing (Hide)'!B10) -> 854 | N33: ='Data Validation Backing (Hide)'!G10 -> 854 | P33: =IF('Data Validation Backing (Hide)'!A10="","",'Data Validation Backing (Hide)'!L10) -> 604 | Q33: ='Data Validation Backing (Hide)'!Q10 -> 604 | S33: =IF('Data Validation Backing (Hide)'!A10="","",'Data Validation Backing (Hide)'!V10) -> 250 | T33: ='Data Validation Backing (Hide)'!AA10 -> 250 | V33: =IF('Data Validation Backing (Hide)'!A10="","",'Data Validation Backing (Hide)'!AF10) -> 242 | W33: ='Data Validation Backing (Hide)'!AK10 -> 242 | Y33: =IF('Data Validation Backing (Hide)'!A10="","",'Data Validation Backing (Hide)'!AP10) -> 832 | Z33: ='Data Validation Backing (Hide)'!AU10 -> 832
A34: ='Data Validation Backing (Hide)'!A11 -> 4 | L34: =IF('Demand - External Transfers'!G14="",'Demand - External Transfers'!F14,TEXT('Demand - External Transfers'!G14,"dd/mm/yyyy")) -> 22/04/2017 | M34: =IF('Data Validation Backing (Hide)'!A11="","",'Data Validation Backing (Hide)'!B11) -> 866 | N34: ='Data Validation Backing (Hide)'!G11 -> 866 | P34: =IF('Data Validation Backing (Hide)'!A11="","",'Data Validation Backing (Hide)'!L11) -> 594 | Q34: ='Data Validation Backing (Hide)'!Q11 -> 594 | S34: =IF('Data Validation Backing (Hide)'!A11="","",'Data Validation Backing (Hide)'!V11) -> 220 | T34: ='Data Validation Backing (Hide)'!AA11 -> 220 | V34: =IF('Data Validation Backing (Hide)'!A11="","",'Data Validation Backing (Hide)'!AF11) -> 232 | W34: ='Data Validation Backing (Hide)'!AK11 -> 232 | Y34: =IF('Data Validation Backing (Hide)'!A11="","",'Data Validation Backing (Hide)'!AP11) -> 872 | Z34: ='Data Validation Backing (Hide)'!AU11 -> 872
A35: ='Data Validation Backing (Hide)'!A12 -> 5 | L35: =IF('Demand - External Transfers'!G15="",'Demand - External Transfers'!F15,TEXT('Demand - External Transfers'!G15,"dd/mm/yyyy")) -> 29/04/2017 | M35: =IF('Data Validation Backing (Hide)'!A12="","",'Data Validation Backing (Hide)'!B12) -> 844 | N35: ='Data Validation Backing (Hide)'!G12 -> 844 | P35: =IF('Data Validation Backing (Hide)'!A12="","",'Data Validation Backing (Hide)'!L12) -> 580 | Q35: ='Data Validation Backing (Hide)'!Q12 -> 580 | S35: =IF('Data Validation Backing (Hide)'!A12="","",'Data Validation Backing (Hide)'!V12) -> 158 | T35: ='Data Validation Backing (Hide)'!AA12 -> 158 | V35: =IF('Data Validation Backing (Hide)'!A12="","",'Data Validation Backing (Hide)'!AF12) -> 272 | W35: ='Data Validation Backing (Hide)'!AK12 -> 272 | Y35: =IF('Data Validation Backing (Hide)'!A12="","",'Data Validation Backing (Hide)'!AP12) -> 948 | Z35: ='Data Validation Backing (Hide)'!AU12 -> 948
A36: ='Data Validation Backing (Hide)'!A13 -> 6 | L36: =IF('Demand - External Transfers'!G16="",'Demand - External Transfers'!F16,TEXT('Demand - External Transfers'!G16,"dd/mm/yyyy")) -> 06/05/2017 | M36: =IF('Data Validation Backing (Hide)'!A13="","",'Data Validation Backing (Hide)'!B13) -> 822 | N36: ='Data Validation Backing (Hide)'!G13 -> 822 | P36: =IF('Data Validation Backing (Hide)'!A13="","",'Data Validation Backing (Hide)'!L13) -> 574 | Q36: ='Data Validation Backing (Hide)'!Q13 -> 574 | S36: =IF('Data Validation Backing (Hide)'!A13="","",'Data Validation Backing (Hide)'!V13) -> 152 | T36: ='Data Validation Backing (Hide)'!AA13 -> 152 | V36: =IF('Data Validation Backing (Hide)'!A13="","",'Data Validation Backing (Hide)'!AF13) -> 298 | W36: ='Data Validation Backing (Hide)'!AK13 -> 298 | Y36: =IF('Data Validation Backing (Hide)'!A13="","",'Data Validation Backing (Hide)'!AP13) -> 942 | Z36: ='Data Validation Backing (Hide)'!AU13 -> 942
A37: ='Data Validation Backing (Hide)'!A14 -> 7 | L37: =IF('Demand - External Transfers'!G17="",'Demand - External Transfers'!F17,TEXT('Demand - External Transfers'!G17,"dd/mm/yyyy")) -> 13/05/2017 | M37: =IF('Data Validation Backing (Hide)'!A14="","",'Data Validation Backing (Hide)'!B14) -> 800 | N37: ='Data Validation Backing (Hide)'!G14 -> 800 | P37: =IF('Data Validation Backing (Hide)'!A14="","",'Data Validation Backing (Hide)'!L14) -> 522 | Q37: ='Data Validation Backing (Hide)'!Q14 -> 522 | S37: =IF('Data Validation Backing (Hide)'!A14="","",'Data Validation Backing (Hide)'!V14) -> 204 | T37: ='Data Validation Backing (Hide)'!AA14 -> 204 | V37: =IF('Data Validation Backing (Hide)'!A14="","",'Data Validation Backing (Hide)'!AF14) -> 324 | W37: ='Data Validation Backing (Hide)'!AK14 -> 324 | Y37: =IF('Data Validation Backing (Hide)'!A14="","",'Data Validation Backing (Hide)'!AP14) -> 936 | Z37: ='Data Validation Backing (Hide)'!AU14 -> 936
A38: ='Data Validation Backing (Hide)'!A15 -> 8 | L38: =IF('Demand - External Transfers'!G18="",'Demand - External Transfers'!F18,TEXT('Demand - External Transfers'!G18,"dd/mm/yyyy")) -> 20/05/2017 | M38: =IF('Data Validation Backing (Hide)'!A15="","",'Data Validation Backing (Hide)'!B15) -> 806 | N38: ='Data Validation Backing (Hide)'!G15 -> 806 | P38: =IF('Data Validation Backing (Hide)'!A15="","",'Data Validation Backing (Hide)'!L15) -> 516 | Q38: ='Data Validation Backing (Hide)'!Q15 -> 516 | S38: =IF('Data Validation Backing (Hide)'!A15="","",'Data Validation Backing (Hide)'!V15) -> 228 | T38: ='Data Validation Backing (Hide)'!AA15 -> 228 | V38: =IF('Data Validation Backing (Hide)'!A15="","",'Data Validation Backing (Hide)'!AF15) -> 256 | W38: ='Data Validation Backing (Hide)'!AK15 -> 256 | Y38: =IF('Data Validation Backing (Hide)'!A15="","",'Data Validation Backing (Hide)'!AP15) -> 998 | Z38: ='Data Validation Backing (Hide)'!AU15 -> 998
A39: ='Data Validation Backing (Hide)'!A16 -> 9 | L39: =IF('Demand - External Transfers'!G19="",'Demand - External Transfers'!F19,TEXT('Demand - External Transfers'!G19,"dd/mm/yyyy")) -> 27/05/2017 | M39: =IF('Data Validation Backing (Hide)'!A16="","",'Data Validation Backing (Hide)'!B16) -> 830 | N39: ='Data Validation Backing (Hide)'!G16 -> 830 | P39: =IF('Data Validation Backing (Hide)'!A16="","",'Data Validation Backing (Hide)'!L16) -> 550 | Q39: ='Data Validation Backing (Hide)'!Q16 -> 550 | S39: =IF('Data Validation Backing (Hide)'!A16="","",'Data Validation Backing (Hide)'!V16) -> 252 | T39: ='Data Validation Backing (Hide)'!AA16 -> 252 | V39: =IF('Data Validation Backing (Hide)'!A16="","",'Data Validation Backing (Hide)'!AF16) -> 298 | W39: ='Data Validation Backing (Hide)'!AK16 -> 298 | Y39: =IF('Data Validation Backing (Hide)'!A16="","",'Data Validation Backing (Hide)'!AP16) -> 868 | Z39: ='Data Validation Backing (Hide)'!AU16 -> 868
A40: ='Data Validation Backing (Hide)'!A17 -> 10 | L40: =IF('Demand - External Transfers'!G20="",'Demand - External Transfers'!F20,TEXT('Demand - External Transfers'!G20,"dd/mm/yyyy")) -> 03/06/2017 | M40: =IF('Data Validation Backing (Hide)'!A17="","",'Data Validation Backing (Hide)'!B17) -> 816 | N40: ='Data Validation Backing (Hide)'!G17 -> 816 | P40: =IF('Data Validation Backing (Hide)'!A17="","",'Data Validation Backing (Hide)'!L17) -> 572 | Q40: ='Data Validation Backing (Hide)'!Q17 -> 572 | S40: =IF('Data Validation Backing (Hide)'!A17="","",'Data Validation Backing (Hide)'!V17) -> 246 | T40: ='Data Validation Backing (Hide)'!AA17 -> 246 | V40: =IF('Data Validation Backing (Hide)'!A17="","",'Data Validation Backing (Hide)'!AF17) -> 296 | W40: ='Data Validation Backing (Hide)'!AK17 -> 296 | Y40: =IF('Data Validation Backing (Hide)'!A17="","",'Data Validation Backing (Hide)'!AP17) -> 872 | Z40: ='Data Validation Backing (Hide)'!AU17 -> 872
A41: ='Data Validation Backing (Hide)'!A18 -> 11 | L41: =IF('Demand - External Transfers'!G21="",'Demand - External Transfers'!F21,TEXT('Demand - External Transfers'!G21,"dd/mm/yyyy")) -> 10/06/2017 | M41: =IF('Data Validation Backing (Hide)'!A18="","",'Data Validation Backing (Hide)'!B18) -> 816 | N41: ='Data Validation Backing (Hide)'!G18 -> 816 | P41: =IF('Data Validation Backing (Hide)'!A18="","",'Data Validation Backing (Hide)'!L18) -> 534 | Q41: ='Data Validation Backing (Hide)'!Q18 -> 534 | S41: =IF('Data Validation Backing (Hide)'!A18="","",'Data Validation Backing (Hide)'!V18) -> 256 | T41: ='Data Validation Backing (Hide)'!AA18 -> 256 | V41: =IF('Data Validation Backing (Hide)'!A18="","",'Data Validation Backing (Hide)'!AF18) -> 188 | W41: ='Data Validation Backing (Hide)'!AK18 -> 188 | Y41: =IF('Data Validation Backing (Hide)'!A18="","",'Data Validation Backing (Hide)'!AP18) -> 984 | Z41: ='Data Validation Backing (Hide)'!AU18 -> 984
A42: ='Data Validation Backing (Hide)'!A19 -> 12 | L42: =IF('Demand - External Transfers'!G22="",'Demand - External Transfers'!F22,TEXT('Demand - External Transfers'!G22,"dd/mm/yyyy")) -> 17/06/2017 | M42: =IF('Data Validation Backing (Hide)'!A19="","",'Data Validation Backing (Hide)'!B19) -> 808 | N42: ='Data Validation Backing (Hide)'!G19 -> 808 | P42: =IF('Data Validation Backing (Hide)'!A19="","",'Data Validation Backing (Hide)'!L19) -> 536 | Q42: ='Data Validation Backing (Hide)'!Q19 -> 536 | S42: =IF('Data Validation Backing (Hide)'!A19="","",'Data Validation Backing (Hide)'!V19) -> 184 | T42: ='Data Validation Backing (Hide)'!AA19 -> 184 | V42: =IF('Data Validation Backing (Hide)'!A19="","",'Data Validation Backing (Hide)'!AF19) -> 272 | W42: ='Data Validation Backing (Hide)'!AK19 -> 272 | Y42: =IF('Data Validation Backing (Hide)'!A19="","",'Data Validation Backing (Hide)'!AP19) -> 980 | Z42: ='Data Validation Backing (Hide)'!AU19 -> 980
A43: ='Data Validation Backing (Hide)'!A20 -> 13 | L43: =IF('Demand - External Transfers'!G23="",'Demand - External Transfers'!F23,TEXT('Demand - External Transfers'!G23,"dd/mm/yyyy")) -> 24/06/2017 | M43: =IF('Data Validation Backing (Hide)'!A20="","",'Data Validation Backing (Hide)'!B20) -> 786 | N43: ='Data Validation Backing (Hide)'!G20 -> 786 | P43: =IF('Data Validation Backing (Hide)'!A20="","",'Data Validation Backing (Hide)'!L20) -> 542 | Q43: ='Data Validation Backing (Hide)'!Q20 -> 542 | S43: =IF('Data Validation Backing (Hide)'!A20="","",'Data Validation Backing (Hide)'!V20) -> 190 | T43: ='Data Validation Backing (Hide)'!AA20 -> 190 | V43: =IF('Data Validation Backing (Hide)'!A20="","",'Data Validation Backing (Hide)'!AF20) -> 312 | W43: ='Data Validation Backing (Hide)'!AK20 -> 312 | Y43: =IF('Data Validation Backing (Hide)'!A20="","",'Data Validation Backing (Hide)'!AP20) -> 944 | Z43: ='Data Validation Backing (Hide)'!AU20 -> 944
A44: ='Data Validation Backing (Hide)'!A21 -> 14 | L44: =IF('Demand - External Transfers'!G24="",'Demand - External Transfers'!F24,TEXT('Demand - External Transfers'!G24,"dd/mm/yyyy")) -> 01/07/2017 | M44: =IF('Data Validation Backing (Hide)'!A21="","",'Data Validation Backing (Hide)'!B21) -> 762 | N44: ='Data Validation Backing (Hide)'!G21 -> 762 | P44: =IF('Data Validation Backing (Hide)'!A21="","",'Data Validation Backing (Hide)'!L21) -> 510 | Q44: ='Data Validation Backing (Hide)'!Q21 -> 510 | S44: =IF('Data Validation Backing (Hide)'!A21="","",'Data Validation Backing (Hide)'!V21) -> 232 | T44: ='Data Validation Backing (Hide)'!AA21 -> 232 | V44: =IF('Data Validation Backing (Hide)'!A21="","",'Data Validation Backing (Hide)'!AF21) -> 288 | W44: ='Data Validation Backing (Hide)'!AK21 -> 288 | Y44: =IF('Data Validation Backing (Hide)'!A21="","",'Data Validation Backing (Hide)'!AP21) -> 984 | Z44: ='Data Validation Backing (Hide)'!AU21 -> 984
A45: ='Data Validation Backing (Hide)'!A22 -> 15 | L45: =IF('Demand - External Transfers'!G25="",'Demand - External Transfers'!F25,TEXT('Demand - External Transfers'!G25,"dd/mm/yyyy")) -> 08/07/2017 | M45: =IF('Data Validation Backing (Hide)'!A22="","",'Data Validation Backing (Hide)'!B22) -> 760 | N45: ='Data Validation Backing (Hide)'!G22 -> 760 | P45: =IF('Data Validation Backing (Hide)'!A22="","",'Data Validation Backing (Hide)'!L22) -> 520 | Q45: ='Data Validation Backing (Hide)'!Q22 -> 520 | S45: =IF('Data Validation Backing (Hide)'!A22="","",'Data Validation Backing (Hide)'!V22) -> 232 | T45: ='Data Validation Backing (Hide)'!AA22 -> 232 | V45: =IF('Data Validation Backing (Hide)'!A22="","",'Data Validation Backing (Hide)'!AF22) -> 276 | W45: ='Data Validation Backing (Hide)'!AK22 -> 276 | Y45: =IF('Data Validation Backing (Hide)'!A22="","",'Data Validation Backing (Hide)'!AP22) -> 1006 | Z45: ='Data Validation Backing (Hide)'!AU22 -> 1006
A46: ='Data Validation Backing (Hide)'!A23 -> 16 | L46: =IF('Demand - External Transfers'!G26="",'Demand - External Transfers'!F26,TEXT('Demand - External Transfers'!G26,"dd/mm/yyyy")) -> 15/07/2017 | M46: =IF('Data Validation Backing (Hide)'!A23="","",'Data Validation Backing (Hide)'!B23) -> 762 | N46: ='Data Validation Backing (Hide)'!G23 -> 762 | P46: =IF('Data Validation Backing (Hide)'!A23="","",'Data Validation Backing (Hide)'!L23) -> 508 | Q46: ='Data Validation Backing (Hide)'!Q23 -> 510 | S46: =IF('Data Validation Backing (Hide)'!A23="","",'Data Validation Backing (Hide)'!V23) -> 222 | T46: ='Data Validation Backing (Hide)'!AA23 -> 222 | V46: =IF('Data Validation Backing (Hide)'!A23="","",'Data Validation Backing (Hide)'!AF23) -> 268 | W46: ='Data Validation Backing (Hide)'!AK23 -> 268 | Y46: =IF('Data Validation Backing (Hide)'!A23="","",'Data Validation Backing (Hide)'!AP23) -> 1036 | Z46: ='Data Validation Backing (Hide)'!AU23 -> 1034
A47: ='Data Validation Backing (Hide)'!A24 -> 17 | L47: =IF('Demand - External Transfers'!G27="",'Demand - External Transfers'!F27,TEXT('Demand - External Transfers'!G27,"dd/mm/yyyy")) -> 22/07/2017 | M47: =IF('Data Validation Backing (Hide)'!A24="","",'Data Validation Backing (Hide)'!B24) -> 780 | N47: ='Data Validation Backing (Hide)'!G24 -> 780 | P47: =IF('Data Validation Backing (Hide)'!A24="","",'Data Validation Backing (Hide)'!L24) -> 500 | Q47: ='Data Validation Backing (Hide)'!Q24 -> 502 | S47: =IF('Data Validation Backing (Hide)'!A24="","",'Data Validation Backing (Hide)'!V24) -> 230 | T47: ='Data Validation Backing (Hide)'!AA24 -> 230 | V47: =IF('Data Validation Backing (Hide)'!A24="","",'Data Validation Backing (Hide)'!AF24) -> 260 | W47: ='Data Validation Backing (Hide)'!AK24 -> 260 | Y47: =IF('Data Validation Backing (Hide)'!A24="","",'Data Validation Backing (Hide)'!AP24) -> 1014 | Z47: ='Data Validation Backing (Hide)'!AU24 -> 1012
A48: ='Data Validation Backing (Hide)'!A25 -> 18 | L48: =IF('Demand - External Transfers'!G28="",'Demand - External Transfers'!F28,TEXT('Demand - External Transfers'!G28,"dd/mm/yyyy")) -> 29/07/2017 | M48: =IF('Data Validation Backing (Hide)'!A25="","",'Data Validation Backing (Hide)'!B25) -> 782 | N48: ='Data Validation Backing (Hide)'!G25 -> 782 | P48: =IF('Data Validation Backing (Hide)'!A25="","",'Data Validation Backing (Hide)'!L25) -> 536 | Q48: ='Data Validation Backing (Hide)'!Q25 -> 538 | S48: =IF('Data Validation Backing (Hide)'!A25="","",'Data Validation Backing (Hide)'!V25) -> 242 | T48: ='Data Validation Backing (Hide)'!AA25 -> 242 | V48: =IF('Data Validation Backing (Hide)'!A25="","",'Data Validation Backing (Hide)'!AF25) -> 340 | W48: ='Data Validation Backing (Hide)'!AK25 -> 340 | Y48: =IF('Data Validation Backing (Hide)'!A25="","",'Data Validation Backing (Hide)'!AP25) -> 898 | Z48: ='Data Validation Backing (Hide)'!AU25 -> 896
A49: ='Data Validation Backing (Hide)'!A26 -> 19 | L49: =IF('Demand - External Transfers'!G29="",'Demand - External Transfers'!F29,TEXT('Demand - External Transfers'!G29,"dd/mm/yyyy")) -> 05/08/2017 | M49: =IF('Data Validation Backing (Hide)'!A26="","",'Data Validation Backing (Hide)'!B26) -> 790 | N49: ='Data Validation Backing (Hide)'!G26 -> 790 | P49: =IF('Data Validation Backing (Hide)'!A26="","",'Data Validation Backing (Hide)'!L26) -> 566 | Q49: ='Data Validation Backing (Hide)'!Q26 -> 568 | S49: =IF('Data Validation Backing (Hide)'!A26="","",'Data Validation Backing (Hide)'!V26) -> 320 | T49: ='Data Validation Backing (Hide)'!AA26 -> 320 | V49: =IF('Data Validation Backing (Hide)'!A26="","",'Data Validation Backing (Hide)'!AF26) -> 330 | W49: ='Data Validation Backing (Hide)'!AK26 -> 330 | Y49: =IF('Data Validation Backing (Hide)'!A26="","",'Data Validation Backing (Hide)'!AP26) -> 804 | Z49: ='Data Validation Backing (Hide)'!AU26 -> 802
A50: ='Data Validation Backing (Hide)'!A27 -> 20 | L50: =IF('Demand - External Transfers'!G30="",'Demand - External Transfers'!F30,TEXT('Demand - External Transfers'!G30,"dd/mm/yyyy")) -> 12/08/2017 | M50: =IF('Data Validation Backing (Hide)'!A27="","",'Data Validation Backing (Hide)'!B27) -> 782 | N50: ='Data Validation Backing (Hide)'!G27 -> 782 | P50: =IF('Data Validation Backing (Hide)'!A27="","",'Data Validation Backing (Hide)'!L27) -> 584 | Q50: ='Data Validation Backing (Hide)'!Q27 -> 586 | S50: =IF('Data Validation Backing (Hide)'!A27="","",'Data Validation Backing (Hide)'!V27) -> 338 | T50: ='Data Validation Backing (Hide)'!AA27 -> 338 | V50: =IF('Data Validation Backing (Hide)'!A27="","",'Data Validation Backing (Hide)'!AF27) -> 272 | W50: ='Data Validation Backing (Hide)'!AK27 -> 272 | Y50: =IF('Data Validation Backing (Hide)'!A27="","",'Data Validation Backing (Hide)'!AP27) -> 820 | Z50: ='Data Validation Backing (Hide)'!AU27 -> 818
A51: ='Data Validation Backing (Hide)'!A28 -> 21 | L51: =IF('Demand - External Transfers'!G31="",'Demand - External Transfers'!F31,TEXT('Demand - External Transfers'!G31,"dd/mm/yyyy")) -> 19/08/2017 | M51: =IF('Data Validation Backing (Hide)'!A28="","",'Data Validation Backing (Hide)'!B28) -> 800 | N51: ='Data Validation Backing (Hide)'!G28 -> 800 | P51: =IF('Data Validation Backing (Hide)'!A28="","",'Data Validation Backing (Hide)'!L28) -> 640 | Q51: ='Data Validation Backing (Hide)'!Q28 -> 642 | S51: =IF('Data Validation Backing (Hide)'!A28="","",'Data Validation Backing (Hide)'!V28) -> 270 | T51: ='Data Validation Backing (Hide)'!AA28 -> 270 | V51: =IF('Data Validation Backing (Hide)'!A28="","",'Data Validation Backing (Hide)'!AF28) -> 282 | W51: ='Data Validation Backing (Hide)'!AK28 -> 282 | Y51: =IF('Data Validation Backing (Hide)'!A28="","",'Data Validation Backing (Hide)'!AP28) -> 816 | Z51: ='Data Validation Backing (Hide)'!AU28 -> 814
A52: ='Data Validation Backing (Hide)'!A29 -> 22 | L52: =IF('Demand - External Transfers'!G32="",'Demand - External Transfers'!F32,TEXT('Demand - External Transfers'!G32,"dd/mm/yyyy")) -> 26/08/2017 | M52: =IF('Data Validation Backing (Hide)'!A29="","",'Data Validation Backing (Hide)'!B29) -> 790 | N52: ='Data Validation Backing (Hide)'!G29 -> 790 | P52: =IF('Data Validation Backing (Hide)'!A29="","",'Data Validation Backing (Hide)'!L29) -> 694 | Q52: ='Data Validation Backing (Hide)'!Q29 -> 696 | S52: =IF('Data Validation Backing (Hide)'!A29="","",'Data Validation Backing (Hide)'!V29) -> 216 | T52: ='Data Validation Backing (Hide)'!AA29 -> 216 | V52: =IF('Data Validation Backing (Hide)'!A29="","",'Data Validation Backing (Hide)'!AF29) -> 264 | W52: ='Data Validation Backing (Hide)'!AK29 -> 264 | Y52: =IF('Data Validation Backing (Hide)'!A29="","",'Data Validation Backing (Hide)'!AP29) -> 842 | Z52: ='Data Validation Backing (Hide)'!AU29 -> 840
A53: ='Data Validation Backing (Hide)'!A30 -> 23 | L53: =IF('Demand - External Transfers'!G33="",'Demand - External Transfers'!F33,TEXT('Demand - External Transfers'!G33,"dd/mm/yyyy")) -> 02/09/2017 | M53: =IF('Data Validation Backing (Hide)'!A30="","",'Data Validation Backing (Hide)'!B30) -> 808 | N53: ='Data Validation Backing (Hide)'!G30 -> 808 | P53: =IF('Data Validation Backing (Hide)'!A30="","",'Data Validation Backing (Hide)'!L30) -> 724 | Q53: ='Data Validation Backing (Hide)'!Q30 -> 726 | S53: =IF('Data Validation Backing (Hide)'!A30="","",'Data Validation Backing (Hide)'!V30) -> 220 | T53: ='Data Validation Backing (Hide)'!AA30 -> 220 | V53: =IF('Data Validation Backing (Hide)'!A30="","",'Data Validation Backing (Hide)'!AF30) -> 294 | W53: ='Data Validation Backing (Hide)'!AK30 -> 294 | Y53: =IF('Data Validation Backing (Hide)'!A30="","",'Data Validation Backing (Hide)'!AP30) -> 766 | Z53: ='Data Validation Backing (Hide)'!AU30 -> 764
A54: ='Data Validation Backing (Hide)'!A31 -> 24 | L54: =IF('Demand - External Transfers'!G34="",'Demand - External Transfers'!F34,TEXT('Demand - External Transfers'!G34,"dd/mm/yyyy")) -> 09/09/2017 | M54: =IF('Data Validation Backing (Hide)'!A31="","",'Data Validation Backing (Hide)'!B31) -> 804 | N54: ='Data Validation Backing (Hide)'!G31 -> 804 | P54: =IF('Data Validation Backing (Hide)'!A31="","",'Data Validation Backing (Hide)'!L31) -> 712 | Q54: ='Data Validation Backing (Hide)'!Q31 -> 714 | S54: =IF('Data Validation Backing (Hide)'!A31="","",'Data Validation Backing (Hide)'!V31) -> 216 | T54: ='Data Validation Backing (Hide)'!AA31 -> 216 | V54: =IF('Data Validation Backing (Hide)'!A31="","",'Data Validation Backing (Hide)'!AF31) -> 290 | W54: ='Data Validation Backing (Hide)'!AK31 -> 290 | Y54: =IF('Data Validation Backing (Hide)'!A31="","",'Data Validation Backing (Hide)'!AP31) -> 790 | Z54: ='Data Validation Backing (Hide)'!AU31 -> 788
A55: ='Data Validation Backing (Hide)'!A32 -> 25 | L55: =IF('Demand - External Transfers'!G35="",'Demand - External Transfers'!F35,TEXT('Demand - External Transfers'!G35,"dd/mm/yyyy")) -> 16/09/2017 | M55: =IF('Data Validation Backing (Hide)'!A32="","",'Data Validation Backing (Hide)'!B32) -> 812 | N55: ='Data Validation Backing (Hide)'!G32 -> 812 | P55: =IF('Data Validation Backing (Hide)'!A32="","",'Data Validation Backing (Hide)'!L32) -> 684 | Q55: ='Data Validation Backing (Hide)'!Q32 -> 686 | S55: =IF('Data Validation Backing (Hide)'!A32="","",'Data Validation Backing (Hide)'!V32) -> 208 | T55: ='Data Validation Backing (Hide)'!AA32 -> 208 | V55: =IF('Data Validation Backing (Hide)'!A32="","",'Data Validation Backing (Hide)'!AF32) -> 158 | W55: ='Data Validation Backing (Hide)'!AK32 -> 158 | Y55: =IF('Data Validation Backing (Hide)'!A32="","",'Data Validation Backing (Hide)'!AP32) -> 948 | Z55: ='Data Validation Backing (Hide)'!AU32 -> 946
A56: ='Data Validation Backing (Hide)'!A33 -> 26 | L56: =IF('Demand - External Transfers'!G36="",'Demand - External Transfers'!F36,TEXT('Demand - External Transfers'!G36,"dd/mm/yyyy")) -> 23/09/2017 | M56: =IF('Data Validation Backing (Hide)'!A33="","",'Data Validation Backing (Hide)'!B33) -> 818 | N56: ='Data Validation Backing (Hide)'!G33 -> 818 | P56: =IF('Data Validation Backing (Hide)'!A33="","",'Data Validation Backing (Hide)'!L33) -> 656 | Q56: ='Data Validation Backing (Hide)'!Q33 -> 660 | S56: =IF('Data Validation Backing (Hide)'!A33="","",'Data Validation Backing (Hide)'!V33) -> 140 | T56: ='Data Validation Backing (Hide)'!AA33 -> 140 | V56: =IF('Data Validation Backing (Hide)'!A33="","",'Data Validation Backing (Hide)'!AF33) -> 210 | W56: ='Data Validation Backing (Hide)'!AK33 -> 210 | Y56: =IF('Data Validation Backing (Hide)'!A33="","",'Data Validation Backing (Hide)'!AP33) -> 970 | Z56: ='Data Validation Backing (Hide)'!AU33 -> 966
A57: ='Data Validation Backing (Hide)'!A34 -> 27 | L57: =IF('Demand - External Transfers'!G37="",'Demand - External Transfers'!F37,TEXT('Demand - External Transfers'!G37,"dd/mm/yyyy")) -> 30/09/2017 | M57: =IF('Data Validation Backing (Hide)'!A34="","",'Data Validation Backing (Hide)'!B34) -> 826 | N57: ='Data Validation Backing (Hide)'!G34 -> 826 | P57: =IF('Data Validation Backing (Hide)'!A34="","",'Data Validation Backing (Hide)'!L34) -> 634 | Q57: ='Data Validation Backing (Hide)'!Q34 -> 638 | S57: =IF('Data Validation Backing (Hide)'!A34="","",'Data Validation Backing (Hide)'!V34) -> 178 | T57: ='Data Validation Backing (Hide)'!AA34 -> 178 | V57: =IF('Data Validation Backing (Hide)'!A34="","",'Data Validation Backing (Hide)'!AF34) -> 224 | W57: ='Data Validation Backing (Hide)'!AK34 -> 224 | Y57: =IF('Data Validation Backing (Hide)'!A34="","",'Data Validation Backing (Hide)'!AP34) -> 922 | Z57: ='Data Validation Backing (Hide)'!AU34 -> 918
A58: ='Data Validation Backing (Hide)'!A35 -> 28 | L58: =IF('Demand - External Transfers'!G38="",'Demand - External Transfers'!F38,TEXT('Demand - External Transfers'!G38,"dd/mm/yyyy")) -> 07/10/2017 | M58: =IF('Data Validation Backing (Hide)'!A35="","",'Data Validation Backing (Hide)'!B35) -> 830 | N58: ='Data Validation Backing (Hide)'!G35 -> 830 | P58: =IF('Data Validation Backing (Hide)'!A35="","",'Data Validation Backing (Hide)'!L35) -> 590 | Q58: ='Data Validation Backing (Hide)'!Q35 -> 594 | S58: =IF('Data Validation Backing (Hide)'!A35="","",'Data Validation Backing (Hide)'!V35) -> 260 | T58: ='Data Validation Backing (Hide)'!AA35 -> 260 | V58: =IF('Data Validation Backing (Hide)'!A35="","",'Data Validation Backing (Hide)'!AF35) -> 224 | W58: ='Data Validation Backing (Hide)'!AK35 -> 224 | Y58: =IF('Data Validation Backing (Hide)'!A35="","",'Data Validation Backing (Hide)'!AP35) -> 866 | Z58: ='Data Validation Backing (Hide)'!AU35 -> 862
A59: ='Data Validation Backing (Hide)'!A36 -> 29 | L59: =IF('Demand - External Transfers'!G39="",'Demand - External Transfers'!F39,TEXT('Demand - External Transfers'!G39,"dd/mm/yyyy")) -> 14/10/2017 | M59: =IF('Data Validation Backing (Hide)'!A36="","",'Data Validation Backing (Hide)'!B36) -> 828 | N59: ='Data Validation Backing (Hide)'!G36 -> 828 | P59: =IF('Data Validation Backing (Hide)'!A36="","",'Data Validation Backing (Hide)'!L36) -> 588 | Q59: ='Data Validation Backing (Hide)'!Q36 -> 592 | S59: =IF('Data Validation Backing (Hide)'!A36="","",'Data Validation Backing (Hide)'!V36) -> 258 | T59: ='Data Validation Backing (Hide)'!AA36 -> 258 | V59: =IF('Data Validation Backing (Hide)'!A36="","",'Data Validation Backing (Hide)'!AF36) -> 208 | W59: ='Data Validation Backing (Hide)'!AK36 -> 208 | Y59: =IF('Data Validation Backing (Hide)'!A36="","",'Data Validation Backing (Hide)'!AP36) -> 902 | Z59: ='Data Validation Backing (Hide)'!AU36 -> 898
A60: ='Data Validation Backing (Hide)'!A37 -> 30 | L60: =IF('Demand - External Transfers'!G40="",'Demand - External Transfers'!F40,TEXT('Demand - External Transfers'!G40,"dd/mm/yyyy")) -> 21/10/2017 | M60: =IF('Data Validation Backing (Hide)'!A37="","",'Data Validation Backing (Hide)'!B37) -> 818 | N60: ='Data Validation Backing (Hide)'!G37 -> 818 | P60: =IF('Data Validation Backing (Hide)'!A37="","",'Data Validation Backing (Hide)'!L37) -> 590 | Q60: ='Data Validation Backing (Hide)'!Q37 -> 594 | S60: =IF('Data Validation Backing (Hide)'!A37="","",'Data Validation Backing (Hide)'!V37) -> 192 | T60: ='Data Validation Backing (Hide)'!AA37 -> 192 | V60: =IF('Data Validation Backing (Hide)'!A37="","",'Data Validation Backing (Hide)'!AF37) -> 250 | W60: ='Data Validation Backing (Hide)'!AK37 -> 250 | Y60: =IF('Data Validation Backing (Hide)'!A37="","",'Data Validation Backing (Hide)'!AP37) -> 924 | Z60: ='Data Validation Backing (Hide)'!AU37 -> 920
A61: ='Data Validation Backing (Hide)'!A38 -> 31 | L61: =IF('Demand - External Transfers'!G41="",'Demand - External Transfers'!F41,TEXT('Demand - External Transfers'!G41,"dd/mm/yyyy")) -> 28/10/2017 | M61: =IF('Data Validation Backing (Hide)'!A38="","",'Data Validation Backing (Hide)'!B38) -> 848 | N61: ='Data Validation Backing (Hide)'!G38 -> 848 | P61: =IF('Data Validation Backing (Hide)'!A38="","",'Data Validation Backing (Hide)'!L38) -> 624 | Q61: ='Data Validation Backing (Hide)'!Q38 -> 628 | S61: =IF('Data Validation Backing (Hide)'!A38="","",'Data Validation Backing (Hide)'!V38) -> 188 | T61: ='Data Validation Backing (Hide)'!AA38 -> 188 | V61: =IF('Data Validation Backing (Hide)'!A38="","",'Data Validation Backing (Hide)'!AF38) -> 320 | W61: ='Data Validation Backing (Hide)'!AK38 -> 320 | Y61: =IF('Data Validation Backing (Hide)'!A38="","",'Data Validation Backing (Hide)'!AP38) -> 804 | Z61: ='Data Validation Backing (Hide)'!AU38 -> 800
A62: ='Data Validation Backing (Hide)'!A39 -> 32 | L62: =IF('Demand - External Transfers'!G42="",'Demand - External Transfers'!F42,TEXT('Demand - External Transfers'!G42,"dd/mm/yyyy")) -> 04/11/2017 | M62: =IF('Data Validation Backing (Hide)'!A39="","",'Data Validation Backing (Hide)'!B39) -> 848 | N62: ='Data Validation Backing (Hide)'!G39 -> 848 | P62: =IF('Data Validation Backing (Hide)'!A39="","",'Data Validation Backing (Hide)'!L39) -> 594 | Q62: ='Data Validation Backing (Hide)'!Q39 -> 598 | S62: =IF('Data Validation Backing (Hide)'!A39="","",'Data Validation Backing (Hide)'!V39) -> 244 | T62: ='Data Validation Backing (Hide)'!AA39 -> 244 | V62: =IF('Data Validation Backing (Hide)'!A39="","",'Data Validation Backing (Hide)'!AF39) -> 316 | W62: ='Data Validation Backing (Hide)'!AK39 -> 316 | Y62: =IF('Data Validation Backing (Hide)'!A39="","",'Data Validation Backing (Hide)'!AP39) -> 788 | Z62: ='Data Validation Backing (Hide)'!AU39 -> 784
... 77 more rows

Sheet Service
B8: ="How many services / modes of treatment are used for "&GeneralBacking!D2&"? :" -> How many services / modes of treatment are used for Grp1? : | G8: 2
B10: ="How many services / modes of treatment are used for "&GeneralBacking!D3&"? :" -> How many services / modes of treatment are used for Grp2? : | G10: 2
B12: ="How many services / modes of treatment are used for "&GeneralBacking!D4&"? :" -> How many services / modes of treatment are used for Grp3? : | G12: 2
B14: ="How many services / modes of treatment are used for "&GeneralBacking!D5&"? :" -> How many services / modes of treatment are used for Grp4? : | G14: 2
B16: ="How many services / modes of treatment are used for "&GeneralBacking!D6&"? :" -> How many services / modes of treatment are used for Grp5? : | G16: 2
B18: What are the "units" used per type of contact? | G18: Minutes
B21: Intensity | C21: Mode of Service / Treatment | D21: Group Session? | E21: Length of appointment / session | F21: Number of patients seen / treated | G21: Frequency of Contact | H21: HIDDEN multiplier | I21: =G18&" per week required per patient per type of treatment" -> Minutes per week required per patient per type of treatment | J21: =G18&" required per patient per level of intensity - Non-Group Sessions" -> Minutes required per patient per level of intensity - Non-Group Sessions | K21: =G18&" required per patient per level of intensity - Group Sessions" -> Minutes required per patient per level of intensity - Group Sessions | L21: =G18&" required per level of intensity - Group Sessions" -> Minutes required per level of intensity - Group Sessions
B22: =GeneralBacking!D2 -> Grp1 | C22: Group Session | D22: Yes | E22: 60 | F22: 10 | G22: Once a year | H22: =IFERROR(VLOOKUP(G22,GeneralBacking!$M$2:$N$10,2,FALSE),G22) -> 0.02 | I22: =IFERROR((E22*H22)/F22,"") -> 0.12 | J22: =SUMIF(OFFSET(D22,0,0,G8,1),"="&"No",I22:I26) -> 0.3 | K22: =SUMIF(OFFSET(D22,0,0,G8,1),"="&"Yes",I22:I26) -> 0.12 | L22: =SUMIF(D22:D26,"="&"Yes",E22:E26) -> 60
C23: Face to Face | D23: No | E23: 15 | F23: 1 | G23: Once a year | H23: =IFERROR(VLOOKUP(G23,GeneralBacking!$M$2:$N$10,2,FALSE),G23) -> 0.02 | I23: =IFERROR((E23*H23)/F23,"") -> 0.3
H24: =IFERROR(VLOOKUP(G24,GeneralBacking!$M$2:$N$10,2,FALSE),G24) -> 0 | I24: =IFERROR((E24*H24)/F24,"") -> 
E25: 1 | H25: =IFERROR(VLOOKUP(G25,GeneralBacking!$M$2:$N$10,2,FALSE),G25) -> 0
E26: 1 | H26: =IFERROR(VLOOKUP(G26,GeneralBacking!$M$2:$N$10,2,FALSE),G26) -> 0
B27: =GeneralBacking!D3 -> Grp2 | C27: Group Session | D27: Yes | E27: 60 | F27: 10 | G27: Every four months | H27: =IFERROR(VLOOKUP(G27,GeneralBacking!$M$2:$N$10,2,FALSE),G27) -> 0.06 | I27: 0.36 | J27: =SUMIF(OFFSET(D27,0,0,G10,1),"="&"No",I27:I31) -> 0.9 | K27: =SUMIF(OFFSET(D27,0,0,G10,1),"="&"Yes",I27:I31) -> 0.36 | L27: =SUMIF(D27:D31,"="&"Yes",E27:E31) -> 60
C28: Face to Face | D28: No | E28: 15 | F28: 1 | G28: Every four months | H28: =IFERROR(VLOOKUP(G28,GeneralBacking!$M$2:$N$10,2,FALSE),G28) -> 0.06 | I28: 0.9
E29: 1 | H29: =IFERROR(VLOOKUP(G29,GeneralBacking!$M$2:$N$10,2,FALSE),G29) -> 0
E30: 1 | H30: =IFERROR(VLOOKUP(G30,GeneralBacking!$M$2:$N$10,2,FALSE),G30) -> 0
E31: 1 | H31: =IFERROR(VLOOKUP(G31,GeneralBacking!$M$2:$N$10,2,FALSE),G31) -> 0
B32: =GeneralBacking!D4 -> Grp3 | C32: Group Session | D32: Yes | E32: 120 | F32: 10 | G32: Every two months | H32: =IFERROR(VLOOKUP(G32,GeneralBacking!$M$2:$N$10,2,FALSE),G32) -> 0.12 | I32: 1.44 | J32: =SUMIF(OFFSET(D32,0,0,G12,1),"="&"No",I32:I36) -> 1.8 | K32: =SUMIF(OFFSET(D32,0,0,G12,1),"="&"Yes",I32:I36) -> 1.44 | L32: =SUMIF(D32:D36,"="&"Yes",E32:E36) -> 120
C33: Face to Face | D33: No | E33: 15 | F33: 1 | G33: Every two months | H33: =IFERROR(VLOOKUP(G33,GeneralBacking!$M$2:$N$10,2,FALSE),G33) -> 0.12 | I33: 1.8
E34: 1 | H34: =IFERROR(VLOOKUP(G34,GeneralBacking!$M$2:$N$10,2,FALSE),G34) -> 0
E35: 1 | H35: =IFERROR(VLOOKUP(G35,GeneralBacking!$M$2:$N$10,2,FALSE),G35) -> 0
E36: 1 | H36: =IFERROR(VLOOKUP(G36,GeneralBacking!$M$2:$N$10,2,FALSE),G36) -> 0
B37: =GeneralBacking!D5 -> Grp4 | C37: Group Session | D37: Yes | E37: 180 | F37: 10 | G37: Once a month | H37: =IFERROR(VLOOKUP(G37,GeneralBacking!$M$2:$N$10,2,FALSE),G37) -> 0.23 | I37: 4.14 | J37: =SUMIF(OFFSET(D37,0,0,G14,1),"="&"No",I37:I41) -> 3.45 | K37: =SUMIF(OFFSET(D37,0,0,G14,1),"="&"Yes",I37:I41) -> 4.14 | L37: =SUMIF(D37:D41,"="&"Yes",E37:E41) -> 180
C38: Face to Face | D38: No | E38: 15 | F38: 1 | G38: Once a month | H38: =IFERROR(VLOOKUP(G38,GeneralBacking!$M$2:$N$10,2,FALSE),G38) -> 0.23 | I38: 3.45
E39: 1 | H39: =IFERROR(VLOOKUP(G39,GeneralBacking!$M$2:$N$10,2,FALSE),G39) -> 0
E40: 1 | H40: =IFERROR(VLOOKUP(G40,GeneralBacking!$M$2:$N$10,2,FALSE),G40) -> 0
E41: 1 | H41: =IFERROR(VLOOKUP(G41,GeneralBacking!$M$2:$N$10,2,FALSE),G41) -> 0
B42: =GeneralBacking!D6 -> Grp5 | C42: Group Session | D42: Yes | E42: 300 | F42: 10 | G42: Once a week | H42: =IFERROR(VLOOKUP(G42,GeneralBacking!$M$2:$N$10,2,FALSE),G42) -> 1 | I42: 30 | J42: =SUMIF(OFFSET(D42,0,0,G16,1),"="&"No",I42:I46) -> 15 | K42: =SUMIF(OFFSET(D42,0,0,G16,1),"="&"Yes",I42:I46) -> 30 | L42: =SUMIF(D42:D46,"="&"Yes",E42:E46) -> 300
C43: Face to Face | D43: No | E43: 15 | F43: 1 | G43: Once a week | H43: =IFERROR(VLOOKUP(G43,GeneralBacking!$M$2:$N$10,2,FALSE),G43) -> 1 | I43: 15
E44: 1 | H44: =IFERROR(VLOOKUP(G44,GeneralBacking!$M$2:$N$10,2,FALSE),G44) -> 0
E45: 1 | H45: =IFERROR(VLOOKUP(G45,GeneralBacking!$M$2:$N$10,2,FALSE),G45) -> 0
E46: 1 | H46: =IFERROR(VLOOKUP(G46,GeneralBacking!$M$2:$N$10,2,FALSE),G46) -> 0

Sheet Caseload SPC Chart Backing (hidden)
A2: Week Reference Table | H2: Chart Plot Table | I2: ='Demand - External Transfers'!I9 -> Patients on caseload | Q2: Group No | R2: 6 | AB2: Exception Rules | AY2: SPC Values
A3: Week Reference | B3: 52 week | C3: ='Demand - External Transfers'!C10 -> Season | D3: ='Demand - External Transfers'!D10 -> Year | E3: ='Demand - External Transfers'!E10 -> Month | F3: ='Demand - External Transfers'!F10 -> Week | G3: ='Demand - External Transfers'!G10 -> Date | I3: ='Demand - External Transfers'!I10 -> Grp1 | J3: ='Demand - External Transfers'!J10 -> Grp2 | K3: ='Demand - External Transfers'!K10 -> Grp3 | L3: ='Demand - External Transfers'!L10 -> Grp4 | M3: ='Demand - External Transfers'!M10 -> Grp5 | N3: Total | O3: =IF(SPC_CL_Type="Baseline","Baseline","Season 1") -> Season 1 | P3: Season 2 | Q3: Season 3 | R3: Season 4 | S3: Season | T3: LCL | U3: -2 Sigma | V3: -1 Sigma | W3: Mean | X3: +1 Sigma | Y3: +2 Sigma | Z3: UCL | AB3: 1 | AC3: 2 (1) | AD3: 2 | AE3: 3 (1) | AF3: 3 | AG3: 4 (1) | AH3: 4 | AJ3: Moving Range | AL3: Season Conversion Table | AY3: =A3 -> Week Reference | AZ3: =F3 -> Week | BA3: Season | BB3: LCL | BC3: ="-2 Sigma" -> -2 Sigma | BD3: ="-1 Sigma" -> -1 Sigma | BE3: ="+1 Sigma" -> +1 Sigma | BF3: ="+2 Sigma" -> +2 Sigma | BG3: UCL | BH3: Mean
A4: ='Demand - External Transfers'!A11 -> 1 | B4: ='Demand - External Transfers'!B11 -> 1 | C4: ='Demand - External Transfers'!C11 -> 5 | D4: ='Demand - External Transfers'!D11 -> 2017 | E4: ='Demand - External Transfers'!E11 -> Apr | F4: ='Demand - External Transfers'!F11 -> 13 | G4: ='Demand - External Transfers'!G11 -> 2017-04-01 | I4: =IF('Demand - External Transfers'!$A11="",0,IF('Data Validation'!$L$18=1,'Demand - External Transfers'!I11,'Data Validation Backing (Hide)'!G8))*$AM$17 -> 834 | J4: =IF('Demand - External Transfers'!$A11="",0,IF('Data Validation'!$L$18=1,'Demand - External Transfers'!J11,'Data Validation Backing (Hide)'!Q8))*$AM$18 -> 572 | K4: =IF('Demand - External Transfers'!$A11="",0,IF('Data Validation'!$L$18=1,'Demand - External Transfers'!K11,'Data Validation Backing (Hide)'!AA8))*$AM$19 -> 260 | L4: =IF('Demand - External Transfers'!$A11="",0,IF('Data Validation'!$L$18=1,'Demand - External Transfers'!L11,'Data Validation Backing (Hide)'!AK8))*$AM$20 -> 294 | M4: =IF('Demand - External Transfers'!$A11="",0,IF('Data Validation'!$L$18=1,'Demand - External Transfers'!M11,'Data Validation Backing (Hide)'!AU8))*$AM$21 -> 802 | N4: =SUM(I4:M4) -> 2762 | O4: =IF(SPC_CL_Type="Baseline",IF(AND($A4>=$BK$13,$A4<=$BL$14+$BK$14-1),1,0),IF(S4=1,1,0)) -> 0 | P4: =IF(S4=2,1,0) -> 0 | Q4: =IF(S4=3,1,0) -> 0 | R4: =IF(S4=4,1,0) -> 0 | S4: =IF('Caseload SPC Chart'!$D$9="Total",5,VLOOKUP(B4,$AZ$4:$BA$55,2,FALSE)) -> 5 | T4: =VLOOKUP($S4,$AL$5:$AW$9,7,FALSE) -> 2795.538754 | U4: =VLOOKUP($S4,$AL$5:$AW$9,8,FALSE) -> 2802.777351 | V4: =VLOOKUP($S4,$AL$5:$AW$9,9,FALSE) -> 2810.015948 | W4: =VLOOKUP($S4,$AL$5:$AW$9,4,FALSE) -> 2817.254545 | X4: =VLOOKUP($S4,$AL$5:$AW$9,10,FALSE) -> 2824.493143 | Y4: =VLOOKUP($S4,$AL$5:$AW$9,11,FALSE) -> 2831.73174 | Z4: =VLOOKUP(S4,$AL$5:$AW$9,12,FALSE) -> 2838.970337 | AB4: =IF(OR(INDEX($I$4:$N$159,ROW(A1),$R$2)<T4,INDEX($I$4:$N$159,ROW(A1),$R$2)>Z4),INDEX($I$4:$N$159,ROW(A1),$R$2),NA()) -> 2762 | AC4: =IF((INDEX($I$4:$N$159,ROW(A1),$R$2))<U4,-1,IF((INDEX($I$4:$N$159,ROW(A1),$R$2))>Y4,1,0)) -> -1 | AD4: =IF(ABS(SUM(AC4:AC6))>=2,(INDEX($I$4:$N$159,ROW(A1),$R$2)),NA()) -> 2762 | AE4: =IF((INDEX($I$4:$N$159,ROW(A2),$R$2))>(INDEX($I$4:$N$159,ROW(A1),$R$2)),1,IF((INDEX($I$4:$N$159,ROW(A2),$R$2))<(INDEX($I$4:$N$159,ROW(A1),$R$2)),-1,0)) -> 1 | AF4: =IF(ABS(SUM(AE4:AE9))=6,(INDEX($I$4:$N$159,ROW(A1),$R$2)),NA()) ->  | AG4: =IF((INDEX($I$4:$N$159,ROW(A1),$R$2))<W4,-1,IF((INDEX($I$4:$N$159,ROW(A1),$R$2))>W4,1,0)) -> -1 | AH4: =IF(ABS(SUM(AG4:AG12))=9,(INDEX($I$4:$N$159,ROW(A1),$R$2)),NA()) -> 2762 | AL4: Season | AM4: Start | AN4: End | AO4: Mean | AP4: MRA | AQ4: Sigma | AR4: LCL | AS4: -2 Sigma | AT4: -1 Sigma | AU4: +1 Sigma | AV4: +2 Sigma | AW4: UCL | AY4: =OFFSET(A3,IF(AM5=0,AM5+ROW(A1),AM5-1+ROW(A1)),0,1,1) -> 1 | AZ4: =VLOOKUP(AY4,'Demand - External Transfers'!$A$11:$B$166,2,FALSE) -> 1 | BA4: =IF(SPC_CL_Type="Total",'Caseload SPC Chart Backing'!$AL$9,IF(SPC_CL_Type="Baseline",1,IF(AND(AY4>=$AM$5,AY4<=$AN$5),1,IF(AND(AY4>=$AM$6,AY4<=$AN$6),2,IF(AND(AY4>=$AM$7,AY4<=$AN$7),3,IF(AND(AY4>=$AM$8,AY4<=$AN$8),4,$AN$12)))))) -> 5 | BB4: =VLOOKUP($BA4,$AL$5:$AW$9,COLUMN(G1),FALSE) -> 2795.538754 | BC4: 2802.777351 | BD4: 2810.015948 | BE4: 2824.493143 | BF4: 2831.73174 | BG4: 2838.970337 | BH4: =VLOOKUP($BA4,$AL$5:$AW$9,COLUMN(D1),FALSE) -> 2817.254545
A5: ='Demand - External Transfers'!A12 -> 2 | B5: ='Demand - External Transfers'!B12 -> 2 | C5: ='Demand - External Transfers'!C12 -> 5 | D5: ='Demand - External Transfers'!D12 ->  | E5: ='Demand - External Transfers'!E12 ->  | F5: ='Demand - External Transfers'!F12 -> 14 | G5: ='Demand - External Transfers'!G12 -> 2017-04-08 | I5: =IF('Demand - External Transfers'!$A12="",0,IF('Data Validation'!$L$18=1,'Demand - External Transfers'!I12,'Data Validation Backing (Hide)'!G9))*$AM$17 -> 848 | J5: =IF('Demand - External Transfers'!$A12="",0,IF('Data Validation'!$L$18=1,'Demand - External Transfers'!J12,'Data Validation Backing (Hide)'!Q9))*$AM$18 -> 582 | K5: =IF('Demand - External Transfers'!$A12="",0,IF('Data Validation'!$L$18=1,'Demand - External Transfers'!K12,'Data Validation Backing (Hide)'!AA9))*$AM$19 -> 312 | L5: =IF('Demand - External Transfers'!$A12="",0,IF('Data Validation'!$L$18=1,'Demand - External Transfers'!L12,'Data Validation Backing (Hide)'!AK9))*$AM$20 -> 306 | M5: =IF('Demand - External Transfers'!$A12="",0,IF('Data Validation'!$L$18=1,'Demand - External Transfers'!M12,'Data Validation Backing (Hide)'!AU9))*$AM$21 -> 718 | N5: =SUM(I5:M5) -> 2766 | O5: 0 | P5: =IF(S5=2,1,0) -> 0 | Q5: =IF(S5=3,1,0) -> 0 | R5: =IF(S5=4,1,0) -> 0 | S5: =IF('Caseload SPC Chart'!$D$9="Total",5,VLOOKUP(B5,$AZ$4:$BA$55,2,FALSE)) -> 5 | T5: =VLOOKUP($S5,$AL$5:$AW$9,7,FALSE) -> 2795.538754 | U5: =VLOOKUP($S5,$AL$5:$AW$9,8,FALSE) -> 2802.777351 | V5: =VLOOKUP($S5,$AL$5:$AW$9,9,FALSE) -> 2810.015948 | W5: =VLOOKUP($S5,$AL$5:$AW$9,4,FALSE) -> 2817.254545 | X5: =VLOOKUP($S5,$AL$5:$AW$9,10,FALSE) -> 2824.493143 | Y5: =VLOOKUP($S5,$AL$5:$AW$9,11,FALSE) -> 2831.73174 | Z5: =VLOOKUP(S5,$AL$5:$AW$9,12,FALSE) -> 2838.970337 | AB5: =IF(OR(INDEX($I$4:$N$159,ROW(A2),$R$2)<T5,INDEX($I$4:$N$159,ROW(A2),$R$2)>Z5),INDEX($I$4:$N$159,ROW(A2),$R$2),NA()) -> 2766 | AC5: =IF((INDEX($I$4:$N$159,ROW(A2),$R$2))<U5,-1,IF((INDEX($I$4:$N$159,ROW(A2),$R$2))>Y5,1,0)) -> -1 | AD5: =IF(ABS(SUM(AC5:AC7))>=2,(INDEX($I$4:$N$159,ROW(A2),$R$2)),NA()) -> 2766 | AE5: =IF((INDEX($I$4:$N$159,ROW(A3),$R$2))>(INDEX($I$4:$N$159,ROW(A2),$R$2)),1,IF((INDEX($I$4:$N$159,ROW(A3),$R$2))<(INDEX($I$4:$N$159,ROW(A2),$R$2)),-1,0)) -> 1 | AF5: =IF(ABS(SUM(AE5:AE10))=6,(INDEX($I$4:$N$159,ROW(A2),$R$2)),NA()) ->  | AG5: =IF((INDEX($I$4:$N$159,ROW(A2),$R$2))<W5,-1,IF((INDEX($I$4:$N$159,ROW(A2),$R$2))>W5,1,0)) -> -1 | AH5: =IF(ABS(SUM(AG5:AG13))=9,(INDEX($I$4:$N$159,ROW(A2),$R$2)),NA()) -> 2766 | AJ5: =ABS(OFFSET(H5,0,$R$2,DEM_Max_Rows,1)-OFFSET(H4,0,$R$2,-1,1)) -> 4 | AL5: 1 | AM5: =BK13 -> 0 | AN5: =IFERROR(BK13+BO14,0) -> 9 | AO5: =AVERAGE(OFFSET(H4,BK13-1,R2,BO14,1)) -> 2784.25 | AP5: =AVERAGE(OFFSET(AJ4,BK13,0,BO14,1)) -> 10 | AQ5: =AP5/1.128 -> 8.865248227 | AR5: =$AO$5-($AQ$5*3) -> 2757.654255 | AS5: =$AO$5-($AQ$5*2) -> 2766.519504 | AT5: =$AO$5-($AQ$5*1) -> 2775.384752 | AU5: =$AO$5+($AQ$5*1) -> 2793.115248 | AV5: =$AO$5+($AQ$5*2) -> 2801.980496 | AW5: =$AO$5+($AQ$5*3) -> 2810.845745 | AY5: =AY4+1 -> 2 | AZ5: =IFERROR(VLOOKUP(AY5,'Demand - External Transfers'!$A$11:$B$166,2,FALSE),AZ4+1) -> 2 | BA5: =IF(SPC_CL_Type="Total",'Caseload SPC Chart Backing'!$AL$9,IF(SPC_CL_Type="Baseline",1,IF(AND(AY5>=$AM$5,AY5<=$AN$5),1,IF(AND(AY5>=$AM$6,AY5<=$AN$6),2,IF(AND(AY5>=$AM$7,AY5<=$AN$7),3,IF(AND(AY5>=$AM$8,AY5<=$AN$8),4,$AN$12)))))) -> 5 | BB5: =VLOOKUP($BA5,$AL$5:$AW$9,COLUMN(G2),FALSE) -> 2795.538754 | BC5: =VLOOKUP($BA5,$AL$5:$AW$9,COLUMN(H2),FALSE) -> 2802.777351 | BD5: =VLOOKUP($BA5,$AL$5:$AW$9,COLUMN(I2),FALSE) -> 2810.015948 | BE5: =VLOOKUP($BA5,$AL$5:$AW$9,COLUMN(J2),FALSE) -> 2824.493143 | BF5: =VLOOKUP($BA5,$AL$5:$AW$9,COLUMN(K2),FALSE) -> 2831.73174 | BG5: =VLOOKUP($BA5,$AL$5:$AW$9,COLUMN(L2),FALSE) -> 2838.970337 | BH5: =VLOOKUP($BA5,$AL$5:$AW$9,COLUMN(D2),FALSE) -> 2817.254545
A6: ='Demand - External Transfers'!A13 -> 3 | B6: ='Demand - External Transfers'!B13 -> 3 | C6: ='Demand - External Transfers'!C13 -> 5 | D6: ='Demand - External Transfers'!D13 ->  | E6: ='Demand - External Transfers'!E13 ->  | F6: ='Demand - External Transfers'!F13 -> 15 | G6: ='Demand - External Transfers'!G13 -> 2017-04-15 | I6: =IF('Demand - External Transfers'!$A13="",0,IF('Data Validation'!$L$18=1,'Demand - External Transfers'!I13,'Data Validation Backing (Hide)'!G10))*$AM$17 -> 854 | J6: =IF('Demand - External Transfers'!$A13="",0,IF('Data Validation'!$L$18=1,'Demand - External Transfers'!J13,'Data Validation Backing (Hide)'!Q10))*$AM$18 -> 604 | K6: =IF('Demand - External Transfers'!$A13="",0,IF('Data Validation'!$L$18=1,'Demand - External Transfers'!K13,'Data Validation Backing (Hide)'!AA10))*$AM$19 -> 250 | L6: =IF('Demand - External Transfers'!$A13="",0,IF('Data Validation'!$L$18=1,'Demand - External Transfers'!L13,'Data Validation Backing (Hide)'!AK10))*$AM$20 -> 242 | M6: =IF('Demand - External Transfers'!$A13="",0,IF('Data Validation'!$L$18=1,'Demand - External Transfers'!M13,'Data Validation Backing (Hide)'!AU10))*$AM$21 -> 832 | N6: 2782 | O6: 0 | P6: 0 | Q6: 0 | R6: 0 | S6: =IF('Caseload SPC Chart'!$D$9="Total",5,VLOOKUP(B6,$AZ$4:$BA$55,2,FALSE)) -> 5 | T6: 2795.538754 | U6: 2802.777351 | V6: 2810.015948 | W6: 2817.254545 | X6: 2824.493143 | Y6: 2831.73174 | Z6: 2838.970337 | AB6: 2782 | AC6: -1 | AD6: 2782 | AE6: 1 | AG6: -1 | AH6: 2782 | AJ6: 16 | AL6: 2 | AM6: =AN5+1 -> 10 | AN6: =IFERROR(AN5+BO16,0) -> 0 | AO6: =AVERAGE(OFFSET(H4,BL16-9,R2,BO16,1)) ->  | AP6: =AVERAGE(OFFSET(AJ4,BL16-9,0,BO16,1)) ->  | AQ6: =AP6/1.128 ->  | AR6: =$AO$6-($AQ$6*3) ->  | AS6: =$AO$6-($AQ$6*2) ->  | AT6: =$AO$6-($AQ$6*1) ->  | AU6: =$AO$6+($AQ$6*1) ->  | AV6: =$AO$6+($AQ$6*2) ->  | AW6: =$AO$6+($AQ$6*3) ->  | AY6: =AY5+1 -> 3 | AZ6: =IFERROR(VLOOKUP(AY6,'Demand - External Transfers'!$A$11:$B$166,2,FALSE),AZ5+1) -> 3 | BA6: =IF(SPC_CL_Type="Total",'Caseload SPC Chart Backing'!$AL$9,IF(SPC_CL_Type="Baseline",1,IF(AND(AY6>=$AM$5,AY6<=$AN$5),1,IF(AND(AY6>=$AM$6,AY6<=$AN$6),2,IF(AND(AY6>=$AM$7,AY6<=$AN$7),3,IF(AND(AY6>=$AM$8,AY6<=$AN$8),4,$AN$12)))))) -> 5 | BB6: 2795.538754 | BC6: 2802.777351 | BD6: 2810.015948 | BE6: 2824.493143 | BF6: 2831.73174 | BG6: 2838.970337 | BH6: 2817.254545
A7: ='Demand - External Transfers'!A14 -> 4 | B7: ='Demand - External Transfers'!B14 -> 4 | C7: ='Demand - External Transfers'!C14 -> 5 | D7: ='Demand - External Transfers'!D14 ->  | E7: ='Demand - External Transfers'!E14 ->  | F7: ='Demand - External Transfers'!F14 -> 16 | G7: ='Demand - External Transfers'!G14 -> 2017-04-22 | I7: =IF('Demand - External Transfers'!$A14="",0,IF('Data Validation'!$L$18=1,'Demand - External Transfers'!I14,'Data Validation Backing (Hide)'!G11))*$AM$17 -> 866 | J7: =IF('Demand - External Transfers'!$A14="",0,IF('Data Validation'!$L$18=1,'Demand - External Transfers'!J14,'Data Validation Backing (Hide)'!Q11))*$AM$18 -> 594 | K7: =IF('Demand - External Transfers'!$A14="",0,IF('Data Validation'!$L$18=1,'Demand - External Transfers'!K14,'Data Validation Backing (Hide)'!AA11))*$AM$19 -> 220 | L7: =IF('Demand - External Transfers'!$A14="",0,IF('Data Validation'!$L$18=1,'Demand - External Transfers'!L14,'Data Validation Backing (Hide)'!AK11))*$AM$20 -> 232 | M7: =IF('Demand - External Transfers'!$A14="",0,IF('Data Validation'!$L$18=1,'Demand - External Transfers'!M14,'Data Validation Backing (Hide)'!AU11))*$AM$21 -> 872 | N7: 2784 | O7: 0 | P7: 0 | Q7: 0 | R7: 0 | S7: =IF('Caseload SPC Chart'!$D$9="Total",5,VLOOKUP(B7,$AZ$4:$BA$55,2,FALSE)) -> 5 | T7: 2795.538754 | U7: 2802.777351 | V7: 2810.015948 | W7: 2817.254545 | X7: 2824.493143 | Y7: 2831.73174 | Z7: 2838.970337 | AB7: 2784 | AC7: -1 | AD7: 2784 | AE7: 1 | AG7: -1 | AH7: 2784 | AJ7: 2 | AL7: 3 | AM7: =AN6+1 -> 1 | AN7: =IFERROR(AM7+BO18,0) -> 0 | AO7: =AVERAGE(OFFSET(H4,BL18-9,R2,BO18,1)) ->  | AP7: =AVERAGE(OFFSET(AJ4,BL18-9,0,BO18,1)) ->  | AQ7: =AP7/1.128 ->  | AR7: =$AO$7-($AQ$7*3) ->  | AS7: =$AO$7-($AQ$7*2) ->  | AT7: =$AO$7-($AQ$7*1) ->  | AU7: =$AO$7+($AQ$7*1) ->  | AV7: =$AO$7+($AQ$7*2) ->  | AW7: =$AO$7+($AQ$7*3) ->  | AY7: 4 | AZ7: =IFERROR(VLOOKUP(AY7,'Demand - External Transfers'!$A$11:$B$166,2,FALSE),AZ6+1) -> 4 | BA7: =IF(SPC_CL_Type="Total",'Caseload SPC Chart Backing'!$AL$9,IF(SPC_CL_Type="Baseline",1,IF(AND(AY7>=$AM$5,AY7<=$AN$5),1,IF(AND(AY7>=$AM$6,AY7<=$AN$6),2,IF(AND(AY7>=$AM$7,AY7<=$AN$7),3,IF(AND(AY7>=$AM$8,AY7<=$AN$8),4,$AN$12)))))) -> 5 | BB7: 2795.538754 | BC7: 2802.777351 | BD7: 2810.015948 | BE7: 2824.493143 | BF7: 2831.73174 | BG7: 2838.970337 | BH7: 2817.254545
A8: ='Demand - External Transfers'!A15 -> 5 | B8: ='Demand - External Transfers'!B15 -> 5 | C8: ='Demand - External Transfers'!C15 -> 5 | D8: ='Demand - External Transfers'!D15 ->  | E8: ='Demand - External Transfers'!E15 ->  | F8: ='Demand - External Transfers'!F15 -> 17 | G8: ='Demand - External Transfers'!G15 -> 2017-04-29 | I8: =IF('Demand - External Transfers'!$A15="",0,IF('Data Validation'!$L$18=1,'Demand - External Transfers'!I15,'Data Validation Backing (Hide)'!G12))*$AM$17 -> 844 | J8: =IF('Demand - External Transfers'!$A15="",0,IF('Data Validation'!$L$18=1,'Demand - External Transfers'!J15,'Data Validation Backing (Hide)'!Q12))*$AM$18 -> 580 | K8: =IF('Demand - External Transfers'!$A15="",0,IF('Data Validation'!$L$18=1,'Demand - External Transfers'!K15,'Data Validation Backing (Hide)'!AA12))*$AM$19 -> 158 | L8: =IF('Demand - External Transfers'!$A15="",0,IF('Data Validation'!$L$18=1,'Demand - External Transfers'!L15,'Data Validation Backing (Hide)'!AK12))*$AM$20 -> 272 | M8: =IF('Demand - External Transfers'!$A15="",0,IF('Data Validation'!$L$18=1,'Demand - External Transfers'!M15,'Data Validation Backing (Hide)'!AU12))*$AM$21 -> 948 | N8: 2802 | O8: 0 | P8: 0 | Q8: 0 | R8: 0 | S8: =IF('Caseload SPC Chart'!$D$9="Total",5,VLOOKUP(B8,$AZ$4:$BA$55,2,FALSE)) -> 5 | T8: 2795.538754 | U8: 2802.777351 | V8: 2810.015948 | W8: 2817.254545 | X8: 2824.493143 | Y8: 2831.73174 | Z8: 2838.970337 | AC8: -1 | AD8: 2802 | AE8: -1 | AG8: -1 | AH8: 2802 | AJ8: 18 | AL8: 4 | AM8: =AN7+1 -> 1 | AN8: =IFERROR(AM8+BO20,0) -> 0 | AO8: =AVERAGE(OFFSET(H4,BL20-9,R2,BO20,1)) ->  | AP8: =AVERAGE(OFFSET(AJ4,BL20-9,0,BO20,1)) ->  | AQ8: =AP8/1.128 ->  | AR8: =$AO$8-($AQ$8*3) ->  | AS8: =$AO$8-($AQ$8*2) ->  | AT8: =$AO$8-($AQ$8*1) ->  | AU8: =$AO$8+($AQ$8*1) ->  | AV8: =$AO$8+($AQ$8*2) ->  | AW8: =$AO$8+($AQ$8*3) ->  | AY8: 5 | AZ8: =IFERROR(VLOOKUP(AY8,'Demand - External Transfers'!$A$11:$B$166,2,FALSE),AZ7+1) -> 5 | BA8: =IF(SPC_CL_Type="Total",'Caseload SPC Chart Backing'!$AL$9,IF(SPC_CL_Type="Baseline",1,IF(AND(AY8>=$AM$5,AY8<=$AN$5),1,IF(AND(AY8>=$AM$6,AY8<=$AN$6),2,IF(AND(AY8>=$AM$7,AY8<=$AN$7),3,IF(AND(AY8>=$AM$8,AY8<=$AN$8),4,$AN$12)))))) -> 5 | BB8: 2795.538754 | BC8: 2802.777351 | BD8: 2810.015948 | BE8: 2824.493143 | BF8: 2831.73174 | BG8: 2838.970337 | BH8: 2817.254545
A9: ='Demand - External Transfers'!A16 -> 6 | B9: ='Demand - External Transfers'!B16 -> 6 | C9: ='Demand - External Transfers'!C16 -> 5 | D9: ='Demand - External Transfers'!D16 ->  | E9: ='Demand - External Transfers'!E16 -> May | F9: ='Demand - External Transfers'!F16 -> 18 | G9: ='Demand - External Transfers'!G16 -> 2017-05-06 | I9: =IF('Demand - External Transfers'!$A16="",0,IF('Data Validation'!$L$18=1,'Demand - External Transfers'!I16,'Data Validation Backing (Hide)'!G13))*$AM$17 -> 822 | J9: =IF('Demand - External Transfers'!$A16="",0,IF('Data Validation'!$L$18=1,'Demand - External Transfers'!J16,'Data Validation Backing (Hide)'!Q13))*$AM$18 -> 574 | K9: =IF('Demand - External Transfers'!$A16="",0,IF('Data Validation'!$L$18=1,'Demand - External Transfers'!K16,'Data Validation Backing (Hide)'!AA13))*$AM$19 -> 152 | L9: =IF('Demand - External Transfers'!$A16="",0,IF('Data Validation'!$L$18=1,'Demand - External Transfers'!L16,'Data Validation Backing (Hide)'!AK13))*$AM$20 -> 298 | M9: =IF('Demand - External Transfers'!$A16="",0,IF('Data Validation'!$L$18=1,'Demand - External Transfers'!M16,'Data Validation Backing (Hide)'!AU13))*$AM$21 -> 942 | N9: 2788 | O9: 0 | P9: 0 | Q9: 0 | R9: 0 | S9: =IF('Caseload SPC Chart'!$D$9="Total",5,VLOOKUP(B9,$AZ$4:$BA$55,2,FALSE)) -> 5 | T9: 2795.538754 | U9: 2802.777351 | V9: 2810.015948 | W9: 2817.254545 | X9: 2824.493143 | Y9: 2831.73174 | Z9: 2838.970337 | AB9: 2788 | AC9: -1 | AD9: 2788 | AE9: -1 | AG9: -1 | AH9: 2788 | AJ9: 14 | AL9: 5 | AM9: 1 | AN9: =DEM_Max_Rows -> 110 | AO9: =AVERAGE(OFFSET(H4,0,R2,AN9,1)) -> 2817.254545 | AP9: =AVERAGE(OFFSET(AJ4,0,0,AN9,1)) -> 8.165137615 | AQ9: =AP9/1.128 -> 7.238597176 | AR9: =$AO$9-($AQ$9*3) -> 2795.538754 | AS9: =$AO$9-($AQ$9*2) -> 2802.777351 | AT9: =$AO$9-($AQ$9*1) -> 2810.015948 | AU9: =$AO$9+($AQ$9*1) -> 2824.493143 | AV9: =$AO$9+($AQ$9*2) -> 2831.73174 | AW9: =$AO$9+($AQ$9*3) -> 2838.970337 | AY9: 6 | AZ9: =IFERROR(VLOOKUP(AY9,'Demand - External Transfers'!$A$11:$B$166,2,FALSE),AZ8+1) -> 6 | BA9: =IF(SPC_CL_Type="Total",'Caseload SPC Chart Backing'!$AL$9,IF(SPC_CL_Type="Baseline",1,IF(AND(AY9>=$AM$5,AY9<=$AN$5),1,IF(AND(AY9>=$AM$6,AY9<=$AN$6),2,IF(AND(AY9>=$AM$7,AY9<=$AN$7),3,IF(AND(AY9>=$AM$8,AY9<=$AN$8),4,$AN$12)))))) -> 5 | BB9: 2795.538754 | BC9: 2802.777351 | BD9: 2810.015948 | BE9: 2824.493143 | BF9: 2831.73174 | BG9: 2838.970337 | BH9: 2817.254545
A10: ='Demand - External Transfers'!A17 -> 7 | B10: ='Demand - External Transfers'!B17 -> 7 | C10: ='Demand - External Transfers'!C17 -> 5 | D10: ='Demand - External Transfers'!D17 ->  | E10: ='Demand - External Transfers'!E17 ->  | F10: ='Demand - External Transfers'!F17 -> 19 | G10: ='Demand - External Transfers'!G17 -> 2017-05-13 | I10: =IF('Demand - External Transfers'!$A17="",0,IF('Data Validation'!$L$18=1,'Demand - External Transfers'!I17,'Data Validation Backing (Hide)'!G14))*$AM$17 -> 800 | J10: =IF('Demand - External Transfers'!$A17="",0,IF('Data Validation'!$L$18=1,'Demand - External Transfers'!J17,'Data Validation Backing (Hide)'!Q14))*$AM$18 -> 522 | K10: =IF('Demand - External Transfers'!$A17="",0,IF('Data Validation'!$L$18=1,'Demand - External Transfers'!K17,'Data Validation Backing (Hide)'!AA14))*$AM$19 -> 204 | L10: =IF('Demand - External Transfers'!$A17="",0,IF('Data Validation'!$L$18=1,'Demand - External Transfers'!L17,'Data Validation Backing (Hide)'!AK14))*$AM$20 -> 324 | M10: =IF('Demand - External Transfers'!$A17="",0,IF('Data Validation'!$L$18=1,'Demand - External Transfers'!M17,'Data Validation Backing (Hide)'!AU14))*$AM$21 -> 936 | N10: 2786 | O10: 0 | P10: 0 | Q10: 0 | R10: 0 | S10: =IF('Caseload SPC Chart'!$D$9="Total",5,VLOOKUP(B10,$AZ$4:$BA$55,2,FALSE)) -> 5 | T10: 2795.538754 | U10: 2802.777351 | V10: 2810.015948 | W10: 2817.254545 | X10: 2824.493143 | Y10: 2831.73174 | Z10: 2838.970337 | AB10: 2786 | AC10: -1 | AD10: 2786 | AE10: 1 | AG10: -1 | AH10: 2786 | AJ10: 2 | AM10: Valid Seasons | AN10: =4-(COUNTIF(AN5:AN8,0)) -> 1 | AY10: 7 | AZ10: =IFERROR(VLOOKUP(AY10,'Demand - External Transfers'!$A$11:$B$166,2,FALSE),AZ9+1) -> 7 | BA10: =IF(SPC_CL_Type="Total",'Caseload SPC Chart Backing'!$AL$9,IF(SPC_CL_Type="Baseline",1,IF(AND(AY10>=$AM$5,AY10<=$AN$5),1,IF(AND(AY10>=$AM$6,AY10<=$AN$6),2,IF(AND(AY10>=$AM$7,AY10<=$AN$7),3,IF(AND(AY10>=$AM$8,AY10<=$AN$8),4,$AN$12)))))) -> 5 | BB10: 2795.538754 | BC10: 2802.777351 | BD10: 2810.015948 | BE10: 2824.493143 | BF10: 2831.73174 | BG10: 2838.970337 | BH10: 2817.254545
A11: ='Demand - External Transfers'!A18 -> 8 | B11: ='Demand - External Transfers'!B18 -> 8 | C11: ='Demand - External Transfers'!C18 -> 5 | D11: ='Demand - External Transfers'!D18 ->  | E11: ='Demand - External Transfers'!E18 ->  | F11: ='Demand - External Transfers'!F18 -> 20 | G11: ='Demand - External Transfers'!G18 -> 2017-05-20 | I11: =IF('Demand - External Transfers'!$A18="",0,IF('Data Validation'!$L$18=1,'Demand - External Transfers'!I18,'Data Validation Backing (Hide)'!G15))*$AM$17 -> 806 | J11: =IF('Demand - External Transfers'!$A18="",0,IF('Data Validation'!$L$18=1,'Demand - External Transfers'!J18,'Data Validation Backing (Hide)'!Q15))*$AM$18 -> 516 | K11: =IF('Demand - External Transfers'!$A18="",0,IF('Data Validation'!$L$18=1,'Demand - External Transfers'!K18,'Data Validation Backing (Hide)'!AA15))*$AM$19 -> 228 | L11: =IF('Demand - External Transfers'!$A18="",0,IF('Data Validation'!$L$18=1,'Demand - External Transfers'!L18,'Data Validation Backing (Hide)'!AK15))*$AM$20 -> 256 | M11: =IF('Demand - External Transfers'!$A18="",0,IF('Data Validation'!$L$18=1,'Demand - External Transfers'!M18,'Data Validation Backing (Hide)'!AU15))*$AM$21 -> 998 | N11: 2804 | O11: 0 | P11: 0 | Q11: 0 | R11: 0 | S11: =IF('Caseload SPC Chart'!$D$9="Total",5,VLOOKUP(B11,$AZ$4:$BA$55,2,FALSE)) -> 5 | T11: 2795.538754 | U11: 2802.777351 | V11: 2810.015948 | W11: 2817.254545 | X11: 2824.493143 | Y11: 2831.73174 | Z11: 2838.970337 | AC11: 0 | AD11: 2804 | AE11: -1 | AG11: -1 | AH11: 2804 | AJ11: 18 | AM11: Remaining Wks | AN11: =52-(IFERROR('Caseload SPC Chart Backing'!BO14,0)+IFERROR('Caseload SPC Chart Backing'!BO16,0)+IFERROR('Caseload SPC Chart Backing'!BO18,0)+IFERROR('Caseload SPC Chart Backing'!BO20,0)) -> 43 | AY11: 8 | AZ11: =IFERROR(VLOOKUP(AY11,'Demand - External Transfers'!$A$11:$B$166,2,FALSE),AZ10+1) -> 8 | BA11: =IF(SPC_CL_Type="Total",'Caseload SPC Chart Backing'!$AL$9,IF(SPC_CL_Type="Baseline",1,IF(AND(AY11>=$AM$5,AY11<=$AN$5),1,IF(AND(AY11>=$AM$6,AY11<=$AN$6),2,IF(AND(AY11>=$AM$7,AY11<=$AN$7),3,IF(AND(AY11>=$AM$8,AY11<=$AN$8),4,$AN$12)))))) -> 5 | BB11: 2795.538754 | BC11: 2802.777351 | BD11: 2810.015948 | BE11: 2824.493143 | BF11: 2831.73174 | BG11: 2838.970337 | BH11: 2817.254545 | BJ11: Seasonality Selection Table
A12: ='Demand - External Transfers'!A19 -> 9 | B12: ='Demand - External Transfers'!B19 -> 9 | C12: ='Demand - External Transfers'!C19 -> 5 | D12: ='Demand - External Transfers'!D19 ->  | E12: ='Demand - External Transfers'!E19 ->  | F12: ='Demand - External Transfers'!F19 -> 21 | G12: ='Demand - External Transfers'!G19 -> 2017-05-27 | I12: =IF('Demand - External Transfers'!$A19="",0,IF('Data Validation'!$L$18=1,'Demand - External Transfers'!I19,'Data Validation Backing (Hide)'!G16))*$AM$17 -> 830 | J12: =IF('Demand - External Transfers'!$A19="",0,IF('Data Validation'!$L$18=1,'Demand - External Transfers'!J19,'Data Validation Backing (Hide)'!Q16))*$AM$18 -> 550 | K12: =IF('Demand - External Transfers'!$A19="",0,IF('Data Validation'!$L$18=1,'Demand - External Transfers'!K19,'Data Validation Backing (Hide)'!AA16))*$AM$19 -> 252 | L12: =IF('Demand - External Transfers'!$A19="",0,IF('Data Validation'!$L$18=1,'Demand - External Transfers'!L19,'Data Validation Backing (Hide)'!AK16))*$AM$20 -> 298 | M12: =IF('Demand - External Transfers'!$A19="",0,IF('Data Validation'!$L$18=1,'Demand - External Transfers'!M19,'Data Validation Backing (Hide)'!AU16))*$AM$21 -> 868 | N12: 2798 | O12: 0 | P12: 0 | Q12: 0 | R12: 0 | S12: =IF('Caseload SPC Chart'!$D$9="Total",5,VLOOKUP(B12,$AZ$4:$BA$55,2,FALSE)) -> 5 | T12: 2795.538754 | U12: 2802.777351 | V12: 2810.015948 | W12: 2817.254545 | X12: 2824.493143 | Y12: 2831.73174 | Z12: 2838.970337 | AC12: -1 | AD12: 2798 | AE12: 1 | AG12: -1 | AH12: 2798 | AJ12: 6 | AM12: Remaining Wks use Season | AN12: ='Caseload SPC Chart'!$E$28 -> 0 | AY12: 9 | AZ12: =IFERROR(VLOOKUP(AY12,'Demand - External Transfers'!$A$11:$B$166,2,FALSE),AZ11+1) -> 9 | BA12: =IF(SPC_CL_Type="Total",'Caseload SPC Chart Backing'!$AL$9,IF(SPC_CL_Type="Baseline",1,IF(AND(AY12>=$AM$5,AY12<=$AN$5),1,IF(AND(AY12>=$AM$6,AY12<=$AN$6),2,IF(AND(AY12>=$AM$7,AY12<=$AN$7),3,IF(AND(AY12>=$AM$8,AY12<=$AN$8),4,$AN$12)))))) -> 5 | BB12: 2795.538754 | BC12: 2802.777351 | BD12: 2810.015948 | BE12: 2824.493143 | BF12: 2831.73174 | BG12: 2838.970337 | BH12: 2817.254545 | BK12: Selected Value | BL12: From | BM12: To | BN12: Area | BO12: Length
A13: ='Demand - External Transfers'!A20 -> 10 | B13: ='Demand - External Transfers'!B20 -> 10 | C13: ='Demand - External Transfers'!C20 -> 5 | D13: ='Demand - External Transfers'!D20 ->  | E13: ='Demand - External Transfers'!E20 -> Jun | F13: ='Demand - External Transfers'!F20 -> 22 | G13: ='Demand - External Transfers'!G20 -> 2017-06-03 | I13: =IF('Demand - External Transfers'!$A20="",0,IF('Data Validation'!$L$18=1,'Demand - External Transfers'!I20,'Data Validation Backing (Hide)'!G17))*$AM$17 -> 816 | J13: =IF('Demand - External Transfers'!$A20="",0,IF('Data Validation'!$L$18=1,'Demand - External Transfers'!J20,'Data Validation Backing (Hide)'!Q17))*$AM$18 -> 572 | K13: =IF('Demand - External Transfers'!$A20="",0,IF('Data Validation'!$L$18=1,'Demand - External Transfers'!K20,'Data Validation Backing (Hide)'!AA17))*$AM$19 -> 246 | L13: =IF('Demand - External Transfers'!$A20="",0,IF('Data Validation'!$L$18=1,'Demand - External Transfers'!L20,'Data Validation Backing (Hide)'!AK17))*$AM$20 -> 296 | M13: =IF('Demand - External Transfers'!$A20="",0,IF('Data Validation'!$L$18=1,'Demand - External Transfers'!M20,'Data Validation Backing (Hide)'!AU17))*$AM$21 -> 872 | N13: 2802 | O13: 0 | P13: 0 | Q13: 0 | R13: 0 | S13: =IF('Caseload SPC Chart'!$D$9="Total",5,VLOOKUP(B13,$AZ$4:$BA$55,2,FALSE)) -> 5 | T13: 2795.538754 | U13: 2802.777351 | V13: 2810.015948 | W13: 2817.254545 | X13: 2824.493143 | Y13: 2831.73174 | Z13: 2838.970337 | AC13: -1 | AD13: 2802 | AE13: -1 | AG13: -1 | AH13: 2802 | AJ13: 4 | AY13: 10 | AZ13: =IFERROR(VLOOKUP(AY13,'Demand - External Transfers'!$A$11:$B$166,2,FALSE),AZ12+1) -> 10 | BA13: =IF(SPC_CL_Type="Total",'Caseload SPC Chart Backing'!$AL$9,IF(SPC_CL_Type="Baseline",1,IF(AND(AY13>=$AM$5,AY13<=$AN$5),1,IF(AND(AY13>=$AM$6,AY13<=$AN$6),2,IF(AND(AY13>=$AM$7,AY13<=$AN$7),3,IF(AND(AY13>=$AM$8,AY13<=$AN$8),4,$AN$12)))))) -> 5 | BB13: 2795.538754 | BC13: 2802.777351 | BD13: 2810.015948 | BE13: 2824.493143 | BF13: 2831.73174 | BG13: 2838.970337 | BH13: 2817.254545 | BJ13: Split1Start
A14: ='Demand - External Transfers'!A21 -> 11 | B14: ='Demand - External Transfers'!B21 -> 11 | C14: ='Demand - External Transfers'!C21 -> 5 | D14: ='Demand - External Transfers'!D21 ->  | E14: ='Demand - External Transfers'!E21 ->  | F14: ='Demand - External Transfers'!F21 -> 23 | G14: ='Demand - External Transfers'!G21 -> 2017-06-10 | I14: =IF('Demand - External Transfers'!$A21="",0,IF('Data Validation'!$L$18=1,'Demand - External Transfers'!I21,'Data Validation Backing (Hide)'!G18))*$AM$17 -> 816 | J14: =IF('Demand - External Transfers'!$A21="",0,IF('Data Validation'!$L$18=1,'Demand - External Transfers'!J21,'Data Validation Backing (Hide)'!Q18))*$AM$18 -> 534 | K14: =IF('Demand - External Transfers'!$A21="",0,IF('Data Validation'!$L$18=1,'Demand - External Transfers'!K21,'Data Validation Backing (Hide)'!AA18))*$AM$19 -> 256 | L14: =IF('Demand - External Transfers'!$A21="",0,IF('Data Validation'!$L$18=1,'Demand - External Transfers'!L21,'Data Validation Backing (Hide)'!AK18))*$AM$20 -> 188 | M14: =IF('Demand - External Transfers'!$A21="",0,IF('Data Validation'!$L$18=1,'Demand - External Transfers'!M21,'Data Validation Backing (Hide)'!AU18))*$AM$21 -> 984 | N14: 2778 | O14: 0 | P14: 0 | Q14: 0 | R14: 0 | S14: =IF('Caseload SPC Chart'!$D$9="Total",5,VLOOKUP(B14,$AZ$4:$BA$55,2,FALSE)) -> 5 | T14: 2795.538754 | U14: 2802.777351 | V14: 2810.015948 | W14: 2817.254545 | X14: 2824.493143 | Y14: 2831.73174 | Z14: 2838.970337 | AB14: 2778 | AC14: -1 | AD14: 2778 | AE14: 1 | AG14: -1 | AH14: 2778 | AJ14: 24 | AL14: Service Conversion Table | AY14: 11 | AZ14: =IFERROR(VLOOKUP(AY14,'Demand - External Transfers'!$A$11:$B$166,2,FALSE),AZ13+1) -> 11 | BA14: =IF(SPC_CL_Type="Total",'Caseload SPC Chart Backing'!$AL$9,IF(SPC_CL_Type="Baseline",1,IF(AND(AY14>=$AM$5,AY14<=$AN$5),1,IF(AND(AY14>=$AM$6,AY14<=$AN$6),2,IF(AND(AY14>=$AM$7,AY14<=$AN$7),3,IF(AND(AY14>=$AM$8,AY14<=$AN$8),4,$AN$12)))))) -> 5 | BB14: 2795.538754 | BC14: 2802.777351 | BD14: 2810.015948 | BE14: 2824.493143 | BF14: 2831.73174 | BG14: 2838.970337 | BH14: 2817.254545 | BJ14: Split1End | BL14: =BK13+9 -> 9 | BM14: =MIN(DEM_Max_Rows,BK13+52) -> 52 | BN14: =BM14-BL14 -> 43 | BO14: =(BK14+BL14)-BK13 -> 9
A15: ='Demand - External Transfers'!A22 -> 12 | B15: ='Demand - External Transfers'!B22 -> 12 | C15: ='Demand - External Transfers'!C22 -> 5 | D15: ='Demand - External Transfers'!D22 ->  | E15: ='Demand - External Transfers'!E22 ->  | F15: ='Demand - External Transfers'!F22 -> 24 | G15: ='Demand - External Transfers'!G22 -> 2017-06-17 | I15: =IF('Demand - External Transfers'!$A22="",0,IF('Data Validation'!$L$18=1,'Demand - External Transfers'!I22,'Data Validation Backing (Hide)'!G19))*$AM$17 -> 808 | J15: =IF('Demand - External Transfers'!$A22="",0,IF('Data Validation'!$L$18=1,'Demand - External Transfers'!J22,'Data Validation Backing (Hide)'!Q19))*$AM$18 -> 536 | K15: =IF('Demand - External Transfers'!$A22="",0,IF('Data Validation'!$L$18=1,'Demand - External Transfers'!K22,'Data Validation Backing (Hide)'!AA19))*$AM$19 -> 184 | L15: =IF('Demand - External Transfers'!$A22="",0,IF('Data Validation'!$L$18=1,'Demand - External Transfers'!L22,'Data Validation Backing (Hide)'!AK19))*$AM$20 -> 272 | M15: =IF('Demand - External Transfers'!$A22="",0,IF('Data Validation'!$L$18=1,'Demand - External Transfers'!M22,'Data Validation Backing (Hide)'!AU19))*$AM$21 -> 980 | N15: 2780 | O15: 0 | P15: 0 | Q15: 0 | R15: 0 | S15: =IF('Caseload SPC Chart'!$D$9="Total",5,VLOOKUP(B15,$AZ$4:$BA$55,2,FALSE)) -> 5 | T15: 2795.538754 | U15: 2802.777351 | V15: 2810.015948 | W15: 2817.254545 | X15: 2824.493143 | Y15: 2831.73174 | Z15: 2838.970337 | AB15: 2780 | AC15: -1 | AD15: 2780 | AE15: -1 | AG15: -1 | AH15: 2780 | AJ15: 2 | AY15: 12 | AZ15: =IFERROR(VLOOKUP(AY15,'Demand - External Transfers'!$A$11:$B$166,2,FALSE),AZ14+1) -> 12 | BA15: =IF(SPC_CL_Type="Total",'Caseload SPC Chart Backing'!$AL$9,IF(SPC_CL_Type="Baseline",1,IF(AND(AY15>=$AM$5,AY15<=$AN$5),1,IF(AND(AY15>=$AM$6,AY15<=$AN$6),2,IF(AND(AY15>=$AM$7,AY15<=$AN$7),3,IF(AND(AY15>=$AM$8,AY15<=$AN$8),4,$AN$12)))))) -> 5 | BB15: 2795.538754 | BC15: 2802.777351 | BD15: 2810.015948 | BE15: 2824.493143 | BF15: 2831.73174 | BG15: 2838.970337 | BH15: 2817.254545 | BJ15: Split2Start
A16: ='Demand - External Transfers'!A23 -> 13 | B16: ='Demand - External Transfers'!B23 -> 13 | C16: ='Demand - External Transfers'!C23 -> 5 | D16: ='Demand - External Transfers'!D23 ->  | E16: ='Demand - External Transfers'!E23 ->  | F16: ='Demand - External Transfers'!F23 -> 25 | G16: ='Demand - External Transfers'!G23 -> 2017-06-24 | I16: =IF('Demand - External Transfers'!$A23="",0,IF('Data Validation'!$L$18=1,'Demand - External Transfers'!I23,'Data Validation Backing (Hide)'!G20))*$AM$17 -> 786 | J16: =IF('Demand - External Transfers'!$A23="",0,IF('Data Validation'!$L$18=1,'Demand - External Transfers'!J23,'Data Validation Backing (Hide)'!Q20))*$AM$18 -> 542 | K16: =IF('Demand - External Transfers'!$A23="",0,IF('Data Validation'!$L$18=1,'Demand - External Transfers'!K23,'Data Validation Backing (Hide)'!AA20))*$AM$19 -> 190 | L16: =IF('Demand - External Transfers'!$A23="",0,IF('Data Validation'!$L$18=1,'Demand - External Transfers'!L23,'Data Validation Backing (Hide)'!AK20))*$AM$20 -> 312 | M16: =IF('Demand - External Transfers'!$A23="",0,IF('Data Validation'!$L$18=1,'Demand - External Transfers'!M23,'Data Validation Backing (Hide)'!AU20))*$AM$21 -> 944 | N16: 2774 | O16: 0 | P16: 0 | Q16: 0 | R16: 0 | S16: =IF('Caseload SPC Chart'!$D$9="Total",5,VLOOKUP(B16,$AZ$4:$BA$55,2,FALSE)) -> 5 | T16: 2795.538754 | U16: 2802.777351 | V16: 2810.015948 | W16: 2817.254545 | X16: 2824.493143 | Y16: 2831.73174 | Z16: 2838.970337 | AB16: 2774 | AC16: -1 | AD16: 2774 | AE16: 1 | AG16: -1 | AH16: 2774 | AJ16: 6 | AL16: =Service!B21 -> Intensity | AM16: If Contacts, 1, if minutes, multiply by total minutes required per level of intensity | AY16: =AY15+1 -> 13 | AZ16: =IFERROR(VLOOKUP(AY16,'Demand - External Transfers'!$A$11:$B$166,2,FALSE),AZ15+1) -> 13 | BA16: =IF(SPC_CL_Type="Total",'Caseload SPC Chart Backing'!$AL$9,IF(SPC_CL_Type="Baseline",1,IF(AND(AY16>=$AM$5,AY16<=$AN$5),1,IF(AND(AY16>=$AM$6,AY16<=$AN$6),2,IF(AND(AY16>=$AM$7,AY16<=$AN$7),3,IF(AND(AY16>=$AM$8,AY16<=$AN$8),4,$AN$12)))))) -> 5 | BB16: 2795.538754 | BC16: 2802.777351 | BD16: 2810.015948 | BE16: 2824.493143 | BF16: 2831.73174 | BG16: 2838.970337 | BH16: 2817.254545 | BJ16: Split2End | BL16: =IF(BK15=1,(BL14+BK14)+9,NA()) ->  | BM16: =IF(BK15=1,MIN(DEM_Max_Rows,BK13+52),NA()) ->  | BN16: =MAX(0,BM16-BL16) ->  | BO16: =IF(BN16=0,0,((BK16+BL16)-BK13)-BO14) -> 
A17: ='Demand - External Transfers'!A24 -> 14 | B17: ='Demand - External Transfers'!B24 -> 14 | C17: ='Demand - External Transfers'!C24 -> 5 | D17: ='Demand - External Transfers'!D24 ->  | E17: ='Demand - External Transfers'!E24 -> Jul | F17: ='Demand - External Transfers'!F24 -> 26 | G17: ='Demand - External Transfers'!G24 -> 2017-07-01 | I17: =IF('Demand - External Transfers'!$A24="",0,IF('Data Validation'!$L$18=1,'Demand - External Transfers'!I24,'Data Validation Backing (Hide)'!G21))*$AM$17 -> 762 | J17: =IF('Demand - External Transfers'!$A24="",0,IF('Data Validation'!$L$18=1,'Demand - External Transfers'!J24,'Data Validation Backing (Hide)'!Q21))*$AM$18 -> 510 | K17: =IF('Demand - External Transfers'!$A24="",0,IF('Data Validation'!$L$18=1,'Demand - External Transfers'!K24,'Data Validation Backing (Hide)'!AA21))*$AM$19 -> 232 | L17: =IF('Demand - External Transfers'!$A24="",0,IF('Data Validation'!$L$18=1,'Demand - External Transfers'!L24,'Data Validation Backing (Hide)'!AK21))*$AM$20 -> 288 | M17: =IF('Demand - External Transfers'!$A24="",0,IF('Data Validation'!$L$18=1,'Demand - External Transfers'!M24,'Data Validation Backing (Hide)'!AU21))*$AM$21 -> 984 | N17: 2776 | O17: 0 | P17: 0 | Q17: 0 | R17: 0 | S17: =IF('Caseload SPC Chart'!$D$9="Total",5,VLOOKUP(B17,$AZ$4:$BA$55,2,FALSE)) -> 5 | T17: 2795.538754 | U17: 2802.777351 | V17: 2810.015948 | W17: 2817.254545 | X17: 2824.493143 | Y17: 2831.73174 | Z17: 2838.970337 | AB17: 2776 | AC17: -1 | AD17: 2776 | AE17: 1 | AG17: -1 | AH17: 2776 | AJ17: 2 | AL17: =Service!B22 -> Grp1 | AM17: =IF('Caseload SPC Chart'!$D$10="Patients",1,Service!J22+Service!K22) -> 1 | AY17: 14 | AZ17: =IFERROR(VLOOKUP(AY17,'Demand - External Transfers'!$A$11:$B$166,2,FALSE),AZ16+1) -> 14 | BA17: =IF(SPC_CL_Type="Total",'Caseload SPC Chart Backing'!$AL$9,IF(SPC_CL_Type="Baseline",1,IF(AND(AY17>=$AM$5,AY17<=$AN$5),1,IF(AND(AY17>=$AM$6,AY17<=$AN$6),2,IF(AND(AY17>=$AM$7,AY17<=$AN$7),3,IF(AND(AY17>=$AM$8,AY17<=$AN$8),4,$AN$12)))))) -> 5 | BB17: 2795.538754 | BC17: 2802.777351 | BD17: 2810.015948 | BE17: 2824.493143 | BF17: 2831.73174 | BG17: 2838.970337 | BH17: 2817.254545 | BJ17: Split3Start
A18: ='Demand - External Transfers'!A25 -> 15 | B18: ='Demand - External Transfers'!B25 -> 15 | C18: ='Demand - External Transfers'!C25 -> 5 | D18: ='Demand - External Transfers'!D25 ->  | E18: ='Demand - External Transfers'!E25 ->  | F18: ='Demand - External Transfers'!F25 -> 27 | G18: ='Demand - External Transfers'!G25 -> 2017-07-08 | I18: =IF('Demand - External Transfers'!$A25="",0,IF('Data Validation'!$L$18=1,'Demand - External Transfers'!I25,'Data Validation Backing (Hide)'!G22))*$AM$17 -> 760 | J18: =IF('Demand - External Transfers'!$A25="",0,IF('Data Validation'!$L$18=1,'Demand - External Transfers'!J25,'Data Validation Backing (Hide)'!Q22))*$AM$18 -> 520 | K18: =IF('Demand - External Transfers'!$A25="",0,IF('Data Validation'!$L$18=1,'Demand - External Transfers'!K25,'Data Validation Backing (Hide)'!AA22))*$AM$19 -> 232 | L18: =IF('Demand - External Transfers'!$A25="",0,IF('Data Validation'!$L$18=1,'Demand - External Transfers'!L25,'Data Validation Backing (Hide)'!AK22))*$AM$20 -> 276 | M18: =IF('Demand - External Transfers'!$A25="",0,IF('Data Validation'!$L$18=1,'Demand - External Transfers'!M25,'Data Validation Backing (Hide)'!AU22))*$AM$21 -> 1006 | N18: 2794 | O18: 0 | P18: 0 | Q18: 0 | R18: 0 | S18: =IF('Caseload SPC Chart'!$D$9="Total",5,VLOOKUP(B18,$AZ$4:$BA$55,2,FALSE)) -> 5 | T18: 2795.538754 | U18: 2802.777351 | V18: 2810.015948 | W18: 2817.254545 | X18: 2824.493143 | Y18: 2831.73174 | Z18: 2838.970337 | AB18: 2794 | AC18: -1 | AD18: 2794 | AE18: 1 | AG18: -1 | AH18: 2794 | AJ18: 18 | AL18: =Service!B27 -> Grp2 | AM18: =IF('Caseload SPC Chart'!$D$10="Patients",1,Service!J27+Service!K27) -> 1 | AY18: 15 | AZ18: =IFERROR(VLOOKUP(AY18,'Demand - External Transfers'!$A$11:$B$166,2,FALSE),AZ17+1) -> 15 | BA18: =IF(SPC_CL_Type="Total",'Caseload SPC Chart Backing'!$AL$9,IF(SPC_CL_Type="Baseline",1,IF(AND(AY18>=$AM$5,AY18<=$AN$5),1,IF(AND(AY18>=$AM$6,AY18<=$AN$6),2,IF(AND(AY18>=$AM$7,AY18<=$AN$7),3,IF(AND(AY18>=$AM$8,AY18<=$AN$8),4,$AN$12)))))) -> 5 | BB18: 2795.538754 | BC18: 2802.777351 | BD18: 2810.015948 | BE18: 2824.493143 | BF18: 2831.73174 | BG18: 2838.970337 | BH18: 2817.254545 | BJ18: Split3End | BL18: =IF(BK17=1,BL16+BK16+9,NA()) ->  | BM18: =IF(BK17=1,MIN(DEM_Max_Rows,BK13+52),NA()) ->  | BN18: =MAX(0,BM18-BL18) ->  | BO18: =IF(BN18=0,0,((BK18+BL18)-BK13)-BO14-BO16) -> 
A19: ='Demand - External Transfers'!A26 -> 16 | B19: ='Demand - External Transfers'!B26 -> 16 | C19: ='Demand - External Transfers'!C26 -> 5 | D19: ='Demand - External Transfers'!D26 ->  | E19: ='Demand - External Transfers'!E26 ->  | F19: ='Demand - External Transfers'!F26 -> 28 | G19: ='Demand - External Transfers'!G26 -> 2017-07-15 | I19: =IF('Demand - External Transfers'!$A26="",0,IF('Data Validation'!$L$18=1,'Demand - External Transfers'!I26,'Data Validation Backing (Hide)'!G23))*$AM$17 -> 762 | J19: =IF('Demand - External Transfers'!$A26="",0,IF('Data Validation'!$L$18=1,'Demand - External Transfers'!J26,'Data Validation Backing (Hide)'!Q23))*$AM$18 -> 508 | K19: =IF('Demand - External Transfers'!$A26="",0,IF('Data Validation'!$L$18=1,'Demand - External Transfers'!K26,'Data Validation Backing (Hide)'!AA23))*$AM$19 -> 222 | L19: =IF('Demand - External Transfers'!$A26="",0,IF('Data Validation'!$L$18=1,'Demand - External Transfers'!L26,'Data Validation Backing (Hide)'!AK23))*$AM$20 -> 268 | M19: =IF('Demand - External Transfers'!$A26="",0,IF('Data Validation'!$L$18=1,'Demand - External Transfers'!M26,'Data Validation Backing (Hide)'!AU23))*$AM$21 -> 1036 | N19: 2796 | O19: 0 | P19: 0 | Q19: 0 | R19: 0 | S19: =IF('Caseload SPC Chart'!$D$9="Total",5,VLOOKUP(B19,$AZ$4:$BA$55,2,FALSE)) -> 5 | T19: 2795.538754 | U19: 2802.777351 | V19: 2810.015948 | W19: 2817.254545 | X19: 2824.493143 | Y19: 2831.73174 | Z19: 2838.970337 | AC19: -1 | AD19: 2796 | AE19: -1 | AG19: -1 | AH19: 2796 | AJ19: 2 | AL19: =Service!B32 -> Grp3 | AM19: =IF('Caseload SPC Chart'!$D$10="Patients",1,Service!J32+Service!K32) -> 1 | AY19: 16 | AZ19: =IFERROR(VLOOKUP(AY19,'Demand - External Transfers'!$A$11:$B$166,2,FALSE),AZ18+1) -> 16 | BA19: =IF(SPC_CL_Type="Total",'Caseload SPC Chart Backing'!$AL$9,IF(SPC_CL_Type="Baseline",1,IF(AND(AY19>=$AM$5,AY19<=$AN$5),1,IF(AND(AY19>=$AM$6,AY19<=$AN$6),2,IF(AND(AY19>=$AM$7,AY19<=$AN$7),3,IF(AND(AY19>=$AM$8,AY19<=$AN$8),4,$AN$12)))))) -> 5 | BB19: 2795.538754 | BC19: 2802.777351 | BD19: 2810.015948 | BE19: 2824.493143 | BF19: 2831.73174 | BG19: 2838.970337 | BH19: 2817.254545 | BJ19: Split4Start
A20: ='Demand - External Transfers'!A27 -> 17 | B20: ='Demand - External Transfers'!B27 -> 17 | C20: ='Demand - External Transfers'!C27 -> 5 | D20: ='Demand - External Transfers'!D27 ->  | E20: ='Demand - External Transfers'!E27 ->  | F20: ='Demand - External Transfers'!F27 -> 29 | G20: ='Demand - External Transfers'!G27 -> 2017-07-22 | I20: =IF('Demand - External Transfers'!$A27="",0,IF('Data Validation'!$L$18=1,'Demand - External Transfers'!I27,'Data Validation Backing (Hide)'!G24))*$AM$17 -> 780 | J20: =IF('Demand - External Transfers'!$A27="",0,IF('Data Validation'!$L$18=1,'Demand - External Transfers'!J27,'Data Validation Backing (Hide)'!Q24))*$AM$18 -> 500 | K20: =IF('Demand - External Transfers'!$A27="",0,IF('Data Validation'!$L$18=1,'Demand - External Transfers'!K27,'Data Validation Backing (Hide)'!AA24))*$AM$19 -> 230 | L20: =IF('Demand - External Transfers'!$A27="",0,IF('Data Validation'!$L$18=1,'Demand - External Transfers'!L27,'Data Validation Backing (Hide)'!AK24))*$AM$20 -> 260 | M20: =IF('Demand - External Transfers'!$A27="",0,IF('Data Validation'!$L$18=1,'Demand - External Transfers'!M27,'Data Validation Backing (Hide)'!AU24))*$AM$21 -> 1014 | N20: 2784 | O20: 0 | P20: 0 | Q20: 0 | R20: 0 | S20: =IF('Caseload SPC Chart'!$D$9="Total",5,VLOOKUP(B20,$AZ$4:$BA$55,2,FALSE)) -> 5 | T20: 2795.538754 | U20: 2802.777351 | V20: 2810.015948 | W20: 2817.254545 | X20: 2824.493143 | Y20: 2831.73174 | Z20: 2838.970337 | AB20: 2784 | AC20: -1 | AD20: 2784 | AE20: 1 | AG20: -1 | AH20: 2784 | AJ20: 12 | AL20: =Service!B37 -> Grp4 | AM20: =IF('Caseload SPC Chart'!$D$10="Patients",1,Service!J37+Service!K37) -> 1 | AY20: 17 | AZ20: =IFERROR(VLOOKUP(AY20,'Demand - External Transfers'!$A$11:$B$166,2,FALSE),AZ19+1) -> 17 | BA20: =IF(SPC_CL_Type="Total",'Caseload SPC Chart Backing'!$AL$9,IF(SPC_CL_Type="Baseline",1,IF(AND(AY20>=$AM$5,AY20<=$AN$5),1,IF(AND(AY20>=$AM$6,AY20<=$AN$6),2,IF(AND(AY20>=$AM$7,AY20<=$AN$7),3,IF(AND(AY20>=$AM$8,AY20<=$AN$8),4,$AN$12)))))) -> 5 | BB20: 2795.538754 | BC20: 2802.777351 | BD20: 2810.015948 | BE20: 2824.493143 | BF20: 2831.73174 | BG20: 2838.970337 | BH20: 2817.254545 | BJ20: Split4End | BL20: =IF(BK19=1,BL18+BK18+9,NA()) ->  | BM20: =IF(BK19=1,MIN(DEM_Max_Rows,BK13+52),NA()) ->  | BN20: =MAX(0,BM20-BL20) ->  | BO20: =IF(BN20=0,0,((BK20+BL20)-BK13)-BO16-BO18-BO14) -> 
A21: ='Demand - External Transfers'!A28 -> 18 | B21: ='Demand - External Transfers'!B28 -> 18 | C21: ='Demand - External Transfers'!C28 -> 5 | D21: ='Demand - External Transfers'!D28 ->  | E21: ='Demand - External Transfers'!E28 ->  | F21: ='Demand - External Transfers'!F28 -> 30 | G21: ='Demand - External Transfers'!G28 -> 2017-07-29 | I21: =IF('Demand - External Transfers'!$A28="",0,IF('Data Validation'!$L$18=1,'Demand - External Transfers'!I28,'Data Validation Backing (Hide)'!G25))*$AM$17 -> 782 | J21: =IF('Demand - External Transfers'!$A28="",0,IF('Data Validation'!$L$18=1,'Demand - External Transfers'!J28,'Data Validation Backing (Hide)'!Q25))*$AM$18 -> 536 | K21: =IF('Demand - External Transfers'!$A28="",0,IF('Data Validation'!$L$18=1,'Demand - External Transfers'!K28,'Data Validation Backing (Hide)'!AA25))*$AM$19 -> 242 | L21: =IF('Demand - External Transfers'!$A28="",0,IF('Data Validation'!$L$18=1,'Demand - External Transfers'!L28,'Data Validation Backing (Hide)'!AK25))*$AM$20 -> 340 | M21: =IF('Demand - External Transfers'!$A28="",0,IF('Data Validation'!$L$18=1,'Demand - External Transfers'!M28,'Data Validation Backing (Hide)'!AU25))*$AM$21 -> 898 | N21: 2798 | O21: 0 | P21: 0 | Q21: 0 | R21: 0 | S21: =IF('Caseload SPC Chart'!$D$9="Total",5,VLOOKUP(B21,$AZ$4:$BA$55,2,FALSE)) -> 5 | T21: 2795.538754 | U21: 2802.777351 | V21: 2810.015948 | W21: 2817.254545 | X21: 2824.493143 | Y21: 2831.73174 | Z21: 2838.970337 | AC21: -1 | AD21: 2798 | AE21: 1 | AG21: -1 | AH21: 2798 | AJ21: 14 | AL21: =Service!B42 -> Grp5 | AM21: =IF('Caseload SPC Chart'!$D$10="Patients",1,Service!J42+Service!K42) -> 1 | AY21: 18 | AZ21: =IFERROR(VLOOKUP(AY21,'Demand - External Transfers'!$A$11:$B$166,2,FALSE),AZ20+1) -> 18 | BA21: =IF(SPC_CL_Type="Total",'Caseload SPC Chart Backing'!$AL$9,IF(SPC_CL_Type="Baseline",1,IF(AND(AY21>=$AM$5,AY21<=$AN$5),1,IF(AND(AY21>=$AM$6,AY21<=$AN$6),2,IF(AND(AY21>=$AM$7,AY21<=$AN$7),3,IF(AND(AY21>=$AM$8,AY21<=$AN$8),4,$AN$12)))))) -> 5 | BB21: 2795.538754 | BC21: 2802.777351 | BD21: 2810.015948 | BE21: 2824.493143 | BF21: 2831.73174 | BG21: 2838.970337 | BH21: 2817.254545
A22: ='Demand - External Transfers'!A29 -> 19 | B22: ='Demand - External Transfers'!B29 -> 19 | C22: ='Demand - External Transfers'!C29 -> 5 | D22: ='Demand - External Transfers'!D29 ->  | E22: ='Demand - External Transfers'!E29 -> Aug | F22: ='Demand - External Transfers'!F29 -> 31 | G22: ='Demand - External Transfers'!G29 -> 2017-08-05 | I22: =IF('Demand - External Transfers'!$A29="",0,IF('Data Validation'!$L$18=1,'Demand - External Transfers'!I29,'Data Validation Backing (Hide)'!G26))*$AM$17 -> 790 | J22: =IF('Demand - External Transfers'!$A29="",0,IF('Data Validation'!$L$18=1,'Demand - External Transfers'!J29,'Data Validation Backing (Hide)'!Q26))*$AM$18 -> 566 | K22: =IF('Demand - External Transfers'!$A29="",0,IF('Data Validation'!$L$18=1,'Demand - External Transfers'!K29,'Data Validation Backing (Hide)'!AA26))*$AM$19 -> 320 | L22: =IF('Demand - External Transfers'!$A29="",0,IF('Data Validation'!$L$18=1,'Demand - External Transfers'!L29,'Data Validation Backing (Hide)'!AK26))*$AM$20 -> 330 | M22: =IF('Demand - External Transfers'!$A29="",0,IF('Data Validation'!$L$18=1,'Demand - External Transfers'!M29,'Data Validation Backing (Hide)'!AU26))*$AM$21 -> 804 | N22: 2810 | O22: 0 | P22: 0 | Q22: 0 | R22: 0 | S22: =IF('Caseload SPC Chart'!$D$9="Total",5,VLOOKUP(B22,$AZ$4:$BA$55,2,FALSE)) -> 5 | T22: 2795.538754 | U22: 2802.777351 | V22: 2810.015948 | W22: 2817.254545 | X22: 2824.493143 | Y22: 2831.73174 | Z22: 2838.970337 | AC22: 0 | AE22: -1 | AG22: -1 | AH22: 2810 | AJ22: 12 | AY22: 19 | AZ22: =IFERROR(VLOOKUP(AY22,'Demand - External Transfers'!$A$11:$B$166,2,FALSE),AZ21+1) -> 19 | BA22: =IF(SPC_CL_Type="Total",'Caseload SPC Chart Backing'!$AL$9,IF(SPC_CL_Type="Baseline",1,IF(AND(AY22>=$AM$5,AY22<=$AN$5),1,IF(AND(AY22>=$AM$6,AY22<=$AN$6),2,IF(AND(AY22>=$AM$7,AY22<=$AN$7),3,IF(AND(AY22>=$AM$8,AY22<=$AN$8),4,$AN$12)))))) -> 5 | BB22: 2795.538754 | BC22: 2802.777351 | BD22: 2810.015948 | BE22: 2824.493143 | BF22: 2831.73174 | BG22: 2838.970337 | BH22: 2817.254545
A23: ='Demand - External Transfers'!A30 -> 20 | B23: ='Demand - External Transfers'!B30 -> 20 | C23: ='Demand - External Transfers'!C30 -> 5 | D23: ='Demand - External Transfers'!D30 ->  | E23: ='Demand - External Transfers'!E30 ->  | F23: ='Demand - External Transfers'!F30 -> 32 | G23: ='Demand - External Transfers'!G30 -> 2017-08-12 | I23: =IF('Demand - External Transfers'!$A30="",0,IF('Data Validation'!$L$18=1,'Demand - External Transfers'!I30,'Data Validation Backing (Hide)'!G27))*$AM$17 -> 782 | J23: =IF('Demand - External Transfers'!$A30="",0,IF('Data Validation'!$L$18=1,'Demand - External Transfers'!J30,'Data Validation Backing (Hide)'!Q27))*$AM$18 -> 584 | K23: =IF('Demand - External Transfers'!$A30="",0,IF('Data Validation'!$L$18=1,'Demand - External Transfers'!K30,'Data Validation Backing (Hide)'!AA27))*$AM$19 -> 338 | L23: =IF('Demand - External Transfers'!$A30="",0,IF('Data Validation'!$L$18=1,'Demand - External Transfers'!L30,'Data Validation Backing (Hide)'!AK27))*$AM$20 -> 272 | M23: =IF('Demand - External Transfers'!$A30="",0,IF('Data Validation'!$L$18=1,'Demand - External Transfers'!M30,'Data Validation Backing (Hide)'!AU27))*$AM$21 -> 820 | N23: 2796 | O23: 0 | P23: 0 | Q23: 0 | R23: 0 | S23: =IF('Caseload SPC Chart'!$D$9="Total",5,VLOOKUP(B23,$AZ$4:$BA$55,2,FALSE)) -> 5 | T23: 2795.538754 | U23: 2802.777351 | V23: 2810.015948 | W23: 2817.254545 | X23: 2824.493143 | Y23: 2831.73174 | Z23: 2838.970337 | AC23: -1 | AE23: 1 | AG23: -1 | AH23: 2796 | AJ23: 14 | AY23: 20 | AZ23: =IFERROR(VLOOKUP(AY23,'Demand - External Transfers'!$A$11:$B$166,2,FALSE),AZ22+1) -> 20 | BA23: =IF(SPC_CL_Type="Total",'Caseload SPC Chart Backing'!$AL$9,IF(SPC_CL_Type="Baseline",1,IF(AND(AY23>=$AM$5,AY23<=$AN$5),1,IF(AND(AY23>=$AM$6,AY23<=$AN$6),2,IF(AND(AY23>=$AM$7,AY23<=$AN$7),3,IF(AND(AY23>=$AM$8,AY23<=$AN$8),4,$AN$12)))))) -> 5 | BB23: 2795.538754 | BC23: 2802.777351 | BD23: 2810.015948 | BE23: 2824.493143 | BF23: 2831.73174 | BG23: 2838.970337 | BH23: 2817.254545
A24: ='Demand - External Transfers'!A31 -> 21 | B24: ='Demand - External Transfers'!B31 -> 21 | C24: ='Demand - External Transfers'!C31 -> 5 | D24: ='Demand - External Transfers'!D31 ->  | E24: ='Demand - External Transfers'!E31 ->  | F24: ='Demand - External Transfers'!F31 -> 33 | G24: ='Demand - External Transfers'!G31 -> 2017-08-19 | I24: =IF('Demand - External Transfers'!$A31="",0,IF('Data Validation'!$L$18=1,'Demand - External Transfers'!I31,'Data Validation Backing (Hide)'!G28))*$AM$17 -> 800 | J24: =IF('Demand - External Transfers'!$A31="",0,IF('Data Validation'!$L$18=1,'Demand - External Transfers'!J31,'Data Validation Backing (Hide)'!Q28))*$AM$18 -> 640 | K24: =IF('Demand - External Transfers'!$A31="",0,IF('Data Validation'!$L$18=1,'Demand - External Transfers'!K31,'Data Validation Backing (Hide)'!AA28))*$AM$19 -> 270 | L24: =IF('Demand - External Transfers'!$A31="",0,IF('Data Validation'!$L$18=1,'Demand - External Transfers'!L31,'Data Validation Backing (Hide)'!AK28))*$AM$20 -> 282 | M24: =IF('Demand - External Transfers'!$A31="",0,IF('Data Validation'!$L$18=1,'Demand - External Transfers'!M31,'Data Validation Backing (Hide)'!AU28))*$AM$21 -> 816 | N24: 2808 | O24: 0 | P24: 0 | Q24: 0 | R24: 0 | S24: =IF('Caseload SPC Chart'!$D$9="Total",5,VLOOKUP(B24,$AZ$4:$BA$55,2,FALSE)) -> 5 | T24: 2795.538754 | U24: 2802.777351 | V24: 2810.015948 | W24: 2817.254545 | X24: 2824.493143 | Y24: 2831.73174 | Z24: 2838.970337 | AC24: 0 | AE24: -1 | AG24: -1 | AH24: 2808 | AJ24: 12 | AY24: 21 | AZ24: =IFERROR(VLOOKUP(AY24,'Demand - External Transfers'!$A$11:$B$166,2,FALSE),AZ23+1) -> 21 | BA24: =IF(SPC_CL_Type="Total",'Caseload SPC Chart Backing'!$AL$9,IF(SPC_CL_Type="Baseline",1,IF(AND(AY24>=$AM$5,AY24<=$AN$5),1,IF(AND(AY24>=$AM$6,AY24<=$AN$6),2,IF(AND(AY24>=$AM$7,AY24<=$AN$7),3,IF(AND(AY24>=$AM$8,AY24<=$AN$8),4,$AN$12)))))) -> 5 | BB24: 2795.538754 | BC24: 2802.777351 | BD24: 2810.015948 | BE24: 2824.493143 | BF24: 2831.73174 | BG24: 2838.970337 | BH24: 2817.254545
A25: ='Demand - External Transfers'!A32 -> 22 | B25: ='Demand - External Transfers'!B32 -> 22 | C25: ='Demand - External Transfers'!C32 -> 5 | D25: ='Demand - External Transfers'!D32 ->  | E25: ='Demand - External Transfers'!E32 ->  | F25: ='Demand - External Transfers'!F32 -> 34 | G25: ='Demand - External Transfers'!G32 -> 2017-08-26 | I25: =IF('Demand - External Transfers'!$A32="",0,IF('Data Validation'!$L$18=1,'Demand - External Transfers'!I32,'Data Validation Backing (Hide)'!G29))*$AM$17 -> 790 | J25: =IF('Demand - External Transfers'!$A32="",0,IF('Data Validation'!$L$18=1,'Demand - External Transfers'!J32,'Data Validation Backing (Hide)'!Q29))*$AM$18 -> 694 | K25: =IF('Demand - External Transfers'!$A32="",0,IF('Data Validation'!$L$18=1,'Demand - External Transfers'!K32,'Data Validation Backing (Hide)'!AA29))*$AM$19 -> 216 | L25: =IF('Demand - External Transfers'!$A32="",0,IF('Data Validation'!$L$18=1,'Demand - External Transfers'!L32,'Data Validation Backing (Hide)'!AK29))*$AM$20 -> 264 | M25: =IF('Demand - External Transfers'!$A32="",0,IF('Data Validation'!$L$18=1,'Demand - External Transfers'!M32,'Data Validation Backing (Hide)'!AU29))*$AM$21 -> 842 | N25: 2806 | O25: 0 | P25: 0 | Q25: 0 | R25: 0 | S25: =IF('Caseload SPC Chart'!$D$9="Total",5,VLOOKUP(B25,$AZ$4:$BA$55,2,FALSE)) -> 5 | T25: 2795.538754 | U25: 2802.777351 | V25: 2810.015948 | W25: 2817.254545 | X25: 2824.493143 | Y25: 2831.73174 | Z25: 2838.970337 | AC25: 0 | AE25: 1 | AG25: -1 | AH25: 2806 | AJ25: 2 | AY25: 22 | AZ25: =IFERROR(VLOOKUP(AY25,'Demand - External Transfers'!$A$11:$B$166,2,FALSE),AZ24+1) -> 22 | BA25: =IF(SPC_CL_Type="Total",'Caseload SPC Chart Backing'!$AL$9,IF(SPC_CL_Type="Baseline",1,IF(AND(AY25>=$AM$5,AY25<=$AN$5),1,IF(AND(AY25>=$AM$6,AY25<=$AN$6),2,IF(AND(AY25>=$AM$7,AY25<=$AN$7),3,IF(AND(AY25>=$AM$8,AY25<=$AN$8),4,$AN$12)))))) -> 5 | BB25: 2795.538754 | BC25: 2802.777351 | BD25: 2810.015948 | BE25: 2824.493143 | BF25: 2831.73174 | BG25: 2838.970337 | BH25: 2817.254545
A26: ='Demand - External Transfers'!A33 -> 23 | B26: ='Demand - External Transfers'!B33 -> 23 | C26: ='Demand - External Transfers'!C33 -> 5 | D26: ='Demand - External Transfers'!D33 ->  | E26: ='Demand - External Transfers'!E33 -> Sep | F26: ='Demand - External Transfers'!F33 -> 35 | G26: ='Demand - External Transfers'!G33 -> 2017-09-02 | I26: =IF('Demand - External Transfers'!$A33="",0,IF('Data Validation'!$L$18=1,'Demand - External Transfers'!I33,'Data Validation Backing (Hide)'!G30))*$AM$17 -> 808 | J26: =IF('Demand - External Transfers'!$A33="",0,IF('Data Validation'!$L$18=1,'Demand - External Transfers'!J33,'Data Validation Backing (Hide)'!Q30))*$AM$18 -> 724 | K26: =IF('Demand - External Transfers'!$A33="",0,IF('Data Validation'!$L$18=1,'Demand - External Transfers'!K33,'Data Validation Backing (Hide)'!AA30))*$AM$19 -> 220 | L26: =IF('Demand - External Transfers'!$A33="",0,IF('Data Validation'!$L$18=1,'Demand - External Transfers'!L33,'Data Validation Backing (Hide)'!AK30))*$AM$20 -> 294 | M26: =IF('Demand - External Transfers'!$A33="",0,IF('Data Validation'!$L$18=1,'Demand - External Transfers'!M33,'Data Validation Backing (Hide)'!AU30))*$AM$21 -> 766 | N26: 2812 | O26: 0 | P26: 0 | Q26: 0 | R26: 0 | S26: =IF('Caseload SPC Chart'!$D$9="Total",5,VLOOKUP(B26,$AZ$4:$BA$55,2,FALSE)) -> 5 | T26: 2795.538754 | U26: 2802.777351 | V26: 2810.015948 | W26: 2817.254545 | X26: 2824.493143 | Y26: 2831.73174 | Z26: 2838.970337 | AC26: 0 | AE26: 0 | AG26: -1 | AH26: 2812 | AJ26: 6 | AY26: 23 | AZ26: =IFERROR(VLOOKUP(AY26,'Demand - External Transfers'!$A$11:$B$166,2,FALSE),AZ25+1) -> 23 | BA26: =IF(SPC_CL_Type="Total",'Caseload SPC Chart Backing'!$AL$9,IF(SPC_CL_Type="Baseline",1,IF(AND(AY26>=$AM$5,AY26<=$AN$5),1,IF(AND(AY26>=$AM$6,AY26<=$AN$6),2,IF(AND(AY26>=$AM$7,AY26<=$AN$7),3,IF(AND(AY26>=$AM$8,AY26<=$AN$8),4,$AN$12)))))) -> 5 | BB26: 2795.538754 | BC26: 2802.777351 | BD26: 2810.015948 | BE26: 2824.493143 | BF26: 2831.73174 | BG26: 2838.970337 | BH26: 2817.254545
A27: ='Demand - External Transfers'!A34 -> 24 | B27: ='Demand - External Transfers'!B34 -> 24 | C27: ='Demand - External Transfers'!C34 -> 5 | D27: ='Demand - External Transfers'!D34 ->  | E27: ='Demand - External Transfers'!E34 ->  | F27: ='Demand - External Transfers'!F34 -> 36 | G27: ='Demand - External Transfers'!G34 -> 2017-09-09 | I27: =IF('Demand - External Transfers'!$A34="",0,IF('Data Validation'!$L$18=1,'Demand - External Transfers'!I34,'Data Validation Backing (Hide)'!G31))*$AM$17 -> 804 | J27: =IF('Demand - External Transfers'!$A34="",0,IF('Data Validation'!$L$18=1,'Demand - External Transfers'!J34,'Data Validation Backing (Hide)'!Q31))*$AM$18 -> 712 | K27: =IF('Demand - External Transfers'!$A34="",0,IF('Data Validation'!$L$18=1,'Demand - External Transfers'!K34,'Data Validation Backing (Hide)'!AA31))*$AM$19 -> 216 | L27: =IF('Demand - External Transfers'!$A34="",0,IF('Data Validation'!$L$18=1,'Demand - External Transfers'!L34,'Data Validation Backing (Hide)'!AK31))*$AM$20 -> 290 | M27: =IF('Demand - External Transfers'!$A34="",0,IF('Data Validation'!$L$18=1,'Demand - External Transfers'!M34,'Data Validation Backing (Hide)'!AU31))*$AM$21 -> 790 | N27: 2812 | O27: 0 | P27: 0 | Q27: 0 | R27: 0 | S27: =IF('Caseload SPC Chart'!$D$9="Total",5,VLOOKUP(B27,$AZ$4:$BA$55,2,FALSE)) -> 5 | T27: 2795.538754 | U27: 2802.777351 | V27: 2810.015948 | W27: 2817.254545 | X27: 2824.493143 | Y27: 2831.73174 | Z27: 2838.970337 | AC27: 0 | AE27: -1 | AG27: -1 | AH27: 2812 | AJ27: 0 | AY27: 24 | AZ27: =IFERROR(VLOOKUP(AY27,'Demand - External Transfers'!$A$11:$B$166,2,FALSE),AZ26+1) -> 24 | BA27: =IF(SPC_CL_Type="Total",'Caseload SPC Chart Backing'!$AL$9,IF(SPC_CL_Type="Baseline",1,IF(AND(AY27>=$AM$5,AY27<=$AN$5),1,IF(AND(AY27>=$AM$6,AY27<=$AN$6),2,IF(AND(AY27>=$AM$7,AY27<=$AN$7),3,IF(AND(AY27>=$AM$8,AY27<=$AN$8),4,$AN$12)))))) -> 5 | BB27: 2795.538754 | BC27: 2802.777351 | BD27: 2810.015948 | BE27: 2824.493143 | BF27: 2831.73174 | BG27: 2838.970337 | BH27: 2817.254545
A28: ='Demand - External Transfers'!A35 -> 25 | B28: ='Demand - External Transfers'!B35 -> 25 | C28: ='Demand - External Transfers'!C35 -> 5 | D28: ='Demand - External Transfers'!D35 ->  | E28: ='Demand - External Transfers'!E35 ->  | F28: ='Demand - External Transfers'!F35 -> 37 | G28: ='Demand - External Transfers'!G35 -> 2017-09-16 | I28: =IF('Demand - External Transfers'!$A35="",0,IF('Data Validation'!$L$18=1,'Demand - External Transfers'!I35,'Data Validation Backing (Hide)'!G32))*$AM$17 -> 812 | J28: =IF('Demand - External Transfers'!$A35="",0,IF('Data Validation'!$L$18=1,'Demand - External Transfers'!J35,'Data Validation Backing (Hide)'!Q32))*$AM$18 -> 684 | K28: =IF('Demand - External Transfers'!$A35="",0,IF('Data Validation'!$L$18=1,'Demand - External Transfers'!K35,'Data Validation Backing (Hide)'!AA32))*$AM$19 -> 208 | L28: =IF('Demand - External Transfers'!$A35="",0,IF('Data Validation'!$L$18=1,'Demand - External Transfers'!L35,'Data Validation Backing (Hide)'!AK32))*$AM$20 -> 158 | M28: =IF('Demand - External Transfers'!$A35="",0,IF('Data Validation'!$L$18=1,'Demand - External Transfers'!M35,'Data Validation Backing (Hide)'!AU32))*$AM$21 -> 948 | N28: 2810 | O28: 0 | P28: 0 | Q28: 0 | R28: 0 | S28: =IF('Caseload SPC Chart'!$D$9="Total",5,VLOOKUP(B28,$AZ$4:$BA$55,2,FALSE)) -> 5 | T28: 2795.538754 | U28: 2802.777351 | V28: 2810.015948 | W28: 2817.254545 | X28: 2824.493143 | Y28: 2831.73174 | Z28: 2838.970337 | AC28: 0 | AD28: 2810 | AE28: -1 | AG28: -1 | AH28: 2810 | AJ28: 2 | AY28: 25 | AZ28: =IFERROR(VLOOKUP(AY28,'Demand - External Transfers'!$A$11:$B$166,2,FALSE),AZ27+1) -> 25 | BA28: =IF(SPC_CL_Type="Total",'Caseload SPC Chart Backing'!$AL$9,IF(SPC_CL_Type="Baseline",1,IF(AND(AY28>=$AM$5,AY28<=$AN$5),1,IF(AND(AY28>=$AM$6,AY28<=$AN$6),2,IF(AND(AY28>=$AM$7,AY28<=$AN$7),3,IF(AND(AY28>=$AM$8,AY28<=$AN$8),4,$AN$12)))))) -> 5 | BB28: 2795.538754 | BC28: 2802.777351 | BD28: 2810.015948 | BE28: 2824.493143 | BF28: 2831.73174 | BG28: 2838.970337 | BH28: 2817.254545
A29: ='Demand - External Transfers'!A36 -> 26 | B29: ='Demand - External Transfers'!B36 -> 26 | C29: ='Demand - External Transfers'!C36 -> 5 | D29: ='Demand - External Transfers'!D36 ->  | E29: ='Demand - External Transfers'!E36 ->  | F29: ='Demand - External Transfers'!F36 -> 38 | G29: ='Demand - External Transfers'!G36 -> 2017-09-23 | I29: =IF('Demand - External Transfers'!$A36="",0,IF('Data Validation'!$L$18=1,'Demand - External Transfers'!I36,'Data Validation Backing (Hide)'!G33))*$AM$17 -> 818 | J29: =IF('Demand - External Transfers'!$A36="",0,IF('Data Validation'!$L$18=1,'Demand - External Transfers'!J36,'Data Validation Backing (Hide)'!Q33))*$AM$18 -> 656 | K29: =IF('Demand - External Transfers'!$A36="",0,IF('Data Validation'!$L$18=1,'Demand - External Transfers'!K36,'Data Validation Backing (Hide)'!AA33))*$AM$19 -> 140 | L29: =IF('Demand - External Transfers'!$A36="",0,IF('Data Validation'!$L$18=1,'Demand - External Transfers'!L36,'Data Validation Backing (Hide)'!AK33))*$AM$20 -> 210 | M29: =IF('Demand - External Transfers'!$A36="",0,IF('Data Validation'!$L$18=1,'Demand - External Transfers'!M36,'Data Validation Backing (Hide)'!AU33))*$AM$21 -> 970 | N29: 2794 | O29: 0 | P29: 0 | Q29: 0 | R29: 0 | S29: =IF('Caseload SPC Chart'!$D$9="Total",5,VLOOKUP(B29,$AZ$4:$BA$55,2,FALSE)) -> 5 | T29: 2795.538754 | U29: 2802.777351 | V29: 2810.015948 | W29: 2817.254545 | X29: 2824.493143 | Y29: 2831.73174 | Z29: 2838.970337 | AB29: 2794 | AC29: -1 | AD29: 2794 | AE29: -1 | AG29: -1 | AH29: 2794 | AJ29: 16 | AY29: 26 | AZ29: =IFERROR(VLOOKUP(AY29,'Demand - External Transfers'!$A$11:$B$166,2,FALSE),AZ28+1) -> 26 | BA29: =IF(SPC_CL_Type="Total",'Caseload SPC Chart Backing'!$AL$9,IF(SPC_CL_Type="Baseline",1,IF(AND(AY29>=$AM$5,AY29<=$AN$5),1,IF(AND(AY29>=$AM$6,AY29<=$AN$6),2,IF(AND(AY29>=$AM$7,AY29<=$AN$7),3,IF(AND(AY29>=$AM$8,AY29<=$AN$8),4,$AN$12)))))) -> 5 | BB29: 2795.538754 | BC29: 2802.777351 | BD29: 2810.015948 | BE29: 2824.493143 | BF29: 2831.73174 | BG29: 2838.970337 | BH29: 2817.254545
A30: ='Demand - External Transfers'!A37 -> 27 | B30: ='Demand - External Transfers'!B37 -> 27 | C30: ='Demand - External Transfers'!C37 -> 5 | D30: ='Demand - External Transfers'!D37 ->  | E30: ='Demand - External Transfers'!E37 ->  | F30: ='Demand - External Transfers'!F37 -> 39 | G30: ='Demand - External Transfers'!G37 -> 2017-09-30 | I30: =IF('Demand - External Transfers'!$A37="",0,IF('Data Validation'!$L$18=1,'Demand - External Transfers'!I37,'Data Validation Backing (Hide)'!G34))*$AM$17 -> 826 | J30: =IF('Demand - External Transfers'!$A37="",0,IF('Data Validation'!$L$18=1,'Demand - External Transfers'!J37,'Data Validation Backing (Hide)'!Q34))*$AM$18 -> 634 | K30: =IF('Demand - External Transfers'!$A37="",0,IF('Data Validation'!$L$18=1,'Demand - External Transfers'!K37,'Data Validation Backing (Hide)'!AA34))*$AM$19 -> 178 | L30: =IF('Demand - External Transfers'!$A37="",0,IF('Data Validation'!$L$18=1,'Demand - External Transfers'!L37,'Data Validation Backing (Hide)'!AK34))*$AM$20 -> 224 | M30: =IF('Demand - External Transfers'!$A37="",0,IF('Data Validation'!$L$18=1,'Demand - External Transfers'!M37,'Data Validation Backing (Hide)'!AU34))*$AM$21 -> 922 | N30: 2784 | O30: 0 | P30: 0 | Q30: 0 | R30: 0 | S30: =IF('Caseload SPC Chart'!$D$9="Total",5,VLOOKUP(B30,$AZ$4:$BA$55,2,FALSE)) -> 5 | T30: 2795.538754 | U30: 2802.777351 | V30: 2810.015948 | W30: 2817.254545 | X30: 2824.493143 | Y30: 2831.73174 | Z30: 2838.970337 | AB30: 2784 | AC30: -1 | AD30: 2784 | AE30: -1 | AG30: -1 | AH30: 2784 | AJ30: 10 | AY30: 27 | AZ30: =IFERROR(VLOOKUP(AY30,'Demand - External Transfers'!$A$11:$B$166,2,FALSE),AZ29+1) -> 27 | BA30: =IF(SPC_CL_Type="Total",'Caseload SPC Chart Backing'!$AL$9,IF(SPC_CL_Type="Baseline",1,IF(AND(AY30>=$AM$5,AY30<=$AN$5),1,IF(AND(AY30>=$AM$6,AY30<=$AN$6),2,IF(AND(AY30>=$AM$7,AY30<=$AN$7),3,IF(AND(AY30>=$AM$8,AY30<=$AN$8),4,$AN$12)))))) -> 5 | BB30: 2795.538754 | BC30: 2802.777351 | BD30: 2810.015948 | BE30: 2824.493143 | BF30: 2831.73174 | BG30: 2838.970337 | BH30: 2817.254545
A31: ='Demand - External Transfers'!A38 -> 28 | B31: ='Demand - External Transfers'!B38 -> 28 | C31: ='Demand - External Transfers'!C38 -> 5 | D31: ='Demand - External Transfers'!D38 ->  | E31: ='Demand - External Transfers'!E38 -> Oct | F31: ='Demand - External Transfers'!F38 -> 40 | G31: ='Demand - External Transfers'!G38 -> 2017-10-07 | I31: =IF('Demand - External Transfers'!$A38="",0,IF('Data Validation'!$L$18=1,'Demand - External Transfers'!I38,'Data Validation Backing (Hide)'!G35))*$AM$17 -> 830 | J31: =IF('Demand - External Transfers'!$A38="",0,IF('Data Validation'!$L$18=1,'Demand - External Transfers'!J38,'Data Validation Backing (Hide)'!Q35))*$AM$18 -> 590 | K31: =IF('Demand - External Transfers'!$A38="",0,IF('Data Validation'!$L$18=1,'Demand - External Transfers'!K38,'Data Validation Backing (Hide)'!AA35))*$AM$19 -> 260 | L31: =IF('Demand - External Transfers'!$A38="",0,IF('Data Validation'!$L$18=1,'Demand - External Transfers'!L38,'Data Validation Backing (Hide)'!AK35))*$AM$20 -> 224 | M31: =IF('Demand - External Transfers'!$A38="",0,IF('Data Validation'!$L$18=1,'Demand - External Transfers'!M38,'Data Validation Backing (Hide)'!AU35))*$AM$21 -> 866 | N31: 2770 | O31: 0 | P31: 0 | Q31: 0 | R31: 0 | S31: =IF('Caseload SPC Chart'!$D$9="Total",5,VLOOKUP(B31,$AZ$4:$BA$55,2,FALSE)) -> 5 | T31: 2795.538754 | U31: 2802.777351 | V31: 2810.015948 | W31: 2817.254545 | X31: 2824.493143 | Y31: 2831.73174 | Z31: 2838.970337 | AB31: 2770 | AC31: -1 | AD31: 2770 | AE31: 1 | AG31: -1 | AH31: 2770 | AJ31: 14 | AY31: 28 | AZ31: =IFERROR(VLOOKUP(AY31,'Demand - External Transfers'!$A$11:$B$166,2,FALSE),AZ30+1) -> 28 | BA31: =IF(SPC_CL_Type="Total",'Caseload SPC Chart Backing'!$AL$9,IF(SPC_CL_Type="Baseline",1,IF(AND(AY31>=$AM$5,AY31<=$AN$5),1,IF(AND(AY31>=$AM$6,AY31<=$AN$6),2,IF(AND(AY31>=$AM$7,AY31<=$AN$7),3,IF(AND(AY31>=$AM$8,AY31<=$AN$8),4,$AN$12)))))) -> 5 | BB31: 2795.538754 | BC31: 2802.777351 | BD31: 2810.015948 | BE31: 2824.493143 | BF31: 2831.73174 | BG31: 2838.970337 | BH31: 2817.254545
A32: ='Demand - External Transfers'!A39 -> 29 | B32: ='Demand - External Transfers'!B39 -> 29 | C32: ='Demand - External Transfers'!C39 -> 5 | D32: ='Demand - External Transfers'!D39 ->  | E32: ='Demand - External Transfers'!E39 ->  | F32: ='Demand - External Transfers'!F39 -> 41 | G32: ='Demand - External Transfers'!G39 -> 2017-10-14 | I32: =IF('Demand - External Transfers'!$A39="",0,IF('Data Validation'!$L$18=1,'Demand - External Transfers'!I39,'Data Validation Backing (Hide)'!G36))*$AM$17 -> 828 | J32: =IF('Demand - External Transfers'!$A39="",0,IF('Data Validation'!$L$18=1,'Demand - External Transfers'!J39,'Data Validation Backing (Hide)'!Q36))*$AM$18 -> 588 | K32: =IF('Demand - External Transfers'!$A39="",0,IF('Data Validation'!$L$18=1,'Demand - External Transfers'!K39,'Data Validation Backing (Hide)'!AA36))*$AM$19 -> 258 | L32: =IF('Demand - External Transfers'!$A39="",0,IF('Data Validation'!$L$18=1,'Demand - External Transfers'!L39,'Data Validation Backing (Hide)'!AK36))*$AM$20 -> 208 | M32: =IF('Demand - External Transfers'!$A39="",0,IF('Data Validation'!$L$18=1,'Demand - External Transfers'!M39,'Data Validation Backing (Hide)'!AU36))*$AM$21 -> 902 | N32: 2784 | O32: 0 | P32: 0 | Q32: 0 | R32: 0 | S32: =IF('Caseload SPC Chart'!$D$9="Total",5,VLOOKUP(B32,$AZ$4:$BA$55,2,FALSE)) -> 5 | T32: 2795.538754 | U32: 2802.777351 | V32: 2810.015948 | W32: 2817.254545 | X32: 2824.493143 | Y32: 2831.73174 | Z32: 2838.970337 | AB32: 2784 | AC32: -1 | AD32: 2784 | AE32: -1 | AG32: -1 | AH32: 2784 | AJ32: 14 | AY32: 29 | AZ32: =IFERROR(VLOOKUP(AY32,'Demand - External Transfers'!$A$11:$B$166,2,FALSE),AZ31+1) -> 29 | BA32: =IF(SPC_CL_Type="Total",'Caseload SPC Chart Backing'!$AL$9,IF(SPC_CL_Type="Baseline",1,IF(AND(AY32>=$AM$5,AY32<=$AN$5),1,IF(AND(AY32>=$AM$6,AY32<=$AN$6),2,IF(AND(AY32>=$AM$7,AY32<=$AN$7),3,IF(AND(AY32>=$AM$8,AY32<=$AN$8),4,$AN$12)))))) -> 5 | BB32: 2795.538754 | BC32: 2802.777351 | BD32: 2810.015948 | BE32: 2824.493143 | BF32: 2831.73174 | BG32: 2838.970337 | BH32: 2817.254545
A33: ='Demand - External Transfers'!A40 -> 30 | B33: ='Demand - External Transfers'!B40 -> 30 | C33: ='Demand - External Transfers'!C40 -> 5 | D33: ='Demand - External Transfers'!D40 ->  | E33: ='Demand - External Transfers'!E40 ->  | F33: ='Demand - External Transfers'!F40 -> 42 | G33: ='Demand - External Transfers'!G40 -> 2017-10-21 | I33: =IF('Demand - External Transfers'!$A40="",0,IF('Data Validation'!$L$18=1,'Demand - External Transfers'!I40,'Data Validation Backing (Hide)'!G37))*$AM$17 -> 818 | J33: =IF('Demand - External Transfers'!$A40="",0,IF('Data Validation'!$L$18=1,'Demand - External Transfers'!J40,'Data Validation Backing (Hide)'!Q37))*$AM$18 -> 590 | K33: =IF('Demand - External Transfers'!$A40="",0,IF('Data Validation'!$L$18=1,'Demand - External Transfers'!K40,'Data Validation Backing (Hide)'!AA37))*$AM$19 -> 192 | L33: =IF('Demand - External Transfers'!$A40="",0,IF('Data Validation'!$L$18=1,'Demand - External Transfers'!L40,'Data Validation Backing (Hide)'!AK37))*$AM$20 -> 250 | M33: =IF('Demand - External Transfers'!$A40="",0,IF('Data Validation'!$L$18=1,'Demand - External Transfers'!M40,'Data Validation Backing (Hide)'!AU37))*$AM$21 -> 924 | N33: 2774 | O33: 0 | P33: 0 | Q33: 0 | R33: 0 | S33: =IF('Caseload SPC Chart'!$D$9="Total",5,VLOOKUP(B33,$AZ$4:$BA$55,2,FALSE)) -> 5 | T33: 2795.538754 | U33: 2802.777351 | V33: 2810.015948 | W33: 2817.254545 | X33: 2824.493143 | Y33: 2831.73174 | Z33: 2838.970337 | AB33: 2774 | AC33: -1 | AD33: 2774 | AE33: 1 | AG33: -1 | AH33: 2774 | AJ33: 10 | AY33: 30 | AZ33: =IFERROR(VLOOKUP(AY33,'Demand - External Transfers'!$A$11:$B$166,2,FALSE),AZ32+1) -> 30 | BA33: =IF(SPC_CL_Type="Total",'Caseload SPC Chart Backing'!$AL$9,IF(SPC_CL_Type="Baseline",1,IF(AND(AY33>=$AM$5,AY33<=$AN$5),1,IF(AND(AY33>=$AM$6,AY33<=$AN$6),2,IF(AND(AY33>=$AM$7,AY33<=$AN$7),3,IF(AND(AY33>=$AM$8,AY33<=$AN$8),4,$AN$12)))))) -> 5 | BB33: 2795.538754 | BC33: 2802.777351 | BD33: 2810.015948 | BE33: 2824.493143 | BF33: 2831.73174 | BG33: 2838.970337 | BH33: 2817.254545
A34: ='Demand - External Transfers'!A41 -> 31 | B34: ='Demand - External Transfers'!B41 -> 31 | C34: ='Demand - External Transfers'!C41 -> 5 | D34: ='Demand - External Transfers'!D41 ->  | E34: ='Demand - External Transfers'!E41 ->  | F34: ='Demand - External Transfers'!F41 -> 43 | G34: ='Demand - External Transfers'!G41 -> 2017-10-28 | I34: =IF('Demand - External Transfers'!$A41="",0,IF('Data Validation'!$L$18=1,'Demand - External Transfers'!I41,'Data Validation Backing (Hide)'!G38))*$AM$17 -> 848 | J34: =IF('Demand - External Transfers'!$A41="",0,IF('Data Validation'!$L$18=1,'Demand - External Transfers'!J41,'Data Validation Backing (Hide)'!Q38))*$AM$18 -> 624 | K34: =IF('Demand - External Transfers'!$A41="",0,IF('Data Validation'!$L$18=1,'Demand - External Transfers'!K41,'Data Validation Backing (Hide)'!AA38))*$AM$19 -> 188 | L34: =IF('Demand - External Transfers'!$A41="",0,IF('Data Validation'!$L$18=1,'Demand - External Transfers'!L41,'Data Validation Backing (Hide)'!AK38))*$AM$20 -> 320 | M34: =IF('Demand - External Transfers'!$A41="",0,IF('Data Validation'!$L$18=1,'Demand - External Transfers'!M41,'Data Validation Backing (Hide)'!AU38))*$AM$21 -> 804 | N34: 2784 | O34: 0 | P34: 0 | Q34: 0 | R34: 0 | S34: =IF('Caseload SPC Chart'!$D$9="Total",5,VLOOKUP(B34,$AZ$4:$BA$55,2,FALSE)) -> 5 | T34: 2795.538754 | U34: 2802.777351 | V34: 2810.015948 | W34: 2817.254545 | X34: 2824.493143 | Y34: 2831.73174 | Z34: 2838.970337 | AB34: 2784 | AC34: -1 | AD34: 2784 | AE34: 1 | AG34: -1 | AH34: 2784 | AJ34: 10 | AY34: 31 | AZ34: =IFERROR(VLOOKUP(AY34,'Demand - External Transfers'!$A$11:$B$166,2,FALSE),AZ33+1) -> 31 | BA34: =IF(SPC_CL_Type="Total",'Caseload SPC Chart Backing'!$AL$9,IF(SPC_CL_Type="Baseline",1,IF(AND(AY34>=$AM$5,AY34<=$AN$5),1,IF(AND(AY34>=$AM$6,AY34<=$AN$6),2,IF(AND(AY34>=$AM$7,AY34<=$AN$7),3,IF(AND(AY34>=$AM$8,AY34<=$AN$8),4,$AN$12)))))) -> 5 | BB34: 2795.538754 | BC34: 2802.777351 | BD34: 2810.015948 | BE34: 2824.493143 | BF34: 2831.73174 | BG34: 2838.970337 | BH34: 2817.254545
A35: ='Demand - External Transfers'!A42 -> 32 | B35: ='Demand - External Transfers'!B42 -> 32 | C35: ='Demand - External Transfers'!C42 -> 5 | D35: ='Demand - External Transfers'!D42 ->  | E35: ='Demand - External Transfers'!E42 -> Nov | F35: ='Demand - External Transfers'!F42 -> 44 | G35: ='Demand - External Transfers'!G42 -> 2017-11-04 | I35: =IF('Demand - External Transfers'!$A42="",0,IF('Data Validation'!$L$18=1,'Demand - External Transfers'!I42,'Data Validation Backing (Hide)'!G39))*$AM$17 -> 848 | J35: =IF('Demand - External Transfers'!$A42="",0,IF('Data Validation'!$L$18=1,'Demand - External Transfers'!J42,'Data Validation Backing (Hide)'!Q39))*$AM$18 -> 594 | K35: =IF('Demand - External Transfers'!$A42="",0,IF('Data Validation'!$L$18=1,'Demand - External Transfers'!K42,'Data Validation Backing (Hide)'!AA39))*$AM$19 -> 244 | L35: =IF('Demand - External Transfers'!$A42="",0,IF('Data Validation'!$L$18=1,'Demand - External Transfers'!L42,'Data Validation Backing (Hide)'!AK39))*$AM$20 -> 316 | M35: =IF('Demand - External Transfers'!$A42="",0,IF('Data Validation'!$L$18=1,'Demand - External Transfers'!M42,'Data Validation Backing (Hide)'!AU39))*$AM$21 -> 788 | N35: 2790 | O35: 0 | P35: 0 | Q35: 0 | R35: 0 | S35: =IF('Caseload SPC Chart'!$D$9="Total",5,VLOOKUP(B35,$AZ$4:$BA$55,2,FALSE)) -> 5 | T35: 2795.538754 | U35: 2802.777351 | V35: 2810.015948 | W35: 2817.254545 | X35: 2824.493143 | Y35: 2831.73174 | Z35: 2838.970337 | AB35: 2790 | AC35: -1 | AD35: 2790 | AE35: -1 | AG35: -1 | AH35: 2790 | AJ35: 6 | AY35: 32 | AZ35: =IFERROR(VLOOKUP(AY35,'Demand - External Transfers'!$A$11:$B$166,2,FALSE),AZ34+1) -> 32 | BA35: =IF(SPC_CL_Type="Total",'Caseload SPC Chart Backing'!$AL$9,IF(SPC_CL_Type="Baseline",1,IF(AND(AY35>=$AM$5,AY35<=$AN$5),1,IF(AND(AY35>=$AM$6,AY35<=$AN$6),2,IF(AND(AY35>=$AM$7,AY35<=$AN$7),3,IF(AND(AY35>=$AM$8,AY35<=$AN$8),4,$AN$12)))))) -> 5 | BB35: 2795.538754 | BC35: 2802.777351 | BD35: 2810.015948 | BE35: 2824.493143 | BF35: 2831.73174 | BG35: 2838.970337 | BH35: 2817.254545
A36: ='Demand - External Transfers'!A43 -> 33 | B36: ='Demand - External Transfers'!B43 -> 33 | C36: ='Demand - External Transfers'!C43 -> 5 | D36: ='Demand - External Transfers'!D43 ->  | E36: ='Demand - External Transfers'!E43 ->  | F36: ='Demand - External Transfers'!F43 -> 45 | G36: ='Demand - External Transfers'!G43 -> 2017-11-11 | I36: =IF('Demand - External Transfers'!$A43="",0,IF('Data Validation'!$L$18=1,'Demand - External Transfers'!I43,'Data Validation Backing (Hide)'!G40))*$AM$17 -> 848 | J36: =IF('Demand - External Transfers'!$A43="",0,IF('Data Validation'!$L$18=1,'Demand - External Transfers'!J43,'Data Validation Backing (Hide)'!Q40))*$AM$18 -> 580 | K36: =IF('Demand - External Transfers'!$A43="",0,IF('Data Validation'!$L$18=1,'Demand - External Transfers'!K43,'Data Validation Backing (Hide)'!AA40))*$AM$19 -> 254 | L36: =IF('Demand - External Transfers'!$A43="",0,IF('Data Validation'!$L$18=1,'Demand - External Transfers'!L43,'Data Validation Backing (Hide)'!AK40))*$AM$20 -> 206 | M36: =IF('Demand - External Transfers'!$A43="",0,IF('Data Validation'!$L$18=1,'Demand - External Transfers'!M43,'Data Validation Backing (Hide)'!AU40))*$AM$21 -> 894 | N36: 2782 | O36: =IF(SPC_CL_Type="Baseline",IF(AND($A36>=$BK$13,$A36<=$BL$14+$BK$14-1),1,0),IF(S36=1,1,0)) -> 0 | P36: 0 | Q36: 0 | R36: 0 | S36: =IF('Caseload SPC Chart'!$D$9="Total",5,VLOOKUP(B36,$AZ$4:$BA$55,2,FALSE)) -> 5 | T36: 2795.538754 | U36: 2802.777351 | V36: 2810.015948 | W36: 2817.254545 | X36: 2824.493143 | Y36: 2831.73174 | Z36: 2838.970337 | AB36: 2782 | AC36: -1 | AD36: 2782 | AE36: 0 | AG36: -1 | AH36: 2782 | AJ36: 8 | AY36: 33 | AZ36: =IFERROR(VLOOKUP(AY36,'Demand - External Transfers'!$A$11:$B$166,2,FALSE),AZ35+1) -> 33 | BA36: =IF(SPC_CL_Type="Total",'Caseload SPC Chart Backing'!$AL$9,IF(SPC_CL_Type="Baseline",1,IF(AND(AY36>=$AM$5,AY36<=$AN$5),1,IF(AND(AY36>=$AM$6,AY36<=$AN$6),2,IF(AND(AY36>=$AM$7,AY36<=$AN$7),3,IF(AND(AY36>=$AM$8,AY36<=$AN$8),4,$AN$12)))))) -> 5 | BB36: 2795.538754 | BC36: 2802.777351 | BD36: 2810.015948 | BE36: 2824.493143 | BF36: 2831.73174 | BG36: 2838.970337 | BH36: 2817.254545
A37: ='Demand - External Transfers'!A44 -> 34 | B37: ='Demand - External Transfers'!B44 -> 34 | C37: ='Demand - External Transfers'!C44 -> 5 | D37: ='Demand - External Transfers'!D44 ->  | E37: ='Demand - External Transfers'!E44 ->  | F37: ='Demand - External Transfers'!F44 -> 46 | G37: ='Demand - External Transfers'!G44 -> 2017-11-18 | I37: =IF('Demand - External Transfers'!$A44="",0,IF('Data Validation'!$L$18=1,'Demand - External Transfers'!I44,'Data Validation Backing (Hide)'!G41))*$AM$17 -> 844 | J37: =IF('Demand - External Transfers'!$A44="",0,IF('Data Validation'!$L$18=1,'Demand - External Transfers'!J44,'Data Validation Backing (Hide)'!Q41))*$AM$18 -> 568 | K37: =IF('Demand - External Transfers'!$A44="",0,IF('Data Validation'!$L$18=1,'Demand - External Transfers'!K44,'Data Validation Backing (Hide)'!AA41))*$AM$19 -> 158 | L37: =IF('Demand - External Transfers'!$A44="",0,IF('Data Validation'!$L$18=1,'Demand - External Transfers'!L44,'Data Validation Backing (Hide)'!AK41))*$AM$20 -> 264 | M37: =IF('Demand - External Transfers'!$A44="",0,IF('Data Validation'!$L$18=1,'Demand - External Transfers'!M44,'Data Validation Backing (Hide)'!AU41))*$AM$21 -> 948 | N37: 2782 | O37: 0 | P37: 0 | Q37: 0 | R37: 0 | S37: =IF('Caseload SPC Chart'!$D$9="Total",5,VLOOKUP(B37,$AZ$4:$BA$55,2,FALSE)) -> 5 | T37: 2795.538754 | U37: 2802.777351 | V37: 2810.015948 | W37: 2817.254545 | X37: 2824.493143 | Y37: 2831.73174 | Z37: 2838.970337 | AB37: 2782 | AC37: -1 | AD37: 2782 | AE37: 1 | AG37: -1 | AH37: 2782 | AJ37: =ABS(OFFSET(H37,0,$R$2,DEM_Max_Rows,1)-OFFSET(H36,0,$R$2,-1,1)) -> 0 | AY37: 34 | AZ37: =IFERROR(VLOOKUP(AY37,'Demand - External Transfers'!$A$11:$B$166,2,FALSE),AZ36+1) -> 34 | BA37: =IF(SPC_CL_Type="Total",'Caseload SPC Chart Backing'!$AL$9,IF(SPC_CL_Type="Baseline",1,IF(AND(AY37>=$AM$5,AY37<=$AN$5),1,IF(AND(AY37>=$AM$6,AY37<=$AN$6),2,IF(AND(AY37>=$AM$7,AY37<=$AN$7),3,IF(AND(AY37>=$AM$8,AY37<=$AN$8),4,$AN$12)))))) -> 5 | BB37: 2795.538754 | BC37: 2802.777351 | BD37: 2810.015948 | BE37: 2824.493143 | BF37: 2831.73174 | BG37: 2838.970337 | BH37: 2817.254545
A38: ='Demand - External Transfers'!A45 -> 35 | B38: ='Demand - External Transfers'!B45 -> 35 | C38: ='Demand - External Transfers'!C45 -> 5 | D38: ='Demand - External Transfers'!D45 ->  | E38: ='Demand - External Transfers'!E45 ->  | F38: ='Demand - External Transfers'!F45 -> 47 | G38: ='Demand - External Transfers'!G45 -> 2017-11-25 | I38: =IF('Demand - External Transfers'!$A45="",0,IF('Data Validation'!$L$18=1,'Demand - External Transfers'!I45,'Data Validation Backing (Hide)'!G42))*$AM$17 -> 826 | J38: =IF('Demand - External Transfers'!$A45="",0,IF('Data Validation'!$L$18=1,'Demand - External Transfers'!J45,'Data Validation Backing (Hide)'!Q42))*$AM$18 -> 554 | K38: =IF('Demand - External Transfers'!$A45="",0,IF('Data Validation'!$L$18=1,'Demand - External Transfers'!K45,'Data Validation Backing (Hide)'!AA42))*$AM$19 -> 152 | L38: =IF('Demand - External Transfers'!$A45="",0,IF('Data Validation'!$L$18=1,'Demand - External Transfers'!L45,'Data Validation Backing (Hide)'!AK42))*$AM$20 -> 262 | M38: =IF('Demand - External Transfers'!$A45="",0,IF('Data Validation'!$L$18=1,'Demand - External Transfers'!M45,'Data Validation Backing (Hide)'!AU42))*$AM$21 -> 1006 | N38: 2800 | O38: 0 | P38: 0 | Q38: 0 | R38: 0 | S38: =IF('Caseload SPC Chart'!$D$9="Total",5,VLOOKUP(B38,$AZ$4:$BA$55,2,FALSE)) -> 5 | T38: 2795.538754 | U38: 2802.777351 | V38: 2810.015948 | W38: 2817.254545 | X38: 2824.493143 | Y38: 2831.73174 | Z38: 2838.970337 | AC38: -1 | AD38: 2800 | AE38: -1 | AG38: -1 | AH38: 2800 | AJ38: 18 | AY38: 35 | AZ38: =IFERROR(VLOOKUP(AY38,'Demand - External Transfers'!$A$11:$B$166,2,FALSE),AZ37+1) -> 35 | BA38: =IF(SPC_CL_Type="Total",'Caseload SPC Chart Backing'!$AL$9,IF(SPC_CL_Type="Baseline",1,IF(AND(AY38>=$AM$5,AY38<=$AN$5),1,IF(AND(AY38>=$AM$6,AY38<=$AN$6),2,IF(AND(AY38>=$AM$7,AY38<=$AN$7),3,IF(AND(AY38>=$AM$8,AY38<=$AN$8),4,$AN$12)))))) -> 5 | BB38: 2795.538754 | BC38: 2802.777351 | BD38: 2810.015948 | BE38: 2824.493143 | BF38: 2831.73174 | BG38: 2838.970337 | BH38: 2817.254545
A39: ='Demand - External Transfers'!A46 -> 36 | B39: ='Demand - External Transfers'!B46 -> 36 | C39: ='Demand - External Transfers'!C46 -> 5 | D39: ='Demand - External Transfers'!D46 ->  | E39: ='Demand - External Transfers'!E46 -> Dec | F39: ='Demand - External Transfers'!F46 -> 48 | G39: ='Demand - External Transfers'!G46 -> 2017-12-02 | I39: =IF('Demand - External Transfers'!$A46="",0,IF('Data Validation'!$L$18=1,'Demand - External Transfers'!I46,'Data Validation Backing (Hide)'!G43))*$AM$17 -> 820 | J39: =IF('Demand - External Transfers'!$A46="",0,IF('Data Validation'!$L$18=1,'Demand - External Transfers'!J46,'Data Validation Backing (Hide)'!Q43))*$AM$18 -> 546 | K39: =IF('Demand - External Transfers'!$A46="",0,IF('Data Validation'!$L$18=1,'Demand - External Transfers'!K46,'Data Validation Backing (Hide)'!AA43))*$AM$19 -> 196 | L39: =IF('Demand - External Transfers'!$A46="",0,IF('Data Validation'!$L$18=1,'Demand - External Transfers'!L46,'Data Validation Backing (Hide)'!AK43))*$AM$20 -> 276 | M39: =IF('Demand - External Transfers'!$A46="",0,IF('Data Validation'!$L$18=1,'Demand - External Transfers'!M46,'Data Validation Backing (Hide)'!AU43))*$AM$21 -> 954 | N39: 2792 | O39: 0 | P39: 0 | Q39: 0 | R39: 0 | S39: =IF('Caseload SPC Chart'!$D$9="Total",5,VLOOKUP(B39,$AZ$4:$BA$55,2,FALSE)) -> 5 | T39: 2795.538754 | U39: 2802.777351 | V39: 2810.015948 | W39: 2817.254545 | X39: 2824.493143 | Y39: 2831.73174 | Z39: 2838.970337 | AB39: 2792 | AC39: -1 | AD39: 2792 | AE39: 1 | AG39: -1 | AJ39: 8 | AY39: 36 | AZ39: =IFERROR(VLOOKUP(AY39,'Demand - External Transfers'!$A$11:$B$166,2,FALSE),AZ38+1) -> 36 | BA39: =IF(SPC_CL_Type="Total",'Caseload SPC Chart Backing'!$AL$9,IF(SPC_CL_Type="Baseline",1,IF(AND(AY39>=$AM$5,AY39<=$AN$5),1,IF(AND(AY39>=$AM$6,AY39<=$AN$6),2,IF(AND(AY39>=$AM$7,AY39<=$AN$7),3,IF(AND(AY39>=$AM$8,AY39<=$AN$8),4,$AN$12)))))) -> 5 | BB39: 2795.538754 | BC39: 2802.777351 | BD39: 2810.015948 | BE39: 2824.493143 | BF39: 2831.73174 | BG39: 2838.970337 | BH39: 2817.254545
A40: ='Demand - External Transfers'!A47 -> 37 | B40: ='Demand - External Transfers'!B47 -> 37 | C40: ='Demand - External Transfers'!C47 -> 5 | D40: ='Demand - External Transfers'!D47 ->  | E40: ='Demand - External Transfers'!E47 ->  | F40: ='Demand - External Transfers'!F47 -> 49 | G40: ='Demand - External Transfers'!G47 -> 2017-12-09 | I40: =IF('Demand - External Transfers'!$A47="",0,IF('Data Validation'!$L$18=1,'Demand - External Transfers'!I47,'Data Validation Backing (Hide)'!G44))*$AM$17 -> 806 | J40: =IF('Demand - External Transfers'!$A47="",0,IF('Data Validation'!$L$18=1,'Demand - External Transfers'!J47,'Data Validation Backing (Hide)'!Q44))*$AM$18 -> 524 | K40: =IF('Demand - External Transfers'!$A47="",0,IF('Data Validation'!$L$18=1,'Demand - External Transfers'!K47,'Data Validation Backing (Hide)'!AA44))*$AM$19 -> 244 | L40: =IF('Demand - External Transfers'!$A47="",0,IF('Data Validation'!$L$18=1,'Demand - External Transfers'!L47,'Data Validation Backing (Hide)'!AK44))*$AM$20 -> 252 | M40: =IF('Demand - External Transfers'!$A47="",0,IF('Data Validation'!$L$18=1,'Demand - External Transfers'!M47,'Data Validation Backing (Hide)'!AU44))*$AM$21 -> 978 | N40: 2804 | O40: 0 | P40: 0 | Q40: 0 | R40: 0 | S40: =IF('Caseload SPC Chart'!$D$9="Total",5,VLOOKUP(B40,$AZ$4:$BA$55,2,FALSE)) -> 5 | T40: 2795.538754 | U40: 2802.777351 | V40: 2810.015948 | W40: 2817.254545 | X40: 2824.493143 | Y40: 2831.73174 | Z40: 2838.970337 | AC40: 0 | AD40: 2804 | AE40: -1 | AG40: -1 | AJ40: 12 | AY40: 37 | AZ40: =IFERROR(VLOOKUP(AY40,'Demand - External Transfers'!$A$11:$B$166,2,FALSE),AZ39+1) -> 37 | BA40: =IF(SPC_CL_Type="Total",'Caseload SPC Chart Backing'!$AL$9,IF(SPC_CL_Type="Baseline",1,IF(AND(AY40>=$AM$5,AY40<=$AN$5),1,IF(AND(AY40>=$AM$6,AY40<=$AN$6),2,IF(AND(AY40>=$AM$7,AY40<=$AN$7),3,IF(AND(AY40>=$AM$8,AY40<=$AN$8),4,$AN$12)))))) -> 5 | BB40: 2795.538754 | BC40: 2802.777351 | BD40: 2810.015948 | BE40: 2824.493143 | BF40: 2831.73174 | BG40: 2838.970337 | BH40: 2817.254545
